Workbook

Sheet チケット・カード換金請求書(0) (hidden)
K2: チケット・カード換金請求書
W4: コードNo | AB4: =日別輸送実績表!$D$54 -> 0
D5: (請求日) | W5: 組合員名 | AB5: =日別輸送実績表!$C$54 -> 0
C7: No | D7: 月日 | G7: チケット番号叉は伝票番号 | U7: 金額 | AC7: チケット得意先コード
C8: 1
C9: 2
C10: 3
C11: 4
C12: 5
C13: 6
C14: 7
C15: 8
C16: 9
C17: 10
C18: 11
C19: 12
C20: 13
C21: 14
C22: 15
D23: 請求額合計 (※必ず記入すること) | S23: =SUM(S8:S22) -> 0 | AA23: 円
D24: チケット・クーポン | N24: =IF(S23=0,"",COUNTIF(AC8:AC22,"<>")) ->  | S24: 件 | U24: デビット・クレジット | AE24: =IF(S23=0,0,SUM(COUNT(S8:S22),-N24)) -> 0 | AJ24: 件
D25: 合計額 | J25: （円） | L25: =SUMIF(AC8:AC22,"<>",S8:S22) -> 0 | U25: 合計額 | AA25: （円） | AC25: =SUMIF(AC8:AC22,"",S8:S22) -> 0
D26: 合計額 | H26: × | J26: =日別輸送実績表!$P$54 -> 3 | K26: % | L26: （円単位切上げ） | U26: 合計額 | Y26: × | AA26: =日別輸送実績表!$Q$54 -> 3 | AB26: % | AC26: （円単位切上げ）
D27: 換金手数料 | J27: ▲ | L27: =ROUNDUP((ROUNDDOWN(L25*日別輸送実績表!$P$54*0.01,0)*2)/2,-1) -> 0 | U27: 換金手数料 | AA27: ▲ | AC27: =ROUNDUP((ROUNDDOWN(AC25*日別輸送実績表!$Q$54*0.01,0)*2)/2,-1) -> 0
D28: （A）受取額(円) | L28: =SUM(L25,-L27) -> 0 | U28: (B) 受取額(円) | AC28: =SUM(AC25,-AC27) -> 0
D29: 件数 合計 | G29: =COUNT(S8:Z22) -> 0 | K29: 手数料 合 計 | N29: =SUM(L27,AC27) -> 0 | U29: 受取額合計 (A)＋(B) | AC29: =SUM(L28,AC28) -> 0
Y30: 個人タクシー事業団協同組合

Sheet 簡易換金請求書(0) (hidden)
K2: チケット・カード換金請求書
W4: コードNo | AB4: =日別輸送実績表!$D$54 -> 0
D5: (請求日) | W5: 組合員名 | AB5: =日別輸送実績表!$C$54 -> 0
C7: No | D7: 月日 | G7: チケット番号叉は伝票番号 | U7: 金額 | AC7: チケット得意先コード
C8: 1
C9: 2
C10: 3
C11: 4
C12: 5
C13: 6
C14: 7
C15: 8
C16: 9
C17: 10
C18: 11
C19: 12
C20: 13
C21: 14
C22: 15
D23: チケット・クーポン合計 | N23: =SUMPRODUCT((AC8:AC22<>"")*1) -> 0 | X23: ￥ | AA23: =SUMIF(AC8:AC22,"<>",S8:AB22) -> 0
D24: デビットクレジット合計 | N24: =SUM(COUNT(S8:AB22)-N23) -> 0 | X24: ￥ | AA24: =SUMIF(AC8:AC22,"",S8:S22) -> 0
D25: 合計額 | X25: ￥ | AA25: =SUM(AA23:AI24) -> 0
D26: 換金手数料 | U26: ▲ | X26: ￥ | AA26: =IF(AA25="","",SUM(ROUNDUP(ROUNDDOWN(AA23*日別輸送実績表!$P$54*0.01,0),-1),ROUNDUP(ROUNDDOWN(AA24*日別輸送実績表!$P$54*0.01,0),-1))) -> 0
D27: 合計額× | H27: =SUM(1,-日別輸送実績表!$P$54*0.01) -> 0.97 | K27: (１０円未満切捨て) | X27: ￥ | AA27: =SUM(AA25,-AA26) -> 0
W28: 個人タクシー事業団協同組合

Sheet 前月繰越データ (hidden)
B2: 年月 | C2: 支部名 | D2: 事業者名 | E2: コード | F2: 現金 | G2: 預金 | H2: メーター距離 | I2: 空転距離 | J2: ETC立替（未払） | K2: ETC交通（未払） | L2: ETC立替（当月支払分） | M2: ETC交通（当月支払分）
B3: =日別輸送実績表!A54 -> 2013-08-01 | C3: =日別輸送実績表!B54 -> 0 | D3: =日別輸送実績表!C54 -> 0 | E3: =日別輸送実績表!D54 -> 0 | F3: =日別輸送実績表!E54 -> 0 | G3: =日別輸送実績表!F54 -> 100 | H3: =日別輸送実績表!G54 -> 5 | I3: =日別輸送実績表!H54 -> 0 | J3: =日別輸送実績表!I54 -> 0 | K3: =日別輸送実績表!J54 -> 0 | L3: =日別輸送実績表!K54 -> 0 | M3: =日別輸送実績表!L54 -> 0
B4: ｶｰﾄﾞ識別番号 | C4: 換金手数料率 | D4: ｸﾚｼﾞｯﾄ換金手数料率 | E4: 車両登録番号 | F4: 燃料単価 | G4: 走行燃費 | H4: 繰越燃料費（未払金） | I4: ﾁｹｯﾄ売掛繰越 | J4: ﾁｹｯﾄ立替繰越 | K4: ｸﾚｼﾞｯﾄ売掛繰越 | L4: ｸﾚｼﾞｯﾄ立替繰越
B5: =日別輸送実績表!$M$54 -> 0 | C5: =日別輸送実績表!N54 -> 0 | D5: =日別輸送実績表!O54 -> 0 | E5: =日別輸送実績表!P54 -> 3 | F5: =日別輸送実績表!Q54 -> 3 | G5: =日別輸送実績表!R54 -> 0 | H5: =日別輸送実績表!S54 -> 0 | I5: =日別輸送実績表!T54 -> 0 | J5: =日別輸送実績表!U54 -> 0 | K5: =日別輸送実績表!V54 -> 0 | L5: =日別輸送実績表!W54 -> 0
B7: カード清算種別 | C7: 燃料月極 | E7: 決済種類 | F7: 次月５日振込分 | G7: 立替金
B8: =日別輸送実績表!A56 -> 1 | C8: =日別輸送実績表!B56 -> 2 | E8: 一般 | F8: =日別輸送実績表!AJ53 -> 0 | G8: =日別輸送実績表!AK53 -> 0
E9: 日個連 | F9: =日別輸送実績表!AJ54 -> 0 | G9: =日別輸送実績表!AK54 -> 0

Sheet 料金換算表
A1: 加算回数 | B1: 料金 | D1: 加算回数 | E1: 料金 | F1: 遠割料金 | H1: 加算回数 | I1: 料金 | J1: 遠割料金 | L1: 加算回数 | M1: 料金 | N1: 遠割料金 | P1: 加算回数 | Q1: 料金 | R1: 遠割料金 | T1: 加算回数 | U1: 料金 | V1: 遠割料金 | X1: 加算回数 | Y1: 料金 | Z1: 遠割料金 | AB1: 加算回数 | AC1: 料金 | AD1: 遠割料金 | AF1: 加算回数 | AG1: 料金 | AH1: 遠割料金 | AJ1: 加算回数 | AK1: 料金 | AL1: 遠割料金 | AN1: 加算回数 | AO1: 料金 | AP1: 遠割料金
A2: 0 | B2: 710 | D2: 59 | E2: 6020 | H2: 118 | I2: 11330 | J2: 11090 | L2: 177 | M2: 16640 | N2: 15870 | P2: 236 | Q2: 21950 | R2: 20650 | T2: 295 | U2: 27260 | V2: 25430 | X2: 354 | Y2: 32570 | Z2: 30210 | AB2: 413 | AC2: 37880 | AD2: 34990 | AF2: 472 | AG2: 43190 | AH2: 39770 | AJ2: 531 | AK2: 48500 | AL2: 44550 | AN2: 590 | AO2: 53810 | AP2: 49320
A3: 1 | B3: 800 | D3: 60 | E3: 6110 | H3: 119 | I3: 11420 | J3: 11170 | L3: 178 | M3: 16730 | N3: 15950 | P3: 237 | Q3: 22040 | R3: 20730 | T3: 296 | U3: 27350 | V3: 25510 | X3: 355 | Y3: 32660 | Z3: 30290 | AB3: 414 | AC3: 37970 | AD3: 35070 | AF3: 473 | AG3: 43280 | AH3: 39850 | AJ3: 532 | AK3: 48590 | AL3: 44630 | AN3: 591 | AO3: 53900 | AP3: 49410
A4: 2 | B4: 890 | D4: 61 | E4: 6200 | H4: 120 | I4: 11510 | J4: 11250 | L4: 179 | M4: 16820 | N4: 16030 | P4: 238 | Q4: 22130 | R4: 20810 | T4: 297 | U4: 27440 | V4: 25590 | X4: 356 | Y4: 32750 | Z4: 30370 | AB4: 415 | AC4: 38060 | AD4: 35150 | AF4: 474 | AG4: 43370 | AH4: 39930 | AJ4: 533 | AK4: 48680 | AL4: 44710 | AN4: 592 | AO4: 53990 | AP4: 49490
A5: 3 | B5: 980 | D5: 62 | E5: 6290 | H5: 121 | I5: 11600 | J5: 11340 | L5: 180 | M5: 16910 | N5: 16110 | P5: 239 | Q5: 22220 | R5: 20890 | T5: 298 | U5: 27530 | V5: 25670 | X5: 357 | Y5: 32840 | Z5: 30450 | AB5: 416 | AC5: 38150 | AD5: 35230 | AF5: 475 | AG5: 43460 | AH5: 40010 | AJ5: 534 | AK5: 48770 | AL5: 44790 | AN5: 593 | AO5: 54080 | AP5: 49570
A6: 4 | B6: 1070 | D6: 63 | E6: 6380 | H6: 122 | I6: 11690 | J6: 11420 | L6: 181 | M6: 17000 | N6: 16200 | P6: 240 | Q6: 22310 | R6: 20970 | T6: 299 | U6: 27620 | V6: 25750 | X6: 358 | Y6: 32930 | Z6: 30530 | AB6: 417 | AC6: 38240 | AD6: 35310 | AF6: 476 | AG6: 43550 | AH6: 40090 | AJ6: 535 | AK6: 48860 | AL6: 44870 | AN6: 594 | AO6: 54170 | AP6: 49650
A7: 5 | B7: 1160 | D7: 64 | E7: 6470 | H7: 123 | I7: 11780 | J7: 11500 | L7: 182 | M7: 17090 | N7: 16280 | P7: 241 | Q7: 22400 | R7: 21060 | T7: 300 | U7: 27710 | V7: 25830 | X7: 359 | Y7: 33020 | Z7: 30610 | AB7: 418 | AC7: 38330 | AD7: 35390 | AF7: 477 | AG7: 43640 | AH7: 40170 | AJ7: 536 | AK7: 48950 | AL7: 44950 | AN7: 595 | AO7: 54260 | AP7: 49730
A8: 6 | B8: 1250 | D8: 65 | E8: 6560 | H8: 124 | I8: 11870 | J8: 11580 | L8: 183 | M8: 17180 | N8: 16360 | P8: 242 | Q8: 22490 | R8: 21140 | T8: 301 | U8: 27800 | V8: 25920 | X8: 360 | Y8: 33110 | Z8: 30690 | AB8: 419 | AC8: 38420 | AD8: 35470 | AF8: 478 | AG8: 43730 | AH8: 40250 | AJ8: 537 | AK8: 49040 | AL8: 45030 | AN8: 596 | AO8: 54350 | AP8: 49810
A9: 7 | B9: 1340 | D9: 66 | E9: 6650 | H9: 125 | I9: 11960 | J9: 11660 | L9: 184 | M9: 17270 | N9: 16440 | P9: 243 | Q9: 22580 | R9: 21220 | T9: 302 | U9: 27890 | V9: 26000 | X9: 361 | Y9: 33200 | Z9: 30780 | AB9: 420 | AC9: 38510 | AD9: 35550 | AF9: 479 | AG9: 43820 | AH9: 40330 | AJ9: 538 | AK9: 49130 | AL9: 45110 | AN9: 597 | AO9: 54440 | AP9: 49890
A10: 8 | B10: 1430 | D10: 67 | E10: 6740 | H10: 126 | I10: 12050 | J10: 11740 | L10: 185 | M10: 17360 | N10: 16520 | P10: 244 | Q10: 22670 | R10: 21300 | T10: 303 | U10: 27980 | V10: 26080 | X10: 362 | Y10: 33290 | Z10: 30860 | AB10: 421 | AC10: 38600 | AD10: 35640 | AF10: 480 | AG10: 43910 | AH10: 40410 | AJ10: 539 | AK10: 49220 | AL10: 45190 | AN10: 598 | AO10: 54530 | AP10: 49970
A11: 9 | B11: 1520 | D11: 68 | E11: 6830 | H11: 127 | I11: 12140 | J11: 11820 | L11: 186 | M11: 17450 | N11: 16600 | P11: 245 | Q11: 22760 | R11: 21380 | T11: 304 | U11: 28070 | V11: 26160 | X11: 363 | Y11: 33380 | Z11: 30940 | AB11: 422 | AC11: 38690 | AD11: 35720 | AF11: 481 | AG11: 44000 | AH11: 40500 | AJ11: 540 | AK11: 49310 | AL11: 45270 | AN11: 599 | AO11: 54620 | AP11: 50050
A12: 10 | B12: 1610 | D12: 69 | E12: 6920 | H12: 128 | I12: 12230 | J12: 11900 | L12: 187 | M12: 17540 | N12: 16680 | P12: 246 | Q12: 22850 | R12: 21460 | T12: 305 | U12: 28160 | V12: 26240 | X12: 364 | Y12: 33470 | Z12: 31020 | AB12: 423 | AC12: 38780 | AD12: 35800 | AF12: 482 | AG12: 44090 | AH12: 40580 | AJ12: 541 | AK12: 49400 | AL12: 45360 | AN12: 600 | AO12: 54710 | AP12: 50130
A13: 11 | B13: 1700 | D13: 70 | E13: 7010 | H13: 129 | I13: 12320 | J13: 11980 | L13: 188 | M13: 17630 | N13: 16760 | P13: 247 | Q13: 22940 | R13: 21540 | T13: 306 | U13: 28250 | V13: 26320 | X13: 365 | Y13: 33560 | Z13: 31100 | AB13: 424 | AC13: 38870 | AD13: 35880 | AF13: 483 | AG13: 44180 | AH13: 40660 | AJ13: 542 | AK13: 49490 | AL13: 45440 | AN13: 601 | AO13: 54800 | AP13: 50220
A14: 12 | B14: 1790 | D14: 71 | E14: 7100 | H14: 130 | I14: 12410 | J14: 12060 | L14: 189 | M14: 17720 | N14: 16840 | P14: 248 | Q14: 23030 | R14: 21620 | T14: 307 | U14: 28340 | V14: 26400 | X14: 366 | Y14: 33650 | Z14: 31180 | AB14: 425 | AC14: 38960 | AD14: 35960 | AF14: 484 | AG14: 44270 | AH14: 40740 | AJ14: 543 | AK14: 49580 | AL14: 45520 | AN14: 602 | AO14: 54890 | AP14: 50300
A15: 13 | B15: 1880 | D15: 72 | E15: 7190 | H15: 131 | I15: 12500 | J15: 12150 | L15: 190 | M15: 17810 | N15: 16920 | P15: 249 | Q15: 23120 | R15: 21700 | T15: 308 | U15: 28430 | V15: 26480 | X15: 367 | Y15: 33740 | Z15: 31260 | AB15: 426 | AC15: 39050 | AD15: 36040 | AF15: 485 | AG15: 44360 | AH15: 40820 | AJ15: 544 | AK15: 49670 | AL15: 45600 | AN15: 603 | AO15: 54980 | AP15: 50380
A16: 14 | B16: 1970 | D16: 73 | E16: 7280 | H16: 132 | I16: 12590 | J16: 12230 | L16: 191 | M16: 17900 | N16: 17010 | P16: 250 | Q16: 23210 | R16: 21780 | T16: 309 | U16: 28520 | V16: 26560 | X16: 368 | Y16: 33830 | Z16: 31340 | AB16: 427 | AC16: 39140 | AD16: 36120 | AF16: 486 | AG16: 44450 | AH16: 40900 | AJ16: 545 | AK16: 49760 | AL16: 45680 | AN16: 604 | AO16: 55070 | AP16: 50460
A17: 15 | B17: 2060 | D17: 74 | E17: 7370 | H17: 133 | I17: 12680 | J17: 12310 | L17: 192 | M17: 17990 | N17: 17090 | P17: 251 | Q17: 23300 | R17: 21870 | T17: 310 | U17: 28610 | V17: 26640 | X17: 369 | Y17: 33920 | Z17: 31420 | AB17: 428 | AC17: 39230 | AD17: 36200 | AF17: 487 | AG17: 44540 | AH17: 40980 | AJ17: 546 | AK17: 49850 | AL17: 45760 | AN17: 605 | AO17: 55160 | AP17: 50540
A18: 16 | B18: 2150 | D18: 75 | E18: 7460 | H18: 134 | I18: 12770 | J18: 12390 | L18: 193 | M18: 18080 | N18: 17170 | P18: 252 | Q18: 23390 | R18: 21950 | T18: 311 | U18: 28700 | V18: 26730 | X18: 370 | Y18: 34010 | Z18: 31500 | AB18: 429 | AC18: 39320 | AD18: 36280 | AF18: 488 | AG18: 44630 | AH18: 41060 | AJ18: 547 | AK18: 49940 | AL18: 45840 | AN18: 606 | AO18: 55250 | AP18: 50620
A19: 17 | B19: 2240 | D19: 76 | E19: 7550 | H19: 135 | I19: 12860 | J19: 12470 | L19: 194 | M19: 18170 | N19: 17250 | P19: 253 | Q19: 23480 | R19: 22030 | T19: 312 | U19: 28790 | V19: 26810 | X19: 371 | Y19: 34100 | Z19: 31590 | AB19: 430 | AC19: 39410 | AD19: 36360 | AF19: 489 | AG19: 44720 | AH19: 41140 | AJ19: 548 | AK19: 50030 | AL19: 45920 | AN19: 607 | AO19: 55340 | AP19: 50700
A20: 18 | B20: 2330 | D20: 77 | E20: 7640 | H20: 136 | I20: 12950 | J20: 12550 | L20: 195 | M20: 18260 | N20: 17330 | P20: 254 | Q20: 23570 | R20: 22110 | T20: 313 | U20: 28880 | V20: 26890 | X20: 372 | Y20: 34190 | Z20: 31670 | AB20: 431 | AC20: 39500 | AD20: 36450 | AF20: 490 | AG20: 44810 | AH20: 41220 | AJ20: 549 | AK20: 50120 | AL20: 46000 | AN20: 608 | AO20: 55430 | AP20: 50780
A21: 19 | B21: 2420 | D21: 78 | E21: 7730 | H21: 137 | I21: 13040 | J21: 12630 | L21: 196 | M21: 18350 | N21: 17410 | P21: 255 | Q21: 23660 | R21: 22190 | T21: 314 | U21: 28970 | V21: 26970 | X21: 373 | Y21: 34280 | Z21: 31750 | AB21: 432 | AC21: 39590 | AD21: 36530 | AF21: 491 | AG21: 44900 | AH21: 41310 | AJ21: 550 | AK21: 50210 | AL21: 46080 | AN21: 609 | AO21: 55520 | AP21: 50860
A22: 20 | B22: 2510 | D22: 79 | E22: 7820 | H22: 138 | I22: 13130 | J22: 12710 | L22: 197 | M22: 18440 | N22: 17490 | P22: 256 | Q22: 23750 | R22: 22270 | T22: 315 | U22: 29060 | V22: 27050 | X22: 374 | Y22: 34370 | Z22: 31830 | AB22: 433 | AC22: 39680 | AD22: 36610 | AF22: 492 | AG22: 44990 | AH22: 41390 | AJ22: 551 | AK22: 50300 | AL22: 46170 | AN22: 610 | AO22: 55610 | AP22: 50940
A23: 21 | B23: 2600 | D23: 80 | E23: 7910 | H23: 139 | I23: 13220 | J23: 12790 | L23: 198 | M23: 18530 | N23: 17570 | P23: 257 | Q23: 23840 | R23: 22350 | T23: 316 | U23: 29150 | V23: 27130 | X23: 375 | Y23: 34460 | Z23: 31910 | AB23: 434 | AC23: 39770 | AD23: 36690 | AF23: 493 | AG23: 45080 | AH23: 41470 | AJ23: 552 | AK23: 50390 | AL23: 46250 | AN23: 611 | AO23: 55700 | AP23: 51030
A24: 22 | B24: 2690 | D24: 81 | E24: 8000 | H24: 140 | I24: 13310 | J24: 12870 | L24: 199 | M24: 18620 | N24: 17650 | P24: 258 | Q24: 23930 | R24: 22430 | T24: 317 | U24: 29240 | V24: 27210 | X24: 376 | Y24: 34550 | Z24: 31990 | AB24: 435 | AC24: 39860 | AD24: 36770 | AF24: 494 | AG24: 45170 | AH24: 41550 | AJ24: 553 | AK24: 50480 | AL24: 46330 | AN24: 612 | AO24: 55790 | AP24: 51110
A25: 23 | B25: 2780 | D25: 82 | E25: 8090 | H25: 141 | I25: 13400 | J25: 12960 | L25: 200 | M25: 18710 | N25: 17730 | P25: 259 | Q25: 24020 | R25: 22510 | T25: 318 | U25: 29330 | V25: 27290 | X25: 377 | Y25: 34640 | Z25: 32070 | AB25: 436 | AC25: 39950 | AD25: 36850 | AF25: 495 | AG25: 45260 | AH25: 41630 | AJ25: 554 | AK25: 50570 | AL25: 46410 | AN25: 613 | AO25: 55880 | AP25: 51190
A26: 24 | B26: 2870 | D26: 83 | E26: 8180 | H26: 142 | I26: 13490 | J26: 13040 | L26: 201 | M26: 18800 | N26: 17820 | P26: 260 | Q26: 24110 | R26: 22590 | T26: 319 | U26: 29420 | V26: 27370 | X26: 378 | Y26: 34730 | Z26: 32150 | AB26: 437 | AC26: 40040 | AD26: 36930 | AF26: 496 | AG26: 45350 | AH26: 41710 | AJ26: 555 | AK26: 50660 | AL26: 46490 | AN26: 614 | AO26: 55970 | AP26: 51270
A27: 25 | B27: 2960 | D27: 84 | E27: 8270 | H27: 143 | I27: 13580 | J27: 13120 | L27: 202 | M27: 18890 | N27: 17900 | P27: 261 | Q27: 24200 | R27: 22680 | T27: 320 | U27: 29510 | V27: 27450 | X27: 379 | Y27: 34820 | Z27: 32230 | AB27: 438 | AC27: 40130 | AD27: 37010 | AF27: 497 | AG27: 45440 | AH27: 41790 | AJ27: 556 | AK27: 50750 | AL27: 46570 | AN27: 615 | AO27: 56060 | AP27: 51350
A28: 26 | B28: 3050 | D28: 85 | E28: 8360 | H28: 144 | I28: 13670 | J28: 13200 | L28: 203 | M28: 18980 | N28: 17980 | P28: 262 | Q28: 24290 | R28: 22760 | T28: 321 | U28: 29600 | V28: 27540 | X28: 380 | Y28: 34910 | Z28: 32310 | AB28: 439 | AC28: 40220 | AD28: 37090 | AF28: 498 | AG28: 45530 | AH28: 41870 | AJ28: 557 | AK28: 50840 | AL28: 46650 | AN28: 616 | AO28: 56150 | AP28: 51430
A29: 27 | B29: 3140 | D29: 86 | E29: 8450 | H29: 145 | I29: 13760 | J29: 13280 | L29: 204 | M29: 19070 | N29: 18060 | P29: 263 | Q29: 24380 | R29: 22840 | T29: 322 | U29: 29690 | V29: 27620 | X29: 381 | Y29: 35000 | Z29: 32400 | AB29: 440 | AC29: 40310 | AD29: 37170 | AF29: 499 | AG29: 45620 | AH29: 41950 | AJ29: 558 | AK29: 50930 | AL29: 46730 | AN29: 617 | AO29: 56240 | AP29: 51510
A30: 28 | B30: 3230 | D30: 87 | E30: 8540 | H30: 146 | I30: 13850 | J30: 13360 | L30: 205 | M30: 19160 | N30: 18140 | P30: 264 | Q30: 24470 | R30: 22920 | T30: 323 | U30: 29780 | V30: 27700 | X30: 382 | Y30: 35090 | Z30: 32480 | AB30: 441 | AC30: 40400 | AD30: 37260 | AF30: 500 | AG30: 45710 | AH30: 42030 | AJ30: 559 | AK30: 51020 | AL30: 46810 | AN30: 618 | AO30: 56330 | AP30: 51590
A31: 29 | B31: 3320 | D31: 88 | E31: 8630 | H31: 147 | I31: 13940 | J31: 13440 | L31: 206 | M31: 19250 | N31: 18220 | P31: 265 | Q31: 24560 | R31: 23000 | T31: 324 | U31: 29870 | V31: 27780 | X31: 383 | Y31: 35180 | Z31: 32560 | AB31: 442 | AC31: 40490 | AD31: 37340 | AF31: 501 | AG31: 45800 | AH31: 42120 | AJ31: 560 | AK31: 51110 | AL31: 46890 | AN31: 619 | AO31: 56420 | AP31: 51670
A32: 30 | B32: 3410 | D32: 89 | E32: 8720 | H32: 148 | I32: 14030 | J32: 13520 | L32: 207 | M32: 19340 | N32: 18300 | P32: 266 | Q32: 24650 | R32: 23080 | T32: 325 | U32: 29960 | V32: 27860 | X32: 384 | Y32: 35270 | Z32: 32640 | AB32: 443 | AC32: 40580 | AD32: 37420 | AF32: 502 | AG32: 45890 | AH32: 42200 | AJ32: 561 | AK32: 51200 | AL32: 46980 | AN32: 620 | AO32: 56510 | AP32: 51750
A33: 31 | B33: 3500 | D33: 90 | E33: 8810 | H33: 149 | I33: 14120 | J33: 13600 | L33: 208 | M33: 19430 | N33: 18380 | P33: 267 | Q33: 24740 | R33: 23160 | T33: 326 | U33: 30050 | V33: 27940 | X33: 385 | Y33: 35360 | Z33: 32720 | AB33: 444 | AC33: 40670 | AD33: 37500 | AF33: 503 | AG33: 45980 | AH33: 42280 | AJ33: 562 | AK33: 51290 | AL33: 47060 | AN33: 621 | AO33: 56600 | AP33: 51840
A34: 32 | B34: 3590 | D34: 91 | E34: 8900 | H34: 150 | I34: 14210 | J34: 13680 | L34: 209 | M34: 19520 | N34: 18460 | P34: 268 | Q34: 24830 | R34: 23240 | T34: 327 | U34: 30140 | V34: 28020 | X34: 386 | Y34: 35450 | Z34: 32800 | AB34: 445 | AC34: 40760 | AD34: 37580 | AF34: 504 | AG34: 46070 | AH34: 42360 | AJ34: 563 | AK34: 51380 | AL34: 47140 | AN34: 622 | AO34: 56690 | AP34: 51920
A35: 33 | B35: 3680 | D35: 92 | E35: 8990 | H35: 151 | I35: 14300 | J35: 13770 | L35: 210 | M35: 19610 | N35: 18540 | P35: 269 | Q35: 24920 | R35: 23320 | T35: 328 | U35: 30230 | V35: 28100 | X35: 387 | Y35: 35540 | Z35: 32880 | AB35: 446 | AC35: 40850 | AD35: 37660 | AF35: 505 | AG35: 46160 | AH35: 42440 | AJ35: 564 | AK35: 51470 | AL35: 47220 | AN35: 623 | AO35: 56780 | AP35: 52000
A36: 34 | B36: 3770 | D36: 93 | E36: 9080 | F36: 9070 | H36: 152 | I36: 14390 | J36: 13850 | L36: 211 | M36: 19700 | N36: 18630 | P36: 270 | Q36: 25010 | R36: 23400 | T36: 329 | U36: 30320 | V36: 28180 | X36: 388 | Y36: 35630 | Z36: 32960 | AB36: 447 | AC36: 40940 | AD36: 37740 | AF36: 506 | AG36: 46250 | AH36: 42520 | AJ36: 565 | AK36: 51560 | AL36: 47300 | AN36: 624 | AO36: 56870 | AP36: 52080
A37: 35 | B37: 3860 | D37: 94 | E37: 9170 | F37: 9150 | H37: 153 | I37: 14480 | J37: 13930 | L37: 212 | M37: 19790 | N37: 18710 | P37: 271 | Q37: 25100 | R37: 23490 | T37: 330 | U37: 30410 | V37: 28260 | X37: 389 | Y37: 35720 | Z37: 33040 | AB37: 448 | AC37: 41030 | AD37: 37820 | AF37: 507 | AG37: 46340 | AH37: 42600 | AJ37: 566 | AK37: 51650 | AL37: 47380 | AN37: 625 | AO37: 56960 | AP37: 52160
A38: 36 | B38: 3950 | D38: 95 | E38: 9260 | F38: 9230 | H38: 154 | I38: 14570 | J38: 14010 | L38: 213 | M38: 19880 | N38: 18790 | P38: 272 | Q38: 25190 | R38: 23570 | T38: 331 | U38: 30500 | V38: 28350 | X38: 390 | Y38: 35810 | Z38: 33120 | AB38: 449 | AC38: 41120 | AD38: 37900 | AF38: 508 | AG38: 46430 | AH38: 42680 | AJ38: 567 | AK38: 51740 | AL38: 47460 | AN38: 626 | AO38: 57050 | AP38: 52240
A39: 37 | B39: 4040 | D39: 96 | E39: 9350 | F39: 9310 | H39: 155 | I39: 14660 | J39: 14090 | L39: 214 | M39: 19970 | N39: 18870 | P39: 273 | Q39: 25280 | R39: 23650 | T39: 332 | U39: 30590 | V39: 28430 | X39: 391 | Y39: 35900 | Z39: 33210 | AB39: 450 | AC39: 41210 | AD39: 37980 | AF39: 509 | AG39: 46520 | AH39: 42760 | AJ39: 568 | AK39: 51830 | AL39: 47540 | AN39: 627 | AO39: 57140 | AP39: 52320
A40: 38 | B40: 4130 | D40: 97 | E40: 9440 | F40: 9390 | H40: 156 | I40: 14750 | J40: 14170 | L40: 215 | M40: 20060 | N40: 18950 | P40: 274 | Q40: 25370 | R40: 23730 | T40: 333 | U40: 30680 | V40: 28510 | X40: 392 | Y40: 35990 | Z40: 33290 | AB40: 451 | AC40: 41300 | AD40: 38070 | AF40: 510 | AG40: 46610 | AH40: 42840 | AJ40: 569 | AK40: 51920 | AL40: 47620 | AN40: 628 | AO40: 57230 | AP40: 52400
A41: 39 | B41: 4220 | D41: 98 | E41: 9530 | F41: 9470 | H41: 157 | I41: 14840 | J41: 14250 | L41: 216 | M41: 20150 | N41: 19030 | P41: 275 | Q41: 25460 | R41: 23810 | T41: 334 | U41: 30770 | V41: 28590 | X41: 393 | Y41: 36080 | Z41: 33370 | AB41: 452 | AC41: 41390 | AD41: 38150 | AF41: 511 | AG41: 46700 | AH41: 42930 | AJ41: 570 | AK41: 52010 | AL41: 47700 | AN41: 629 | AO41: 57320 | AP41: 52480
A42: 40 | B42: 4310 | D42: 99 | E42: 9620 | F42: 9550 | H42: 158 | I42: 14930 | J42: 14330 | L42: 217 | M42: 20240 | N42: 19110 | P42: 276 | Q42: 25550 | R42: 23890 | T42: 335 | U42: 30860 | V42: 28670 | X42: 394 | Y42: 36170 | Z42: 33450 | AB42: 453 | AC42: 41480 | AD42: 38230 | AF42: 512 | AG42: 46790 | AH42: 43010 | AJ42: 571 | AK42: 52100 | AL42: 47790 | AN42: 630 | AO42: 57410 | AP42: 52560
A43: 41 | B43: 4400 | D43: 100 | E43: 9710 | F43: 9630 | H43: 159 | I43: 15020 | J43: 14410 | L43: 218 | M43: 20330 | N43: 19190 | P43: 277 | Q43: 25640 | R43: 23970 | T43: 336 | U43: 30950 | V43: 28750 | X43: 395 | Y43: 36260 | Z43: 33530 | AB43: 454 | AC43: 41570 | AD43: 38310 | AF43: 513 | AG43: 46880 | AH43: 43090 | AJ43: 572 | AK43: 52190 | AL43: 47870 | AN43: 631 | AO43: 57500 | AP43: 52650
A44: 42 | B44: 4490 | D44: 101 | E44: 9800 | F44: 9720 | H44: 160 | I44: 15110 | J44: 14490 | L44: 219 | M44: 20420 | N44: 19270 | P44: 278 | Q44: 25730 | R44: 24050 | T44: 337 | U44: 31040 | V44: 28830 | X44: 396 | Y44: 36350 | Z44: 33610 | AB44: 455 | AC44: 41660 | AD44: 38390 | AF44: 514 | AG44: 46970 | AH44: 43170 | AJ44: 573 | AK44: 52280 | AL44: 47950 | AN44: 632 | AO44: 57590 | AP44: 52730
A45: 43 | B45: 4580 | D45: 102 | E45: 9890 | F45: 9800 | H45: 161 | I45: 15200 | J45: 14580 | L45: 220 | M45: 20510 | N45: 19350 | P45: 279 | Q45: 25820 | R45: 24130 | T45: 338 | U45: 31130 | V45: 28910 | X45: 397 | Y45: 36440 | Z45: 33690 | AB45: 456 | AC45: 41750 | AD45: 38470 | AF45: 515 | AG45: 47060 | AH45: 43250 | AJ45: 574 | AK45: 52370 | AL45: 48030 | AN45: 633 | AO45: 57680 | AP45: 52810
A46: 44 | B46: 4670 | D46: 103 | E46: 9980 | F46: 9880 | H46: 162 | I46: 15290 | J46: 14660 | L46: 221 | M46: 20600 | N46: 19440 | P46: 280 | Q46: 25910 | R46: 24210 | T46: 339 | U46: 31220 | V46: 28990 | X46: 398 | Y46: 36530 | Z46: 33770 | AB46: 457 | AC46: 41840 | AD46: 38550 | AF46: 516 | AG46: 47150 | AH46: 43330 | AJ46: 575 | AK46: 52460 | AL46: 48110 | AN46: 634 | AO46: 57770 | AP46: 52890
A47: 45 | B47: 4760 | D47: 104 | E47: 10070 | F47: 9960 | H47: 163 | I47: 15380 | J47: 14740 | L47: 222 | M47: 20690 | N47: 19520 | P47: 281 | Q47: 26000 | R47: 24300 | T47: 340 | U47: 31310 | V47: 29070 | X47: 399 | Y47: 36620 | Z47: 33850 | AB47: 458 | AC47: 41930 | AD47: 38630 | AF47: 517 | AG47: 47240 | AH47: 43410 | AJ47: 576 | AK47: 52550 | AL47: 48190 | AN47: 635 | AO47: 57860 | AP47: 52970
A48: 46 | B48: 4850 | D48: 105 | E48: 10160 | F48: 10040 | H48: 164 | I48: 15470 | J48: 14820 | L48: 223 | M48: 20780 | N48: 19600 | P48: 282 | Q48: 26090 | R48: 24380 | T48: 341 | U48: 31400 | V48: 29160 | X48: 400 | Y48: 36710 | Z48: 33930 | AB48: 459 | AC48: 42020 | AD48: 38710 | AF48: 518 | AG48: 47330 | AH48: 43490 | AJ48: 577 | AK48: 52640 | AL48: 48270 | AN48: 636 | AO48: 57950 | AP48: 53050
A49: 47 | B49: 4940 | D49: 106 | E49: 10250 | F49: 10120 | H49: 165 | I49: 15560 | J49: 14900 | L49: 224 | M49: 20870 | N49: 19680 | P49: 283 | Q49: 26180 | R49: 24460 | T49: 342 | U49: 31490 | V49: 29240 | X49: 401 | Y49: 36800 | Z49: 34020 | AB49: 460 | AC49: 42110 | AD49: 38790 | AF49: 519 | AG49: 47420 | AH49: 43570 | AJ49: 578 | AK49: 52730 | AL49: 48350 | AN49: 637 | AO49: 58040 | AP49: 53130
A50: 48 | B50: 5030 | D50: 107 | E50: 10340 | F50: 10200 | H50: 166 | I50: 15650 | J50: 14980 | L50: 225 | M50: 20960 | N50: 19760 | P50: 284 | Q50: 26270 | R50: 24540 | T50: 343 | U50: 31580 | V50: 29320 | X50: 402 | Y50: 36890 | Z50: 34100 | AB50: 461 | AC50: 42200 | AD50: 38880 | AF50: 520 | AG50: 47510 | AH50: 43650 | AJ50: 579 | AK50: 52820 | AL50: 48430 | AN50: 638 | AO50: 58130 | AP50: 53210
A51: 49 | B51: 5120 | D51: 108 | E51: 10430 | F51: 10280 | H51: 167 | I51: 15740 | J51: 15060 | L51: 226 | M51: 21050 | N51: 19840 | P51: 285 | Q51: 26360 | R51: 24620 | T51: 344 | U51: 31670 | V51: 29400 | X51: 403 | Y51: 36980 | Z51: 34180 | AB51: 462 | AC51: 42290 | AD51: 38960 | AF51: 521 | AG51: 47600 | AH51: 43740 | AJ51: 580 | AK51: 52910 | AL51: 48510 | AN51: 639 | AO51: 58220 | AP51: 53290
A52: 50 | B52: 5210 | D52: 109 | E52: 10520 | F52: 10360 | H52: 168 | I52: 15830 | J52: 15140 | L52: 227 | M52: 21140 | N52: 19920 | P52: 286 | Q52: 26450 | R52: 24700 | T52: 345 | U52: 31760 | V52: 29480 | X52: 404 | Y52: 37070 | Z52: 34260 | AB52: 463 | AC52: 42380 | AD52: 39040 | AF52: 522 | AG52: 47690 | AH52: 43820 | AJ52: 581 | AK52: 53000 | AL52: 48600 | AN52: 640 | AO52: 58310 | AP52: 53370
A53: 51 | B53: 5300 | D53: 110 | E53: 10610 | F53: 10440 | H53: 169 | I53: 15920 | J53: 15220 | L53: 228 | M53: 21230 | N53: 20000 | P53: 287 | Q53: 26540 | R53: 24780 | T53: 346 | U53: 31850 | V53: 29560 | X53: 405 | Y53: 37160 | Z53: 34340 | AB53: 464 | AC53: 42470 | AD53: 39120 | AF53: 523 | AG53: 47780 | AH53: 43900 | AJ53: 582 | AK53: 53090 | AL53: 48680 | AN53: 641 | AO53: 58400 | AP53: 53460
A54: 52 | B54: 5390 | D54: 111 | E54: 10700 | F54: 10530 | H54: 170 | I54: 16010 | J54: 15300 | L54: 229 | M54: 21320 | N54: 20080 | P54: 288 | Q54: 26630 | R54: 24860 | T54: 347 | U54: 31940 | V54: 29640 | X54: 406 | Y54: 37250 | Z54: 34420 | AB54: 465 | AC54: 42560 | AD54: 39200 | AF54: 524 | AG54: 47870 | AH54: 43980 | AJ54: 583 | AK54: 53180 | AL54: 48760 | AN54: 642 | AO54: 58490 | AP54: 53540
A55: 53 | B55: 5480 | D55: 112 | E55: 10790 | F55: 10610 | H55: 171 | I55: 16100 | J55: 15390 | L55: 230 | M55: 21410 | N55: 20160 | P55: 289 | Q55: 26720 | R55: 24940 | T55: 348 | U55: 32030 | V55: 29720 | X55: 407 | Y55: 37340 | Z55: 34500 | AB55: 466 | AC55: 42650 | AD55: 39280 | AF55: 525 | AG55: 47960 | AH55: 44060 | AJ55: 584 | AK55: 53270 | AL55: 48840 | AN55: 643 | AO55: 58580 | AP55: 53620
A56: 54 | B56: 5570 | D56: 113 | E56: 10880 | F56: 10690 | H56: 172 | I56: 16190 | J56: 15470 | L56: 231 | M56: 21500 | N56: 20250 | P56: 290 | Q56: 26810 | R56: 25020 | T56: 349 | U56: 32120 | V56: 29800 | X56: 408 | Y56: 37430 | Z56: 34580 | AB56: 467 | AC56: 42740 | AD56: 39360 | AF56: 526 | AG56: 48050 | AH56: 44140 | AJ56: 585 | AK56: 53360 | AL56: 48920 | AN56: 644 | AO56: 58670 | AP56: 53700
A57: 55 | B57: 5660 | D57: 114 | E57: 10970 | F57: 10770 | H57: 173 | I57: 16280 | J57: 15550 | L57: 232 | M57: 21590 | N57: 20330 | P57: 291 | Q57: 26900 | R57: 25110 | T57: 350 | U57: 32210 | V57: 29880 | X57: 409 | Y57: 37520 | Z57: 34660 | AB57: 468 | AC57: 42830 | AD57: 39440 | AF57: 527 | AG57: 48140 | AH57: 44220 | AJ57: 586 | AK57: 53450 | AL57: 49000 | AN57: 645 | AO57: 58760 | AP57: 53780
A58: 56 | B58: 5750 | D58: 115 | E58: 11060 | F58: 10850 | H58: 174 | I58: 16370 | J58: 15630 | L58: 233 | M58: 21680 | N58: 20410 | P58: 292 | Q58: 26990 | R58: 25190 | T58: 351 | U58: 32300 | V58: 29970 | X58: 410 | Y58: 37610 | Z58: 34740 | AB58: 469 | AC58: 42920 | AD58: 39520 | AF58: 528 | AG58: 48230 | AH58: 44300 | AJ58: 587 | AK58: 53540 | AL58: 49080 | AN58: 646 | AO58: 58850 | AP58: 53860
A59: 57 | B59: 5840 | D59: 116 | E59: 11150 | F59: 10930 | H59: 175 | I59: 16460 | J59: 15710 | L59: 234 | M59: 21770 | N59: 20490 | P59: 293 | Q59: 27080 | R59: 25270 | T59: 352 | U59: 32390 | V59: 30050 | X59: 411 | Y59: 37700 | Z59: 34830 | AB59: 470 | AC59: 43010 | AD59: 39600 | AF59: 529 | AG59: 48320 | AH59: 44380 | AJ59: 588 | AK59: 53630 | AL59: 49160 | AN59: 647 | AO59: 58940 | AP59: 53940
A60: 58 | B60: 5930 | D60: 117 | E60: 11240 | F60: 11010 | H60: 176 | I60: 16550 | J60: 15790 | L60: 235 | M60: 21860 | N60: 20570 | P60: 294 | Q60: 27170 | R60: 25350 | T60: 353 | U60: 32480 | V60: 30130 | X60: 412 | Y60: 37790 | Z60: 34910 | AB60: 471 | AC60: 43100 | AD60: 39690 | AF60: 530 | AG60: 48410 | AH60: 44460 | AJ60: 589 | AK60: 53720 | AL60: 49240 | AN60: 648 | AO60: 59030 | AP60: 54020

Sheet 早見表
G1: 売上に対する総走行距離乱数表 | S1: ※ | T1: この表で表示されている数値はあくまでも参考値です。
B2: ■初乗り2Kmまで710円 爾後は90円÷288ｍ＝1Kmあたり 313円 2割増＝1Kmあたり375円 | S2: ○キロ収入（１㌔単価）＝収入÷走行Km
B3: ■2割増しは午後10時から午前5時まで | S3: ○実車率＝実車Km÷走行Km | Y3: ○実車Km＝走行Kmｘ実車率
B4: ■間時距離兼用運賃1分45秒までごとに90円 | S4: ○走行Km＝収入÷実車率÷390円位 | Y4: ○収入÷実車Km＝390円位
B6: 実車率 | C6: 0.35 | E6: 実車Km | F6: 0.36 | H6: 0.37 | J6: 0.38 | L6: 0.39 | N6: 0.4 | P6: 0.41 | R6: 0.42 | T6: 0.43 | V6: 0.44 | X6: 0.45 | Z6: 0.46 | AB6: 0.47 | AD6: 0.48 | AF6: 0.49 | AH6: 0.5 | AJ6: 0.51 | AL6: 0.52 | AN6: 0.53 | AP6: 0.54 | AR6: 0.55 | AT6: 0.56
B7: 売上 | C7: 走行Km | D7: 実車Km | E7: 深夜 | F7: 走行Km | G7: 実車Km | H7: 走行Km | I7: 実車Km | J7: 走行Km | K7: 実車Km | L7: 走行Km | M7: 実車Km | N7: 走行Km | O7: 実車Km | P7: 走行Km | Q7: 実車Km | R7: 走行Km | S7: 実車Km | T7: 走行Km | U7: 実車Km | V7: 走行Km | W7: 実車Km | X7: 走行Km | Y7: 実車Km | Z7: 走行Km | AA7: 実車Km | AB7: 走行Km | AC7: 実車Km | AD7: 走行Km | AE7: 実車Km | AF7: 走行Km | AG7: 実車Km | AH7: 走行Km | AI7: 実車Km | AJ7: 走行Km | AK7: 実車Km | AL7: 走行Km | AM7: 実車Km | AN7: 走行Km | AO7: 実車Km | AP7: 走行Km | AQ7: 実車Km | AR7: 走行Km | AS7: 実車Km | AT7: 走行Km | AU7: 実車Km
B8: 10000 | C8: 73.26007326 | D8: 25.64102564 | E8: 21.79487179 | F8: 71.22507123 | G8: 25.64102564 | H8: 69.3000693 | I8: 25.64102564 | J8: 67 | K8: 25.46 | L8: 65 | M8: 25.35 | N8: 64 | O8: 25.6 | P8: 62 | Q8: 25.42 | R8: 61 | S8: 25.62 | T8: 59 | U8: 25.37 | V8: 58 | W8: 25.52 | X8: 56 | Y8: 25.2 | Z8: 55 | AA8: 25.3 | AB8: 54 | AC8: 25.38 | AD8: 53 | AE8: 25.44 | AF8: 52 | AG8: 25.48 | AH8: 51 | AI8: 25.5 | AJ8: 50.27652086 | AK8: 25.64102564 | AL8: 49.30966469 | AM8: 25.64102564 | AN8: 48.37929366 | AO8: 25.64102564 | AP8: 47.48338082 | AQ8: 25.64102564 | AR8: 46.62004662 | AS8: 25.64102564 | AT8: 45.78754579 | AU8: 25.64102564
B9: 11000 | C9: 80.58608059 | D9: 28.20512821 | E9: 23.97435897 | F9: 78.34757835 | G9: 28.20512821 | H9: 76.23007623 | I9: 28.20512821 | J9: 73.7 | K9: 28.006 | L9: 71.5 | M9: 27.885 | N9: 70.4 | O9: 28.16 | P9: 68.2 | Q9: 27.962 | R9: 67.1 | S9: 28.182 | T9: 64.9 | U9: 27.907 | V9: 63.8 | W9: 28.072 | X9: 61.6 | Y9: 27.72 | Z9: 60.5 | AA9: 27.83 | AB9: 59.4 | AC9: 27.918 | AD9: 58.3 | AE9: 27.984 | AF9: 57.2 | AG9: 28.028 | AH9: 56.1 | AI9: 28.05 | AJ9: 55.30417295 | AK9: 28.20512821 | AL9: 54.24063116 | AM9: 28.20512821 | AN9: 53.21722303 | AO9: 28.20512821 | AP9: 52.2317189 | AQ9: 28.20512821 | AR9: 51.28205128 | AS9: 28.20512821 | AT9: 50.36630037 | AU9: 28.20512821
B10: 12000 | C10: 87.91208791 | D10: 30.76923077 | E10: 26.15384615 | F10: 85.47008547 | G10: 30.76923077 | H10: 83.16008316 | I10: 30.76923077 | J10: 80.4 | K10: 30.552 | L10: 78 | M10: 30.42 | N10: 76.8 | O10: 30.72 | P10: 74.4 | Q10: 30.504 | R10: 73.2 | S10: 30.744 | T10: 70.8 | U10: 30.444 | V10: 69.6 | W10: 30.624 | X10: 67.2 | Y10: 30.24 | Z10: 66 | AA10: 30.36 | AB10: 64.8 | AC10: 30.456 | AD10: 63.6 | AE10: 30.528 | AF10: 62.4 | AG10: 30.576 | AH10: 61.2 | AI10: 30.6 | AJ10: 60.33182504 | AK10: 30.76923077 | AL10: 59.17159763 | AM10: 30.76923077 | AN10: 58.05515239 | AO10: 30.76923077 | AP10: 56.98005698 | AQ10: 30.76923077 | AR10: 55.94405594 | AS10: 30.76923077 | AT10: 54.94505495 | AU10: 30.76923077
B11: 13000 | C11: 95.23809524 | D11: 33.33333333 | E11: 28.33333333 | F11: 92.59259259 | G11: 33.33333333 | H11: 90.09009009 | I11: 33.33333333 | J11: 87.1 | K11: 33.098 | L11: 84.5 | M11: 32.955 | N11: 83.2 | O11: 33.28 | P11: 80.6 | Q11: 33.046 | R11: 79.3 | S11: 33.306 | T11: 76.7 | U11: 32.981 | V11: 75.4 | W11: 33.176 | X11: 72.8 | Y11: 32.76 | Z11: 71.5 | AA11: 32.89 | AB11: 70.2 | AC11: 32.994 | AD11: 68.9 | AE11: 33.072 | AF11: 67.6 | AG11: 33.124 | AH11: 66.3 | AI11: 33.15 | AJ11: 65.35947712 | AK11: 33.33333333 | AL11: 64.1025641 | AM11: 33.33333333 | AN11: 62.89308176 | AO11: 33.33333333 | AP11: 61.72839506 | AQ11: 33.33333333 | AR11: 60.60606061 | AS11: 33.33333333 | AT11: 59.52380952 | AU11: 33.33333333
B12: 14000 | C12: 102.5641026 | D12: 35.8974359 | E12: 30.51282051 | F12: 99.71509972 | G12: 35.8974359 | H12: 97.02009702 | I12: 35.8974359 | J12: 93.8 | K12: 35.644 | L12: 91 | M12: 35.49 | N12: 89.6 | O12: 35.84 | P12: 86.8 | Q12: 35.588 | R12: 85.4 | S12: 35.868 | T12: 82.6 | U12: 35.518 | V12: 81.2 | W12: 35.728 | X12: 78.4 | Y12: 35.28 | Z12: 77 | AA12: 35.42 | AB12: 75.6 | AC12: 35.532 | AD12: 74.2 | AE12: 35.616 | AF12: 72.8 | AG12: 35.672 | AH12: 71.4 | AI12: 35.7 | AJ12: 70.38712921 | AK12: 35.8974359 | AL12: 69.03353057 | AM12: 35.8974359 | AN12: 67.73101113 | AO12: 35.8974359 | AP12: 66.47673314 | AQ12: 35.8974359 | AR12: 65.26806527 | AS12: 35.8974359 | AT12: 64.1025641 | AU12: 35.8974359
B13: 15000 | C13: 109.8901099 | D13: 38.46153846 | E13: 32.69230769 | F13: 106.8376068 | G13: 38.46153846 | H13: 103.950104 | I13: 38.46153846 | J13: 100.5 | K13: 38.19 | L13: 97.5 | M13: 38.025 | N13: 96 | O13: 38.4 | P13: 93 | Q13: 38.13 | R13: 91.5 | S13: 38.43 | T13: 88.5 | U13: 38.055 | V13: 87 | W13: 38.28 | X13: 84 | Y13: 37.8 | Z13: 82.5 | AA13: 37.95 | AB13: 81 | AC13: 38.07 | AD13: 79.5 | AE13: 38.16 | AF13: 78 | AG13: 38.22 | AH13: 76.5 | AI13: 38.25 | AJ13: 75.4147813 | AK13: 38.46153846 | AL13: 73.96449704 | AM13: 38.46153846 | AN13: 72.56894049 | AO13: 38.46153846 | AP13: 71.22507123 | AQ13: 38.46153846 | AR13: 69.93006993 | AS13: 38.46153846 | AT13: 68.68131868 | AU13: 38.46153846
B14: 16000 | C14: 117.2161172 | D14: 41.02564103 | E14: 34.87179487 | F14: 113.960114 | G14: 41.02564103 | H14: 110.8801109 | I14: 41.02564103 | J14: 107.2 | K14: 40.736 | L14: 104 | M14: 40.56 | N14: 102.4 | O14: 40.96 | P14: 99.2 | Q14: 40.672 | R14: 97.6 | S14: 40.992 | T14: 94.4 | U14: 40.592 | V14: 92.8 | W14: 40.832 | X14: 89.6 | Y14: 40.32 | Z14: 88 | AA14: 40.48 | AB14: 86.4 | AC14: 40.608 | AD14: 84.8 | AE14: 40.704 | AF14: 83.2 | AG14: 40.768 | AH14: 81.6 | AI14: 40.8 | AJ14: 80.44243338 | AK14: 41.02564103 | AL14: 78.89546351 | AM14: 41.02564103 | AN14: 77.40686986 | AO14: 41.02564103 | AP14: 75.97340931 | AQ14: 41.02564103 | AR14: 74.59207459 | AS14: 41.02564103 | AT14: 73.26007326 | AU14: 41.02564103
B15: 17000 | C15: 124.5421245 | D15: 43.58974359 | E15: 37.05128205 | F15: 121.0826211 | G15: 43.58974359 | H15: 117.8101178 | I15: 43.58974359 | J15: 113.9 | K15: 43.282 | L15: 110.5 | M15: 43.095 | N15: 108.8 | O15: 43.52 | P15: 105.4 | Q15: 43.214 | R15: 103.7 | S15: 43.554 | T15: 100.3 | U15: 43.129 | V15: 98.6 | W15: 43.384 | X15: 95.2 | Y15: 42.84 | Z15: 93.5 | AA15: 43.01 | AB15: 91.8 | AC15: 43.146 | AD15: 90.1 | AE15: 43.248 | AF15: 88.4 | AG15: 43.316 | AH15: 86.7 | AI15: 43.35 | AJ15: 85.47008547 | AK15: 43.58974359 | AL15: 83.82642998 | AM15: 43.58974359 | AN15: 82.24479923 | AO15: 43.58974359 | AP15: 80.72174739 | AQ15: 43.58974359 | AR15: 79.25407925 | AS15: 43.58974359 | AT15: 77.83882784 | AU15: 43.58974359
B16: 18000 | C16: 131.8681319 | D16: 46.15384615 | E16: 39.23076923 | F16: 128.2051282 | G16: 46.15384615 | H16: 124.7401247 | I16: 46.15384615 | J16: 120.6 | K16: 45.828 | L16: 117 | M16: 45.63 | N16: 115.2 | O16: 46.08 | P16: 111.6 | Q16: 45.756 | R16: 109.8 | S16: 46.116 | T16: 106.2 | U16: 45.666 | V16: 104.4 | W16: 45.936 | X16: 100.8 | Y16: 45.36 | Z16: 99 | AA16: 45.54 | AB16: 97.2 | AC16: 45.684 | AD16: 95.4 | AE16: 45.792 | AF16: 93.6 | AG16: 45.864 | AH16: 91.8 | AI16: 45.9 | AJ16: 90.49773756 | AK16: 46.15384615 | AL16: 88.75739645 | AM16: 46.15384615 | AN16: 87.08272859 | AO16: 46.15384615 | AP16: 85.47008547 | AQ16: 46.15384615 | AR16: 83.91608392 | AS16: 46.15384615 | AT16: 82.41758242 | AU16: 46.15384615
B17: 19000 | C17: 139.1941392 | D17: 48.71794872 | E17: 41.41025641 | F17: 135.3276353 | G17: 48.71794872 | H17: 131.6701317 | I17: 48.71794872 | J17: 127.3 | K17: 48.374 | L17: 123.5 | M17: 48.165 | N17: 121.6 | O17: 48.64 | P17: 117.8 | Q17: 48.298 | R17: 115.9 | S17: 48.678 | T17: 112.1 | U17: 48.203 | V17: 110.2 | W17: 48.488 | X17: 106.4 | Y17: 47.88 | Z17: 104.5 | AA17: 48.07 | AB17: 102.6 | AC17: 48.222 | AD17: 100.7 | AE17: 48.336 | AF17: 98.8 | AG17: 48.412 | AH17: 96.9 | AI17: 48.45 | AJ17: 95.52538964 | AK17: 48.71794872 | AL17: 93.68836292 | AM17: 48.71794872 | AN17: 91.92065796 | AO17: 48.71794872 | AP17: 90.21842355 | AQ17: 48.71794872 | AR17: 88.57808858 | AS17: 48.71794872 | AT17: 86.996337 | AU17: 48.71794872
B18: 20000 | C18: 146.5201465 | D18: 51.28205128 | E18: 43.58974359 | F18: 142.4501425 | G18: 51.28205128 | H18: 138.6001386 | I18: 51.28205128 | J18: 134 | K18: 50.92 | L18: 130 | M18: 50.7 | N18: 128 | O18: 51.2 | P18: 124 | Q18: 50.84 | R18: 122 | S18: 51.24 | T18: 118 | U18: 50.74 | V18: 116 | W18: 51.04 | X18: 112 | Y18: 50.4 | Z18: 110 | AA18: 50.6 | AB18: 108 | AC18: 50.76 | AD18: 106 | AE18: 50.88 | AF18: 104 | AG18: 50.96 | AH18: 102 | AI18: 51 | AJ18: 100.5530417 | AK18: 51.28205128 | AL18: 98.61932939 | AM18: 51.28205128 | AN18: 96.75858732 | AO18: 51.28205128 | AP18: 94.96676163 | AQ18: 51.28205128 | AR18: 93.24009324 | AS18: 51.28205128 | AT18: 91.57509158 | AU18: 51.28205128
B19: 21000 | C19: 153.8461538 | D19: 53.84615385 | E19: 45.76923077 | F19: 149.5726496 | G19: 53.84615385 | H19: 145.5301455 | I19: 53.84615385 | J19: 140.7 | K19: 53.466 | L19: 136.5 | M19: 53.235 | N19: 134.4 | O19: 53.76 | P19: 130.2 | Q19: 53.382 | R19: 128.1 | S19: 53.802 | T19: 123.9 | U19: 53.277 | V19: 121.8 | W19: 53.592 | X19: 117.6 | Y19: 52.92 | Z19: 115.5 | AA19: 53.13 | AB19: 113.4 | AC19: 53.298 | AD19: 111.3 | AE19: 53.424 | AF19: 109.2 | AG19: 53.508 | AH19: 107.1 | AI19: 53.55 | AJ19: 105.5806938 | AK19: 53.84615385 | AL19: 103.5502959 | AM19: 53.84615385 | AN19: 101.5965167 | AO19: 53.84615385 | AP19: 99.71509972 | AQ19: 53.84615385 | AR19: 97.9020979 | AS19: 53.84615385 | AT19: 96.15384615 | AU19: 53.84615385
B20: 22000 | C20: 161.1721612 | D20: 56.41025641 | E20: 47.94871795 | F20: 156.6951567 | G20: 56.41025641 | H20: 152.4601525 | I20: 56.41025641 | J20: 147.4 | K20: 56.012 | L20: 143 | M20: 55.77 | N20: 140.8 | O20: 56.32 | P20: 136.4 | Q20: 55.924 | R20: 134.2 | S20: 56.364 | T20: 129.8 | U20: 55.814 | V20: 127.6 | W20: 56.144 | X20: 123.2 | Y20: 55.44 | Z20: 121 | AA20: 55.66 | AB20: 118.8 | AC20: 55.836 | AD20: 116.6 | AE20: 55.968 | AF20: 114.4 | AG20: 56.056 | AH20: 112.2 | AI20: 56.1 | AJ20: 110.6083459 | AK20: 56.41025641 | AL20: 108.4812623 | AM20: 56.41025641 | AN20: 106.4344461 | AO20: 56.41025641 | AP20: 104.4634378 | AQ20: 56.41025641 | AR20: 102.5641026 | AS20: 56.41025641 | AT20: 100.7326007 | AU20: 56.41025641
B21: 23000 | C21: 168.4981685 | D21: 58.97435897 | E21: 50.12820513 | F21: 163.8176638 | G21: 58.97435897 | H21: 159.3901594 | I21: 58.97435897 | J21: 154.1 | K21: 58.558 | L21: 149.5 | M21: 58.305 | N21: 147.2 | O21: 58.88 | P21: 142.6 | Q21: 58.466 | R21: 140.3 | S21: 58.926 | T21: 135.7 | U21: 58.351 | V21: 133.4 | W21: 58.696 | X21: 128.8 | Y21: 57.96 | Z21: 126.5 | AA21: 58.19 | AB21: 124.2 | AC21: 58.374 | AD21: 121.9 | AE21: 58.512 | AF21: 119.6 | AG21: 58.604 | AH21: 117.3 | AI21: 58.65 | AJ21: 115.635998 | AK21: 58.97435897 | AL21: 113.4122288 | AM21: 58.97435897 | AN21: 111.2723754 | AO21: 58.97435897 | AP21: 109.2117759 | AQ21: 58.97435897 | AR21: 107.2261072 | AS21: 58.97435897 | AT21: 105.3113553 | AU21: 58.97435897
B22: 24000 | C22: 175.8241758 | D22: 61.53846154 | E22: 52.30769231 | F22: 170.9401709 | G22: 61.53846154 | H22: 166.3201663 | I22: 61.53846154 | J22: 160.8 | K22: 61.104 | L22: 156 | M22: 60.84 | N22: 153.6 | O22: 61.44 | P22: 148.8 | Q22: 61.008 | R22: 146.4 | S22: 61.488 | T22: 141.6 | U22: 60.888 | V22: 139.2 | W22: 61.248 | X22: 134.4 | Y22: 60.48 | Z22: 132 | AA22: 60.72 | AB22: 129.6 | AC22: 60.912 | AD22: 127.2 | AE22: 61.056 | AF22: 124.8 | AG22: 61.152 | AH22: 122.4 | AI22: 61.2 | AJ22: 120.6636501 | AK22: 61.53846154 | AL22: 118.3431953 | AM22: 61.53846154 | AN22: 116.1103048 | AO22: 61.53846154 | AP22: 113.960114 | AQ22: 61.53846154 | AR22: 111.8881119 | AS22: 61.53846154 | AT22: 109.8901099 | AU22: 61.53846154
B23: 25000 | C23: 183.1501832 | D23: 64.1025641 | E23: 54.48717949 | F23: 178.0626781 | G23: 64.1025641 | H23: 173.2501733 | I23: 64.1025641 | J23: 167.5 | K23: 63.65 | L23: 162.5 | M23: 63.375 | N23: 160 | O23: 64 | P23: 155 | Q23: 63.55 | R23: 152.5 | S23: 64.05 | T23: 147.5 | U23: 63.425 | V23: 145 | W23: 63.8 | X23: 140 | Y23: 63 | Z23: 137.5 | AA23: 63.25 | AB23: 135 | AC23: 63.45 | AD23: 132.5 | AE23: 63.6 | AF23: 130 | AG23: 63.7 | AH23: 127.5 | AI23: 63.75 | AJ23: 125.6913022 | AK23: 64.1025641 | AL23: 123.2741617 | AM23: 64.1025641 | AN23: 120.9482342 | AO23: 64.1025641 | AP23: 118.708452 | AQ23: 64.1025641 | AR23: 116.5501166 | AS23: 64.1025641 | AT23: 114.4688645 | AU23: 64.1025641
B24: 26000 | C24: 190.4761905 | D24: 66.66666667 | E24: 56.66666667 | F24: 185.1851852 | G24: 66.66666667 | H24: 180.1801802 | I24: 66.66666667 | J24: 174.2 | K24: 66.196 | L24: 169 | M24: 65.91 | N24: 166.4 | O24: 66.56 | P24: 161.2 | Q24: 66.092 | R24: 158.6 | S24: 66.612 | T24: 153.4 | U24: 65.962 | V24: 150.8 | W24: 66.352 | X24: 145.6 | Y24: 65.52 | Z24: 143 | AA24: 65.78 | AB24: 140.4 | AC24: 65.988 | AD24: 137.8 | AE24: 66.144 | AF24: 135.2 | AG24: 66.248 | AH24: 132.6 | AI24: 66.3 | AJ24: 130.7189542 | AK24: 66.66666667 | AL24: 128.2051282 | AM24: 66.66666667 | AN24: 125.7861635 | AO24: 66.66666667 | AP24: 123.4567901 | AQ24: 66.66666667 | AR24: 121.2121212 | AS24: 66.66666667 | AT24: 119.047619 | AU24: 66.66666667
B25: 27000 | C25: 197.8021978 | D25: 69.23076923 | E25: 58.84615385 | F25: 192.3076923 | G25: 69.23076923 | H25: 187.1101871 | I25: 69.23076923 | J25: 180.9 | K25: 68.742 | L25: 175.5 | M25: 68.445 | N25: 172.8 | O25: 69.12 | P25: 167.4 | Q25: 68.634 | R25: 164.7 | S25: 69.174 | T25: 159.3 | U25: 68.499 | V25: 156.6 | W25: 68.904 | X25: 151.2 | Y25: 68.04 | Z25: 148.5 | AA25: 68.31 | AB25: 145.8 | AC25: 68.526 | AD25: 143.1 | AE25: 68.688 | AF25: 140.4 | AG25: 68.796 | AH25: 137.7 | AI25: 68.85 | AJ25: 135.7466063 | AK25: 69.23076923 | AL25: 133.1360947 | AM25: 69.23076923 | AN25: 130.6240929 | AO25: 69.23076923 | AP25: 128.2051282 | AQ25: 69.23076923 | AR25: 125.8741259 | AS25: 69.23076923 | AT25: 123.6263736 | AU25: 69.23076923
B26: 28000 | C26: 205.1282051 | D26: 71.79487179 | E26: 61.02564103 | F26: 199.4301994 | G26: 71.79487179 | H26: 194.040194 | I26: 71.79487179 | J26: 187.6 | K26: 71.288 | L26: 182 | M26: 70.98 | N26: 179.2 | O26: 71.68 | P26: 173.6 | Q26: 71.176 | R26: 170.8 | S26: 71.736 | T26: 165.2 | U26: 71.036 | V26: 162.4 | W26: 71.456 | X26: 156.8 | Y26: 70.56 | Z26: 154 | AA26: 70.84 | AB26: 151.2 | AC26: 71.064 | AD26: 148.4 | AE26: 71.232 | AF26: 145.6 | AG26: 71.344 | AH26: 142.8 | AI26: 71.4 | AJ26: 140.7742584 | AK26: 71.79487179 | AL26: 138.0670611 | AM26: 71.79487179 | AN26: 135.4620223 | AO26: 71.79487179 | AP26: 132.9534663 | AQ26: 71.79487179 | AR26: 130.5361305 | AS26: 71.79487179 | AT26: 128.2051282 | AU26: 71.79487179
B27: 29000 | C27: 212.4542125 | D27: 74.35897436 | E27: 63.20512821 | F27: 206.5527066 | G27: 74.35897436 | H27: 200.970201 | I27: 74.35897436 | J27: 194.3 | K27: 73.834 | L27: 188.5 | M27: 73.515 | N27: 185.6 | O27: 74.24 | P27: 179.8 | Q27: 73.718 | R27: 176.9 | S27: 74.298 | T27: 171.1 | U27: 73.573 | V27: 168.2 | W27: 74.008 | X27: 162.4 | Y27: 73.08 | Z27: 159.5 | AA27: 73.37 | AB27: 156.6 | AC27: 73.602 | AD27: 153.7 | AE27: 73.776 | AF27: 150.8 | AG27: 73.892 | AH27: 147.9 | AI27: 73.95 | AJ27: 145.8019105 | AK27: 74.35897436 | AL27: 142.9980276 | AM27: 74.35897436 | AN27: 140.2999516 | AO27: 74.35897436 | AP27: 137.7018044 | AQ27: 74.35897436 | AR27: 135.1981352 | AS27: 74.35897436 | AT27: 132.7838828 | AU27: 74.35897436
B28: 30000 | C28: 219.7802198 | D28: 76.92307692 | E28: 65.38461538 | F28: 213.6752137 | G28: 76.92307692 | H28: 207.9002079 | I28: 76.92307692 | J28: 201 | K28: 76.38 | L28: 195 | M28: 76.05 | N28: 192 | O28: 76.8 | P28: 186 | Q28: 76.26 | R28: 183 | S28: 76.86 | T28: 177 | U28: 76.11 | V28: 174 | W28: 76.56 | X28: 168 | Y28: 75.6 | Z28: 165 | AA28: 75.9 | AB28: 162 | AC28: 76.14 | AD28: 159 | AE28: 76.32 | AF28: 156 | AG28: 76.44 | AH28: 153 | AI28: 76.5 | AJ28: 150.8295626 | AK28: 76.92307692 | AL28: 147.9289941 | AM28: 76.92307692 | AN28: 145.137881 | AO28: 76.92307692 | AP28: 142.4501425 | AQ28: 76.92307692 | AR28: 139.8601399 | AS28: 76.92307692 | AT28: 137.3626374 | AU28: 76.92307692
B29: 31000 | C29: 227.1062271 | D29: 79.48717949 | E29: 67.56410256 | F29: 220.7977208 | G29: 79.48717949 | H29: 214.8302148 | I29: 79.48717949 | J29: 207.7 | K29: 78.926 | L29: 201.5 | M29: 78.585 | N29: 198.4 | O29: 79.36 | P29: 192.2 | Q29: 78.802 | R29: 189.1 | S29: 79.422 | T29: 182.9 | U29: 78.647 | V29: 179.8 | W29: 79.112 | X29: 173.6 | Y29: 78.12 | Z29: 170.5 | AA29: 78.43 | AB29: 167.4 | AC29: 78.678 | AD29: 164.3 | AE29: 78.864 | AF29: 161.2 | AG29: 78.988 | AH29: 158.1 | AI29: 79.05 | AJ29: 155.8572147 | AK29: 79.48717949 | AL29: 152.8599606 | AM29: 79.48717949 | AN29: 149.9758104 | AO29: 79.48717949 | AP29: 147.1984805 | AQ29: 79.48717949 | AR29: 144.5221445 | AS29: 79.48717949 | AT29: 141.9413919 | AU29: 79.48717949
B30: 32000 | C30: 234.4322344 | D30: 82.05128205 | E30: 69.74358974 | F30: 227.9202279 | G30: 82.05128205 | H30: 221.7602218 | I30: 82.05128205 | J30: 214.4 | K30: 81.472 | L30: 208 | M30: 81.12 | N30: 204.8 | O30: 81.92 | P30: 198.4 | Q30: 81.344 | R30: 195.2 | S30: 81.984 | T30: 188.8 | U30: 81.184 | V30: 185.6 | W30: 81.664 | X30: 179.2 | Y30: 80.64 | Z30: 176 | AA30: 80.96 | AB30: 172.8 | AC30: 81.216 | AD30: 169.6 | AE30: 81.408 | AF30: 166.4 | AG30: 81.536 | AH30: 163.2 | AI30: 81.6 | AJ30: 160.8848668 | AK30: 82.05128205 | AL30: 157.790927 | AM30: 82.05128205 | AN30: 154.8137397 | AO30: 82.05128205 | AP30: 151.9468186 | AQ30: 82.05128205 | AR30: 149.1841492 | AS30: 82.05128205 | AT30: 146.5201465 | AU30: 82.05128205
B31: 33000 | C31: 241.7582418 | D31: 84.61538462 | E31: 71.92307692 | F31: 235.042735 | G31: 84.61538462 | H31: 228.6902287 | I31: 84.61538462 | J31: 221.1 | K31: 84.018 | L31: 214.5 | M31: 83.655 | N31: 211.2 | O31: 84.48 | P31: 204.6 | Q31: 83.886 | R31: 201.3 | S31: 84.546 | T31: 194.7 | U31: 83.721 | V31: 191.4 | W31: 84.216 | X31: 184.8 | Y31: 83.16 | Z31: 181.5 | AA31: 83.49 | AB31: 178.2 | AC31: 83.754 | AD31: 174.9 | AE31: 83.952 | AF31: 171.6 | AG31: 84.084 | AH31: 168.3 | AI31: 84.15 | AJ31: 165.9125189 | AK31: 84.61538462 | AL31: 162.7218935 | AM31: 84.61538462 | AN31: 159.6516691 | AO31: 84.61538462 | AP31: 156.6951567 | AQ31: 84.61538462 | AR31: 153.8461538 | AS31: 84.61538462 | AT31: 151.0989011 | AU31: 84.61538462
B32: 34000 | C32: 249.0842491 | D32: 87.17948718 | E32: 74.1025641 | F32: 242.1652422 | G32: 87.17948718 | H32: 235.6202356 | I32: 87.17948718 | J32: 227.8 | K32: 86.564 | L32: 221 | M32: 86.19 | N32: 217.6 | O32: 87.04 | P32: 210.8 | Q32: 86.428 | R32: 207.4 | S32: 87.108 | T32: 200.6 | U32: 86.258 | V32: 197.2 | W32: 86.768 | X32: 190.4 | Y32: 85.68 | Z32: 187 | AA32: 86.02 | AB32: 183.6 | AC32: 86.292 | AD32: 180.2 | AE32: 86.496 | AF32: 176.8 | AG32: 86.632 | AH32: 173.4 | AI32: 86.7 | AJ32: 170.9401709 | AK32: 87.17948718 | AL32: 167.65286 | AM32: 87.17948718 | AN32: 164.4895985 | AO32: 87.17948718 | AP32: 161.4434948 | AQ32: 87.17948718 | AR32: 158.5081585 | AS32: 87.17948718 | AT32: 155.6776557 | AU32: 87.17948718
B33: 35000 | C33: 256.4102564 | D33: 89.74358974 | E33: 76.28205128 | F33: 249.2877493 | G33: 89.74358974 | H33: 242.5502426 | I33: 89.74358974 | J33: 234.5 | K33: 89.11 | L33: 227.5 | M33: 88.725 | N33: 224 | O33: 89.6 | P33: 217 | Q33: 88.97 | R33: 213.5 | S33: 89.67 | T33: 206.5 | U33: 88.795 | V33: 203 | W33: 89.32 | X33: 196 | Y33: 88.2 | Z33: 192.5 | AA33: 88.55 | AB33: 189 | AC33: 88.83 | AD33: 185.5 | AE33: 89.04 | AF33: 182 | AG33: 89.18 | AH33: 178.5 | AI33: 89.25 | AJ33: 175.967823 | AK33: 89.74358974 | AL33: 172.5838264 | AM33: 89.74358974 | AN33: 169.3275278 | AO33: 89.74358974 | AP33: 166.1918329 | AQ33: 89.74358974 | AR33: 163.1701632 | AS33: 89.74358974 | AT33: 160.2564103 | AU33: 89.74358974
B34: 36000 | C34: 263.7362637 | D34: 92.30769231 | E34: 78.46153846 | F34: 256.4102564 | G34: 92.30769231 | H34: 249.4802495 | I34: 92.30769231 | J34: 241.2 | K34: 91.656 | L34: 234 | M34: 91.26 | N34: 230.4 | O34: 92.16 | P34: 223.2 | Q34: 91.512 | R34: 219.6 | S34: 92.232 | T34: 212.4 | U34: 91.332 | V34: 208.8 | W34: 91.872 | X34: 201.6 | Y34: 90.72 | Z34: 198 | AA34: 91.08 | AB34: 194.4 | AC34: 91.368 | AD34: 190.8 | AE34: 91.584 | AF34: 187.2 | AG34: 91.728 | AH34: 183.6 | AI34: 91.8 | AJ34: 180.9954751 | AK34: 92.30769231 | AL34: 177.5147929 | AM34: 92.30769231 | AN34: 174.1654572 | AO34: 92.30769231 | AP34: 170.9401709 | AQ34: 92.30769231 | AR34: 167.8321678 | AS34: 92.30769231 | AT34: 164.8351648 | AU34: 92.30769231
B35: 37000 | C35: 271.0622711 | D35: 94.87179487 | E35: 80.64102564 | F35: 263.5327635 | G35: 94.87179487 | H35: 256.4102564 | I35: 94.87179487 | J35: 247.9 | K35: 94.202 | L35: 240.5 | M35: 93.795 | N35: 236.8 | O35: 94.72 | P35: 229.4 | Q35: 94.054 | R35: 225.7 | S35: 94.794 | T35: 218.3 | U35: 93.869 | V35: 214.6 | W35: 94.424 | X35: 207.2 | Y35: 93.24 | Z35: 203.5 | AA35: 93.61 | AB35: 199.8 | AC35: 93.906 | AD35: 196.1 | AE35: 94.128 | AF35: 192.4 | AG35: 94.276 | AH35: 188.7 | AI35: 94.35 | AJ35: 186.0231272 | AK35: 94.87179487 | AL35: 182.4457594 | AM35: 94.87179487 | AN35: 179.0033866 | AO35: 94.87179487 | AP35: 175.688509 | AQ35: 94.87179487 | AR35: 172.4941725 | AS35: 94.87179487 | AT35: 169.4139194 | AU35: 94.87179487
B36: 38000 | C36: 278.3882784 | D36: 97.43589744 | E36: 82.82051282 | F36: 270.6552707 | G36: 97.43589744 | H36: 263.3402633 | I36: 97.43589744 | J36: 254.6 | K36: 96.748 | L36: 247 | M36: 96.33 | N36: 243.2 | O36: 97.28 | P36: 235.6 | Q36: 96.596 | R36: 231.8 | S36: 97.356 | T36: 224.2 | U36: 96.406 | V36: 220.4 | W36: 96.976 | X36: 212.8 | Y36: 95.76 | Z36: 209 | AA36: 96.14 | AB36: 205.2 | AC36: 96.444 | AD36: 201.4 | AE36: 96.672 | AF36: 197.6 | AG36: 96.824 | AH36: 193.8 | AI36: 96.9 | AJ36: 191.0507793 | AK36: 97.43589744 | AL36: 187.3767258 | AM36: 97.43589744 | AN36: 183.8413159 | AO36: 97.43589744 | AP36: 180.4368471 | AQ36: 97.43589744 | AR36: 177.1561772 | AS36: 97.43589744 | AT36: 173.992674 | AU36: 97.43589744
B37: 39000 | C37: 285.7142857 | D37: 100 | E37: 85 | F37: 277.7777778 | G37: 100 | H37: 270.2702703 | I37: 100 | J37: 261.3 | K37: 99.294 | L37: 253.5 | M37: 98.865 | N37: 249.6 | O37: 99.84 | P37: 241.8 | Q37: 99.138 | R37: 237.9 | S37: 99.918 | T37: 230.1 | U37: 98.943 | V37: 226.2 | W37: 99.528 | X37: 218.4 | Y37: 98.28 | Z37: 214.5 | AA37: 98.67 | AB37: 210.6 | AC37: 98.982 | AD37: 206.7 | AE37: 99.216 | AF37: 202.8 | AG37: 99.372 | AH37: 198.9 | AI37: 99.45 | AJ37: 196.0784314 | AK37: 100 | AL37: 192.3076923 | AM37: 100 | AN37: 188.6792453 | AO37: 100 | AP37: 185.1851852 | AQ37: 100 | AR37: 181.8181818 | AS37: 100 | AT37: 178.5714286 | AU37: 100
B38: 40000 | C38: 293.040293 | D38: 102.5641026 | E38: 87.17948718 | F38: 284.9002849 | G38: 102.5641026 | H38: 277.2002772 | I38: 102.5641026 | J38: 268 | K38: 101.84 | L38: 260 | M38: 101.4 | N38: 256 | O38: 102.4 | P38: 248 | Q38: 101.68 | R38: 244 | S38: 102.48 | T38: 236 | U38: 101.48 | V38: 232 | W38: 102.08 | X38: 224 | Y38: 100.8 | Z38: 220 | AA38: 101.2 | AB38: 216 | AC38: 101.52 | AD38: 212 | AE38: 101.76 | AF38: 208 | AG38: 101.92 | AH38: 204 | AI38: 102 | AJ38: 201.1060835 | AK38: 102.5641026 | AL38: 197.2386588 | AM38: 102.5641026 | AN38: 193.5171746 | AO38: 102.5641026 | AP38: 189.9335233 | AQ38: 102.5641026 | AR38: 186.4801865 | AS38: 102.5641026 | AT38: 183.1501832 | AU38: 102.5641026
B39: 41000 | C39: 300.3663004 | D39: 105.1282051 | E39: 89.35897436 | F39: 292.022792 | G39: 105.1282051 | H39: 284.1302841 | I39: 105.1282051 | J39: 274.7 | K39: 104.386 | L39: 266.5 | M39: 103.935 | N39: 262.4 | O39: 104.96 | P39: 254.2 | Q39: 104.222 | R39: 250.1 | S39: 105.042 | T39: 241.9 | U39: 104.017 | V39: 237.8 | W39: 104.632 | X39: 229.6 | Y39: 103.32 | Z39: 225.5 | AA39: 103.73 | AB39: 221.4 | AC39: 104.058 | AD39: 217.3 | AE39: 104.304 | AF39: 213.2 | AG39: 104.468 | AH39: 209.1 | AI39: 104.55 | AJ39: 206.1337355 | AK39: 105.1282051 | AL39: 202.1696252 | AM39: 105.1282051 | AN39: 198.355104 | AO39: 105.1282051 | AP39: 194.6818613 | AQ39: 105.1282051 | AR39: 191.1421911 | AS39: 105.1282051 | AT39: 187.7289377 | AU39: 105.1282051
B40: 42000 | C40: 307.6923077 | D40: 107.6923077 | E40: 91.53846154 | F40: 299.1452991 | G40: 107.6923077 | H40: 291.0602911 | I40: 107.6923077 | J40: 281.4 | K40: 106.932 | L40: 273 | M40: 106.47 | N40: 268.8 | O40: 107.52 | P40: 260.4 | Q40: 106.764 | R40: 256.2 | S40: 107.604 | T40: 247.8 | U40: 106.554 | V40: 243.6 | W40: 107.184 | X40: 235.2 | Y40: 105.84 | Z40: 231 | AA40: 106.26 | AB40: 226.8 | AC40: 106.596 | AD40: 222.6 | AE40: 106.848 | AF40: 218.4 | AG40: 107.016 | AH40: 214.2 | AI40: 107.1 | AJ40: 211.1613876 | AK40: 107.6923077 | AL40: 207.1005917 | AM40: 107.6923077 | AN40: 203.1930334 | AO40: 107.6923077 | AP40: 199.4301994 | AQ40: 107.6923077 | AR40: 195.8041958 | AS40: 107.6923077 | AT40: 192.3076923 | AU40: 107.6923077
B41: 43000 | C41: 315.018315 | D41: 110.2564103 | E41: 93.71794872 | F41: 306.2678063 | G41: 110.2564103 | H41: 297.990298 | I41: 110.2564103 | J41: 288.1 | K41: 109.478 | L41: 279.5 | M41: 109.005 | N41: 275.2 | O41: 110.08 | P41: 266.6 | Q41: 109.306 | R41: 262.3 | S41: 110.166 | T41: 253.7 | U41: 109.091 | V41: 249.4 | W41: 109.736 | X41: 240.8 | Y41: 108.36 | Z41: 236.5 | AA41: 108.79 | AB41: 232.2 | AC41: 109.134 | AD41: 227.9 | AE41: 109.392 | AF41: 223.6 | AG41: 109.564 | AH41: 219.3 | AI41: 109.65 | AJ41: 216.1890397 | AK41: 110.2564103 | AL41: 212.0315582 | AM41: 110.2564103 | AN41: 208.0309627 | AO41: 110.2564103 | AP41: 204.1785375 | AQ41: 110.2564103 | AR41: 200.4662005 | AS41: 110.2564103 | AT41: 196.8864469 | AU41: 110.2564103
B42: 44000 | C42: 322.3443223 | D42: 112.8205128 | E42: 95.8974359 | F42: 313.3903134 | G42: 112.8205128 | H42: 304.9203049 | I42: 112.8205128 | J42: 294.8 | K42: 112.024 | L42: 286 | M42: 111.54 | N42: 281.6 | O42: 112.64 | P42: 272.8 | Q42: 111.848 | R42: 268.4 | S42: 112.728 | T42: 259.6 | U42: 111.628 | V42: 255.2 | W42: 112.288 | X42: 246.4 | Y42: 110.88 | Z42: 242 | AA42: 111.32 | AB42: 237.6 | AC42: 111.672 | AD42: 233.2 | AE42: 111.936 | AF42: 228.8 | AG42: 112.112 | AH42: 224.4 | AI42: 112.2 | AJ42: 221.2166918 | AK42: 112.8205128 | AL42: 216.9625247 | AM42: 112.8205128 | AN42: 212.8688921 | AO42: 112.8205128 | AP42: 208.9268756 | AQ42: 112.8205128 | AR42: 205.1282051 | AS42: 112.8205128 | AT42: 201.4652015 | AU42: 112.8205128
B43: 45000 | C43: 329.6703297 | D43: 115.3846154 | E43: 98.07692308 | F43: 320.5128205 | G43: 115.3846154 | H43: 311.8503119 | I43: 115.3846154 | J43: 301.5 | K43: 114.57 | L43: 292.5 | M43: 114.075 | N43: 288 | O43: 115.2 | P43: 279 | Q43: 114.39 | R43: 274.5 | S43: 115.29 | T43: 265.5 | U43: 114.165 | V43: 261 | W43: 114.84 | X43: 252 | Y43: 113.4 | Z43: 247.5 | AA43: 113.85 | AB43: 243 | AC43: 114.21 | AD43: 238.5 | AE43: 114.48 | AF43: 234 | AG43: 114.66 | AH43: 229.5 | AI43: 114.75 | AJ43: 226.2443439 | AK43: 115.3846154 | AL43: 221.8934911 | AM43: 115.3846154 | AN43: 217.7068215 | AO43: 115.3846154 | AP43: 213.6752137 | AQ43: 115.3846154 | AR43: 209.7902098 | AS43: 115.3846154 | AT43: 206.043956 | AU43: 115.3846154
B44: 46000 | C44: 336.996337 | D44: 117.9487179 | E44: 100.2564103 | F44: 327.6353276 | G44: 117.9487179 | H44: 318.7803188 | I44: 117.9487179 | J44: 308.2 | K44: 117.116 | L44: 299 | M44: 116.61 | N44: 294.4 | O44: 117.76 | P44: 285.2 | Q44: 116.932 | R44: 280.6 | S44: 117.852 | T44: 271.4 | U44: 116.702 | V44: 266.8 | W44: 117.392 | X44: 257.6 | Y44: 115.92 | Z44: 253 | AA44: 116.38 | AB44: 248.4 | AC44: 116.748 | AD44: 243.8 | AE44: 117.024 | AF44: 239.2 | AG44: 117.208 | AH44: 234.6 | AI44: 117.3 | AJ44: 231.271996 | AK44: 117.9487179 | AL44: 226.8244576 | AM44: 117.9487179 | AN44: 222.5447508 | AO44: 117.9487179 | AP44: 218.4235518 | AQ44: 117.9487179 | AR44: 214.4522145 | AS44: 117.9487179 | AT44: 210.6227106 | AU44: 117.9487179
B45: 47000 | C45: 344.3223443 | D45: 120.5128205 | E45: 102.4358974 | F45: 334.7578348 | G45: 120.5128205 | H45: 325.7103257 | I45: 120.5128205 | J45: 314.9 | K45: 119.662 | L45: 305.5 | M45: 119.145 | N45: 300.8 | O45: 120.32 | P45: 291.4 | Q45: 119.474 | R45: 286.7 | S45: 120.414 | T45: 277.3 | U45: 119.239 | V45: 272.6 | W45: 119.944 | X45: 263.2 | Y45: 118.44 | Z45: 258.5 | AA45: 118.91 | AB45: 253.8 | AC45: 119.286 | AD45: 249.1 | AE45: 119.568 | AF45: 244.4 | AG45: 119.756 | AH45: 239.7 | AI45: 119.85 | AJ45: 236.2996481 | AK45: 120.5128205 | AL45: 231.7554241 | AM45: 120.5128205 | AN45: 227.3826802 | AO45: 120.5128205 | AP45: 223.1718898 | AQ45: 120.5128205 | AR45: 219.1142191 | AS45: 120.5128205 | AT45: 215.2014652 | AU45: 120.5128205
B46: 48000 | C46: 351.6483516 | D46: 123.0769231 | E46: 104.6153846 | F46: 341.8803419 | G46: 123.0769231 | H46: 332.6403326 | I46: 123.0769231 | J46: 321.6 | K46: 122.208 | L46: 312 | M46: 121.68 | N46: 307.2 | O46: 122.88 | P46: 297.6 | Q46: 122.016 | R46: 292.8 | S46: 122.976 | T46: 283.2 | U46: 121.776 | V46: 278.4 | W46: 122.496 | X46: 268.8 | Y46: 120.96 | Z46: 264 | AA46: 121.44 | AB46: 259.2 | AC46: 121.824 | AD46: 254.4 | AE46: 122.112 | AF46: 249.6 | AG46: 122.304 | AH46: 244.8 | AI46: 122.4 | AJ46: 241.3273002 | AK46: 123.0769231 | AL46: 236.6863905 | AM46: 123.0769231 | AN46: 232.2206096 | AO46: 123.0769231 | AP46: 227.9202279 | AQ46: 123.0769231 | AR46: 223.7762238 | AS46: 123.0769231 | AT46: 219.7802198 | AU46: 123.0769231
B47: 49000 | C47: 358.974359 | D47: 125.6410256 | E47: 106.7948718 | F47: 349.002849 | G47: 125.6410256 | H47: 339.5703396 | I47: 125.6410256 | J47: 328.3 | K47: 124.754 | L47: 318.5 | M47: 124.215 | N47: 313.6 | O47: 125.44 | P47: 303.8 | Q47: 124.558 | R47: 298.9 | S47: 125.538 | T47: 289.1 | U47: 124.313 | V47: 284.2 | W47: 125.048 | X47: 274.4 | Y47: 123.48 | Z47: 269.5 | AA47: 123.97 | AB47: 264.6 | AC47: 124.362 | AD47: 259.7 | AE47: 124.656 | AF47: 254.8 | AG47: 124.852 | AH47: 249.9 | AI47: 124.95 | AJ47: 246.3549522 | AK47: 125.6410256 | AL47: 241.617357 | AM47: 125.6410256 | AN47: 237.0585389 | AO47: 125.6410256 | AP47: 232.668566 | AQ47: 125.6410256 | AR47: 228.4382284 | AS47: 125.6410256 | AT47: 224.3589744 | AU47: 125.6410256
B48: 50000 | C48: 366.3003663 | D48: 128.2051282 | E48: 108.974359 | F48: 356.1253561 | G48: 128.2051282 | H48: 346.5003465 | I48: 128.2051282 | J48: 335 | K48: 127.3 | L48: 325 | M48: 126.75 | N48: 320 | O48: 128 | P48: 310 | Q48: 127.1 | R48: 305 | S48: 128.1 | T48: 295 | U48: 126.85 | V48: 290 | W48: 127.6 | X48: 280 | Y48: 126 | Z48: 275 | AA48: 126.5 | AB48: 270 | AC48: 126.9 | AD48: 265 | AE48: 127.2 | AF48: 260 | AG48: 127.4 | AH48: 255 | AI48: 127.5 | AJ48: 251.3826043 | AK48: 128.2051282 | AL48: 246.5483235 | AM48: 128.2051282 | AN48: 241.8964683 | AO48: 128.2051282 | AP48: 237.4169041 | AQ48: 128.2051282 | AR48: 233.1002331 | AS48: 128.2051282 | AT48: 228.9377289 | AU48: 128.2051282
B49: 51000 | C49: 373.6263736 | D49: 130.7692308 | E49: 111.1538462 | F49: 363.2478632 | G49: 130.7692308 | H49: 353.4303534 | I49: 130.7692308 | J49: 341.7 | K49: 129.846 | L49: 331.5 | M49: 129.285 | N49: 326.4 | O49: 130.56 | P49: 316.2 | Q49: 129.642 | R49: 311.1 | S49: 130.662 | T49: 300.9 | U49: 129.387 | V49: 295.8 | W49: 130.152 | X49: 285.6 | Y49: 128.52 | Z49: 280.5 | AA49: 129.03 | AB49: 275.4 | AC49: 129.438 | AD49: 270.3 | AE49: 129.744 | AF49: 265.2 | AG49: 129.948 | AH49: 260.1 | AI49: 130.05 | AJ49: 256.4102564 | AK49: 130.7692308 | AL49: 251.4792899 | AM49: 130.7692308 | AN49: 246.7343977 | AO49: 130.7692308 | AP49: 242.1652422 | AQ49: 130.7692308 | AR49: 237.7622378 | AS49: 130.7692308 | AT49: 233.5164835 | AU49: 130.7692308
B50: 52000 | C50: 380.952381 | D50: 133.3333333 | E50: 113.3333333 | F50: 370.3703704 | G50: 133.3333333 | H50: 360.3603604 | I50: 133.3333333 | J50: 348.4 | K50: 132.392 | L50: 338 | M50: 131.82 | N50: 332.8 | O50: 133.12 | P50: 322.4 | Q50: 132.184 | R50: 317.2 | S50: 133.224 | T50: 306.8 | U50: 131.924 | V50: 301.6 | W50: 132.704 | X50: 291.2 | Y50: 131.04 | Z50: 286 | AA50: 131.56 | AB50: 280.8 | AC50: 131.976 | AD50: 275.6 | AE50: 132.288 | AF50: 270.4 | AG50: 132.496 | AH50: 265.2 | AI50: 132.6 | AJ50: 261.4379085 | AK50: 133.3333333 | AL50: 256.4102564 | AM50: 133.3333333 | AN50: 251.572327 | AO50: 133.3333333 | AP50: 246.9135802 | AQ50: 133.3333333 | AR50: 242.4242424 | AS50: 133.3333333 | AT50: 238.0952381 | AU50: 133.3333333
B51: 53000 | C51: 388.2783883 | D51: 135.8974359 | E51: 115.5128205 | F51: 377.4928775 | G51: 135.8974359 | H51: 367.2903673 | I51: 135.8974359 | J51: 355.1 | K51: 134.938 | L51: 344.5 | M51: 134.355 | N51: 339.2 | O51: 135.68 | P51: 328.6 | Q51: 134.726 | R51: 323.3 | S51: 135.786 | T51: 312.7 | U51: 134.461 | V51: 307.4 | W51: 135.256 | X51: 296.8 | Y51: 133.56 | Z51: 291.5 | AA51: 134.09 | AB51: 286.2 | AC51: 134.514 | AD51: 280.9 | AE51: 134.832 | AF51: 275.6 | AG51: 135.044 | AH51: 270.3 | AI51: 135.15 | AJ51: 266.4655606 | AK51: 135.8974359 | AL51: 261.3412229 | AM51: 135.8974359 | AN51: 256.4102564 | AO51: 135.8974359 | AP51: 251.6619183 | AQ51: 135.8974359 | AR51: 247.0862471 | AS51: 135.8974359 | AT51: 242.6739927 | AU51: 135.8974359
B52: 54000 | C52: 395.6043956 | D52: 138.4615385 | E52: 117.6923077 | F52: 384.6153846 | G52: 138.4615385 | H52: 374.2203742 | I52: 138.4615385 | J52: 361.8 | K52: 137.484 | L52: 351 | M52: 136.89 | N52: 345.6 | O52: 138.24 | P52: 334.8 | Q52: 137.268 | R52: 329.4 | S52: 138.348 | T52: 318.6 | U52: 136.998 | V52: 313.2 | W52: 137.808 | X52: 302.4 | Y52: 136.08 | Z52: 297 | AA52: 136.62 | AB52: 291.6 | AC52: 137.052 | AD52: 286.2 | AE52: 137.376 | AF52: 280.8 | AG52: 137.592 | AH52: 275.4 | AI52: 137.7 | AJ52: 271.4932127 | AK52: 138.4615385 | AL52: 266.2721893 | AM52: 138.4615385 | AN52: 261.2481858 | AO52: 138.4615385 | AP52: 256.4102564 | AQ52: 138.4615385 | AR52: 251.7482517 | AS52: 138.4615385 | AT52: 247.2527473 | AU52: 138.4615385
B53: 55000 | C53: 402.9304029 | D53: 141.025641 | E53: 119.8717949 | F53: 391.7378917 | G53: 141.025641 | H53: 381.1503812 | I53: 141.025641 | J53: 368.5 | K53: 140.03 | L53: 357.5 | M53: 139.425 | N53: 352 | O53: 140.8 | P53: 341 | Q53: 139.81 | R53: 335.5 | S53: 140.91 | T53: 324.5 | U53: 139.535 | V53: 319 | W53: 140.36 | X53: 308 | Y53: 138.6 | Z53: 302.5 | AA53: 139.15 | AB53: 297 | AC53: 139.59 | AD53: 291.5 | AE53: 139.92 | AF53: 286 | AG53: 140.14 | AH53: 280.5 | AI53: 140.25 | AJ53: 276.5208648 | AK53: 141.025641 | AL53: 271.2031558 | AM53: 141.025641 | AN53: 266.0861151 | AO53: 141.025641 | AP53: 261.1585945 | AQ53: 141.025641 | AR53: 256.4102564 | AS53: 141.025641 | AT53: 251.8315018 | AU53: 141.025641
B54: 56000 | C54: 410.2564103 | D54: 143.5897436 | E54: 122.0512821 | F54: 398.8603989 | G54: 143.5897436 | H54: 388.0803881 | I54: 143.5897436 | J54: 375.2 | K54: 142.576 | L54: 364 | M54: 141.96 | N54: 358.4 | O54: 143.36 | P54: 347.2 | Q54: 142.352 | R54: 341.6 | S54: 143.472 | T54: 330.4 | U54: 142.072 | V54: 324.8 | W54: 142.912 | X54: 313.6 | Y54: 141.12 | Z54: 308 | AA54: 141.68 | AB54: 302.4 | AC54: 142.128 | AD54: 296.8 | AE54: 142.464 | AF54: 291.2 | AG54: 142.688 | AH54: 285.6 | AI54: 142.8 | AJ54: 281.5485168 | AK54: 143.5897436 | AL54: 276.1341223 | AM54: 143.5897436 | AN54: 270.9240445 | AO54: 143.5897436 | AP54: 265.9069326 | AQ54: 143.5897436 | AR54: 261.0722611 | AS54: 143.5897436 | AT54: 256.4102564 | AU54: 143.5897436
B55: 57000 | C55: 417.5824176 | D55: 146.1538462 | E55: 124.2307692 | F55: 405.982906 | G55: 146.1538462 | H55: 395.010395 | I55: 146.1538462 | J55: 381.9 | K55: 145.122 | L55: 370.5 | M55: 144.495 | N55: 364.8 | O55: 145.92 | P55: 353.4 | Q55: 144.894 | R55: 347.7 | S55: 146.034 | T55: 336.3 | U55: 144.609 | V55: 330.6 | W55: 145.464 | X55: 319.2 | Y55: 143.64 | Z55: 313.5 | AA55: 144.21 | AB55: 307.8 | AC55: 144.666 | AD55: 302.1 | AE55: 145.008 | AF55: 296.4 | AG55: 145.236 | AH55: 290.7 | AI55: 145.35 | AJ55: 286.5761689 | AK55: 146.1538462 | AL55: 281.0650888 | AM55: 146.1538462 | AN55: 275.7619739 | AO55: 146.1538462 | AP55: 270.6552707 | AQ55: 146.1538462 | AR55: 265.7342657 | AS55: 146.1538462 | AT55: 260.989011 | AU55: 146.1538462
B56: 58000 | C56: 424.9084249 | D56: 148.7179487 | E56: 126.4102564 | F56: 413.1054131 | G56: 148.7179487 | H56: 401.9404019 | I56: 148.7179487 | J56: 388.6 | K56: 147.668 | L56: 377 | M56: 147.03 | N56: 371.2 | O56: 148.48 | P56: 359.6 | Q56: 147.436 | R56: 353.8 | S56: 148.596 | T56: 342.2 | U56: 147.146 | V56: 336.4 | W56: 148.016 | X56: 324.8 | Y56: 146.16 | Z56: 319 | AA56: 146.74 | AB56: 313.2 | AC56: 147.204 | AD56: 307.4 | AE56: 147.552 | AF56: 301.6 | AG56: 147.784 | AH56: 295.8 | AI56: 147.9 | AJ56: 291.603821 | AK56: 148.7179487 | AL56: 285.9960552 | AM56: 148.7179487 | AN56: 280.5999032 | AO56: 148.7179487 | AP56: 275.4036087 | AQ56: 148.7179487 | AR56: 270.3962704 | AS56: 148.7179487 | AT56: 265.5677656 | AU56: 148.7179487
B57: 59000 | C57: 432.2344322 | D57: 151.2820513 | E57: 128.5897436 | F57: 420.2279202 | G57: 151.2820513 | H57: 408.8704089 | I57: 151.2820513 | J57: 395.3 | K57: 150.214 | L57: 383.5 | M57: 149.565 | N57: 377.6 | O57: 151.04 | P57: 365.8 | Q57: 149.978 | R57: 359.9 | S57: 151.158 | T57: 348.1 | U57: 149.683 | V57: 342.2 | W57: 150.568 | X57: 330.4 | Y57: 148.68 | Z57: 324.5 | AA57: 149.27 | AB57: 318.6 | AC57: 149.742 | AD57: 312.7 | AE57: 150.096 | AF57: 306.8 | AG57: 150.332 | AH57: 300.9 | AI57: 150.45 | AJ57: 296.6314731 | AK57: 151.2820513 | AL57: 290.9270217 | AM57: 151.2820513 | AN57: 285.4378326 | AO57: 151.2820513 | AP57: 280.1519468 | AQ57: 151.2820513 | AR57: 275.0582751 | AS57: 151.2820513 | AT57: 270.1465201 | AU57: 151.2820513
B58: 60000 | C58: 439.5604396 | D58: 153.8461538 | E58: 130.7692308 | F58: 427.3504274 | G58: 153.8461538 | H58: 415.8004158 | I58: 153.8461538 | J58: 402 | K58: 152.76 | L58: 390 | M58: 152.1 | N58: 384 | O58: 153.6 | P58: 372 | Q58: 152.52 | R58: 366 | S58: 153.72 | T58: 354 | U58: 152.22 | V58: 348 | W58: 153.12 | X58: 336 | Y58: 151.2 | Z58: 330 | AA58: 151.8 | AB58: 324 | AC58: 152.28 | AD58: 318 | AE58: 152.64 | AF58: 312 | AG58: 152.88 | AH58: 306 | AI58: 153 | AJ58: 301.6591252 | AK58: 153.8461538 | AL58: 295.8579882 | AM58: 153.8461538 | AN58: 290.275762 | AO58: 153.8461538 | AP58: 284.9002849 | AQ58: 153.8461538 | AR58: 279.7202797 | AS58: 153.8461538 | AT58: 274.7252747 | AU58: 153.8461538
B59: 61000 | C59: 446.8864469 | D59: 156.4102564 | E59: 132.9487179 | F59: 434.4729345 | G59: 156.4102564 | H59: 422.7304227 | I59: 156.4102564 | J59: 408.7 | K59: 155.306 | L59: 396.5 | M59: 154.635 | N59: 390.4 | O59: 156.16 | P59: 378.2 | Q59: 155.062 | R59: 372.1 | S59: 156.282 | T59: 359.9 | U59: 154.757 | V59: 353.8 | W59: 155.672 | X59: 341.6 | Y59: 153.72 | Z59: 335.5 | AA59: 154.33 | AB59: 329.4 | AC59: 154.818 | AD59: 323.3 | AE59: 155.184 | AF59: 317.2 | AG59: 155.428 | AH59: 311.1 | AI59: 155.55 | AJ59: 306.6867773 | AK59: 156.4102564 | AL59: 300.7889546 | AM59: 156.4102564 | AN59: 295.1136913 | AO59: 156.4102564 | AP59: 289.648623 | AQ59: 156.4102564 | AR59: 284.3822844 | AS59: 156.4102564 | AT59: 279.3040293 | AU59: 156.4102564
B60: 62000 | C60: 454.2124542 | D60: 158.974359 | E60: 135.1282051 | F60: 441.5954416 | G60: 158.974359 | H60: 429.6604297 | I60: 158.974359 | J60: 415.4 | K60: 157.852 | L60: 403 | M60: 157.17 | N60: 396.8 | O60: 158.72 | P60: 384.4 | Q60: 157.604 | R60: 378.2 | S60: 158.844 | T60: 365.8 | U60: 157.294 | V60: 359.6 | W60: 158.224 | X60: 347.2 | Y60: 156.24 | Z60: 341 | AA60: 156.86 | AB60: 334.8 | AC60: 157.356 | AD60: 328.6 | AE60: 157.728 | AF60: 322.4 | AG60: 157.976 | AH60: 316.2 | AI60: 158.1 | AJ60: 311.7144294 | AK60: 158.974359 | AL60: 305.7199211 | AM60: 158.974359 | AN60: 299.9516207 | AO60: 158.974359 | AP60: 294.3969611 | AQ60: 158.974359 | AR60: 289.044289 | AS60: 158.974359 | AT60: 283.8827839 | AU60: 158.974359
B61: 63000 | C61: 461.5384615 | D61: 161.5384615 | E61: 137.3076923 | F61: 448.7179487 | G61: 161.5384615 | H61: 436.5904366 | I61: 161.5384615 | J61: 422.1 | K61: 160.398 | L61: 409.5 | M61: 159.705 | N61: 403.2 | O61: 161.28 | P61: 390.6 | Q61: 160.146 | R61: 384.3 | S61: 161.406 | T61: 371.7 | U61: 159.831 | V61: 365.4 | W61: 160.776 | X61: 352.8 | Y61: 158.76 | Z61: 346.5 | AA61: 159.39 | AB61: 340.2 | AC61: 159.894 | AD61: 333.9 | AE61: 160.272 | AF61: 327.6 | AG61: 160.524 | AH61: 321.3 | AI61: 160.65 | AJ61: 316.7420814 | AK61: 161.5384615 | AL61: 310.6508876 | AM61: 161.5384615 | AN61: 304.7895501 | AO61: 161.5384615 | AP61: 299.1452991 | AQ61: 161.5384615 | AR61: 293.7062937 | AS61: 161.5384615 | AT61: 288.4615385 | AU61: 161.5384615
B62: 64000 | C62: 468.8644689 | D62: 164.1025641 | E62: 139.4871795 | F62: 455.8404558 | G62: 164.1025641 | H62: 443.5204435 | I62: 164.1025641 | J62: 428.8 | K62: 162.944 | L62: 416 | M62: 162.24 | N62: 409.6 | O62: 163.84 | P62: 396.8 | Q62: 162.688 | R62: 390.4 | S62: 163.968 | T62: 377.6 | U62: 162.368 | V62: 371.2 | W62: 163.328 | X62: 358.4 | Y62: 161.28 | Z62: 352 | AA62: 161.92 | AB62: 345.6 | AC62: 162.432 | AD62: 339.2 | AE62: 162.816 | AF62: 332.8 | AG62: 163.072 | AH62: 326.4 | AI62: 163.2 | AJ62: 321.7697335 | AK62: 164.1025641 | AL62: 315.581854 | AM62: 164.1025641 | AN62: 309.6274794 | AO62: 164.1025641 | AP62: 303.8936372 | AQ62: 164.1025641 | AR62: 298.3682984 | AS62: 164.1025641 | AT62: 293.040293 | AU62: 164.1025641
B63: 65000 | C63: 476.1904762 | D63: 166.6666667 | E63: 141.6666667 | F63: 462.962963 | G63: 166.6666667 | H63: 450.4504505 | I63: 166.6666667 | J63: 435.5 | K63: 165.49 | L63: 422.5 | M63: 164.775 | N63: 416 | O63: 166.4 | P63: 403 | Q63: 165.23 | R63: 396.5 | S63: 166.53 | T63: 383.5 | U63: 164.905 | V63: 377 | W63: 165.88 | X63: 364 | Y63: 163.8 | Z63: 357.5 | AA63: 164.45 | AB63: 351 | AC63: 164.97 | AD63: 344.5 | AE63: 165.36 | AF63: 338 | AG63: 165.62 | AH63: 331.5 | AI63: 165.75 | AJ63: 326.7973856 | AK63: 166.6666667 | AL63: 320.5128205 | AM63: 166.6666667 | AN63: 314.4654088 | AO63: 166.6666667 | AP63: 308.6419753 | AQ63: 166.6666667 | AR63: 303.030303 | AS63: 166.6666667 | AT63: 297.6190476 | AU63: 166.6666667
B64: 66000 | C64: 483.5164835 | D64: 169.2307692 | E64: 143.8461538 | F64: 470.0854701 | G64: 169.2307692 | H64: 457.3804574 | I64: 169.2307692 | J64: 442.2 | K64: 168.036 | L64: 429 | M64: 167.31 | N64: 422.4 | O64: 168.96 | P64: 409.2 | Q64: 167.772 | R64: 402.6 | S64: 169.092 | T64: 389.4 | U64: 167.442 | V64: 382.8 | W64: 168.432 | X64: 369.6 | Y64: 166.32 | Z64: 363 | AA64: 166.98 | AB64: 356.4 | AC64: 167.508 | AD64: 349.8 | AE64: 167.904 | AF64: 343.2 | AG64: 168.168 | AH64: 336.6 | AI64: 168.3 | AJ64: 331.8250377 | AK64: 169.2307692 | AL64: 325.443787 | AM64: 169.2307692 | AN64: 319.3033382 | AO64: 169.2307692 | AP64: 313.3903134 | AQ64: 169.2307692 | AR64: 307.6923077 | AS64: 169.2307692 | AT64: 302.1978022 | AU64: 169.2307692

Sheet 営収グラフ
D1: 月間売上グラフ
E2: =日別輸送実績表!$A$54 -> 2013-08-01 | F2: 月期集計 | G2: 氏名又は名称 | H2: =日別輸送実績表!$C$54 -> 0 | Z2: =日別輸送実績表!$K$54 -> 00:00:00
B5: 料金収受形態種別
B6: 現金 | C6: =日別輸送実績表!$J$47 -> 0
B7: チケット | C7: =日別輸送実績表!$K$47 -> 0
B8: カード | C8: =日別輸送実績表!$L$47 -> 0
B9: 雑収入 | C9: =日別輸送実績表!$M$47 -> 0
B10: 合計 | C10: =SUM(C6:C9) -> 0
B13: 営収平均 | C13: =IF(ISERROR(C10/C14)=TRUE,"",ROUND(C10/C14,-1)) -> 
B14: 営業日数 | C14: =日別輸送実績表!$S$8 -> 0
B17: 当月走行㌔データ
B18: 営業走行 | C18: =日別輸送実績表!$D$45 -> 0
B19: 自家使用 | C19: =SUM('1'!N15) -> 0

Sheet ﾃﾞｰﾀﾍﾞｰｽ
B1: 勘定科目 | C1: 科目コード | D1: 月 | E1: 日付 | F1: 曜日 | G1: 適用リスト | H1: 天候 | I1: 収受区分 | J1: 備考 | K1: 日付 | L1: 親メーター入庫㌔指数 | M1: 自家使用距離 | N1: 走行キロ | O1: 燃料消費 | P1: 燃料単価 | Q1: 燃料費 | R1: 日 | S1: 酒気帯検知 （有る・無し） | T1: NO | U1: 日 | V1: 祝日
F2: 日 | I2: 現金 | L2: =日別輸送実績表!$H$54 -> 0 | O2: ='1'!$M$10 ->  | P2: ='1'!$I$14 -> 100 | Q2: =IF(ISERROR(O2*P2)=TRUE,"",ROUNDUP(O2*P2,-1)) ->  | R2: 1 | T2: 1 | U2: 2013-01-01 | V2: 元日
B3: 諸口 | C3: 000 | D3: 1 | E3: =日別輸送実績表!$A$54 -> 2013-08-01 | F3: 月 | G3: 売掛・立替金回収/手数料 | H3: 晴れ | I3: チケット | J3: 定休日 | K3: 1900-01-01 | L3: =IF(N3="",IF(M3>0,MAX($L$2:$L2)+M3,'1'!$D$10),IF(M3>0,MAX($L$2:$L2)+SUM(M3,N3),'1'!$D$10)) -> 0 | M3: ='1'!$N$15 -> 0 | N3: ='1'!$D$11 ->  | O3: ='2'!$M$10 ->  | P3: ='2'!$I$14 -> 100 | R3: 2 | S3: 無し(適) | T3: 2 | U3: 2013-01-13 | V3: 成人の日
B4: 現金 | C4: 001 | D4: 2 | E4: =E3+1 -> 2013-08-02 | F4: 火 | G4: 組合賦課金等支払 | H4: 晴れのち曇り | I4: カード | J4: 臨時休業 | K4: 1900-01-02 | L4: =IF(N4="",IF(M4>0,MAX($L$2:$L3)+M4,'2'!$D$10),IF(M4>0,MAX($L$2:$L3)+SUM(M4,N4),'2'!$D$10)) -> 0 | M4: ='2'!$N$15 -> 0 | N4: ='2'!$D$11 ->  | O4: ='3'!$M$10 ->  | P4: ='3'!$I$14 -> 100 | R4: 3 | S4: 有る(否) | T4: 3 | U4: 2013-02-11 | V4: 建国記念の日
B5: 普通預金 | C5: 003 | D5: 3 | E5: =E4+1 -> 2013-08-03 | F5: 水 | G5: 組合行動費 | H5: 晴れ時々曇り | J5: 休業日 | K5: 1900-01-03 | L5: =IF(N5="",IF(M5>0,MAX($L$2:$L4)+M5,'3'!$D$10),IF(M5>0,MAX($L$2:$L4)+SUM(M5,N5),'3'!$D$10)) -> 0 | M5: ='3'!$N$15 -> 0 | N5: ='3'!$D$11 ->  | O5: ='4'!$M$10 ->  | P5: ='4'!$I$14 -> 100 | R5: 4 | T5: 4 | U5: 2013-03-20 | V5: 春分の日
B6: その他預金 | C6: 004 | D6: 4 | E6: 2013-08-04 | F6: 木 | G6: 預金口座へ資金移動 | H6: 晴れのち雨 | J6: 組合行事 | K6: 1900-01-04 | L6: =IF(N6="",IF(M6>0,MAX($L$2:$L5)+M6,'4'!$D$10),IF(M6>0,MAX($L$2:$L5)+SUM(M6,N6),'4'!$D$10)) -> 0 | M6: ='4'!$N$15 -> 0 | N6: ='4'!$D$11 ->  | O6: ='5'!$M$10 ->  | P6: ='5'!$I$14 -> 100 | R6: 5 | T6: 5 | U6: 2013-04-29 | V6: 昭和の日
B7: 保証金・敷金 | C7: 007 | D7: 5 | E7: 2013-08-05 | F7: 金 | G7: 口座から預金引出 | H7: 曇り | J7: 組合業務 | K7: 1900-01-05 | L7: =IF(N7="",IF(M7>0,MAX($L$2:$L6)+M7,'5'!$D$10),IF(M7>0,MAX($L$2:$L6)+SUM(M7,N7),'5'!$D$10)) -> 0 | M7: ='5'!$N$15 -> 0 | N7: ='5'!$D$11 ->  | O7: ='6'!$M$10 ->  | P7: ='6'!$I$14 -> 100 | R7: 6 | T7: 6 | U7: 2013-05-03 | V7: 憲法記念日
B8: 売掛金(ﾁｹｯﾄ) | C8: 012 | D8: 6 | E8: 2013-08-06 | F8: 土 | G8: 生活費（提灯 太郎） | H8: 曇りのち雨 | K8: 1900-01-06 | L8: =IF(N8="",IF(M8>0,MAX($L$2:$L7)+M8,'6'!$D$10),IF(M8>0,MAX($L$2:$L7)+SUM(M8,N8),'6'!$D$10)) -> 0 | M8: ='6'!$N$15 -> 0 | N8: ='6'!$D$11 ->  | O8: ='7'!$M$10 ->  | P8: ='7'!$I$14 -> 100 | R8: 7 | T8: 7 | U8: 2013-05-04 | V8: みどりの日
B9: 売掛金(ｶｰﾄﾞ) | C9: 013 | D9: 7 | E9: 2013-08-07 | G9: 法定点検整備(〇〇自動車株式会社) | H9: 曇りのち晴れ | K9: 1900-01-07 | L9: =IF(N9="",IF(M9>0,MAX($L$2:$L8)+M9,'7'!$D$10),IF(M9>0,MAX($L$2:$L8)+SUM(M9,N9),'7'!$D$10)) -> 0 | M9: ='7'!$N$15 -> 0 | N9: ='7'!$D$11 ->  | O9: ='8'!$M$10 ->  | P9: ='8'!$I$14 -> 100 | R9: 8 | T9: 8 | U9: 2013-05-05 | V9: こどもの日
B10: 事業主貸 | C10: 020 | D10: 8 | E10: 2013-08-08 | G10: 定期整備(〇〇自動車株式会社) | H10: 曇り時々雨 | K10: 1900-01-08 | L10: =IF(N10="",IF(M10>0,MAX($L$2:$L9)+M10,'8'!$D$10),IF(M10>0,MAX($L$2:$L9)+SUM(M10,N10),'8'!$D$10)) -> 0 | M10: ='8'!$N$15 -> 0 | N10: ='8'!$D$11 ->  | O10: ='9'!$M$10 ->  | P10: ='9'!$I$14 -> 100 | R10: 9 | T10: 9 | U10: 2013-05-06 | V10: 振替休日
B11: 共済準備金 | C11: 030 | D11: 9 | E11: 2013-08-09 | G11: 自賠責保険料 | H11: 曇りのち雪 | K11: 1900-01-09 | L11: =IF(N11="",IF(M11>0,MAX($L$2:$L10)+M11,'9'!$D$10),IF(M11>0,MAX($L$2:$L10)+SUM(M11,N11),'9'!$D$10)) -> 0 | M11: ='9'!$N$15 -> 0 | N11: ='9'!$D$11 ->  | O11: ='10'!$M$10 ->  | P11: ='10'!$I$14 -> 100 | R11: 10 | T11: 10 | U11: 2013-07-21 | V11: 海の日
B12: 特別共済事務組合負担金 | C12: 040 | D12: 10 | E12: 2013-08-10 | G12: 端末機保険料 | H12: 雨 | K12: 1900-01-10 | L12: =IF(N12="",IF(M12>0,MAX($L$2:$L11)+M12,'10'!$D$10),IF(M12>0,MAX($L$2:$L11)+SUM(M12,N12),'10'!$D$10)) -> 0 | M12: ='10'!$N$15 -> 0 | N12: ='10'!$D$11 ->  | O12: ='11'!$M$10 ->  | P12: ='11'!$I$14 -> 100 | R12: 11 | T12: 11 | U12: 2013-09-15 | V12: 敬老の日
B13: 日個連事業融資積立金 | C13: 031 | D13: 11 | E13: 2013-08-11 | G13: 自動車税 | H13: 雨のち曇り | K13: 1900-01-11 | L13: =IF(N13="",IF(M13>0,MAX($L$2:$L12)+M13,'11'!$D$10),IF(M13>0,MAX($L$2:$L12)+SUM(M13,N13),'11'!$D$10)) -> 0 | M13: ='11'!$N$15 -> 0 | N13: ='11'!$D$11 ->  | O13: ='12'!$M$10 ->  | P13: ='12'!$I$14 -> 100 | R13: 12 | T13: 12 | U13: 2013-09-23 | V13: 秋分の日
B14: 立替金 | C14: 033 | D14: 12 | E14: 2013-08-12 | G14: 重量税 | H14: 雨時々曇り | K14: 1900-01-12 | L14: =IF(N14="",IF(M14>0,MAX($L$2:$L13)+M14,'12'!$D$10),IF(M14>0,MAX($L$2:$L13)+SUM(M14,N14),'12'!$D$10)) -> 0 | M14: ='12'!$N$15 -> 0 | N14: ='12'!$D$11 ->  | O14: ='13'!$M$10 ->  | P14: ='13'!$I$14 -> 100 | R14: 13 | T14: 13 | U14: 2013-10-13 | V14: 体育の日
B15: 事業出資金 | C15: 050 | E15: 2013-08-13 | G15: 事業税 | H15: 雨のち晴れ | K15: 1900-01-13 | L15: =IF(N15="",IF(M15>0,MAX($L$2:$L14)+M15,'13'!$D$10),IF(M15>0,MAX($L$2:$L14)+SUM(M15,N15),'13'!$D$10)) -> 0 | M15: ='13'!$N$15 -> 0 | N15: ='13'!$D$11 ->  | O15: ='14'!$M$10 ->  | P15: ='14'!$I$14 -> 100 | R15: 14 | T15: 14 | U15: 2013-11-03 | V15: 文化の日
B16: 建物 | C16: 061 | E16: 2013-08-14 | G16: 支部費 | H16: 雨のち雪 | K16: 1900-01-14 | L16: =IF(N16="",IF(M16>0,MAX($L$2:$L15)+M16,'14'!$D$10),IF(M16>0,MAX($L$2:$L15)+SUM(M16,N16),'14'!$D$10)) -> 0 | M16: ='14'!$N$15 -> 0 | N16: ='14'!$D$11 ->  | O16: ='15'!$M$10 ->  | P16: ='15'!$I$14 -> 100 | R16: 15 | T16: 15 | U16: 2013-11-23 | V16: 勤労感謝の日
B17: 車両運搬具 | C17: 064 | E17: 2013-08-15 | G17: 運転免許証更新(印紙代) | H17: 雪のち晴れ | K17: 1900-01-15 | L17: =IF(N17="",IF(M17>0,MAX($L$2:$L16)+M17,'15'!$D$10),IF(M17>0,MAX($L$2:$L16)+SUM(M17,N17),'15'!$D$10)) -> 0 | M17: ='15'!$N$15 -> 0 | N17: ='15'!$D$11 ->  | O17: ='16'!$M$10 ->  | P17: ='16'!$I$14 -> 100 | R17: 16 | T17: 16 | U17: 2013-11-24 | V17: 振替休日
B18: 工具器具備品 | C18: 065 | E18: 2013-08-16 | G18: 事業免許更新 | H18: 雪のち曇り | K18: 1900-01-16 | L18: =IF(N18="",IF(M18>0,MAX($L$2:$L17)+M18,'16'!$D$10),IF(M18>0,MAX($L$2:$L17)+SUM(M18,N18),'16'!$D$10)) -> 0 | M18: ='16'!$N$15 -> 0 | N18: ='16'!$D$11 ->  | O18: ='17'!$M$10 ->  | P18: ='17'!$I$14 -> 100 | R18: 17 | T18: 17 | U18: 2013-12-23 | V18: 天皇誕生日
B19: 組合出資金 | C19: 080 | E19: 2013-08-17 | G19: 事業者証更新(東京タクシーセンター) | H19: 雪 | K19: 1900-01-17 | L19: =IF(N19="",IF(M19>0,MAX($L$2:$L18)+M19,'17'!$D$10),IF(M19>0,MAX($L$2:$L18)+SUM(M19,N19),'17'!$D$10)) -> 0 | M19: ='17'!$N$15 -> 0 | N19: ='17'!$D$11 ->  | O19: ='18'!$M$10 ->  | P19: ='18'!$I$14 -> 100 | R19: 18
B20: その他出資金 | C20: 081 | E20: 2013-08-18 | G20: メーター検査費用（四葉ﾒｰﾀｰｻｰﾋﾞｽ） | H20: 雪のち雨 | K20: 1900-01-18 | L20: =IF(N20="",IF(M20>0,MAX($L$2:$L19)+M20,'18'!$D$10),IF(M20>0,MAX($L$2:$L19)+SUM(M20,N20),'18'!$D$10)) -> 0 | M20: ='18'!$N$15 -> 0 | N20: ='18'!$D$11 ->  | O20: ='19'!$M$10 ->  | P20: ='19'!$I$14 -> 100 | R20: 19
B21: 創業費 | C21: 090 | E21: 2013-08-19 | G21: 振込手数料（〇〇銀行） | H21: 雪時々曇り | K21: 1900-01-19 | L21: =IF(N21="",IF(M21>0,MAX($L$2:$L20)+M21,'19'!$D$10),IF(M21>0,MAX($L$2:$L20)+SUM(M21,N21),'19'!$D$10)) -> 0 | M21: ='19'!$N$15 -> 0 | N21: ='19'!$D$11 ->  | O21: ='20'!$M$10 ->  | P21: ='20'!$I$14 -> 100 | R21: 20
B22: 支払手形 | C22: 101 | E22: 2013-08-20 | G22: オイル交換 〇〇自動車株式会社 | K22: 1900-01-20 | L22: =IF(N22="",IF(M22>0,MAX($L$2:$L21)+M22,'20'!$D$10),IF(M22>0,MAX($L$2:$L21)+SUM(M22,N22),'20'!$D$10)) -> 0 | M22: ='20'!$N$15 -> 0 | N22: ='20'!$D$11 ->  | O22: ='21'!$M$10 ->  | P22: ='21'!$I$14 -> 100 | R22: 21
B23: 借入金 | C23: 103 | E23: 2013-08-21 | G23: 日報・帳票用紙購入(組合) | K23: 1900-01-21 | L23: =IF(N23="",IF(M23>0,MAX($L$2:$L22)+M23,'21'!$D$10),IF(M23>0,MAX($L$2:$L22)+SUM(M23,N23),'21'!$D$10)) -> 0 | M23: ='21'!$N$15 -> 0 | N23: ='21'!$D$11 ->  | O23: ='22'!$M$10 ->  | P23: ='22'!$I$14 -> 100 | R23: 22
B24: 未払金 | C24: 104 | E24: 2013-08-22 | G24: デビット端末機 | K24: 1900-01-22 | L24: =IF(N24="",IF(M24>0,MAX($L$2:$L23)+M24,'22'!$D$10),IF(M24>0,MAX($L$2:$L23)+SUM(M24,N24),'22'!$D$10)) -> 0 | M24: ='22'!$N$15 -> 0 | N24: ='22'!$D$11 ->  | O24: ='23'!$M$10 ->  | P24: ='23'!$I$14 -> 100 | R24: 23
B25: 未払金(デビット端末) | C25: 104 | E25: 2013-08-23 | G25: 組合新年会 | K25: 1900-01-23 | L25: =IF(N25="",IF(M25>0,MAX($L$2:$L24)+M25,'23'!$D$10),IF(M25>0,MAX($L$2:$L24)+SUM(M25,N25),'23'!$D$10)) -> 0 | M25: ='23'!$N$15 -> 0 | N25: ='23'!$D$11 ->  | O25: ='24'!$M$10 ->  | P25: ='24'!$I$14 -> 100 | R25: 24
B26: 事業主借 | C26: 110 | E26: 2013-08-24 | G26: 新規事業者歓迎会・送別会 | K26: 1900-01-24 | L26: =IF(N26="",IF(M26>0,MAX($L$2:$L25)+M26,'24'!$D$10),IF(M26>0,MAX($L$2:$L25)+SUM(M26,N26),'24'!$D$10)) -> 0 | M26: ='24'!$N$15 -> 0 | N26: ='24'!$D$11 ->  | O26: ='25'!$M$10 ->  | P26: ='25'!$I$14 -> 100 | R26: 25
B27: 雑収入 | C27: 610 | E27: 2013-08-25 | G27: 事業主借（現金不足の為適用） | K27: 1900-01-25 | L27: =IF(N27="",IF(M27>0,MAX($L$2:$L26)+M27,'25'!$D$10),IF(M27>0,MAX($L$2:$L26)+SUM(M27,N27),'25'!$D$10)) -> 0 | M27: ='25'!$N$15 -> 0 | N27: ='25'!$D$11 ->  | O27: ='26'!$M$10 ->  | P27: ='26'!$I$14 -> 100 | R27: 26
B28: その他収入 | C28: 610 | E28: 2013-08-26 | G28: ETC未払金支払 月分 | K28: 1900-01-26 | L28: =IF(N28="",IF(M28>0,MAX($L$2:$L27)+M28,'26'!$D$10),IF(M28>0,MAX($L$2:$L27)+SUM(M28,N28),'26'!$D$10)) -> 0 | M28: ='26'!$N$15 -> 0 | N28: ='26'!$D$11 ->  | O28: ='27'!$M$10 ->  | P28: ='27'!$I$14 -> 100 | R28: 27
B29: 前払金(ETC) | C29: 611 | E29: 2013-08-27 | G29: ETC通行料割引分 | K29: 1900-01-27 | L29: =IF(N29="",IF(M29>0,MAX($L$2:$L28)+M29,'27'!$D$10),IF(M29>0,MAX($L$2:$L28)+SUM(M29,N29),'27'!$D$10)) -> 0 | M29: ='27'!$N$15 -> 0 | N29: ='27'!$D$11 ->  | O29: ='28'!$M$10 ->  | P29: ='28'!$I$14 -> 100 | R29: 28
B30: 水道光熱費 | C30: 702 | E30: 2013-08-28 | G30: 未払金返済(ETC他) | K30: 1900-01-28 | L30: =IF(N30="",IF(M30>0,MAX($L$2:$L29)+M30,'28'!$D$10),IF(M30>0,MAX($L$2:$L29)+SUM(M30,N30),'28'!$D$10)) -> 0 | M30: ='28'!$N$15 -> 0 | N30: ='28'!$D$11 ->  | O30: ='29'!$M$10 ->  | P30: ='29'!$I$14 -> 100 | R30: 29
B31: 消耗品費 | C31: 703 | E31: 2013-08-29 | G31: 借入金返済（国民生活金融公庫） | K31: 1900-01-29 | L31: =IF(N31="",IF(M31>0,MAX($L$2:$L30)+M31,'29'!$D$10),IF(M31>0,MAX($L$2:$L30)+SUM(M31,N31),'29'!$D$10)) -> 0 | M31: ='29'!$N$15 -> 0 | N31: ='29'!$D$11 ->  | O31: ='30'!$M$10 ->  | P31: ='30'!$I$14 -> 100 | R31: 30
B32: 燃料費 | C32: 707 | E32: 2013-08-30 | G32: 事業資金借入（国民生活金融公庫） | K32: 1900-01-30 | L32: =IF(N32="",IF(M32>0,MAX($L$2:$L31)+M32,'30'!$D$10),IF(M32>0,MAX($L$2:$L31)+SUM(M32,N32),'30'!$D$10)) -> 0 | M32: ='30'!$N$15 -> 0 | N32: ='30'!$D$11 ->  | O32: ='31'!$M$10 ->  | P32: ='31'!$I$14 -> 100 | R32: 31
B33: 油脂費 | C33: 708 | E33: 2013-08-31 | G33: 国民生活金融公庫 | K33: 1900-01-31 | L33: =IF(N33="",IF(M33>0,MAX($L$2:$L32)+M33,'31'!$D$10),IF(M33>0,MAX($L$2:$L32)+SUM(M33,N33),'31'!$D$10)) -> 0 | M33: ='31'!$N$15 -> 0 | N33: ='31'!$D$11 ->  | Q33: 0
B34: 車両修繕費 | C34: 709 | G34: 一般電話（基本料） | K34: 計 | L34: =MAX(L2:L33) -> 0 | M34: =SUM(M3:M33) -> 0 | O34: =SUM(O3:O33) -> 0 | Q34: =SUM(Q3:Q32) -> 0
B35: その他修繕費 | C35: 710 | G35: 携帯電話（営業利用分） | L35: 燃料費（買掛） | O35: =IF(日別輸送実績表!B56=2,"",O34) ->  | Q35: =IF(日別輸送実績表!B56=2,"",Q34) -> 
B36: 賃借料 | C36: 713 | G36: DOPA(パケット通信代)
B37: 交際費 | C37: 714 | G37: システム基本料
B38: 通信費図書費 | C38: 715 | G38: チケット売掛金からカード売掛金振替
B39: 事故賠償費 | C39: 718
B40: 損害保険料 | C40: 719
B41: 端末保険料 | C41: 720
B42: その他保険料 | C42: 720
B43: 租税公課 | C43: 721
B44: 支払利息 | C44: 722
B45: 旅費交通費 | C45: 723
B46: 代務給料 | C46: 726
B47: リース料 | C47: 727
B48: 施設使用料 | C48: 730
B49: 雑費 | C49: 750
B50: 共済出資金(増資分) | C50: 081
B51: 全個協共済拠出金 | C51: 714
B52: 自賠責保険 | C52: 719
B53: システム基本料 | C53: 750
B54: 端末機保険料 | C54: 719
B55: 城北地区費 | C55: 721

Sheet 日別輸送実績表
Y1: 当月燃料消費状況 | AB1: 当月ETC（未払金）利用状況
K2: 次月繰越データ | M2: 次月繰越売掛金(チケット） | P2: 次月繰越売掛金(カード） | S2: 次月繰越未払金（ETC） | Y2: 消費量（ℓ） | Z2: =ﾃﾞｰﾀﾍﾞｰｽ!$O$34 -> 0 | AB2: ETC(立替金) | AD2: =$R$47 -> 0
B3: 1 | K3: 現金 | L3: =金銭出納帳!$F$40 ->  | M3: チケット売掛金 | O3: =$AC$48 -> 0 | P3: カード売掛金 | R3: =$AJ$48 -> 0 | S3: 立替金 | T3: =$Z$29 -> 0 | Y3: 燃料費（円） | Z3: =ﾃﾞｰﾀﾍﾞｰｽ!$Q$34 -> 0 | AB3: ETC(交通費) | AD3: =$S$47 -> 0
E4: =IF(H45=0,"",ROUND(IF(ISERROR(AVERAGE(IF(H14:H44>0,H14:H44,""))),"",AVERAGE(IF(H14:H44>0,H14:H44,""))),-1)) ->  | K4: 親メータ㌔ | L4: =ﾃﾞｰﾀﾍﾞｰｽ!$L$34 -> 0 | M4: チケット立替金 | O4: =$AD$48 -> 0 | P4: カード立替金 | R4: =$AK$48 -> 0 | S4: 交通費 | T4: =$Z$30 -> 0 | Y4: 燃料費（未払金） | Z4: =ﾃﾞｰﾀﾍﾞｰｽ!$Q$35 ->  | AB4: 合計 | AD4: =SUM(AD2:AD3) -> 0
C6: 地区名 | E6: =$A$54 -> 2013-08-01 | M6: 個人番号 | O6: 氏 名 | S6: 実働日
H7: 日別輸送実績及び収入・未払金 （コンピュータ入力用）
C8: =$B$54 -> 0 | M8: =$D$54 -> 0 | O8: =$C$54 -> 0 | S8: =COUNTIF(D14:D44,">1") -> 0 | AB8: チケット売掛金．立替金回収表（換金表） | AG8: 手数料率 | AI8: デビット・クレジット売掛．立替金回収表 | AN8: 手数料率
AB10: 日付 | AC10: チケット | AG10: =$P$54*0.01 -> 0.03 | AI10: 日付 | AJ10: クレジット | AN10: =$Q$54*0.01 -> 0.03 | AO10: =$V$54*0.01 -> 0
B11: 曜日 | C11: 日 | D11: 輸 送 実 績 | H11: 売上 | J11: 収 入 （円） | O11: 入金（受入金額） | R11: ETC未払金 | T11: 備 考 | U11: カード換金(普通預金) | X11: 日付 | Y11: 入金 | AC11: 売掛金 | AD11: 立替(現金) | AE11: 立替(ETC) | AF11: 換金日 | AG11: 雑費(750) | AJ11: 売掛金 | AK11: 立替(現金) | AL11: 立替(ETC) | AM11: 換金日 | AN11: 雑費(750) | AO11: 換金手数料
D12: 走行㌔ | E12: 実車㌔ | F12: 回数 | G12: 人数 | J12: 運 送 収 入 （円） | M12: その他収入 | O12: ﾁｹｯﾄ/ｸﾚｼﾞｯﾄ換金 | R12: 0 3 3 | S12: 7 2 3 | Y12: 0 1 3 | Z12: 0 3 3 | AB12: 前月 | AC12: =$R$54 -> 0 | AD12: =$S$54 -> 0 | AG12: 換金手数料 | AI12: 前月繰越 | AJ12: =$T$54 -> 0 | AK12: =$U$54 -> 0 | AN12: 換金手数料
D13: （㎞） | E13: （㎞） | F13: （回） | G13: （人） | J13: 現金 | K13: 売掛チケット | L13: 売掛カード | M13: 雑収入 | O13: 売掛金(012) | P13: 立替金(033) | R13: 立替金 | S13: 交通費 | Y13: 売掛金 | Z13: 立替金 | AB13: 繰越
A14: =$E$6 -> 41487 | B14: =TEXT(WEEKDAY(C14),"aaaa") -> 木曜日 | C14: =$E$6 -> 2013-08-01 | D14: ='1'!$D$11 ->  | E14: ='1'!$I$9 ->  | F14: ='1'!$I$10 -> 0 | G14: ='1'!$I$11 -> 0 | H14: =SUM(J14:L14) -> 0 | J14: ='1'!$R$9 -> 0 | K14: ='1'!$R$10 -> 0 | L14: ='1'!$R$11 -> 0 | M14: ='1'!$R$14 -> 0 | O14: =IF($A$56=2,SUMIF($AF$12:$AF$44,1,$AC$12:$AC$44)+SUMIF($AM$5,1,$AJ$6),SUMIF($AF$12:$AF$44,1,$AC$12:$AC$44)+SUMIF($AM$12:$AM$44,1,$AJ$12:$AJ$44)) -> 0 | P14: =IF($A$56=2,SUMIF($AF$12:$AF$44,1,$AD$12:$AD$44)+SUMIF($AF$12:$AF$44,1,$AE$12:$AE$44)+SUMIF($AM$5,1,$AK$6),SUMIF($AF$12:$AF$44,1,$AD$12:$AD$44)+SUMIF($AF$12:$AF$44,1,$AE$12:$AE$44)+SUMIF($AM$12:$AM$44,1,$AK$12:$AK$44)+SUMIF($AM$12:$AM$44,1,$AL$12:$AL$44)) -> 0 | R14: ='1'!$U$12 -> 0 | S14: ='1'!$D$14 -> 0 | T14: =IF($B14="日曜日","定休日",IF($H14<=1,"臨時休業","")) -> 臨時休業 | AB14: 1 | AC14: =K14 -> 0 | AD14: ='1'!$X$10 -> 0 | AE14: ='1'!$U$10 -> 0 | AG14: =ROUNDUP(ROUNDDOWN((SUMIF($AF$12:$AF$44,1,$AC$12:$AC$44)+SUMIF($AF$12:$AF$44,1,$AD$12:$AD$44)+SUMIF($AF$12:$AF$44,1,$AE$12:$AE$44))*$P$54*0.01,0),-1) -> 0 | AI14: 1 | AJ14: =L14 -> 0 | AK14: ='1'!$X$11 -> 0 | AL14: ='1'!$U$11 -> 0 | AN14: =ROUNDUP(ROUNDDOWN((SUMIF($AM$12:$AM$44,1,$AJ$12:$AJ$44)+SUMIF($AM$12:$AM$44,1,$AK$12:$AK$44)+SUMIF($AM$12:$AM$44,1,$AL$12:$AL$44))*$Q$54*0.01,0),-1) -> 0 | AO14: =ROUNDUP((SUMIF($AM$5,1,$AJ$6)+SUMIF($AM$5,1,$AK$6))*$V$54*0.01,-1) -> 0
A15: =$E$6+1 -> 41488 | B15: =TEXT(WEEKDAY(C15),"aaaa") -> 金曜日 | C15: =$E$6+1 -> 2013-08-02 | D15: ='2'!$D$11 ->  | E15: ='2'!$I$9 ->  | F15: ='2'!$I$10 -> 0 | G15: ='2'!$I$11 -> 0 | H15: =SUM(J15:L15) -> 0 | J15: ='2'!$R$9 -> 0 | K15: ='2'!$R$10 -> 0 | L15: ='2'!$R$11 -> 0 | M15: ='2'!$R$14 -> 0 | O15: =IF($A$56=2,SUMIF($AF$12:$AF$44,2,$AC$12:$AC$44)+SUMIF($AM$5,2,$AJ$6),SUMIF($AF$12:$AF$44,2,$AC$12:$AC$44)+SUMIF($AM$12:$AM$44,2,$AJ$12:$AJ$44)) -> 0 | P15: =IF($A$56=2,SUMIF($AF$12:$AF$44,2,$AD$12:$AD$44)+SUMIF($AF$12:$AF$44,2,$AE$12:$AE$44)+SUMIF($AM$5,2,$AK$6),SUMIF($AF$12:$AF$44,2,$AD$12:$AD$44)+SUMIF($AF$12:$AF$44,2,$AE$12:$AE$44)+SUMIF($AM$12:$AM$44,2,$AK$12:$AK$44)+SUMIF($AM$12:$AM$44,2,$AL$12:$AL$44)) -> 0 | R15: ='2'!$U$12 -> 0 | S15: ='2'!$D$14 -> 0 | T15: =IF(B15="日曜日","定休日",IF(H15<=1,"臨時休業","")) -> 臨時休業 | AB15: 2 | AC15: =K15 -> 0 | AD15: ='2'!$X$10 -> 0 | AE15: ='2'!$U$10 -> 0 | AG15: =ROUNDUP(ROUNDDOWN((SUMIF($AF$12:$AF$44,2,$AC$12:$AC$44)+SUMIF($AF$12:$AF$44,2,$AD$12:$AD$44)+SUMIF($AF$12:$AF$44,2,$AE$12:$AE$44))*$P$54*0.01,0),-1) -> 0 | AI15: 2 | AJ15: =L15 -> 0 | AK15: ='2'!$X$11 -> 0 | AL15: ='2'!$U$11 -> 0 | AN15: =ROUNDUP(ROUNDDOWN((SUMIF($AM$12:$AM$44,2,$AJ$12:$AJ$44)+SUMIF($AM$12:$AM$44,2,$AK$12:$AK$44)+SUMIF($AM$12:$AM$44,2,$AL$12:$AL$44))*$Q$54*0.01,0),-1) -> 0 | AO15: =ROUNDUP((SUMIF($AM$5,2,$AJ$6)+SUMIF($AM$5,2,$AK$6))*$V$54*0.01,-1) -> 0
A16: =$E$6+2 -> 41489 | B16: =TEXT(WEEKDAY(C16),"aaaa") -> 土曜日 | C16: =$E$6+2 -> 2013-08-03 | D16: ='3'!$D$11 ->  | E16: ='3'!$I$9 ->  | F16: ='3'!$I$10 -> 0 | G16: ='3'!$I$11 -> 0 | H16: =SUM(J16:L16) -> 0 | J16: ='3'!$R$9 -> 0 | K16: ='3'!$R$10 -> 0 | L16: ='3'!$R$11 -> 0 | M16: ='3'!$R$14 -> 0 | O16: =IF($A$56=2,SUMIF($AF$12:$AF$44,3,$AC$12:$AC$44)+SUMIF($AM$5,3,$AJ$6),SUMIF($AF$12:$AF$44,3,$AC$12:$AC$44)+SUMIF($AM$12:$AM$44,3,$AJ$12:$AJ$44)) -> 0 | P16: =IF($A$56=2,SUMIF($AF$12:$AF$44,3,$AD$12:$AD$44)+SUMIF($AF$12:$AF$44,3,$AE$12:$AE$44)+SUMIF($AM$5,3,$AK$6),SUMIF($AF$12:$AF$44,3,$AD$12:$AD$44)+SUMIF($AF$12:$AF$44,3,$AE$12:$AE$44)+SUMIF($AM$12:$AM$44,3,$AK$12:$AK$44)+SUMIF($AM$12:$AM$44,3,$AL$12:$AL$44)) -> 0 | R16: ='3'!$U$12 -> 0 | S16: ='3'!$D$14 -> 0 | T16: 臨時休業 | AB16: 3 | AC16: =K16 -> 0 | AD16: ='3'!$X$10 -> 0 | AE16: ='3'!$U$10 -> 0 | AG16: =ROUNDUP(ROUNDDOWN((SUMIF($AF$12:$AF$44,3,$AC$12:$AC$44)+SUMIF($AF$12:$AF$44,3,$AD$12:$AD$44)+SUMIF($AF$12:$AF$44,3,$AE$12:$AE$44))*$P$54*0.01,0),-1) -> 0 | AI16: 3 | AJ16: 0 | AK16: ='3'!$X$11 -> 0 | AL16: ='3'!$U$11 -> 0 | AN16: =ROUNDUP(ROUNDDOWN((SUMIF($AM$12:$AM$44,3,$AJ$12:$AJ$44)+SUMIF($AM$12:$AM$44,3,$AK$12:$AK$44)+SUMIF($AM$12:$AM$44,3,$AL$12:$AL$44))*$Q$54*0.01,0),-1) -> 0 | AO16: =ROUNDUP((SUMIF($AM$5,3,$AJ$6)+SUMIF($AM$5,3,$AK$6))*$V$54*0.01,-1) -> 0
A17: =$E$6+3 -> 41490 | B17: 日曜日 | C17: =$E$6+3 -> 2013-08-04 | D17: ='4'!$D$11 ->  | E17: ='4'!$I$9 ->  | F17: ='4'!$I$10 -> 0 | G17: ='4'!$I$11 -> 0 | H17: =SUM(J17:L17) -> 0 | J17: ='4'!$R$9 -> 0 | K17: ='4'!$R$10 -> 0 | L17: ='4'!$R$11 -> 0 | M17: ='4'!$R$14 -> 0 | O17: =IF($A$56=2,SUMIF($AF$12:$AF$44,4,$AC$12:$AC$44)+SUMIF($AM$5,4,$AJ$6),SUMIF($AF$12:$AF$44,4,$AC$12:$AC$44)+SUMIF($AM$12:$AM$44,4,$AJ$12:$AJ$44)) -> 0 | P17: =IF($A$56=2,SUMIF($AF$12:$AF$44,4,$AD$12:$AD$44)+SUMIF($AF$12:$AF$44,4,$AE$12:$AE$44)+SUMIF($AM$5,4,$AK$6),SUMIF($AF$12:$AF$44,4,$AD$12:$AD$44)+SUMIF($AF$12:$AF$44,4,$AE$12:$AE$44)+SUMIF($AM$12:$AM$44,4,$AK$12:$AK$44)+SUMIF($AM$12:$AM$44,4,$AL$12:$AL$44)) -> 0 | R17: ='4'!$U$12 -> 0 | S17: ='4'!$D$14 -> 0 | T17: 定休日 | AB17: 4 | AC17: 0 | AD17: ='4'!$X$10 -> 0 | AE17: ='4'!$U$10 -> 0 | AG17: =ROUNDUP(ROUNDDOWN((SUMIF($AF$12:$AF$44,4,$AC$12:$AC$44)+SUMIF($AF$12:$AF$44,4,$AD$12:$AD$44)+SUMIF($AF$12:$AF$44,4,$AE$12:$AE$44))*$P$54*0.01,0),-1) -> 0 | AI17: 4 | AJ17: 0 | AK17: ='4'!$X$11 -> 0 | AL17: ='4'!$U$11 -> 0 | AN17: =ROUNDUP(ROUNDDOWN((SUMIF($AM$12:$AM$44,4,$AJ$12:$AJ$44)+SUMIF($AM$12:$AM$44,4,$AK$12:$AK$44)+SUMIF($AM$12:$AM$44,4,$AL$12:$AL$44))*$Q$54*0.01,0),-1) -> 0 | AO17: =ROUNDUP((SUMIF($AM$5,4,$AJ$6)+SUMIF($AM$5,4,$AK$6))*$V$54*0.01,-1) -> 0
A18: =$E$6+4 -> 41491 | B18: 月曜日 | C18: =$E$6+4 -> 2013-08-05 | D18: ='5'!$D$11 ->  | E18: ='5'!$I$9 ->  | F18: ='5'!$I$10 -> 0 | G18: ='5'!$I$11 -> 0 | H18: =SUM(J18:L18) -> 0 | J18: ='5'!$R$9 -> 0 | K18: ='5'!$R$10 -> 0 | L18: ='5'!$R$11 -> 0 | M18: ='5'!$R$14 -> 0 | O18: =IF($A$56=2,SUMIF($AF$12:$AF$44,5,$AC$12:$AC$44)+SUMIF($AM$5,5,$AJ$6),SUMIF($AF$12:$AF$44,5,$AC$12:$AC$44)+SUMIF($AM$12:$AM$44,5,$AJ$12:$AJ$44)) -> 0 | P18: =IF($A$56=2,SUMIF($AF$12:$AF$44,5,$AD$12:$AD$44)+SUMIF($AF$12:$AF$44,5,$AE$12:$AE$44)+SUMIF($AM$5,5,$AK$6),SUMIF($AF$12:$AF$44,5,$AD$12:$AD$44)+SUMIF($AF$12:$AF$44,5,$AE$12:$AE$44)+SUMIF($AM$12:$AM$44,5,$AK$12:$AK$44)+SUMIF($AM$12:$AM$44,5,$AL$12:$AL$44)) -> 0 | R18: ='5'!$U$12 -> 0 | S18: ='5'!$D$14 -> 0 | T18: 臨時休業 | AB18: 5 | AC18: 0 | AD18: ='5'!$X$10 -> 0 | AE18: ='5'!$U$10 -> 0 | AG18: =ROUNDUP(ROUNDDOWN((SUMIF($AF$12:$AF$44,5,$AC$12:$AC$44)+SUMIF($AF$12:$AF$44,5,$AD$12:$AD$44)+SUMIF($AF$12:$AF$44,5,$AE$12:$AE$44))*$P$54*0.01,0),-1) -> 0 | AI18: 5 | AJ18: 0 | AK18: ='5'!$X$11 -> 0 | AL18: ='5'!$U$11 -> 0 | AN18: =ROUNDUP(ROUNDDOWN((SUMIF($AM$12:$AM$44,5,$AJ$12:$AJ$44)+SUMIF($AM$12:$AM$44,5,$AK$12:$AK$44)+SUMIF($AM$12:$AM$44,5,$AL$12:$AL$44))*$Q$54*0.01,0),-1) -> 0 | AO18: =ROUNDUP((SUMIF($AM$5,5,$AJ$6)+SUMIF($AM$5,5,$AK$6))*$V$54*0.01,-1) -> 0
A19: =$E$6+5 -> 41492 | B19: 火曜日 | C19: =$E$6+5 -> 2013-08-06 | D19: ='6'!$D$11 ->  | E19: ='6'!$I$9 ->  | F19: ='6'!$I$10 -> 0 | G19: ='6'!$I$11 -> 0 | H19: 0 | J19: ='6'!$R$9 -> 0 | K19: ='6'!$R$10 -> 0 | L19: ='6'!$R$11 -> 0 | M19: ='6'!$R$14 -> 0 | O19: =IF($A$56=2,SUMIF($AF$12:$AF$44,6,$AC$12:$AC$44)+SUMIF($AM$5,6,$AJ$6),SUMIF($AF$12:$AF$44,6,$AC$12:$AC$44)+SUMIF($AM$12:$AM$44,6,$AJ$12:$AJ$44)) -> 0 | P19: =IF($A$56=2,SUMIF($AF$12:$AF$44,6,$AD$12:$AD$44)+SUMIF($AF$12:$AF$44,6,$AE$12:$AE$44)+SUMIF($AM$5,6,$AK$6),SUMIF($AF$12:$AF$44,6,$AD$12:$AD$44)+SUMIF($AF$12:$AF$44,6,$AE$12:$AE$44)+SUMIF($AM$12:$AM$44,6,$AK$12:$AK$44)+SUMIF($AM$12:$AM$44,6,$AL$12:$AL$44)) -> 0 | R19: ='6'!$U$12 -> 0 | S19: ='6'!$D$14 -> 0 | T19: 臨時休業 | X19: 合 計 | Y19: =SUM(Y14:Y18) -> 0 | Z19: =SUMIF(X14:X18,">=0",Z14:Z18) -> 0 | AB19: 6 | AC19: 0 | AD19: ='6'!$X$10 -> 0 | AE19: ='6'!$U$10 -> 0 | AG19: =ROUNDUP(ROUNDDOWN((SUMIF($AF$12:$AF$44,6,$AC$12:$AC$44)+SUMIF($AF$12:$AF$44,6,$AD$12:$AD$44)+SUMIF($AF$12:$AF$44,6,$AE$12:$AE$44))*$P$54*0.01,0),-1) -> 0 | AI19: 6 | AJ19: 0 | AK19: ='6'!$X$11 -> 0 | AL19: ='6'!$U$11 -> 0 | AN19: =ROUNDUP(ROUNDDOWN((SUMIF($AM$12:$AM$44,6,$AJ$12:$AJ$44)+SUMIF($AM$12:$AM$44,6,$AK$12:$AK$44)+SUMIF($AM$12:$AM$44,6,$AL$12:$AL$44))*$Q$54*0.01,0),-1) -> 0 | AO19: =ROUNDUP((SUMIF($AM$5,6,$AJ$6)+SUMIF($AM$5,6,$AK$6))*$V$54*0.01,-1) -> 0
A20: =$E$6+6 -> 41493 | B20: 水曜日 | C20: =$E$6+6 -> 2013-08-07 | D20: ='7'!$D$11 ->  | E20: ='7'!$I$9 ->  | F20: ='7'!$I$10 -> 0 | G20: ='7'!$I$11 -> 0 | H20: 0 | J20: ='7'!$R$9 -> 0 | K20: ='7'!$R$10 -> 0 | L20: ='7'!$R$11 -> 0 | M20: ='7'!$R$14 -> 0 | O20: =IF($A$56=2,SUMIF($AF$12:$AF$44,7,$AC$12:$AC$44)+SUMIF($AM$5,7,$AJ$6),SUMIF($AF$12:$AF$44,7,$AC$12:$AC$44)+SUMIF($AM$12:$AM$44,7,$AJ$12:$AJ$44)) -> 0 | P20: =IF($A$56=2,SUMIF($AF$12:$AF$44,7,$AD$12:$AD$44)+SUMIF($AF$12:$AF$44,7,$AE$12:$AE$44)+SUMIF($AM$5,7,$AK$6),SUMIF($AF$12:$AF$44,7,$AD$12:$AD$44)+SUMIF($AF$12:$AF$44,7,$AE$12:$AE$44)+SUMIF($AM$12:$AM$44,7,$AK$12:$AK$44)+SUMIF($AM$12:$AM$44,7,$AL$12:$AL$44)) -> 0 | R20: ='7'!$U$12 -> 0 | S20: ='7'!$D$14 -> 0 | T20: 臨時休業 | AB20: 7 | AC20: 0 | AD20: ='7'!$X$10 -> 0 | AE20: ='7'!$U$10 -> 0 | AG20: =ROUNDUP(ROUNDDOWN((SUMIF($AF$12:$AF$44,7,$AC$12:$AC$44)+SUMIF($AF$12:$AF$44,7,$AD$12:$AD$44)+SUMIF($AF$12:$AF$44,7,$AE$12:$AE$44))*$P$54*0.01,0),-1) -> 0 | AI20: 7 | AJ20: 0 | AK20: ='7'!$X$11 -> 0 | AL20: ='7'!$U$11 -> 0 | AN20: =ROUNDUP(ROUNDDOWN((SUMIF($AM$12:$AM$44,7,$AJ$12:$AJ$44)+SUMIF($AM$12:$AM$44,7,$AK$12:$AK$44)+SUMIF($AM$12:$AM$44,7,$AL$12:$AL$44))*$Q$54*0.01,0),-1) -> 0 | AO20: =ROUNDUP((SUMIF($AM$5,7,$AJ$6)+SUMIF($AM$5,7,$AK$6))*$V$54*0.01,-1) -> 0
A21: =$E$6+7 -> 41494 | B21: 木曜日 | C21: =$E$6+7 -> 2013-08-08 | D21: ='8'!$D$11 ->  | E21: ='8'!$I$9 ->  | F21: ='8'!$I$10 -> 0 | G21: ='8'!$I$11 -> 0 | H21: 0 | J21: ='8'!$R$9 -> 0 | K21: ='8'!$R$10 -> 0 | L21: ='8'!$R$11 -> 0 | M21: ='8'!$R$14 -> 0 | O21: =IF($A$56=2,SUMIF($AF$12:$AF$44,8,$AC$12:$AC$44)+SUMIF($AM$5,8,$AJ$6),SUMIF($AF$12:$AF$44,8,$AC$12:$AC$44)+SUMIF($AM$12:$AM$44,8,$AJ$12:$AJ$44)) -> 0 | P21: =IF($A$56=2,SUMIF($AF$12:$AF$44,8,$AD$12:$AD$44)+SUMIF($AF$12:$AF$44,8,$AE$12:$AE$44)+SUMIF($AM$5,8,$AK$6),SUMIF($AF$12:$AF$44,8,$AD$12:$AD$44)+SUMIF($AF$12:$AF$44,8,$AE$12:$AE$44)+SUMIF($AM$12:$AM$44,8,$AK$12:$AK$44)+SUMIF($AM$12:$AM$44,8,$AL$12:$AL$44)) -> 0 | R21: ='8'!$U$12 -> 0 | S21: ='8'!$D$14 -> 0 | T21: 臨時休業 | V21: 残高記入欄 | Y21: 前月末繰越残高 | Z21: 当月末繰越残高 | AB21: 8 | AC21: 0 | AD21: ='8'!$X$10 -> 0 | AE21: ='8'!$U$10 -> 0 | AG21: =ROUNDUP(ROUNDDOWN((SUMIF($AF$12:$AF$44,8,$AC$12:$AC$44)+SUMIF($AF$12:$AF$44,8,$AD$12:$AD$44)+SUMIF($AF$12:$AF$44,8,$AE$12:$AE$44))*$P$54*0.01,0),-1) -> 0 | AI21: 8 | AJ21: 0 | AK21: ='8'!$X$11 -> 0 | AL21: ='8'!$U$11 -> 0 | AN21: =ROUNDUP(ROUNDDOWN((SUMIF($AM$12:$AM$44,8,$AJ$12:$AJ$44)+SUMIF($AM$12:$AM$44,8,$AK$12:$AK$44)+SUMIF($AM$12:$AM$44,8,$AL$12:$AL$44))*$Q$54*0.01,0),-1) -> 0 | AO21: =ROUNDUP((SUMIF($AM$5,8,$AJ$6)+SUMIF($AM$5,8,$AK$6))*$V$54*0.01,-1) -> 0
A22: =$E$6+8 -> 41495 | B22: 金曜日 | C22: =$E$6+8 -> 2013-08-09 | D22: ='9'!$D$11 ->  | E22: ='9'!$I$9 ->  | F22: ='9'!$I$10 -> 0 | G22: ='9'!$I$11 -> 0 | H22: 0 | J22: ='9'!$R$9 -> 0 | K22: ='9'!$R$10 -> 0 | L22: ='9'!$R$11 -> 0 | M22: ='9'!$R$14 -> 0 | O22: =IF($A$56=2,SUMIF($AF$12:$AF$44,9,$AC$12:$AC$44)+SUMIF($AM$5,9,$AJ$6),SUMIF($AF$12:$AF$44,9,$AC$12:$AC$44)+SUMIF($AM$12:$AM$44,9,$AJ$12:$AJ$44)) -> 0 | P22: =IF($A$56=2,SUMIF($AF$12:$AF$44,9,$AD$12:$AD$44)+SUMIF($AF$12:$AF$44,9,$AE$12:$AE$44)+SUMIF($AM$5,9,$AK$6),SUMIF($AF$12:$AF$44,9,$AD$12:$AD$44)+SUMIF($AF$12:$AF$44,9,$AE$12:$AE$44)+SUMIF($AM$12:$AM$44,9,$AK$12:$AK$44)+SUMIF($AM$12:$AM$44,9,$AL$12:$AL$44)) -> 0 | R22: ='9'!$U$12 -> 0 | S22: ='9'!$D$14 -> 0 | T22: 臨時休業 | V22: 売掛ﾁｹｯﾄ残高 | Y22: =$R$54 -> 0 | Z22: =$AC$48 -> 0 | AB22: 9 | AC22: 0 | AD22: ='9'!$X$10 -> 0 | AE22: ='9'!$U$10 -> 0 | AG22: =ROUNDUP(ROUNDDOWN((SUMIF($AF$12:$AF$44,9,$AC$12:$AC$44)+SUMIF($AF$12:$AF$44,9,$AD$12:$AD$44)+SUMIF($AF$12:$AF$44,9,$AE$12:$AE$44))*$P$54*0.01,0),-1) -> 0 | AI22: 9 | AJ22: 0 | AK22: ='9'!$X$11 -> 0 | AL22: ='9'!$U$11 -> 0 | AN22: =ROUNDUP(ROUNDDOWN((SUMIF($AM$12:$AM$44,9,$AJ$12:$AJ$44)+SUMIF($AM$12:$AM$44,9,$AK$12:$AK$44)+SUMIF($AM$12:$AM$44,9,$AL$12:$AL$44))*$Q$54*0.01,0),-1) -> 0 | AO22: =ROUNDUP((SUMIF($AM$5,9,$AJ$6)+SUMIF($AM$5,9,$AK$6))*$V$54*0.01,-1) -> 0
A23: =$E$6+9 -> 41496 | B23: 土曜日 | C23: =$E$6+9 -> 2013-08-10 | D23: ='10'!$D$11 ->  | E23: ='10'!$I$9 ->  | F23: ='10'!$I$10 -> 0 | G23: ='10'!$I$11 -> 0 | H23: 0 | J23: ='10'!$R$9 -> 0 | K23: ='10'!$R$10 -> 0 | L23: ='10'!$R$11 -> 0 | M23: ='10'!$R$14 -> 0 | O23: =IF($A$56=2,SUMIF($AF$12:$AF$44,10,$AC$12:$AC$44)+SUMIF($AM$5,10,$AJ$6),SUMIF($AF$12:$AF$44,10,$AC$12:$AC$44)+SUMIF($AM$12:$AM$44,10,$AJ$12:$AJ$44)) -> 0 | P23: =IF($A$56=2,SUMIF($AF$12:$AF$44,10,$AD$12:$AD$44)+SUMIF($AF$12:$AF$44,10,$AE$12:$AE$44)+SUMIF($AM$5,10,$AK$6),SUMIF($AF$12:$AF$44,10,$AD$12:$AD$44)+SUMIF($AF$12:$AF$44,10,$AE$12:$AE$44)+SUMIF($AM$12:$AM$44,10,$AK$12:$AK$44)+SUMIF($AM$12:$AM$44,10,$AL$12:$AL$44)) -> 0 | R23: ='10'!$U$12 -> 0 | S23: ='10'!$D$14 -> 0 | T23: 臨時休業 | V23: 売掛ｶｰﾄﾞ残高 | Y23: =$T$54 -> 0 | Z23: =SUM(AJ48,Y19) -> 0 | AB23: 10 | AC23: 0 | AD23: ='10'!$X$10 -> 0 | AE23: ='10'!$U$10 -> 0 | AG23: =ROUNDUP(ROUNDDOWN((SUMIF($AF$12:$AF$44,10,$AC$12:$AC$44)+SUMIF($AF$12:$AF$44,10,$AD$12:$AD$44)+SUMIF($AF$12:$AF$44,10,$AE$12:$AE$44))*$P$54*0.01,0),-1) -> 0 | AI23: 10 | AJ23: 0 | AK23: ='10'!$X$11 -> 0 | AL23: ='10'!$U$11 -> 0 | AN23: =ROUNDUP(ROUNDDOWN((SUMIF($AM$12:$AM$44,10,$AJ$12:$AJ$44)+SUMIF($AM$12:$AM$44,10,$AK$12:$AK$44)+SUMIF($AM$12:$AM$44,10,$AL$12:$AL$44))*$Q$54*0.01,0),-1) -> 0 | AO23: =ROUNDUP((SUMIF($AM$5,10,$AJ$6)+SUMIF($AM$5,10,$AK$6))*$V$54*0.01,-1) -> 0
A24: =$E$6+10 -> 41497 | B24: 日曜日 | C24: =$E$6+10 -> 2013-08-11 | D24: ='11'!$D$11 ->  | E24: ='11'!$I$9 ->  | F24: ='11'!$I$10 -> 0 | G24: ='11'!$I$11 -> 0 | H24: 0 | J24: ='11'!$R$9 -> 0 | K24: ='11'!$R$10 -> 0 | L24: ='11'!$R$11 -> 0 | M24: ='11'!$R$14 -> 0 | O24: =IF($A$56=2,SUMIF($AF$12:$AF$44,11,$AC$12:$AC$44)+SUMIF($AM$5,11,$AJ$6),SUMIF($AF$12:$AF$44,11,$AC$12:$AC$44)+SUMIF($AM$12:$AM$44,11,$AJ$12:$AJ$44)) -> 0 | P24: =IF($A$56=2,SUMIF($AF$12:$AF$44,11,$AD$12:$AD$44)+SUMIF($AF$12:$AF$44,11,$AE$12:$AE$44)+SUMIF($AM$5,11,$AK$6),SUMIF($AF$12:$AF$44,11,$AD$12:$AD$44)+SUMIF($AF$12:$AF$44,11,$AE$12:$AE$44)+SUMIF($AM$12:$AM$44,11,$AK$12:$AK$44)+SUMIF($AM$12:$AM$44,11,$AL$12:$AL$44)) -> 0 | R24: ='11'!$U$12 -> 0 | S24: ='11'!$D$14 -> 0 | T24: 定休日 | V24: 立替金残高 | Y24: =SUM(AD12,AK12) -> 0 | Z24: =SUM(AD48,AK48,Z19) -> 0 | AB24: 11 | AC24: 0 | AD24: ='11'!$X$10 -> 0 | AE24: ='11'!$U$10 -> 0 | AG24: =ROUNDUP(ROUNDDOWN((SUMIF($AF$12:$AF$44,11,$AC$12:$AC$44)+SUMIF($AF$12:$AF$44,11,$AD$12:$AD$44)+SUMIF($AF$12:$AF$44,11,$AE$12:$AE$44))*$P$54*0.01,0),-1) -> 0 | AI24: 11 | AJ24: 0 | AK24: ='11'!$X$11 -> 0 | AL24: ='11'!$U$11 -> 0 | AN24: =ROUNDUP(ROUNDDOWN((SUMIF($AM$12:$AM$44,11,$AJ$12:$AJ$44)+SUMIF($AM$12:$AM$44,11,$AK$12:$AK$44)+SUMIF($AM$12:$AM$44,11,$AL$12:$AL$44))*$Q$54*0.01,0),-1) -> 0 | AO24: =ROUNDUP((SUMIF($AM$5,11,$AJ$6)+SUMIF($AM$5,11,$AK$6))*$V$54*0.01,-1) -> 0
A25: =$E$6+11 -> 41498 | B25: 月曜日 | C25: =$E$6+11 -> 2013-08-12 | D25: ='12'!$D$11 ->  | E25: ='12'!$I$9 ->  | F25: ='12'!$I$10 -> 0 | G25: ='12'!$I$11 -> 0 | H25: 0 | J25: ='12'!$R$9 -> 0 | K25: ='12'!$R$10 -> 0 | L25: ='12'!$R$11 -> 0 | M25: ='12'!$R$14 -> 0 | O25: =IF($A$56=2,SUMIF($AF$12:$AF$44,12,$AC$12:$AC$44)+SUMIF($AM$5,12,$AJ$6),SUMIF($AF$12:$AF$44,12,$AC$12:$AC$44)+SUMIF($AM$12:$AM$44,12,$AJ$12:$AJ$44)) -> 0 | P25: =IF($A$56=2,SUMIF($AF$12:$AF$44,12,$AD$12:$AD$44)+SUMIF($AF$12:$AF$44,12,$AE$12:$AE$44)+SUMIF($AM$5,12,$AK$6),SUMIF($AF$12:$AF$44,12,$AD$12:$AD$44)+SUMIF($AF$12:$AF$44,12,$AE$12:$AE$44)+SUMIF($AM$12:$AM$44,12,$AK$12:$AK$44)+SUMIF($AM$12:$AM$44,12,$AL$12:$AL$44)) -> 0 | R25: ='12'!$U$12 -> 0 | S25: ='12'!$D$14 -> 0 | T25: 臨時休業 | AB25: 12 | AC25: 0 | AD25: ='12'!$X$10 -> 0 | AE25: ='12'!$U$10 -> 0 | AG25: =ROUNDUP(ROUNDDOWN((SUMIF($AF$12:$AF$44,12,$AC$12:$AC$44)+SUMIF($AF$12:$AF$44,12,$AD$12:$AD$44)+SUMIF($AF$12:$AF$44,12,$AE$12:$AE$44))*$P$54*0.01,0),-1) -> 0 | AI25: 12 | AJ25: 0 | AK25: ='12'!$X$11 -> 0 | AL25: ='12'!$U$11 -> 0 | AN25: =ROUNDUP(ROUNDDOWN((SUMIF($AM$12:$AM$44,12,$AJ$12:$AJ$44)+SUMIF($AM$12:$AM$44,12,$AK$12:$AK$44)+SUMIF($AM$12:$AM$44,12,$AL$12:$AL$44))*$Q$54*0.01,0),-1) -> 0 | AO25: =ROUNDUP((SUMIF($AM$5,12,$AJ$6)+SUMIF($AM$5,12,$AK$6))*$V$54*0.01,-1) -> 0
A26: =$E$6+12 -> 41499 | B26: 火曜日 | C26: =$E$6+12 -> 2013-08-13 | D26: ='13'!$D$11 ->  | E26: ='13'!$I$9 ->  | F26: ='13'!$I$10 -> 0 | G26: ='13'!$I$11 -> 0 | H26: 0 | J26: ='13'!$R$9 -> 0 | K26: ='13'!$R$10 -> 0 | L26: ='13'!$R$11 -> 0 | M26: ='13'!$R$14 -> 0 | O26: =IF($A$56=2,SUMIF($AF$12:$AF$44,13,$AC$12:$AC$44)+SUMIF($AM$5,13,$AJ$6),SUMIF($AF$12:$AF$44,13,$AC$12:$AC$44)+SUMIF($AM$12:$AM$44,13,$AJ$12:$AJ$44)) -> 0 | P26: =IF($A$56=2,SUMIF($AF$12:$AF$44,13,$AD$12:$AD$44)+SUMIF($AF$12:$AF$44,13,$AE$12:$AE$44)+SUMIF($AM$5,13,$AK$6),SUMIF($AF$12:$AF$44,13,$AD$12:$AD$44)+SUMIF($AF$12:$AF$44,13,$AE$12:$AE$44)+SUMIF($AM$12:$AM$44,13,$AK$12:$AK$44)+SUMIF($AM$12:$AM$44,13,$AL$12:$AL$44)) -> 0 | R26: ='13'!$U$12 -> 0 | S26: ='13'!$D$14 -> 0 | T26: 臨時休業 | AB26: 13 | AC26: 0 | AD26: ='13'!$X$10 -> 0 | AE26: ='13'!$U$10 -> 0 | AG26: =ROUNDUP(ROUNDDOWN((SUMIF($AF$12:$AF$44,13,$AC$12:$AC$44)+SUMIF($AF$12:$AF$44,13,$AD$12:$AD$44)+SUMIF($AF$12:$AF$44,13,$AE$12:$AE$44))*$P$54*0.01,0),-1) -> 0 | AI26: 13 | AJ26: 0 | AK26: ='13'!$X$11 -> 0 | AL26: ='13'!$U$11 -> 0 | AN26: =ROUNDUP(ROUNDDOWN((SUMIF($AM$12:$AM$44,13,$AJ$12:$AJ$44)+SUMIF($AM$12:$AM$44,13,$AK$12:$AK$44)+SUMIF($AM$12:$AM$44,13,$AL$12:$AL$44))*$Q$54*0.01,0),-1) -> 0 | AO26: =ROUNDUP((SUMIF($AM$5,13,$AJ$6)+SUMIF($AM$5,13,$AK$6))*$V$54*0.01,-1) -> 0
A27: =$E$6+13 -> 41500 | B27: 水曜日 | C27: =$E$6+13 -> 2013-08-14 | D27: ='14'!$D$11 ->  | E27: ='14'!$I$9 ->  | F27: ='14'!$I$10 -> 0 | G27: ='14'!$I$11 -> 0 | H27: 0 | J27: ='14'!$R$9 -> 0 | K27: ='14'!$R$10 -> 0 | L27: ='14'!$R$11 -> 0 | M27: ='14'!$R$14 -> 0 | O27: =IF($A$56=2,SUMIF($AF$12:$AF$44,14,$AC$12:$AC$44)+SUMIF($AM$5,14,$AJ$6),SUMIF($AF$12:$AF$44,14,$AC$12:$AC$44)+SUMIF($AM$12:$AM$44,14,$AJ$12:$AJ$44)) -> 0 | P27: =IF($A$56=2,SUMIF($AF$12:$AF$44,14,$AD$12:$AD$44)+SUMIF($AF$12:$AF$44,14,$AE$12:$AE$44)+SUMIF($AM$5,14,$AK$6),SUMIF($AF$12:$AF$44,14,$AD$12:$AD$44)+SUMIF($AF$12:$AF$44,14,$AE$12:$AE$44)+SUMIF($AM$12:$AM$44,14,$AK$12:$AK$44)+SUMIF($AM$12:$AM$44,14,$AL$12:$AL$44)) -> 0 | R27: ='14'!$U$12 -> 0 | S27: ='14'!$D$14 -> 0 | T27: 臨時休業 | V27: E T C 未 払 金 関 係 | AB27: 14 | AC27: 0 | AD27: ='14'!$X$10 -> 0 | AE27: ='14'!$U$10 -> 0 | AG27: =ROUNDUP(ROUNDDOWN((SUMIF($AF$12:$AF$44,14,$AC$12:$AC$44)+SUMIF($AF$12:$AF$44,14,$AD$12:$AD$44)+SUMIF($AF$12:$AF$44,14,$AE$12:$AE$44))*$P$54*0.01,0),-1) -> 0 | AI27: 14 | AJ27: 0 | AK27: ='14'!$X$11 -> 0 | AL27: ='14'!$U$11 -> 0 | AN27: =ROUNDUP(ROUNDDOWN((SUMIF($AM$12:$AM$44,14,$AJ$12:$AJ$44)+SUMIF($AM$12:$AM$44,14,$AK$12:$AK$44)+SUMIF($AM$12:$AM$44,14,$AL$12:$AL$44))*$Q$54*0.01,0),-1) -> 0 | AO27: =ROUNDUP((SUMIF($AM$5,14,$AJ$6)+SUMIF($AM$5,14,$AK$6))*$V$54*0.01,-1) -> 0
A28: =$E$6+14 -> 41501 | B28: 木曜日 | C28: =$E$6+14 -> 2013-08-15 | D28: ='15'!$D$11 ->  | E28: ='15'!$I$9 ->  | F28: ='15'!$I$10 -> 0 | G28: ='15'!$I$11 -> 0 | H28: 0 | J28: ='15'!$R$9 -> 0 | K28: ='15'!$R$10 -> 0 | L28: ='15'!$R$11 -> 0 | M28: ='15'!$R$14 -> 0 | O28: =IF($A$56=2,SUMIF($AF$12:$AF$44,15,$AC$12:$AC$44)+SUMIF($AM$5,15,$AJ$6),SUMIF($AF$12:$AF$44,15,$AC$12:$AC$44)+SUMIF($AM$12:$AM$44,15,$AJ$12:$AJ$44)) -> 0 | P28: =IF($A$56=2,SUMIF($AF$12:$AF$44,15,$AD$12:$AD$44)+SUMIF($AF$12:$AF$44,15,$AE$12:$AE$44)+SUMIF($AM$5,15,$AK$6),SUMIF($AF$12:$AF$44,15,$AD$12:$AD$44)+SUMIF($AF$12:$AF$44,15,$AE$12:$AE$44)+SUMIF($AM$12:$AM$44,15,$AK$12:$AK$44)+SUMIF($AM$12:$AM$44,15,$AL$12:$AL$44)) -> 0 | R28: ='15'!$U$12 -> 0 | S28: ='15'!$D$14 -> 0 | T28: 臨時休業 | V28: 残高記入欄 | Y28: 前月末繰越残高 | Z28: 当月末繰越残高 | AB28: 15 | AC28: 0 | AD28: ='15'!$X$10 -> 0 | AE28: ='15'!$U$10 -> 0 | AG28: =ROUNDUP(ROUNDDOWN((SUMIF($AF$12:$AF$44,15,$AC$12:$AC$44)+SUMIF($AF$12:$AF$44,15,$AD$12:$AD$44)+SUMIF($AF$12:$AF$44,15,$AE$12:$AE$44))*$P$54*0.01,0),-1) -> 0 | AI28: 15 | AJ28: 0 | AK28: ='15'!$X$11 -> 0 | AL28: ='15'!$U$11 -> 0 | AN28: =ROUNDUP(ROUNDDOWN((SUMIF($AM$12:$AM$44,15,$AJ$12:$AJ$44)+SUMIF($AM$12:$AM$44,15,$AK$12:$AK$44)+SUMIF($AM$12:$AM$44,15,$AL$12:$AL$44))*$Q$54*0.01,0),-1) -> 0 | AO28: =ROUNDUP((SUMIF($AM$5,15,$AJ$6)+SUMIF($AM$5,15,$AK$6))*$V$54*0.01,-1) -> 0
A29: =$E$6+15 -> 41502 | B29: 金曜日 | C29: =$E$6+15 -> 2013-08-16 | D29: ='16'!$D$11 ->  | E29: ='16'!$I$9 ->  | F29: ='16'!$I$10 -> 0 | G29: ='16'!$I$11 -> 0 | H29: 0 | J29: ='16'!$R$9 -> 0 | K29: ='16'!$R$10 -> 0 | L29: ='16'!$R$11 -> 0 | M29: ='16'!$R$14 -> 0 | O29: =IF($A$56=2,SUMIF($AF$12:$AF$44,16,$AC$12:$AC$44)+SUMIF($AM$5,16,$AJ$6),SUMIF($AF$12:$AF$44,16,$AC$12:$AC$44)+SUMIF($AM$12:$AM$44,16,$AJ$12:$AJ$44)) -> 0 | P29: =IF($A$56=2,SUMIF($AF$12:$AF$44,16,$AD$12:$AD$44)+SUMIF($AF$12:$AF$44,16,$AE$12:$AE$44)+SUMIF($AM$5,16,$AK$6),SUMIF($AF$12:$AF$44,16,$AD$12:$AD$44)+SUMIF($AF$12:$AF$44,16,$AE$12:$AE$44)+SUMIF($AM$12:$AM$44,16,$AK$12:$AK$44)+SUMIF($AM$12:$AM$44,16,$AL$12:$AL$44)) -> 0 | R29: ='16'!$U$12 -> 0 | S29: ='16'!$D$14 -> 0 | T29: 臨時休業 | V29: 立替金残高 | Y29: =$L$54 -> 0 | Z29: =SUM(Y29,R45,-IF(金銭出納帳!AO44=0,0,金銭出納帳!BM47)) -> 0 | AB29: 16 | AC29: 0 | AD29: ='16'!$X$10 -> 0 | AE29: ='16'!$U$10 -> 0 | AG29: =ROUNDUP(ROUNDDOWN((SUMIF($AF$12:$AF$44,16,$AC$12:$AC$44)+SUMIF($AF$12:$AF$44,16,$AD$12:$AD$44)+SUMIF($AF$12:$AF$44,16,$AE$12:$AE$44))*$P$54*0.01,0),-1) -> 0 | AI29: 16 | AJ29: 0 | AK29: ='16'!$X$11 -> 0 | AL29: ='16'!$U$11 -> 0 | AN29: =ROUNDUP(ROUNDDOWN((SUMIF($AM$12:$AM$44,16,$AJ$12:$AJ$44)+SUMIF($AM$12:$AM$44,16,$AK$12:$AK$44)+SUMIF($AM$12:$AM$44,16,$AL$12:$AL$44))*$Q$54*0.01,0),-1) -> 0 | AO29: =ROUNDUP((SUMIF($AM$5,16,$AJ$6)+SUMIF($AM$5,16,$AK$6))*$V$54*0.01,-1) -> 0
A30: =$E$6+16 -> 41503 | B30: 土曜日 | C30: =$E$6+16 -> 2013-08-17 | D30: ='17'!$D$11 ->  | E30: ='17'!$I$9 ->  | F30: ='17'!$I$10 -> 0 | G30: ='17'!$I$11 -> 0 | H30: 0 | J30: ='17'!$R$9 -> 0 | K30: ='17'!$R$10 -> 0 | L30: ='17'!$R$11 -> 0 | M30: ='17'!$R$14 -> 0 | O30: =IF($A$56=2,SUMIF($AF$12:$AF$44,17,$AC$12:$AC$44)+SUMIF($AM$5,17,$AJ$6),SUMIF($AF$12:$AF$44,17,$AC$12:$AC$44)+SUMIF($AM$12:$AM$44,17,$AJ$12:$AJ$44)) -> 0 | P30: =IF($A$56=2,SUMIF($AF$12:$AF$44,17,$AD$12:$AD$44)+SUMIF($AF$12:$AF$44,17,$AE$12:$AE$44)+SUMIF($AM$5,17,$AK$6),SUMIF($AF$12:$AF$44,17,$AD$12:$AD$44)+SUMIF($AF$12:$AF$44,17,$AE$12:$AE$44)+SUMIF($AM$12:$AM$44,17,$AK$12:$AK$44)+SUMIF($AM$12:$AM$44,17,$AL$12:$AL$44)) -> 0 | R30: ='17'!$U$12 -> 0 | S30: ='17'!$D$14 -> 0 | T30: 臨時休業 | V30: 交通費残高 | Y30: =$M$54 -> 0 | Z30: =SUM(Y30,S45,-IF(金銭出納帳!$AO$44=0,0,金銭出納帳!BM48)) -> 0 | AB30: 17 | AC30: 0 | AD30: ='17'!$X$10 -> 0 | AE30: ='17'!$U$10 -> 0 | AG30: =ROUNDUP(ROUNDDOWN((SUMIF($AF$12:$AF$44,17,$AC$12:$AC$44)+SUMIF($AF$12:$AF$44,17,$AD$12:$AD$44)+SUMIF($AF$12:$AF$44,17,$AE$12:$AE$44))*$P$54*0.01,0),-1) -> 0 | AI30: 17 | AJ30: 0 | AK30: ='17'!$X$11 -> 0 | AL30: ='17'!$U$11 -> 0 | AN30: =ROUNDUP(ROUNDDOWN((SUMIF($AM$12:$AM$44,17,$AJ$12:$AJ$44)+SUMIF($AM$12:$AM$44,17,$AK$12:$AK$44)+SUMIF($AM$12:$AM$44,17,$AL$12:$AL$44))*$Q$54*0.01,0),-1) -> 0 | AO30: =ROUNDUP((SUMIF($AM$5,17,$AJ$6)+SUMIF($AM$5,17,$AK$6))*$V$54*0.01,-1) -> 0
A31: =$E$6+17 -> 41504 | B31: 日曜日 | C31: =$E$6+17 -> 2013-08-18 | D31: ='18'!$D$11 ->  | E31: ='18'!$I$9 ->  | F31: ='18'!$I$10 -> 0 | G31: ='18'!$I$11 -> 0 | H31: 0 | J31: ='18'!$R$9 -> 0 | K31: ='18'!$R$10 -> 0 | L31: ='18'!$R$11 -> 0 | M31: ='18'!$R$14 -> 0 | O31: =IF($A$56=2,SUMIF($AF$12:$AF$44,18,$AC$12:$AC$44)+SUMIF($AM$5,18,$AJ$6),SUMIF($AF$12:$AF$44,18,$AC$12:$AC$44)+SUMIF($AM$12:$AM$44,18,$AJ$12:$AJ$44)) -> 0 | P31: =IF($A$56=2,SUMIF($AF$12:$AF$44,18,$AD$12:$AD$44)+SUMIF($AF$12:$AF$44,18,$AE$12:$AE$44)+SUMIF($AM$5,18,$AK$6),SUMIF($AF$12:$AF$44,18,$AD$12:$AD$44)+SUMIF($AF$12:$AF$44,18,$AE$12:$AE$44)+SUMIF($AM$12:$AM$44,18,$AK$12:$AK$44)+SUMIF($AM$12:$AM$44,18,$AL$12:$AL$44)) -> 0 | R31: ='18'!$U$12 -> 0 | S31: ='18'!$D$14 -> 0 | T31: 定休日 | AB31: 18 | AC31: 0 | AD31: ='18'!$X$10 -> 0 | AE31: ='18'!$U$10 -> 0 | AG31: =ROUNDUP(ROUNDDOWN((SUMIF($AF$12:$AF$44,18,$AC$12:$AC$44)+SUMIF($AF$12:$AF$44,18,$AD$12:$AD$44)+SUMIF($AF$12:$AF$44,18,$AE$12:$AE$44))*$P$54*0.01,0),-1) -> 0 | AI31: 18 | AJ31: 0 | AK31: ='18'!$X$11 -> 0 | AL31: ='18'!$U$11 -> 0 | AN31: =ROUNDUP(ROUNDDOWN((SUMIF($AM$12:$AM$44,18,$AJ$12:$AJ$44)+SUMIF($AM$12:$AM$44,18,$AK$12:$AK$44)+SUMIF($AM$12:$AM$44,18,$AL$12:$AL$44))*$Q$54*0.01,0),-1) -> 0 | AO31: =ROUNDUP((SUMIF($AM$5,18,$AJ$6)+SUMIF($AM$5,18,$AK$6))*$V$54*0.01,-1) -> 0
A32: =$E$6+18 -> 41505 | B32: 月曜日 | C32: =$E$6+18 -> 2013-08-19 | D32: ='19'!$D$11 ->  | E32: ='19'!$I$9 ->  | F32: ='19'!$I$10 -> 0 | G32: ='19'!$I$11 -> 0 | H32: 0 | J32: ='19'!$R$9 -> 0 | K32: ='19'!$R$10 -> 0 | L32: ='19'!$R$11 -> 0 | M32: ='19'!$R$14 -> 0 | O32: =IF($A$56=2,SUMIF($AF$12:$AF$44,19,$AC$12:$AC$44)+SUMIF($AM$5,19,$AJ$6),SUMIF($AF$12:$AF$44,19,$AC$12:$AC$44)+SUMIF($AM$12:$AM$44,19,$AJ$12:$AJ$44)) -> 0 | P32: =IF($A$56=2,SUMIF($AF$12:$AF$44,19,$AD$12:$AD$44)+SUMIF($AF$12:$AF$44,19,$AE$12:$AE$44)+SUMIF($AM$5,19,$AK$6),SUMIF($AF$12:$AF$44,19,$AD$12:$AD$44)+SUMIF($AF$12:$AF$44,19,$AE$12:$AE$44)+SUMIF($AM$12:$AM$44,19,$AK$12:$AK$44)+SUMIF($AM$12:$AM$44,19,$AL$12:$AL$44)) -> 0 | R32: ='19'!$U$12 -> 0 | S32: ='19'!$D$14 -> 0 | T32: 臨時休業 | AB32: 19 | AC32: 0 | AD32: ='19'!$X$10 -> 0 | AE32: ='19'!$U$10 -> 0 | AG32: =ROUNDUP(ROUNDDOWN((SUMIF($AF$12:$AF$44,19,$AC$12:$AC$44)+SUMIF($AF$12:$AF$44,19,$AD$12:$AD$44)+SUMIF($AF$12:$AF$44,19,$AE$12:$AE$44))*$P$54*0.01,0),-1) -> 0 | AI32: 19 | AJ32: 0 | AK32: ='19'!$X$11 -> 0 | AL32: ='19'!$U$11 -> 0 | AN32: =ROUNDUP(ROUNDDOWN((SUMIF($AM$12:$AM$44,19,$AJ$12:$AJ$44)+SUMIF($AM$12:$AM$44,19,$AK$12:$AK$44)+SUMIF($AM$12:$AM$44,19,$AL$12:$AL$44))*$Q$54*0.01,0),-1) -> 0 | AO32: =ROUNDUP((SUMIF($AM$5,19,$AJ$6)+SUMIF($AM$5,19,$AK$6))*$V$54*0.01,-1) -> 0
A33: =$E$6+19 -> 41506 | B33: 火曜日 | C33: =$E$6+19 -> 2013-08-20 | D33: ='20'!$D$11 ->  | E33: ='20'!$I$9 ->  | F33: ='20'!$I$10 -> 0 | G33: ='20'!$I$11 -> 0 | H33: 0 | J33: ='20'!$R$9 -> 0 | K33: ='20'!$R$10 -> 0 | L33: ='20'!$R$11 -> 0 | M33: ='20'!$R$14 -> 0 | O33: =IF($A$56=2,SUMIF($AF$12:$AF$44,20,$AC$12:$AC$44)+SUMIF($AM$5,20,$AJ$6),SUMIF($AF$12:$AF$44,20,$AC$12:$AC$44)+SUMIF($AM$12:$AM$44,20,$AJ$12:$AJ$44)) -> 0 | P33: =IF($A$56=2,SUMIF($AF$12:$AF$44,20,$AD$12:$AD$44)+SUMIF($AF$12:$AF$44,20,$AE$12:$AE$44)+SUMIF($AM$5,20,$AK$6),SUMIF($AF$12:$AF$44,20,$AD$12:$AD$44)+SUMIF($AF$12:$AF$44,20,$AE$12:$AE$44)+SUMIF($AM$12:$AM$44,20,$AK$12:$AK$44)+SUMIF($AM$12:$AM$44,20,$AL$12:$AL$44)) -> 0 | R33: ='20'!$U$12 -> 0 | S33: ='20'!$D$14 -> 0 | T33: 臨時休業 | AB33: 20 | AC33: 0 | AD33: ='20'!$X$10 -> 0 | AE33: ='20'!$U$10 -> 0 | AG33: =ROUNDUP(ROUNDDOWN((SUMIF($AF$12:$AF$44,20,$AC$12:$AC$44)+SUMIF($AF$12:$AF$44,20,$AD$12:$AD$44)+SUMIF($AF$12:$AF$44,20,$AE$12:$AE$44))*$P$54*0.01,0),-1) -> 0 | AI33: 20 | AJ33: 0 | AK33: ='20'!$X$11 -> 0 | AL33: ='20'!$U$11 -> 0 | AN33: =ROUNDUP(ROUNDDOWN((SUMIF($AM$12:$AM$44,20,$AJ$12:$AJ$44)+SUMIF($AM$12:$AM$44,20,$AK$12:$AK$44)+SUMIF($AM$12:$AM$44,20,$AL$12:$AL$44))*$Q$54*0.01,0),-1) -> 0 | AO33: =ROUNDUP((SUMIF($AM$5,20,$AJ$6)+SUMIF($AM$5,20,$AK$6))*$V$54*0.01,-1) -> 0
A34: =$E$6+20 -> 41507 | B34: 水曜日 | C34: =$E$6+20 -> 2013-08-21 | D34: ='21'!$D$11 ->  | E34: ='21'!$I$9 ->  | F34: ='21'!$I$10 -> 0 | G34: ='21'!$I$11 -> 0 | H34: 0 | J34: ='21'!$R$9 -> 0 | K34: ='21'!$R$10 -> 0 | L34: ='21'!$R$11 -> 0 | M34: ='21'!$R$14 -> 0 | O34: =IF($A$56=2,SUMIF($AF$12:$AF$44,21,$AC$12:$AC$44)+SUMIF($AM$5,21,$AJ$6),SUMIF($AF$12:$AF$44,21,$AC$12:$AC$44)+SUMIF($AM$12:$AM$44,21,$AJ$12:$AJ$44)) -> 0 | P34: =IF($A$56=2,SUMIF($AF$12:$AF$44,21,$AD$12:$AD$44)+SUMIF($AF$12:$AF$44,21,$AE$12:$AE$44)+SUMIF($AM$5,21,$AK$6),SUMIF($AF$12:$AF$44,21,$AD$12:$AD$44)+SUMIF($AF$12:$AF$44,21,$AE$12:$AE$44)+SUMIF($AM$12:$AM$44,21,$AK$12:$AK$44)+SUMIF($AM$12:$AM$44,21,$AL$12:$AL$44)) -> 0 | R34: ='21'!$U$12 -> 0 | S34: ='21'!$D$14 -> 0 | T34: 臨時休業 | AB34: 21 | AC34: 0 | AD34: ='21'!$X$10 -> 0 | AE34: ='21'!$U$10 -> 0 | AG34: =ROUNDUP(ROUNDDOWN((SUMIF($AF$12:$AF$44,21,$AC$12:$AC$44)+SUMIF($AF$12:$AF$44,21,$AD$12:$AD$44)+SUMIF($AF$12:$AF$44,21,$AE$12:$AE$44))*$P$54*0.01,0),-1) -> 0 | AI34: 21 | AJ34: 0 | AK34: ='21'!$X$11 -> 0 | AL34: ='21'!$U$11 -> 0 | AN34: =ROUNDUP(ROUNDDOWN((SUMIF($AM$12:$AM$44,21,$AJ$12:$AJ$44)+SUMIF($AM$12:$AM$44,21,$AK$12:$AK$44)+SUMIF($AM$12:$AM$44,21,$AL$12:$AL$44))*$Q$54*0.01,0),-1) -> 0 | AO34: =ROUNDUP((SUMIF($AM$5,21,$AJ$6)+SUMIF($AM$5,21,$AK$6))*$V$54*0.01,-1) -> 0
A35: =$E$6+21 -> 41508 | B35: 木曜日 | C35: =$E$6+21 -> 2013-08-22 | D35: ='22'!$D$11 ->  | E35: ='22'!$I$9 ->  | F35: ='22'!$I$10 -> 0 | G35: ='22'!$I$11 -> 0 | H35: 0 | J35: ='22'!$R$9 -> 0 | K35: ='22'!$R$10 -> 0 | L35: ='22'!$R$11 -> 0 | M35: ='22'!$R$14 -> 0 | O35: =IF($A$56=2,SUMIF($AF$12:$AF$44,22,$AC$12:$AC$44)+SUMIF($AM$5,22,$AJ$6),SUMIF($AF$12:$AF$44,22,$AC$12:$AC$44)+SUMIF($AM$12:$AM$44,22,$AJ$12:$AJ$44)) -> 0 | P35: =IF($A$56=2,SUMIF($AF$12:$AF$44,22,$AD$12:$AD$44)+SUMIF($AF$12:$AF$44,22,$AE$12:$AE$44)+SUMIF($AM$5,22,$AK$6),SUMIF($AF$12:$AF$44,22,$AD$12:$AD$44)+SUMIF($AF$12:$AF$44,22,$AE$12:$AE$44)+SUMIF($AM$12:$AM$44,22,$AK$12:$AK$44)+SUMIF($AM$12:$AM$44,22,$AL$12:$AL$44)) -> 0 | R35: ='22'!$U$12 -> 0 | S35: ='22'!$D$14 -> 0 | T35: 臨時休業 | AB35: 22 | AC35: 0 | AD35: ='22'!$X$10 -> 0 | AE35: ='22'!$U$10 -> 0 | AG35: =ROUNDUP(ROUNDDOWN((SUMIF($AF$12:$AF$44,22,$AC$12:$AC$44)+SUMIF($AF$12:$AF$44,22,$AD$12:$AD$44)+SUMIF($AF$12:$AF$44,22,$AE$12:$AE$44))*$P$54*0.01,0),-1) -> 0 | AI35: 22 | AJ35: 0 | AK35: ='22'!$X$11 -> 0 | AL35: ='22'!$U$11 -> 0 | AN35: =ROUNDUP(ROUNDDOWN((SUMIF($AM$12:$AM$44,22,$AJ$12:$AJ$44)+SUMIF($AM$12:$AM$44,22,$AK$12:$AK$44)+SUMIF($AM$12:$AM$44,22,$AL$12:$AL$44))*$Q$54*0.01,0),-1) -> 0 | AO35: =ROUNDUP((SUMIF($AM$5,22,$AJ$6)+SUMIF($AM$5,22,$AK$6))*$V$54*0.01,-1) -> 0
A36: =$E$6+22 -> 41509 | B36: 金曜日 | C36: =$E$6+22 -> 2013-08-23 | D36: ='23'!$D$11 ->  | E36: ='23'!$I$9 ->  | F36: ='23'!$I$10 -> 0 | G36: ='23'!$I$11 -> 0 | H36: 0 | J36: ='23'!$R$9 -> 0 | K36: ='23'!$R$10 -> 0 | L36: ='23'!$R$11 -> 0 | M36: ='23'!$R$14 -> 0 | O36: =IF($A$56=2,SUMIF($AF$12:$AF$44,23,$AC$12:$AC$44)+SUMIF($AM$5,23,$AJ$6),SUMIF($AF$12:$AF$44,23,$AC$12:$AC$44)+SUMIF($AM$12:$AM$44,23,$AJ$12:$AJ$44)) -> 0 | P36: =IF($A$56=2,SUMIF($AF$12:$AF$44,23,$AD$12:$AD$44)+SUMIF($AF$12:$AF$44,23,$AE$12:$AE$44)+SUMIF($AM$5,23,$AK$6),SUMIF($AF$12:$AF$44,23,$AD$12:$AD$44)+SUMIF($AF$12:$AF$44,23,$AE$12:$AE$44)+SUMIF($AM$12:$AM$44,23,$AK$12:$AK$44)+SUMIF($AM$12:$AM$44,23,$AL$12:$AL$44)) -> 0 | R36: ='23'!$U$12 -> 0 | S36: ='23'!$D$14 -> 0 | T36: 臨時休業 | AB36: 23 | AC36: 0 | AD36: ='23'!$X$10 -> 0 | AE36: ='23'!$U$10 -> 0 | AG36: =ROUNDUP(ROUNDDOWN((SUMIF($AF$12:$AF$44,23,$AC$12:$AC$44)+SUMIF($AF$12:$AF$44,23,$AD$12:$AD$44)+SUMIF($AF$12:$AF$44,23,$AE$12:$AE$44))*$P$54*0.01,0),-1) -> 0 | AI36: 23 | AJ36: 0 | AK36: ='23'!$X$11 -> 0 | AL36: ='23'!$U$11 -> 0 | AN36: =ROUNDUP(ROUNDDOWN((SUMIF($AM$12:$AM$44,23,$AJ$12:$AJ$44)+SUMIF($AM$12:$AM$44,23,$AK$12:$AK$44)+SUMIF($AM$12:$AM$44,23,$AL$12:$AL$44))*$Q$54*0.01,0),-1) -> 0 | AO36: =ROUNDUP((SUMIF($AM$5,23,$AJ$6)+SUMIF($AM$5,23,$AK$6))*$V$54*0.01,-1) -> 0
A37: =$E$6+23 -> 41510 | B37: 土曜日 | C37: =$E$6+23 -> 2013-08-24 | D37: ='24'!$D$11 ->  | E37: ='24'!$I$9 ->  | F37: ='24'!$I$10 -> 0 | G37: ='24'!$I$11 -> 0 | H37: 0 | J37: ='24'!$R$9 -> 0 | K37: ='24'!$R$10 -> 0 | L37: ='24'!$R$11 -> 0 | M37: ='24'!$R$14 -> 0 | O37: =IF($A$56=2,SUMIF($AF$12:$AF$44,24,$AC$12:$AC$44)+SUMIF($AM$5,24,$AJ$6),SUMIF($AF$12:$AF$44,24,$AC$12:$AC$44)+SUMIF($AM$12:$AM$44,24,$AJ$12:$AJ$44)) -> 0 | P37: =IF($A$56=2,SUMIF($AF$12:$AF$44,24,$AD$12:$AD$44)+SUMIF($AF$12:$AF$44,24,$AE$12:$AE$44)+SUMIF($AM$5,24,$AK$6),SUMIF($AF$12:$AF$44,24,$AD$12:$AD$44)+SUMIF($AF$12:$AF$44,24,$AE$12:$AE$44)+SUMIF($AM$12:$AM$44,24,$AK$12:$AK$44)+SUMIF($AM$12:$AM$44,24,$AL$12:$AL$44)) -> 0 | R37: ='24'!$U$12 -> 0 | S37: ='24'!$D$14 -> 0 | T37: 臨時休業 | AB37: 24 | AC37: 0 | AD37: ='24'!$X$10 -> 0 | AE37: ='24'!$U$10 -> 0 | AG37: =ROUNDUP(ROUNDDOWN((SUMIF($AF$12:$AF$44,24,$AC$12:$AC$44)+SUMIF($AF$12:$AF$44,24,$AD$12:$AD$44)+SUMIF($AF$12:$AF$44,24,$AE$12:$AE$44))*$P$54*0.01,0),-1) -> 0 | AI37: 24 | AJ37: 0 | AK37: ='24'!$X$11 -> 0 | AL37: ='24'!$U$11 -> 0 | AN37: =ROUNDUP(ROUNDDOWN((SUMIF($AM$12:$AM$44,24,$AJ$12:$AJ$44)+SUMIF($AM$12:$AM$44,24,$AK$12:$AK$44)+SUMIF($AM$12:$AM$44,24,$AL$12:$AL$44))*$Q$54*0.01,0),-1) -> 0 | AO37: =ROUNDUP((SUMIF($AM$5,24,$AJ$6)+SUMIF($AM$5,24,$AK$6))*$V$54*0.01,-1) -> 0
A38: =$E$6+24 -> 41511 | B38: 日曜日 | C38: =$E$6+24 -> 2013-08-25 | D38: ='25'!$D$11 ->  | E38: ='25'!$I$9 ->  | F38: ='25'!$I$10 -> 0 | G38: ='25'!$I$11 -> 0 | H38: 0 | J38: ='25'!$R$9 -> 0 | K38: ='25'!$R$10 -> 0 | L38: ='25'!$R$11 -> 0 | M38: ='25'!$R$14 -> 0 | O38: =IF($A$56=2,SUMIF($AF$12:$AF$44,25,$AC$12:$AC$44)+SUMIF($AM$5,25,$AJ$6),SUMIF($AF$12:$AF$44,25,$AC$12:$AC$44)+SUMIF($AM$12:$AM$44,25,$AJ$12:$AJ$44)) -> 0 | P38: =IF($A$56=2,SUMIF($AF$12:$AF$44,25,$AD$12:$AD$44)+SUMIF($AF$12:$AF$44,25,$AE$12:$AE$44)+SUMIF($AM$5,25,$AK$6),SUMIF($AF$12:$AF$44,25,$AD$12:$AD$44)+SUMIF($AF$12:$AF$44,25,$AE$12:$AE$44)+SUMIF($AM$12:$AM$44,25,$AK$12:$AK$44)+SUMIF($AM$12:$AM$44,25,$AL$12:$AL$44)) -> 0 | R38: ='25'!$U$12 -> 0 | S38: ='25'!$D$14 -> 0 | T38: 定休日 | AB38: 25 | AC38: 0 | AD38: ='25'!$X$10 -> 0 | AE38: ='25'!$U$10 -> 0 | AG38: =ROUNDUP(ROUNDDOWN((SUMIF($AF$12:$AF$44,25,$AC$12:$AC$44)+SUMIF($AF$12:$AF$44,25,$AD$12:$AD$44)+SUMIF($AF$12:$AF$44,25,$AE$12:$AE$44))*$P$54*0.01,0),-1) -> 0 | AI38: 25 | AJ38: 0 | AK38: ='25'!$X$11 -> 0 | AL38: ='25'!$U$11 -> 0 | AN38: =ROUNDUP(ROUNDDOWN((SUMIF($AM$12:$AM$44,25,$AJ$12:$AJ$44)+SUMIF($AM$12:$AM$44,25,$AK$12:$AK$44)+SUMIF($AM$12:$AM$44,25,$AL$12:$AL$44))*$Q$54*0.01,0),-1) -> 0 | AO38: =ROUNDUP((SUMIF($AM$5,25,$AJ$6)+SUMIF($AM$5,25,$AK$6))*$V$54*0.01,-1) -> 0
A39: =$E$6+25 -> 41512 | B39: 月曜日 | C39: =$E$6+25 -> 2013-08-26 | D39: ='26'!$D$11 ->  | E39: ='26'!$I$9 ->  | F39: ='26'!$I$10 -> 0 | G39: ='26'!$I$11 -> 0 | H39: 0 | J39: ='26'!$R$9 -> 0 | K39: ='26'!$R$10 -> 0 | L39: ='26'!$R$11 -> 0 | M39: ='26'!$R$14 -> 0 | O39: =IF($A$56=2,SUMIF($AF$12:$AF$44,26,$AC$12:$AC$44)+SUMIF($AM$5,26,$AJ$6),SUMIF($AF$12:$AF$44,26,$AC$12:$AC$44)+SUMIF($AM$12:$AM$44,26,$AJ$12:$AJ$44)) -> 0 | P39: =IF($A$56=2,SUMIF($AF$12:$AF$44,26,$AD$12:$AD$44)+SUMIF($AF$12:$AF$44,26,$AE$12:$AE$44)+SUMIF($AM$5,26,$AK$6),SUMIF($AF$12:$AF$44,26,$AD$12:$AD$44)+SUMIF($AF$12:$AF$44,26,$AE$12:$AE$44)+SUMIF($AM$12:$AM$44,26,$AK$12:$AK$44)+SUMIF($AM$12:$AM$44,26,$AL$12:$AL$44)) -> 0 | R39: ='26'!$U$12 -> 0 | S39: ='26'!$D$14 -> 0 | T39: 臨時休業 | AB39: 26 | AC39: 0 | AD39: ='26'!$X$10 -> 0 | AE39: ='26'!$U$10 -> 0 | AG39: =ROUNDUP(ROUNDDOWN((SUMIF($AF$12:$AF$44,26,$AC$12:$AC$44)+SUMIF($AF$12:$AF$44,26,$AD$12:$AD$44)+SUMIF($AF$12:$AF$44,26,$AE$12:$AE$44))*$P$54*0.01,0),-1) -> 0 | AI39: 26 | AJ39: 0 | AK39: ='26'!$X$11 -> 0 | AL39: ='26'!$U$11 -> 0 | AN39: =ROUNDUP(ROUNDDOWN((SUMIF($AM$12:$AM$44,26,$AJ$12:$AJ$44)+SUMIF($AM$12:$AM$44,26,$AK$12:$AK$44)+SUMIF($AM$12:$AM$44,26,$AL$12:$AL$44))*$Q$54*0.01,0),-1) -> 0 | AO39: =ROUNDUP((SUMIF($AM$5,26,$AJ$6)+SUMIF($AM$5,26,$AK$6))*$V$54*0.01,-1) -> 0
A40: =$E$6+26 -> 41513 | B40: 火曜日 | C40: =$E$6+26 -> 2013-08-27 | D40: ='27'!$D$11 ->  | E40: ='27'!$I$9 ->  | F40: ='27'!$I$10 -> 0 | G40: ='27'!$I$11 -> 0 | H40: 0 | J40: ='27'!$R$9 -> 0 | K40: ='27'!$R$10 -> 0 | L40: ='27'!$R$11 -> 0 | M40: ='27'!$R$14 -> 0 | O40: =IF($A$56=2,SUMIF($AF$12:$AF$44,27,$AC$12:$AC$44)+SUMIF($AM$5,27,$AJ$6),SUMIF($AF$12:$AF$44,27,$AC$12:$AC$44)+SUMIF($AM$12:$AM$44,27,$AJ$12:$AJ$44)) -> 0 | P40: =IF($A$56=2,SUMIF($AF$12:$AF$44,27,$AD$12:$AD$44)+SUMIF($AF$12:$AF$44,27,$AE$12:$AE$44)+SUMIF($AM$5,27,$AK$6),SUMIF($AF$12:$AF$44,27,$AD$12:$AD$44)+SUMIF($AF$12:$AF$44,27,$AE$12:$AE$44)+SUMIF($AM$12:$AM$44,27,$AK$12:$AK$44)+SUMIF($AM$12:$AM$44,27,$AL$12:$AL$44)) -> 0 | R40: ='27'!$U$12 -> 0 | S40: ='27'!$D$14 -> 0 | T40: 臨時休業 | AB40: 27 | AC40: 0 | AD40: ='27'!$X$10 -> 0 | AE40: ='27'!$U$10 -> 0 | AG40: =ROUNDUP(ROUNDDOWN((SUMIF($AF$12:$AF$44,27,$AC$12:$AC$44)+SUMIF($AF$12:$AF$44,27,$AD$12:$AD$44)+SUMIF($AF$12:$AF$44,27,$AE$12:$AE$44))*$P$54*0.01,0),-1) -> 0 | AI40: 27 | AJ40: 0 | AK40: ='27'!$X$11 -> 0 | AL40: ='27'!$U$11 -> 0 | AN40: =ROUNDUP(ROUNDDOWN((SUMIF($AM$12:$AM$44,27,$AJ$12:$AJ$44)+SUMIF($AM$12:$AM$44,27,$AK$12:$AK$44)+SUMIF($AM$12:$AM$44,27,$AL$12:$AL$44))*$Q$54*0.01,0),-1) -> 0 | AO40: =ROUNDUP((SUMIF($AM$5,27,$AJ$6)+SUMIF($AM$5,27,$AK$6))*$V$54*0.01,-1) -> 0
A41: =$E$6+27 -> 41514 | B41: 水曜日 | C41: =$E$6+27 -> 2013-08-28 | D41: ='28'!$D$11 ->  | E41: ='28'!$I$9 ->  | F41: ='28'!$I$10 -> 0 | G41: ='28'!$I$11 -> 0 | H41: 0 | J41: ='28'!$R$9 -> 0 | K41: ='28'!$R$10 -> 0 | L41: ='28'!$R$11 -> 0 | M41: ='28'!$R$14 -> 0 | O41: =IF($A$56=2,SUMIF($AF$12:$AF$44,28,$AC$12:$AC$44)+SUMIF($AM$5,28,$AJ$6),SUMIF($AF$12:$AF$44,28,$AC$12:$AC$44)+SUMIF($AM$12:$AM$44,28,$AJ$12:$AJ$44)) -> 0 | P41: =IF($A$56=2,SUMIF($AF$12:$AF$44,28,$AD$12:$AD$44)+SUMIF($AF$12:$AF$44,28,$AE$12:$AE$44)+SUMIF($AM$5,28,$AK$6),SUMIF($AF$12:$AF$44,28,$AD$12:$AD$44)+SUMIF($AF$12:$AF$44,28,$AE$12:$AE$44)+SUMIF($AM$12:$AM$44,28,$AK$12:$AK$44)+SUMIF($AM$12:$AM$44,28,$AL$12:$AL$44)) -> 0 | R41: ='28'!$U$12 -> 0 | S41: ='28'!$D$14 -> 0 | T41: 臨時休業 | AB41: 28 | AC41: 0 | AD41: ='28'!$X$10 -> 0 | AE41: ='28'!$U$10 -> 0 | AG41: =ROUNDUP(ROUNDDOWN((SUMIF($AF$12:$AF$44,28,$AC$12:$AC$44)+SUMIF($AF$12:$AF$44,28,$AD$12:$AD$44)+SUMIF($AF$12:$AF$44,28,$AE$12:$AE$44))*$P$54*0.01,0),-1) -> 0 | AI41: 28 | AJ41: 0 | AK41: ='28'!$X$11 -> 0 | AL41: ='28'!$U$11 -> 0 | AN41: =ROUNDUP(ROUNDDOWN((SUMIF($AM$12:$AM$44,28,$AJ$12:$AJ$44)+SUMIF($AM$12:$AM$44,28,$AK$12:$AK$44)+SUMIF($AM$12:$AM$44,28,$AL$12:$AL$44))*$Q$54*0.01,0),-1) -> 0 | AO41: =ROUNDUP((SUMIF($AM$5,28,$AJ$6)+SUMIF($AM$5,28,$AK$6))*$V$54*0.01,-1) -> 0
A42: =$E$6+28 -> 2013-08-29 | B42: =TEXT(WEEKDAY($E$6+28),"aaaa") -> 木曜日 | C42: =IF($E$6+28<=C41,$E$6+28,29) -> 1900-01-29 | D42: ='29'!$D$11 ->  | E42: ='29'!$I$9 ->  | F42: ='29'!$I$10 -> 0 | G42: ='29'!$I$11 -> 0 | H42: 0 | J42: ='29'!$R$9 -> 0 | K42: ='29'!$R$10 -> 0 | L42: ='29'!$R$11 -> 0 | M42: ='29'!$R$14 -> 0 | O42: =IF($A$56=2,SUMIF($AF$12:$AF$44,29,$AC$12:$AC$44)+SUMIF($AM$5,29,$AJ$6),SUMIF($AF$12:$AF$44,29,$AC$12:$AC$44)+SUMIF($AM$12:$AM$44,29,$AJ$12:$AJ$44)) -> 0 | P42: =IF($A$56=2,SUMIF($AF$12:$AF$44,29,$AD$12:$AD$44)+SUMIF($AF$12:$AF$44,29,$AE$12:$AE$44)+SUMIF($AM$5,29,$AK$6),SUMIF($AF$12:$AF$44,29,$AD$12:$AD$44)+SUMIF($AF$12:$AF$44,29,$AE$12:$AE$44)+SUMIF($AM$12:$AM$44,29,$AK$12:$AK$44)+SUMIF($AM$12:$AM$44,29,$AL$12:$AL$44)) -> 0 | R42: ='29'!$U$12 -> 0 | S42: ='29'!$D$14 -> 0 | T42: 臨時休業 | AB42: 29 | AC42: 0 | AD42: ='29'!$X$10 -> 0 | AE42: ='29'!$U$10 -> 0 | AG42: =ROUNDUP(ROUNDDOWN((SUMIF($AF$12:$AF$44,29,$AC$12:$AC$44)+SUMIF($AF$12:$AF$44,29,$AD$12:$AD$44)+SUMIF($AF$12:$AF$44,29,$AE$12:$AE$44))*$P$54*0.01,0),-1) -> 0 | AI42: 29 | AJ42: 0 | AK42: ='29'!$X$11 -> 0 | AL42: ='29'!$U$11 -> 0 | AN42: =ROUNDUP(ROUNDDOWN((SUMIF($AM$12:$AM$44,29,$AJ$12:$AJ$44)+SUMIF($AM$12:$AM$44,29,$AK$12:$AK$44)+SUMIF($AM$12:$AM$44,29,$AL$12:$AL$44))*$Q$54*0.01,0),-1) -> 0 | AO42: =ROUNDUP((SUMIF($AM$5,29,$AJ$6)+SUMIF($AM$5,29,$AK$6))*$V$54*0.01,-1) -> 0
A43: =$E$6+29 -> 2013-08-30 | B43: =TEXT(WEEKDAY($E$6+29),"aaaa") -> 金曜日 | C43: =IF($E$6+29<=C42,$E$6+29,30) -> 1900-01-30 | D43: ='30'!$D$11 ->  | E43: ='30'!$I$9 ->  | F43: ='30'!$I$10 -> 0 | G43: ='30'!$I$11 -> 0 | H43: 0 | J43: ='30'!$R$9 -> 0 | K43: ='30'!$R$10 -> 0 | L43: ='30'!$R$11 -> 0 | M43: ='30'!$R$14 -> 0 | O43: =IF($A$56=2,SUMIF($AF$12:$AF$44,30,$AC$12:$AC$44)+SUMIF($AM$5,30,$AJ$6),SUMIF($AF$12:$AF$44,30,$AC$12:$AC$44)+SUMIF($AM$12:$AM$44,30,$AJ$12:$AJ$44)) -> 0 | P43: =IF($A$56=2,SUMIF($AF$12:$AF$44,30,$AD$12:$AD$44)+SUMIF($AF$12:$AF$44,30,$AE$12:$AE$44)+SUMIF($AM$5,30,$AK$6),SUMIF($AF$12:$AF$44,30,$AD$12:$AD$44)+SUMIF($AF$12:$AF$44,30,$AE$12:$AE$44)+SUMIF($AM$12:$AM$44,30,$AK$12:$AK$44)+SUMIF($AM$12:$AM$44,30,$AL$12:$AL$44)) -> 0 | R43: ='30'!$U$12 -> 0 | S43: ='30'!$D$14 -> 0 | T43: 臨時休業 | AB43: 30 | AC43: 0 | AD43: ='30'!$X$10 -> 0 | AE43: ='30'!$U$10 -> 0 | AG43: =ROUNDUP(ROUNDDOWN((SUMIF($AF$12:$AF$44,30,$AC$12:$AC$44)+SUMIF($AF$12:$AF$44,30,$AD$12:$AD$44)+SUMIF($AF$12:$AF$44,30,$AE$12:$AE$44))*$P$54*0.01,0),-1) -> 0 | AI43: 30 | AJ43: 0 | AK43: ='30'!$X$11 -> 0 | AL43: ='30'!$U$11 -> 0 | AN43: =ROUNDUP(ROUNDDOWN((SUMIF($AM$12:$AM$44,30,$AJ$12:$AJ$44)+SUMIF($AM$12:$AM$44,30,$AK$12:$AK$44)+SUMIF($AM$12:$AM$44,30,$AL$12:$AL$44))*$Q$54*0.01,0),-1) -> 0 | AO43: =ROUNDUP((SUMIF($AM$5,30,$AJ$6)+SUMIF($AM$5,30,$AK$6))*$V$54*0.01,-1) -> 0
A44: =$E$6+30 -> 2013-08-31 | B44: =TEXT(WEEKDAY($E$6+30),"aaaa") -> 土曜日 | C44: =IF($E$6+30<=C43,$E$6+30,31) -> 1900-01-31 | D44: ='31'!$D$11 ->  | E44: ='31'!$I$9 ->  | F44: ='31'!$I$10 -> 0 | G44: ='31'!$I$11 -> 0 | H44: 0 | J44: ='31'!$R$9 -> 0 | K44: ='31'!$R$10 -> 0 | L44: ='31'!$R$11 -> 0 | M44: ='31'!$R$14 -> 0 | O44: =IF($A$56=2,SUMIF($AF$12:$AF$44,31,$AC$12:$AC$44)+SUMIF($AM$5,31,$AJ$6),SUMIF($AF$12:$AF$44,31,$AC$12:$AC$44)+SUMIF($AM$12:$AM$44,31,$AJ$12:$AJ$44)) -> 0 | P44: =IF($A$56=2,SUMIF($AF$12:$AF$44,31,$AD$12:$AD$44)+SUMIF($AF$12:$AF$44,31,$AE$12:$AE$44)+SUMIF($AM$5,31,$AK$6),SUMIF($AF$12:$AF$44,31,$AD$12:$AD$44)+SUMIF($AF$12:$AF$44,31,$AE$12:$AE$44)+SUMIF($AM$12:$AM$44,31,$AK$12:$AK$44)+SUMIF($AM$12:$AM$44,31,$AL$12:$AL$44)) -> 0 | R44: ='31'!$U$12 -> 0 | S44: ='31'!$D$14 -> 0 | T44: 臨時休業 | AB44: 31 | AC44: 0 | AD44: ='31'!$X$10 -> 0 | AE44: ='31'!$U$10 -> 0 | AG44: =ROUNDUP(ROUNDDOWN((SUMIF($AF$12:$AF$44,31,$AC$12:$AC$44)+SUMIF($AF$12:$AF$44,31,$AD$12:$AD$44)+SUMIF($AF$12:$AF$44,31,$AE$12:$AE$44))*$P$54*0.01,0),-1) -> 0 | AI44: 31 | AJ44: 0 | AK44: ='31'!$X$11 -> 0 | AL44: ='31'!$U$11 -> 0 | AN44: =ROUNDUP(ROUNDDOWN((SUMIF($AM$12:$AM$44,31,$AJ$12:$AJ$44)+SUMIF($AM$12:$AM$44,31,$AK$12:$AK$44)+SUMIF($AM$12:$AM$44,31,$AL$12:$AL$44))*$Q$54*0.01,0),-1) -> 0 | AO44: =ROUNDUP((SUMIF($AM$5,31,$AJ$6)+SUMIF($AM$5,31,$AK$6))*$V$54*0.01,-1) -> 0
C45: 計 | D45: =SUM(D14:D44) -> 0 | E45: =SUM(E14:E44) -> 0 | F45: =SUM(F14:F44) -> 0 | G45: =SUM(G14:G44) -> 0 | H45: =SUM(H14:H44) -> 0 | J45: =SUM(J14:J44) -> 0 | K45: =SUM(K14:K44) -> 0 | L45: =SUM(L14:L44) -> 0 | M45: =SUM(M14:M44) -> 0 | O45: =SUM(O14:O44) -> 0 | P45: =SUM(P14:P44) -> 0 | R45: =SUM(R14:R44) -> 0 | S45: =SUM(S14:S44) -> 0 | T45: =IF(H45>=1,"",IF(B45="土曜日","臨時休業",IF(B45="日曜日","定休日",""))) ->  | AB45: 合計 | AC45: =SUM(AC14:AC44) -> 0 | AD45: =SUM(AD14:AD44) -> 0 | AE45: =SUM(AE14:AE44) -> 0 | AF45: =SUM(IF(AF12:AF44="","",1/COUNTIF(AF12:AF44,AF12:AF44))) -> 0 | AG45: =SUM(AG14:AG44) -> 0 | AI45: 合計 | AJ45: =SUM(AJ14:AJ44) -> 0 | AK45: =SUM(AK14:AK44) -> 0 | AL45: =SUM(AL14:AL44) -> 0 | AM45: =SUM(IF(AM12:AM44="","",1/COUNTIF(AM12:AM44,AM12:AM44))) -> 0 | AN45: =SUM(AN14:AN44) -> 0 | AO45: =SUM(AO14:AO44) -> 0
C46: 修正 | T46: =IF(H46>=1,"",IF(B46="土曜日","臨時休業",IF(B46="日曜日","定休日",""))) ->  | AB46: 累計 | AC46: =SUM(AC12,AC45) -> 0 | AD46: =SUM(AD12,AD45:AE45) -> 0 | AI46: 累計 | AJ46: =SUM(AJ12,AJ45) -> 0 | AK46: =SUM(AK12,AK45:AL45) -> 0
C47: 合計 | D47: =SUM(D14:D44) -> 0 | E47: =SUM(E14:E44) -> 0 | F47: =SUM(F14:F44) -> 0 | G47: =SUM(G14:G44) -> 0 | H47: =SUM(H14:H44) -> 0 | J47: =SUM(J14:J44) -> 0 | K47: =SUM(K14:K44) -> 0 | L47: =SUM(L14:L44) -> 0 | M47: =SUM(M14:M44) -> 0 | O47: =SUM(O14:O44) -> 0 | P47: =SUM(P14:P44) -> 0 | R47: =SUM(R14:R44) -> 0 | S47: =SUM(S14:S44) -> 0 | T47: =IF(H47>=1,"",IF(B47="土曜日","臨時休業",IF(B47="日曜日","定休日",""))) ->  | AB47: 回収 | AC47: =SUM(SUMIF(AF12:AF44,">0",AC12:AC44)) -> 0 | AD47: =SUM(SUMIF(AF12:AF44,">0",AD12:AD44)+SUMIF(AF12:AF44,">0",AE12:AE44)) -> 0 | AI47: 回収 | AJ47: =SUMIF(AM12:AM44,">0",AJ12:AJ44) -> 0 | AK47: =SUMIF(AM12:AM44,">0",AK12:AK44)+SUMIF(AM12:AM44,">0",AL12:AL44) -> 0
C48: 修正がない場合は、当月合計は「計」の数字をそのまま転記してください。 | AB48: 繰越 | AC48: =SUM(AC46,-SUMIF(AF12:AF44,">0",AC12:AC44)) -> 0 | AD48: =SUM(AD46,-SUMIF(AF12:AF44,">0",AD12:AD44)-SUMIF(AF12:AF44,">0",AE12:AE44)) -> 0 | AI48: 繰越 | AJ48: =SUMIF(AM12:AM44,"",AJ12:AJ44) -> 0 | AK48: =SUMIF(AM12:AM44,"",AK12:AK44)+SUMIF(AM12:AM44,"",AL12:AL44) -> 0
C49: ◎ 下の該当項目を○で囲んでください。（必要書類を添付してください）
C50: ① | D50: 車両購入 | E50: ④ | F50: 住所変更 | G50: ⑦ | H50: 運転免許更新
C51: ② | D51: 借入金契約 | E51: ⑤ | F51: 車庫変更 | G51: ⑧ | H51: 営業免許更新
C52: ③ | D52: 住宅購入 | E52: ⑥ | F52: 車検 | G52: ⑨ | H52: その他（ ）
A53: 年月 | B53: 支部名 | C53: 事業者名 | D53: コード | E53: 車両登録番号 | F53: 燃料単価 | G53: 走行燃費 | H53: メーター距離 | I53: 繰越燃料費（未払金） | J53: 現金 | K53: 預金 | L53: 前月繰越ETC立替（未払金） | M53: 前月繰越ETC交通（未払金） | N53: ETC立替（当月支払分） | O53: ETC交通（当月支払分） | P53: チケット換金手数料率 | Q53: カード換金手数料率 | R53: ﾁｹｯﾄ売掛繰越 | S53: ﾁｹｯﾄ立替繰越 | T53: ｸﾚｼﾞｯﾄ売掛繰越 | U53: ｸﾚｼﾞｯﾄ立替繰越 | AI53: 一般
A54: 2013-08-01 | F54: 100 | G54: 5 | P54: 3 | Q54: 3 | AI54: 日個連 | AJ54: =SUM(AJ45,AB54,-SUMIF(AM12:AM44,">0",AJ12:AJ44)) -> 0 | AK54: =SUM(AC54,AK45,AL45,-SUMIF(AM12:AM44,">0",AK12:AK44)-SUMIF(AM14:AM44,">0",AL14:AL44)) -> 0
A55: カード清算種別 | B55: 燃料月極
A56: 1 | B56: 2

Sheet 金銭出納帳
BK3: 繰越預金残高
C4: 前月末繰越残高 | I4: 地区名 | O4: =日別輸送実績表!$A$54 -> 2013-08-01 | AO4: 個人番号 | AV4: 事業者名
C5: =日別輸送実績表!$J$54 -> 0 | I5: =日別輸送実績表!$B$54 -> 0 | Z5: 金銭出納帳（コンピュータ入力用） | AP5: =日別輸送実績表!$D$54 -> 0 | AV5: =日別輸送実績表!$C$54 -> 0 | BK5: =日別輸送実績表!$K$54 -> 0 | BM5: 預金出納帳
B7: 収入金額 | D7: 支払金額 | F7: 差引残高 | I7: 日付 | J7: 適 用（相手先・内容） | T7: 020 | Y7: 033 | AA7: 703 | AE7: 707 | AH7: 709 | AJ7: 713 | AK7: 714 | AN7: 715 | AQ7: 721 | AU7: 723 | AX7: 750 | BA7: 日付 | BC7: その他科目(科目欄より選択) | BK7: 日付 | BL7: 預金出納帳 | BO7: 適用
T8: 事業主貸 | Y8: 立替金 | AA8: 消耗品費 | AE8: 燃料費 | AH8: 車両修繕費 | AJ8: 賃借料 | AK8: 交際費 | AN8: 通信図書費 | AQ8: 諸負担.租税 | AU8: 旅費交通費 | AX8: 雑費 | BC8: コード | BD8: 勘定科目名 | BF8: 金額 | BL8: 預入金額 | BM8: 引出金額 | BN8: 差引残高
B9: =SUM(日別輸送実績表!J14,日別輸送実績表!M14,日別輸送実績表!O14:P14,SUMPRODUCT(($P$44:$P$66=I9)*($S$44:$S$66="001"),$AF$44:$AF$66)) -> 0 | D9: =IF(SUMIF($BA$9:$BA$39,1,$BF$9:$BF$39)="","",SUM(T9:AY9,SUMIF($BA$9:$BA$39,1,$BF$9:$BF$39),SUMPRODUCT(($P$44:$P$66=I9)*($Z$44:$Z$66="001"),$AF$44:$AF$66))) -> 0 | F9: =IF(SUM($B$9:E9)<=0,"",IF(SUM(B9:$E$39)=0,"",ROUNDDOWN(SUM($C$5,$B$9:C9)-SUM($D$9:E9),-0.1))) ->  | I9: 1 | Y9: ='1'!$X$12 -> 0 | AE9: =IF(日別輸送実績表!$B$56=2,'1'!$R$15,"") -> 0 | AU9: ='1'!$D$13 -> 0 | AX9: =SUM(日別輸送実績表!AG14,日別輸送実績表!AN14,'1'!$R$16) -> 0 | BC9: =IF(BD9=0,"",VLOOKUP(BD9,ﾃﾞｰﾀﾍﾞｰｽ!$B$3:$C$64,2,FALSE)) -> 030 | BD9: 共済準備金 | BK9: 1 | BL9: =SUMPRODUCT(($P$44:$P$66=I9)*($S$44:$S$66="003"),$AF$44:$AF$66) -> 0 | BM9: =SUMPRODUCT(($P$44:$P$63=I9)*($Z$44:$Z$63="003"),$AF$44:$AF$63) -> 0 | BN9: =IF(SUM($BL$9:BM9)<=0,"",IF(SUM($BL9:$BM$39)=0,"",ROUNDDOWN(SUM($BK$5,$BL$9:BL9)-SUM($BM$9:BM9),-0.1))) -> 
B10: =SUM(日別輸送実績表!J15,日別輸送実績表!M15,日別輸送実績表!O15:P15,SUMPRODUCT(($P$44:$P$66=I10)*($S$44:$S$66="001"),$AF$44:$AF$66)) -> 0 | D10: =IF(SUMIF($BA$9:$BA$39,2,$BF$9:$BF$39)="","",SUM(T10:AY10,SUMIF($BA$9:$BA$39,2,$BF$9:$BF$39),SUMPRODUCT(($P$44:$P$66=I10)*($Z$44:$Z$66="001"),$AF$44:$AF$66))) -> 0 | F10: =IF(SUM($B$9:E10)<=0,"",IF(SUM(B10:$E$39)=0,"",ROUNDDOWN(SUM($C$5,$B$9:C10)-SUM($D$9:E10),-0.1))) ->  | I10: 2 | Y10: ='2'!$X$12 -> 0 | AE10: =IF(日別輸送実績表!$B$56=2,'2'!$R$15,"") ->  | AU10: ='2'!$D$13 -> 0 | AX10: =SUM(日別輸送実績表!AG15,日別輸送実績表!AN15,'2'!$R$16) -> 0 | BC10: =IF(BD10=0,"",VLOOKUP(BD10,ﾃﾞｰﾀﾍﾞｰｽ!$B$3:$C$64,2,FALSE)) -> 050 | BD10: 事業出資金 | BK10: 2 | BL10: =SUMPRODUCT(($P$44:$P$66=I10)*($S$44:$S$66="003"),$AF$44:$AF$66) -> 0 | BM10: 0 | BN10: =IF(SUM($BL$9:BM10)<=0,"",IF(SUM($BL10:$BM$39)=0,"",ROUNDDOWN(SUM($BK$5,$BL$9:BL10)-SUM($BM$9:BM10),-0.1))) -> 
B11: =SUM(日別輸送実績表!J16,日別輸送実績表!M16,日別輸送実績表!O16:P16,SUMPRODUCT(($P$44:$P$66=I11)*($S$44:$S$66="001"),$AF$44:$AF$66)) -> 0 | D11: =IF(SUMIF($BA$9:$BA$39,3,$BF$9:$BF$39)="","",SUM(T11:AY11,SUMIF($BA$9:$BA$39,3,$BF$9:$BF$39),SUMPRODUCT(($P$44:$P$66=I11)*($Z$44:$Z$66="001"),$AF$44:$AF$66))) -> 0 | F11: =IF(SUM($B$9:E11)<=0,"",IF(SUM(B11:$E$39)=0,"",ROUNDDOWN(SUM($C$5,$B$9:C11)-SUM($D$9:E11),-0.1))) ->  | I11: 3 | Y11: ='3'!$X$12 -> 0 | AE11: =IF(日別輸送実績表!$B$56=2,'3'!$R$15,"") ->  | AU11: ='3'!$D$13 -> 0 | AX11: =SUM(日別輸送実績表!AG16,日別輸送実績表!AN16,'3'!$R$16) -> 0 | BC11: =IF(BD11=0,"",VLOOKUP(BD11,ﾃﾞｰﾀﾍﾞｰｽ!$B$3:$C$64,2,FALSE)) -> 702 | BD11: 水道光熱費 | BK11: 3 | BL11: =SUMPRODUCT(($P$44:$P$66=I11)*($S$44:$S$66="003"),$AF$44:$AF$66) -> 0 | BM11: 0 | BN11: =IF(SUM($BL$9:BM11)<=0,"",IF(SUM($BL11:$BM$39)=0,"",ROUNDDOWN(SUM($BK$5,$BL$9:BL11)-SUM($BM$9:BM11),-0.1))) -> 
B12: =SUM(日別輸送実績表!J17,日別輸送実績表!M17,日別輸送実績表!O17:P17,SUMPRODUCT(($P$44:$P$66=I12)*($S$44:$S$66="001"),$AF$44:$AF$66)) -> 0 | D12: =IF(SUMIF($BA$9:$BA$39,4,$BF$9:$BF$39)="","",SUM(T12:AY12,SUMIF($BA$9:$BA$39,4,$BF$9:$BF$39),SUMPRODUCT(($P$44:$P$66=I12)*($Z$44:$Z$66="001"),$AF$44:$AF$66))) -> 0 | F12: =IF(SUM($B$9:E12)<=0,"",IF(SUM(B12:$E$39)=0,"",ROUNDDOWN(SUM($C$5,$B$9:C12)-SUM($D$9:E12),-0.1))) ->  | I12: 4 | Y12: ='4'!$X$12 -> 0 | AE12: =IF(日別輸送実績表!$B$56=2,'4'!$R$15,"") ->  | AU12: ='4'!$D$13 -> 0 | AX12: =SUM(日別輸送実績表!AG17,日別輸送実績表!AN17,'4'!$R$16) -> 0 | BC12: =IF(BD12=0,"",VLOOKUP(BD12,ﾃﾞｰﾀﾍﾞｰｽ!$B$3:$C$64,2,FALSE)) -> 708 | BD12: 油脂費 | BK12: 4 | BL12: 0 | BM12: 0 | BN12: =IF(SUM($BL$9:BM12)<=0,"",IF(SUM($BL12:$BM$39)=0,"",ROUNDDOWN(SUM($BK$5,$BL$9:BL12)-SUM($BM$9:BM12),-0.1))) -> 
B13: =SUM(日別輸送実績表!J18,日別輸送実績表!M18,日別輸送実績表!O18:P18,SUMPRODUCT(($P$44:$P$66=I13)*($S$44:$S$66="001"),$AF$44:$AF$66)) -> 0 | D13: =IF(SUMIF($BA$9:$BA$39,5,$BF$9:$BF$39)="","",SUM(T13:AY13,SUMIF($BA$9:$BA$39,5,$BF$9:$BF$39),SUMPRODUCT(($P$44:$P$66=I13)*($Z$44:$Z$66="001"),$AF$44:$AF$66))) -> 0 | F13: =IF(SUM($B$9:E13)<=0,"",IF(SUM(B13:$E$39)=0,"",ROUNDDOWN(SUM($C$5,$B$9:C13)-SUM($D$9:E13),-0.1))) ->  | I13: 5 | Y13: ='5'!$X$12 -> 0 | AE13: =IF(日別輸送実績表!$B$56=2,'5'!$R$15,"") ->  | AU13: ='5'!$D$13 -> 0 | AX13: =SUM(日別輸送実績表!AG18,日別輸送実績表!AN18,'5'!$R$16) -> 0 | BC13: =IF(BD13=0,"",VLOOKUP(BD13,ﾃﾞｰﾀﾍﾞｰｽ!$B$3:$C$64,2,FALSE)) -> 718 | BD13: 事故賠償費 | BK13: 5 | BL13: 0 | BM13: 0 | BN13: =IF(SUM($BL$9:BM13)<=0,"",IF(SUM($BL13:$BM$39)=0,"",ROUNDDOWN(SUM($BK$5,$BL$9:BL13)-SUM($BM$9:BM13),-0.1))) -> 
B14: =SUM(日別輸送実績表!J19,日別輸送実績表!M19,日別輸送実績表!O19:P19,SUMPRODUCT(($P$44:$P$66=I14)*($S$44:$S$66="001"),$AF$44:$AF$66)) -> 0 | D14: =IF(SUMIF($BA$9:$BA$39,6,$BF$9:$BF$39)="","",SUM(T14:AY14,SUMIF($BA$9:$BA$39,6,$BF$9:$BF$39),SUMPRODUCT(($P$44:$P$66=I14)*($Z$44:$Z$66="001"),$AF$44:$AF$66))) -> 0 | F14: =IF(SUM($B$9:E14)<=0,"",IF(SUM(B14:$E$39)=0,"",ROUNDDOWN(SUM($C$5,$B$9:C14)-SUM($D$9:E14),-0.1))) ->  | I14: 6 | Y14: ='6'!$X$12 -> 0 | AE14: =IF(日別輸送実績表!$B$56=2,'6'!$R$15,"") ->  | AU14: ='6'!$D$13 -> 0 | AX14: =SUM(日別輸送実績表!AG19,日別輸送実績表!AN19,'6'!$R$16) -> 0 | BC14: =IF(BD14=0,"",VLOOKUP(BD14,ﾃﾞｰﾀﾍﾞｰｽ!$B$3:$C$64,2,FALSE)) ->  | BD14: 日個連交通共済掛金 | BK14: 6 | BL14: 0 | BM14: 0 | BN14: =IF(SUM($BL$9:BM14)<=0,"",IF(SUM($BL14:$BM$39)=0,"",ROUNDDOWN(SUM($BK$5,$BL$9:BL14)-SUM($BM$9:BM14),-0.1))) -> 
B15: =SUM(日別輸送実績表!J20,日別輸送実績表!M20,日別輸送実績表!O20:P20,SUMPRODUCT(($P$44:$P$66=I15)*($S$44:$S$66="001"),$AF$44:$AF$66)) -> 0 | D15: =IF(SUMIF($BA$9:$BA$39,7,$BF$9:$BF$39)="","",SUM(T15:AY15,SUMIF($BA$9:$BA$39,7,$BF$9:$BF$39),SUMPRODUCT(($P$44:$P$66=I15)*($Z$44:$Z$66="001"),$AF$44:$AF$66))) -> 0 | F15: =IF(SUM($B$9:E15)<=0,"",IF(SUM(B15:$E$39)=0,"",ROUNDDOWN(SUM($C$5,$B$9:C15)-SUM($D$9:E15),-0.1))) ->  | I15: 7 | Y15: ='7'!$X$12 -> 0 | AE15: =IF(日別輸送実績表!$B$56=2,'7'!$R$15,"") ->  | AU15: ='7'!$D$13 -> 0 | AX15: =SUM(日別輸送実績表!AG20,日別輸送実績表!AN20,'7'!$R$16) -> 0 | BC15: =IF(BD15=0,"",VLOOKUP(BD15,ﾃﾞｰﾀﾍﾞｰｽ!$B$3:$C$64,2,FALSE)) -> 727 | BD15: リース料 | BK15: 7 | BL15: 0 | BM15: 0 | BN15: =IF(SUM($BL$9:BM15)<=0,"",IF(SUM($BL15:$BM$39)=0,"",ROUNDDOWN(SUM($BK$5,$BL$9:BL15)-SUM($BM$9:BM15),-0.1))) -> 
B16: =SUM(日別輸送実績表!J21,日別輸送実績表!M21,日別輸送実績表!O21:P21,SUMPRODUCT(($P$44:$P$66=I16)*($S$44:$S$66="001"),$AF$44:$AF$66)) -> 0 | D16: =IF(SUMIF($BA$9:$BA$39,8,$BF$9:$BF$39)="","",SUM(T16:AY16,SUMIF($BA$9:$BA$39,8,$BF$9:$BF$39),SUMPRODUCT(($P$44:$P$66=I16)*($Z$44:$Z$66="001"),$AF$44:$AF$66))) -> 0 | F16: =IF(SUM($B$9:E16)<=0,"",IF(SUM(B16:$E$39)=0,"",ROUNDDOWN(SUM($C$5,$B$9:C16)-SUM($D$9:E16),-0.1))) ->  | I16: 8 | Y16: ='8'!$X$12 -> 0 | AE16: =IF(日別輸送実績表!$B$56=2,'8'!$R$15,"") ->  | AU16: ='8'!$D$13 -> 0 | AX16: =SUM(日別輸送実績表!AG21,日別輸送実績表!AN21,'8'!$R$16) -> 0 | BC16: =IF(BD16=0,"",VLOOKUP(BD16,ﾃﾞｰﾀﾍﾞｰｽ!$B$3:$C$64,2,FALSE)) -> 730 | BD16: 施設使用料 | BK16: 8 | BL16: 0 | BM16: 0 | BN16: =IF(SUM($BL$9:BM16)<=0,"",IF(SUM($BL16:$BM$39)=0,"",ROUNDDOWN(SUM($BK$5,$BL$9:BL16)-SUM($BM$9:BM16),-0.1))) -> 
B17: =SUM(日別輸送実績表!J22,日別輸送実績表!M22,日別輸送実績表!O22:P22,SUMPRODUCT(($P$44:$P$66=I17)*($S$44:$S$66="001"),$AF$44:$AF$66)) -> 0 | D17: =IF(SUMIF($BA$9:$BA$39,9,$BF$9:$BF$39)="","",SUM(T17:AY17,SUMIF($BA$9:$BA$39,9,$BF$9:$BF$39),SUMPRODUCT(($P$44:$P$66=I17)*($Z$44:$Z$66="001"),$AF$44:$AF$66))) -> 0 | F17: =IF(SUM($B$9:E17)<=0,"",IF(SUM(B17:$E$39)=0,"",ROUNDDOWN(SUM($C$5,$B$9:C17)-SUM($D$9:E17),-0.1))) ->  | I17: 9 | Y17: ='9'!$X$12 -> 0 | AE17: =IF(日別輸送実績表!$B$56=2,'9'!$R$15,"") ->  | AU17: ='9'!$D$13 -> 0 | AX17: =SUM(日別輸送実績表!AG22,日別輸送実績表!AN22,'9'!$R$16) -> 0 | BC17: =IF(BD17=0,"",VLOOKUP(BD17,ﾃﾞｰﾀﾍﾞｰｽ!$B$3:$C$64,2,FALSE)) -> 040 | BD17: 特別共済事務組合負担金 | BK17: 9 | BL17: 0 | BM17: 0 | BN17: =IF(SUM($BL$9:BM17)<=0,"",IF(SUM($BL17:$BM$39)=0,"",ROUNDDOWN(SUM($BK$5,$BL$9:BL17)-SUM($BM$9:BM17),-0.1))) -> 
B18: =SUM(日別輸送実績表!J23,日別輸送実績表!M23,日別輸送実績表!O23:P23,SUMPRODUCT(($P$44:$P$66=I18)*($S$44:$S$66="001"),$AF$44:$AF$66)) -> 0 | D18: =IF(SUMIF($BA$9:$BA$39,10,$BF$9:$BF$39)="","",SUM(T18:AY18,SUMIF($BA$9:$BA$39,10,$BF$9:$BF$39),SUMPRODUCT(($P$44:$P$66=I18)*($Z$44:$Z$66="001"),$AF$44:$AF$66))) -> 0 | F18: =IF(SUM($B$9:E18)<=0,"",IF(SUM(B18:$E$39)=0,"",ROUNDDOWN(SUM($C$5,$B$9:C18)-SUM($D$9:E18),-0.1))) ->  | I18: 10 | Y18: ='10'!$X$12 -> 0 | AE18: =IF(日別輸送実績表!$B$56=2,'10'!$R$15,"") ->  | AU18: ='10'!$D$13 -> 0 | AX18: =SUM(日別輸送実績表!AG23,日別輸送実績表!AN23,'10'!$R$16) -> 0 | BC18: =IF(BD18=0,"",VLOOKUP(BD18,ﾃﾞｰﾀﾍﾞｰｽ!$B$3:$C$64,2,FALSE)) ->  | BK18: 10 | BL18: 0 | BM18: 0 | BN18: =IF(SUM($BL$9:BM18)<=0,"",IF(SUM($BL18:$BM$39)=0,"",ROUNDDOWN(SUM($BK$5,$BL$9:BL18)-SUM($BM$9:BM18),-0.1))) -> 
B19: =SUM(日別輸送実績表!J24,日別輸送実績表!M24,日別輸送実績表!O24:P24,SUMPRODUCT(($P$44:$P$66=I19)*($S$44:$S$66="001"),$AF$44:$AF$66)) -> 0 | D19: =IF(SUMIF($BA$9:$BA$39,11,$BF$9:$BF$39)="","",SUM(T19:AY19,SUMIF($BA$9:$BA$39,11,$BF$9:$BF$39),SUMPRODUCT(($P$44:$P$66=I19)*($Z$44:$Z$66="001"),$AF$44:$AF$66))) -> 0 | F19: =IF(SUM($B$9:E19)<=0,"",IF(SUM(B19:$E$39)=0,"",ROUNDDOWN(SUM($C$5,$B$9:C19)-SUM($D$9:E19),-0.1))) ->  | I19: 11 | Y19: ='11'!$X$12 -> 0 | AE19: =IF(日別輸送実績表!$B$56=2,'11'!$R$15,"") ->  | AU19: ='11'!$D$13 -> 0 | AX19: =SUM(日別輸送実績表!AG24,日別輸送実績表!AN24,'11'!$R$16) -> 0 | BC19: =IF(BD19=0,"",VLOOKUP(BD19,ﾃﾞｰﾀﾍﾞｰｽ!$B$3:$C$64,2,FALSE)) ->  | BK19: 11 | BL19: 0 | BM19: 0 | BN19: =IF(SUM($BL$9:BM19)<=0,"",IF(SUM($BL19:$BM$39)=0,"",ROUNDDOWN(SUM($BK$5,$BL$9:BL19)-SUM($BM$9:BM19),-0.1))) -> 
B20: =SUM(日別輸送実績表!J25,日別輸送実績表!M25,日別輸送実績表!O25:P25,SUMPRODUCT(($P$44:$P$66=I20)*($S$44:$S$66="001"),$AF$44:$AF$66)) -> 0 | D20: =IF(SUMIF($BA$9:$BA$39,12,$BF$9:$BF$39)="","",SUM(T20:AY20,SUMIF($BA$9:$BA$39,12,$BF$9:$BF$39),SUMPRODUCT(($P$44:$P$66=I20)*($Z$44:$Z$66="001"),$AF$44:$AF$66))) -> 0 | F20: =IF(SUM($B$9:E20)<=0,"",IF(SUM(B20:$E$39)=0,"",ROUNDDOWN(SUM($C$5,$B$9:C20)-SUM($D$9:E20),-0.1))) ->  | I20: 12 | Y20: ='12'!$X$12 -> 0 | AE20: =IF(日別輸送実績表!$B$56=2,'12'!$R$15,"") ->  | AU20: ='12'!$D$13 -> 0 | AX20: =SUM(日別輸送実績表!AG25,日別輸送実績表!AN25,'12'!$R$16) -> 0 | BC20: =IF(BD20=0,"",VLOOKUP(BD20,ﾃﾞｰﾀﾍﾞｰｽ!$B$3:$C$64,2,FALSE)) ->  | BK20: 12 | BL20: 0 | BM20: 0 | BN20: =IF(SUM($BL$9:BM20)<=0,"",IF(SUM($BL20:$BM$39)=0,"",ROUNDDOWN(SUM($BK$5,$BL$9:BL20)-SUM($BM$9:BM20),-0.1))) -> 
B21: =SUM(日別輸送実績表!J26,日別輸送実績表!M26,日別輸送実績表!O26:P26,SUMPRODUCT(($P$44:$P$66=I21)*($S$44:$S$66="001"),$AF$44:$AF$66)) -> 0 | D21: =IF(SUMIF($BA$9:$BA$39,13,$BF$9:$BF$39)="","",SUM(T21:AY21,SUMIF($BA$9:$BA$39,13,$BF$9:$BF$39),SUMPRODUCT(($P$44:$P$66=I21)*($Z$44:$Z$66="001"),$AF$44:$AF$66))) -> 0 | F21: =IF(SUM($B$9:E21)<=0,"",IF(SUM(B21:$E$39)=0,"",ROUNDDOWN(SUM($C$5,$B$9:C21)-SUM($D$9:E21),-0.1))) ->  | I21: 13 | Y21: ='13'!$X$12 -> 0 | AE21: =IF(日別輸送実績表!$B$56=2,'13'!$R$15,"") ->  | AU21: ='13'!$D$13 -> 0 | AX21: =SUM(日別輸送実績表!AG26,日別輸送実績表!AN26,'13'!$R$16) -> 0 | BC21: =IF(BD21=0,"",VLOOKUP(BD21,ﾃﾞｰﾀﾍﾞｰｽ!$B$3:$C$64,2,FALSE)) ->  | BK21: 13 | BL21: 0 | BM21: 0 | BN21: =IF(SUM($BL$9:BM21)<=0,"",IF(SUM($BL21:$BM$39)=0,"",ROUNDDOWN(SUM($BK$5,$BL$9:BL21)-SUM($BM$9:BM21),-0.1))) -> 
B22: =SUM(日別輸送実績表!J27,日別輸送実績表!M27,日別輸送実績表!O27:P27,SUMPRODUCT(($P$44:$P$66=I22)*($S$44:$S$66="001"),$AF$44:$AF$66)) -> 0 | D22: =IF(SUMIF($BA$9:$BA$39,14,$BF$9:$BF$39)="","",SUM(T22:AY22,SUMIF($BA$9:$BA$39,14,$BF$9:$BF$39),SUMPRODUCT(($P$44:$P$66=I22)*($Z$44:$Z$66="001"),$AF$44:$AF$66))) -> 0 | F22: =IF(SUM($B$9:E22)<=0,"",IF(SUM(B22:$E$39)=0,"",ROUNDDOWN(SUM($C$5,$B$9:C22)-SUM($D$9:E22),-0.1))) ->  | I22: 14 | Y22: ='14'!$X$12 -> 0 | AE22: =IF(日別輸送実績表!$B$56=2,'14'!$R$15,"") ->  | AU22: ='14'!$D$13 -> 0 | AX22: =SUM(日別輸送実績表!AG27,日別輸送実績表!AN27,'14'!$R$16) -> 0 | BC22: =IF(BD22=0,"",VLOOKUP(BD22,ﾃﾞｰﾀﾍﾞｰｽ!$B$3:$C$64,2,FALSE)) ->  | BK22: 14 | BL22: 0 | BM22: 0 | BN22: =IF(SUM($BL$9:BM22)<=0,"",IF(SUM($BL22:$BM$39)=0,"",ROUNDDOWN(SUM($BK$5,$BL$9:BL22)-SUM($BM$9:BM22),-0.1))) -> 
B23: =SUM(日別輸送実績表!J28,日別輸送実績表!M28,日別輸送実績表!O28:P28,SUMPRODUCT(($P$44:$P$66=I23)*($S$44:$S$66="001"),$AF$44:$AF$66)) -> 0 | D23: =IF(SUMIF($BA$9:$BA$39,15,$BF$9:$BF$39)="","",SUM(T23:AY23,SUMIF($BA$9:$BA$39,15,$BF$9:$BF$39),SUMPRODUCT(($P$44:$P$66=I23)*($Z$44:$Z$66="001"),$AF$44:$AF$66))) -> 0 | F23: =IF(SUM($B$9:E23)<=0,"",IF(SUM(B23:$E$39)=0,"",ROUNDDOWN(SUM($C$5,$B$9:C23)-SUM($D$9:E23),-0.1))) ->  | I23: 15 | Y23: ='15'!$X$12 -> 0 | AE23: =IF(日別輸送実績表!$B$56=2,'15'!$R$15,"") ->  | AU23: ='15'!$D$13 -> 0 | AX23: =SUM(日別輸送実績表!AG28,日別輸送実績表!AN28,'15'!$R$16) -> 0 | BC23: =IF(BD23=0,"",VLOOKUP(BD23,ﾃﾞｰﾀﾍﾞｰｽ!$B$3:$C$64,2,FALSE)) ->  | BK23: 15 | BL23: 0 | BM23: 0 | BN23: =IF(SUM($BL$9:BM23)<=0,"",IF(SUM($BL23:$BM$39)=0,"",ROUNDDOWN(SUM($BK$5,$BL$9:BL23)-SUM($BM$9:BM23),-0.1))) -> 
B24: =SUM(日別輸送実績表!J29,日別輸送実績表!M29,日別輸送実績表!O29:P29,SUMPRODUCT(($P$44:$P$66=I24)*($S$44:$S$66="001"),$AF$44:$AF$66)) -> 0 | D24: =IF(SUMIF($BA$9:$BA$39,16,$BF$9:$BF$39)="","",SUM(T24:AY24,SUMIF($BA$9:$BA$39,16,$BF$9:$BF$39),SUMPRODUCT(($P$44:$P$66=I24)*($Z$44:$Z$66="001"),$AF$44:$AF$66))) -> 0 | F24: =IF(SUM($B$9:E24)<=0,"",IF(SUM(B24:$E$39)=0,"",ROUNDDOWN(SUM($C$5,$B$9:C24)-SUM($D$9:E24),-0.1))) ->  | I24: 16 | Y24: ='16'!$X$12 -> 0 | AE24: =IF(日別輸送実績表!$B$56=2,'16'!$R$15,"") ->  | AU24: ='16'!$D$13 -> 0 | AX24: =SUM(日別輸送実績表!AG29,日別輸送実績表!AN29,'16'!$R$16) -> 0 | BC24: =IF(BD24=0,"",VLOOKUP(BD24,ﾃﾞｰﾀﾍﾞｰｽ!$B$3:$C$64,2,FALSE)) ->  | BK24: 16 | BL24: 0 | BM24: 0 | BN24: =IF(SUM($BL$9:BM24)<=0,"",IF(SUM($BL24:$BM$39)=0,"",ROUNDDOWN(SUM($BK$5,$BL$9:BL24)-SUM($BM$9:BM24),-0.1))) -> 
B25: =SUM(日別輸送実績表!J30,日別輸送実績表!M30,日別輸送実績表!O30:P30,SUMPRODUCT(($P$44:$P$66=I25)*($S$44:$S$66="001"),$AF$44:$AF$66)) -> 0 | D25: =IF(SUMIF($BA$9:$BA$39,17,$BF$9:$BF$39)="","",SUM(T25:AY25,SUMIF($BA$9:$BA$39,17,$BF$9:$BF$39),SUMPRODUCT(($P$44:$P$66=I25)*($Z$44:$Z$66="001"),$AF$44:$AF$66))) -> 0 | F25: =IF(SUM($B$9:E25)<=0,"",IF(SUM(B25:$E$39)=0,"",ROUNDDOWN(SUM($C$5,$B$9:C25)-SUM($D$9:E25),-0.1))) ->  | I25: 17 | Y25: ='17'!$X$12 -> 0 | AE25: =IF(日別輸送実績表!$B$56=2,'17'!$R$15,"") ->  | AU25: ='17'!$D$13 -> 0 | AX25: =SUM(日別輸送実績表!AG30,日別輸送実績表!AN30,'17'!$R$16) -> 0 | BC25: =IF(BD25=0,"",VLOOKUP(BD25,ﾃﾞｰﾀﾍﾞｰｽ!$B$3:$C$64,2,FALSE)) ->  | BK25: 17 | BL25: 0 | BM25: 0 | BN25: =IF(SUM($BL$9:BM25)<=0,"",IF(SUM($BL25:$BM$39)=0,"",ROUNDDOWN(SUM($BK$5,$BL$9:BL25)-SUM($BM$9:BM25),-0.1))) -> 
B26: =SUM(日別輸送実績表!J31,日別輸送実績表!M31,日別輸送実績表!O31:P31,SUMPRODUCT(($P$44:$P$66=I26)*($S$44:$S$66="001"),$AF$44:$AF$66)) -> 0 | D26: =IF(SUMIF($BA$9:$BA$39,18,$BF$9:$BF$39)="","",SUM(T26:AY26,SUMIF($BA$9:$BA$39,18,$BF$9:$BF$39),SUMPRODUCT(($P$44:$P$66=I26)*($Z$44:$Z$66="001"),$AF$44:$AF$66))) -> 0 | F26: =IF(SUM($B$9:E26)<=0,"",IF(SUM(B26:$E$39)=0,"",ROUNDDOWN(SUM($C$5,$B$9:C26)-SUM($D$9:E26),-0.1))) ->  | I26: 18 | Y26: ='18'!$X$12 -> 0 | AE26: =IF(日別輸送実績表!$B$56=2,'18'!$R$15,"") ->  | AU26: ='18'!$D$13 -> 0 | AX26: =SUM(日別輸送実績表!AG31,日別輸送実績表!AN31,'18'!$R$16) -> 0 | BC26: =IF(BD26=0,"",VLOOKUP(BD26,ﾃﾞｰﾀﾍﾞｰｽ!$B$3:$C$64,2,FALSE)) ->  | BK26: 18 | BL26: 0 | BM26: 0 | BN26: =IF(SUM($BL$9:BM26)<=0,"",IF(SUM($BL26:$BM$39)=0,"",ROUNDDOWN(SUM($BK$5,$BL$9:BL26)-SUM($BM$9:BM26),-0.1))) -> 
B27: =SUM(日別輸送実績表!J32,日別輸送実績表!M32,日別輸送実績表!O32:P32,SUMPRODUCT(($P$44:$P$66=I27)*($S$44:$S$66="001"),$AF$44:$AF$66)) -> 0 | D27: =IF(SUMIF($BA$9:$BA$39,19,$BF$9:$BF$39)="","",SUM(T27:AY27,SUMIF($BA$9:$BA$39,19,$BF$9:$BF$39),SUMPRODUCT(($P$44:$P$66=I27)*($Z$44:$Z$66="001"),$AF$44:$AF$66))) -> 0 | F27: =IF(SUM($B$9:E27)<=0,"",IF(SUM(B27:$E$39)=0,"",ROUNDDOWN(SUM($C$5,$B$9:C27)-SUM($D$9:E27),-0.1))) ->  | I27: 19 | Y27: ='19'!$X$12 -> 0 | AE27: =IF(日別輸送実績表!$B$56=2,'19'!$R$15,"") ->  | AU27: ='19'!$D$13 -> 0 | AX27: =SUM(日別輸送実績表!AG32,日別輸送実績表!AN32,'19'!$R$16) -> 0 | BC27: =IF(BD27=0,"",VLOOKUP(BD27,ﾃﾞｰﾀﾍﾞｰｽ!$B$3:$C$64,2,FALSE)) ->  | BK27: 19 | BL27: 0 | BM27: 0 | BN27: =IF(SUM($BL$9:BM27)<=0,"",IF(SUM($BL27:$BM$39)=0,"",ROUNDDOWN(SUM($BK$5,$BL$9:BL27)-SUM($BM$9:BM27),-0.1))) -> 
B28: =SUM(日別輸送実績表!J33,日別輸送実績表!M33,日別輸送実績表!O33:P33,SUMPRODUCT(($P$44:$P$66=I28)*($S$44:$S$66="001"),$AF$44:$AF$66)) -> 0 | D28: =IF(SUMIF($BA$9:$BA$39,20,$BF$9:$BF$39)="","",SUM(T28:AY28,SUMIF($BA$9:$BA$39,20,$BF$9:$BF$39),SUMPRODUCT(($P$44:$P$66=I28)*($Z$44:$Z$66="001"),$AF$44:$AF$66))) -> 0 | F28: =IF(SUM($B$9:E28)<=0,"",IF(SUM(B28:$E$39)=0,"",ROUNDDOWN(SUM($C$5,$B$9:C28)-SUM($D$9:E28),-0.1))) ->  | I28: 20 | Y28: ='20'!$X$12 -> 0 | AE28: =IF(日別輸送実績表!$B$56=2,'20'!$R$15,"") ->  | AU28: ='20'!$D$13 -> 0 | AX28: =SUM(日別輸送実績表!AG33,日別輸送実績表!AN33,'20'!$R$16) -> 0 | BC28: =IF(BD28=0,"",VLOOKUP(BD28,ﾃﾞｰﾀﾍﾞｰｽ!$B$3:$C$64,2,FALSE)) ->  | BK28: 20 | BL28: 0 | BM28: 0 | BN28: =IF(SUM($BL$9:BM28)<=0,"",IF(SUM($BL28:$BM$39)=0,"",ROUNDDOWN(SUM($BK$5,$BL$9:BL28)-SUM($BM$9:BM28),-0.1))) -> 
B29: =SUM(日別輸送実績表!J34,日別輸送実績表!M34,日別輸送実績表!O34:P34,SUMPRODUCT(($P$44:$P$66=I29)*($S$44:$S$66="001"),$AF$44:$AF$66)) -> 0 | D29: =IF(SUMIF($BA$9:$BA$39,21,$BF$9:$BF$39)="","",SUM(T29:AY29,SUMIF($BA$9:$BA$39,21,$BF$9:$BF$39),SUMPRODUCT(($P$44:$P$66=I29)*($Z$44:$Z$66="001"),$AF$44:$AF$66))) -> 0 | F29: =IF(SUM($B$9:E29)<=0,"",IF(SUM(B29:$E$39)=0,"",ROUNDDOWN(SUM($C$5,$B$9:C29)-SUM($D$9:E29),-0.1))) ->  | I29: 21 | Y29: ='21'!$X$12 -> 0 | AE29: =IF(日別輸送実績表!$B$56=2,'21'!$R$15,"") ->  | AU29: ='21'!$D$13 -> 0 | AX29: =SUM(日別輸送実績表!AG34,日別輸送実績表!AN34,'21'!$R$16) -> 0 | BC29: =IF(BD29=0,"",VLOOKUP(BD29,ﾃﾞｰﾀﾍﾞｰｽ!$B$3:$C$64,2,FALSE)) ->  | BK29: 21 | BL29: 0 | BM29: 0 | BN29: =IF(SUM($BL$9:BM29)<=0,"",IF(SUM($BL29:$BM$39)=0,"",ROUNDDOWN(SUM($BK$5,$BL$9:BL29)-SUM($BM$9:BM29),-0.1))) -> 
B30: =SUM(日別輸送実績表!J35,日別輸送実績表!M35,日別輸送実績表!O35:P35,SUMPRODUCT(($P$44:$P$66=I30)*($S$44:$S$66="001"),$AF$44:$AF$66)) -> 0 | D30: =IF(SUMIF($BA$9:$BA$39,22,$BF$9:$BF$39)="","",SUM(T30:AY30,SUMIF($BA$9:$BA$39,22,$BF$9:$BF$39),SUMPRODUCT(($P$44:$P$66=I30)*($Z$44:$Z$66="001"),$AF$44:$AF$66))) -> 0 | F30: =IF(SUM($B$9:E30)<=0,"",IF(SUM(B30:$E$39)=0,"",ROUNDDOWN(SUM($C$5,$B$9:C30)-SUM($D$9:E30),-0.1))) ->  | I30: 22 | Y30: ='22'!$X$12 -> 0 | AE30: =IF(日別輸送実績表!$B$56=2,'22'!$R$15,"") ->  | AU30: ='22'!$D$13 -> 0 | AX30: =SUM(日別輸送実績表!AG35,日別輸送実績表!AN35,'22'!$R$16) -> 0 | BC30: =IF(BD30=0,"",VLOOKUP(BD30,ﾃﾞｰﾀﾍﾞｰｽ!$B$3:$C$64,2,FALSE)) ->  | BK30: 22 | BL30: 0 | BM30: 0 | BN30: =IF(SUM($BL$9:BM30)<=0,"",IF(SUM($BL30:$BM$39)=0,"",ROUNDDOWN(SUM($BK$5,$BL$9:BL30)-SUM($BM$9:BM30),-0.1))) -> 
B31: =SUM(日別輸送実績表!J36,日別輸送実績表!M36,日別輸送実績表!O36:P36,SUMPRODUCT(($P$44:$P$66=I31)*($S$44:$S$66="001"),$AF$44:$AF$66)) -> 0 | D31: =IF(SUMIF($BA$9:$BA$39,23,$BF$9:$BF$39)="","",SUM(T31:AY31,SUMIF($BA$9:$BA$39,23,$BF$9:$BF$39),SUMPRODUCT(($P$44:$P$66=I31)*($Z$44:$Z$66="001"),$AF$44:$AF$66))) -> 0 | F31: =IF(SUM($B$9:E31)<=0,"",IF(SUM(B31:$E$39)=0,"",ROUNDDOWN(SUM($C$5,$B$9:C31)-SUM($D$9:E31),-0.1))) ->  | I31: 23 | Y31: ='23'!$X$12 -> 0 | AE31: =IF(日別輸送実績表!$B$56=2,'23'!$R$15,"") ->  | AU31: ='23'!$D$13 -> 0 | AX31: =SUM(日別輸送実績表!AG36,日別輸送実績表!AN36,'23'!$R$16) -> 0 | BC31: =IF(BD31=0,"",VLOOKUP(BD31,ﾃﾞｰﾀﾍﾞｰｽ!$B$3:$C$64,2,FALSE)) ->  | BK31: 23 | BL31: 0 | BM31: 0 | BN31: =IF(SUM($BL$9:BM31)<=0,"",IF(SUM($BL31:$BM$39)=0,"",ROUNDDOWN(SUM($BK$5,$BL$9:BL31)-SUM($BM$9:BM31),-0.1))) -> 
B32: =SUM(日別輸送実績表!J37,日別輸送実績表!M37,日別輸送実績表!O37:P37,SUMPRODUCT(($P$44:$P$66=I32)*($S$44:$S$66="001"),$AF$44:$AF$66)) -> 0 | D32: =IF(SUMIF($BA$9:$BA$39,24,$BF$9:$BF$39)="","",SUM(T32:AY32,SUMIF($BA$9:$BA$39,24,$BF$9:$BF$39),SUMPRODUCT(($P$44:$P$66=I32)*($Z$44:$Z$66="001"),$AF$44:$AF$66))) -> 0 | F32: =IF(SUM($B$9:E32)<=0,"",IF(SUM(B32:$E$39)=0,"",ROUNDDOWN(SUM($C$5,$B$9:C32)-SUM($D$9:E32),-0.1))) ->  | I32: 24 | Y32: ='24'!$X$12 -> 0 | AE32: =IF(日別輸送実績表!$B$56=2,'24'!$R$15,"") ->  | AU32: ='24'!$D$13 -> 0 | AX32: =SUM(日別輸送実績表!AG37,日別輸送実績表!AN37,'24'!$R$16) -> 0 | BC32: =IF(BD32=0,"",VLOOKUP(BD32,ﾃﾞｰﾀﾍﾞｰｽ!$B$3:$C$64,2,FALSE)) ->  | BK32: 24 | BL32: 0 | BM32: 0 | BN32: =IF(SUM($BL$9:BM32)<=0,"",IF(SUM($BL32:$BM$39)=0,"",ROUNDDOWN(SUM($BK$5,$BL$9:BL32)-SUM($BM$9:BM32),-0.1))) -> 
B33: =SUM(日別輸送実績表!J38,日別輸送実績表!M38,日別輸送実績表!O38:P38,SUMPRODUCT(($P$44:$P$66=I33)*($S$44:$S$66="001"),$AF$44:$AF$66)) -> 0 | D33: =IF(SUMIF($BA$9:$BA$39,25,$BF$9:$BF$39)="","",SUM(T33:AY33,SUMIF($BA$9:$BA$39,25,$BF$9:$BF$39),SUMPRODUCT(($P$44:$P$66=I33)*($Z$44:$Z$66="001"),$AF$44:$AF$66))) -> 0 | F33: =IF(SUM($B$9:E33)<=0,"",IF(SUM(B33:$E$39)=0,"",ROUNDDOWN(SUM($C$5,$B$9:C33)-SUM($D$9:E33),-0.1))) ->  | I33: 25 | Y33: ='25'!$X$12 -> 0 | AE33: =IF(日別輸送実績表!$B$56=2,'25'!$R$15,"") ->  | AU33: ='25'!$D$13 -> 0 | AX33: =SUM(日別輸送実績表!AG38,日別輸送実績表!AN38,'25'!$R$16) -> 0 | BC33: =IF(BD33=0,"",VLOOKUP(BD33,ﾃﾞｰﾀﾍﾞｰｽ!$B$3:$C$64,2,FALSE)) ->  | BK33: 25 | BL33: 0 | BM33: 0 | BN33: =IF(SUM($BL$9:BM33)<=0,"",IF(SUM($BL33:$BM$39)=0,"",ROUNDDOWN(SUM($BK$5,$BL$9:BL33)-SUM($BM$9:BM33),-0.1))) -> 
B34: =SUM(日別輸送実績表!J39,日別輸送実績表!M39,日別輸送実績表!O39:P39,SUMPRODUCT(($P$44:$P$66=I34)*($S$44:$S$66="001"),$AF$44:$AF$66)) -> 0 | D34: =IF(SUMIF($BA$9:$BA$39,26,$BF$9:$BF$39)="","",SUM(T34:AY34,SUMIF($BA$9:$BA$39,26,$BF$9:$BF$39),SUMPRODUCT(($P$44:$P$66=I34)*($Z$44:$Z$66="001"),$AF$44:$AF$66))) -> 0 | F34: =IF(SUM($B$9:E34)<=0,"",IF(SUM(B34:$E$39)=0,"",ROUNDDOWN(SUM($C$5,$B$9:C34)-SUM($D$9:E34),-0.1))) ->  | I34: 26 | Y34: ='26'!$X$12 -> 0 | AE34: =IF(日別輸送実績表!$B$56=2,'26'!$R$15,"") ->  | AU34: ='26'!$D$13 -> 0 | AX34: =SUM(日別輸送実績表!AG39,日別輸送実績表!AN39,'26'!$R$16) -> 0 | BC34: =IF(BD34=0,"",VLOOKUP(BD34,ﾃﾞｰﾀﾍﾞｰｽ!$B$3:$C$64,2,FALSE)) ->  | BK34: 26 | BL34: 0 | BM34: 0 | BN34: =IF(SUM($BL$9:BM34)<=0,"",IF(SUM($BL34:$BM$39)=0,"",ROUNDDOWN(SUM($BK$5,$BL$9:BL34)-SUM($BM$9:BM34),-0.1))) -> 
B35: =SUM(日別輸送実績表!J40,日別輸送実績表!M40,日別輸送実績表!O40:P40,SUMPRODUCT(($P$44:$P$66=I35)*($S$44:$S$66="001"),$AF$44:$AF$66)) -> 0 | D35: =IF(SUMIF($BA$9:$BA$39,27,$BF$9:$BF$39)="","",SUM(T35:AY35,SUMIF($BA$9:$BA$39,27,$BF$9:$BF$39),SUMPRODUCT(($P$44:$P$66=I35)*($Z$44:$Z$66="001"),$AF$44:$AF$66))) -> 0 | F35: =IF(SUM($B$9:E35)<=0,"",IF(SUM(B35:$E$39)=0,"",ROUNDDOWN(SUM($C$5,$B$9:C35)-SUM($D$9:E35),-0.1))) ->  | I35: 27 | Y35: ='27'!$X$12 -> 0 | AE35: =IF(日別輸送実績表!$B$56=2,'27'!$R$15,"") ->  | AU35: ='27'!$D$13 -> 0 | AX35: =SUM(日別輸送実績表!AG40,日別輸送実績表!AN40,'27'!$R$16) -> 0 | BC35: =IF(BD35=0,"",VLOOKUP(BD35,ﾃﾞｰﾀﾍﾞｰｽ!$B$3:$C$64,2,FALSE)) ->  | BK35: 27 | BL35: 0 | BM35: 0 | BN35: =IF(SUM($BL$9:BM35)<=0,"",IF(SUM($BL35:$BM$39)=0,"",ROUNDDOWN(SUM($BK$5,$BL$9:BL35)-SUM($BM$9:BM35),-0.1))) -> 
B36: =SUM(日別輸送実績表!J41,日別輸送実績表!M41,日別輸送実績表!O41:P41,SUMPRODUCT(($P$44:$P$66=I36)*($S$44:$S$66="001"),$AF$44:$AF$66)) -> 0 | D36: =IF(SUMIF($BA$9:$BA$39,28,$BF$9:$BF$39)="","",SUM(T36:AY36,SUMIF($BA$9:$BA$39,28,$BF$9:$BF$39),SUMPRODUCT(($P$44:$P$66=I36)*($Z$44:$Z$66="001"),$AF$44:$AF$66))) -> 0 | F36: =IF(SUM($B$9:E36)<=0,"",IF(SUM(B36:$E$39)=0,"",ROUNDDOWN(SUM($C$5,$B$9:C36)-SUM($D$9:E36),-0.1))) ->  | I36: 28 | Y36: ='28'!$X$12 -> 0 | AE36: =IF(日別輸送実績表!$B$56=2,'28'!$R$15,"") ->  | AU36: ='28'!$D$13 -> 0 | AX36: =SUM(日別輸送実績表!AG41,日別輸送実績表!AN41,'28'!$R$16) -> 0 | BC36: =IF(BD36=0,"",VLOOKUP(BD36,ﾃﾞｰﾀﾍﾞｰｽ!$B$3:$C$64,2,FALSE)) ->  | BK36: 28 | BL36: 0 | BM36: 0 | BN36: =IF(SUM($BL$9:BM36)<=0,"",IF(SUM($BL36:$BM$39)=0,"",ROUNDDOWN(SUM($BK$5,$BL$9:BL36)-SUM($BM$9:BM36),-0.1))) -> 
B37: =SUM(日別輸送実績表!J42,日別輸送実績表!M42,日別輸送実績表!O42:P42,SUMPRODUCT(($P$44:$P$66=I37)*($S$44:$S$66="001"),$AF$44:$AF$66)) -> 0 | D37: =IF(SUMIF($BA$9:$BA$39,29,$BF$9:$BF$39)="","",SUM(T37:AY37,SUMIF($BA$9:$BA$39,29,$BF$9:$BF$39),SUMPRODUCT(($P$44:$P$66=I37)*($Z$44:$Z$66="001"),$AF$44:$AF$66))) -> 0 | F37: =IF(SUM($B$9:E37)<=0,"",IF(SUM(B37:$E$39)=0,"",ROUNDDOWN(SUM($C$5,$B$9:C37)-SUM($D$9:E37),-0.1))) ->  | I37: 29 | Y37: ='29'!$X$12 -> 0 | AE37: =IF(日別輸送実績表!$B$56=2,'29'!$R$15,"") ->  | AU37: ='29'!$D$13 -> 0 | AX37: =SUM(日別輸送実績表!AG42,日別輸送実績表!AN42,'29'!$R$16) -> 0 | BC37: =IF(BD37=0,"",VLOOKUP(BD37,ﾃﾞｰﾀﾍﾞｰｽ!$B$3:$C$64,2,FALSE)) ->  | BK37: 29 | BL37: 0 | BM37: 0 | BN37: =IF(SUM($BL$9:BM37)<=0,"",IF(SUM($BL37:$BM$39)=0,"",ROUNDDOWN(SUM($BK$5,$BL$9:BL37)-SUM($BM$9:BM37),-0.1))) -> 
B38: =SUM(日別輸送実績表!J43,日別輸送実績表!M43,日別輸送実績表!O43:P43,SUMPRODUCT(($P$44:$P$66=I38)*($S$44:$S$66="001"),$AF$44:$AF$66)) -> 0 | D38: =IF(SUMIF($BA$9:$BA$39,30,$BF$9:$BF$39)="","",SUM(T38:AY38,SUMIF($BA$9:$BA$39,30,$BF$9:$BF$39),SUMPRODUCT(($P$44:$P$66=I38)*($Z$44:$Z$66="001"),$AF$44:$AF$66))) -> 0 | F38: =IF(SUM($B$9:E38)<=0,"",IF(SUM(B38:$E$39)=0,"",ROUNDDOWN(SUM($C$5,$B$9:C38)-SUM($D$9:E38),-0.1))) ->  | I38: 30 | Y38: ='30'!$X$12 -> 0 | AE38: =IF(日別輸送実績表!$B$56=2,'30'!$R$15,"") ->  | AU38: ='30'!$D$13 -> 0 | AX38: =SUM(日別輸送実績表!AG43,日別輸送実績表!AN43,'30'!$R$16) -> 0 | BC38: =IF(BD38=0,"",VLOOKUP(BD38,ﾃﾞｰﾀﾍﾞｰｽ!$B$3:$C$64,2,FALSE)) ->  | BK38: 30 | BL38: 0 | BM38: 0 | BN38: =IF(SUM($BL$9:BM38)<=0,"",IF(SUM($BL38:$BM$39)=0,"",ROUNDDOWN(SUM($BK$5,$BL$9:BL38)-SUM($BM$9:BM38),-0.1))) -> 
B39: =SUM(日別輸送実績表!J44,日別輸送実績表!M44,日別輸送実績表!O44:P44,SUMPRODUCT(($P$44:$P$66=I39)*($S$44:$S$66="001"),$AF$44:$AF$66)) -> 0 | D39: =IF(SUMIF($BA$9:$BA$39,31,$BF$9:$BF$39)="","",SUM(T39:AY39,SUMIF($BA$9:$BA$39,31,$BF$9:$BF$39),SUMPRODUCT(($P$44:$P$66=I39)*($Z$44:$Z$66="001"),$AF$44:$AF$66))) -> 0 | F39: =IF(SUM($B$9:E39)<=0,"",IF(SUM(B39:$E$39)=0,"",ROUNDDOWN(SUM($C$5,$B$9:C39)-SUM($D$9:E39),-0.1))) ->  | I39: 31 | Y39: ='31'!$X$12 -> 0 | AE39: =IF(日別輸送実績表!$B$56=2,'31'!$R$15,"") ->  | AU39: ='31'!$D$13 -> 0 | AX39: =SUM(日別輸送実績表!AG44,日別輸送実績表!AN44,'31'!$R$16) -> 0 | BC39: =IF(BD39=0,"",VLOOKUP(BD39,ﾃﾞｰﾀﾍﾞｰｽ!$B$3:$C$64,2,FALSE)) ->  | BK39: 31 | BL39: 0 | BM39: 0 | BN39: =IF(SUM($BL$9:BM39)<=0,"",IF(SUM($BL39:$BM$39)=0,"",ROUNDDOWN(SUM($BK$5,$BL$9:BL39)-SUM($BM$9:BM39),-0.1))) -> 
B40: =SUM(B9:B39) -> 0 | D40: =SUM(D9:D39) -> 0 | F40: =IF(SUM(B40:E40)=$C$5,"",ROUNDDOWN(SUM(C5,B40-D40),-0.1)) ->  | I40: 合 計 | T40: =SUM(T9:X39) -> 0 | Y40: =SUM(Y9:Z39) -> 0 | AA40: =SUM(AA9:AD39) -> 0 | AE40: =ROUNDDOWN(SUM(AE9:AG39),-0.1) -> 0 | AH40: =SUM(AH9:AH39) -> 0 | AJ40: =SUM(AJ9:AJ39) -> 0 | AK40: =SUM(AK9:AM39) -> 0 | AN40: =SUM(AN9:AP39) -> 0 | AQ40: =SUM(AQ9:AQ39) -> 0 | AU40: =SUM(AU9:AW39) -> 0 | AX40: =SUM(AX9:AY39) -> 0 | BF40: =SUMIF(BA9:BB39,">=0",BF9:BG39) -> 0 | BK40: 合計 | BL40: =SUM(BL9:BL39) -> 0 | BM40: =SUM(BM9:BM39) -> 0 | BN40: =IF(SUM(BL40:BM40)=0,BK5,ROUNDDOWN(SUM(BK5,BL40,-BM40),-0.1)) -> 0
B42: 普通預金支払 | C42: 日付 | D42: コード | E42: 借方科目名 | G42: 金額 | J42: 適用 | O42: 振替科目欄 | P42: 日付 | S42: 借方 | Z42: 貸方 | AF42: 金 額 | AI42: 適 用 | AO42: 日付 | AP42: 借方 | AV42: 貸方 | BB42: 金額 | BE42: 適用
D43: =IF(E43=0,"",VLOOKUP(E43,ﾃﾞｰﾀﾍﾞｰｽ!$B$3:$C$64,2,FALSE)) -> 103 | E43: 借入金 | S43: コード | V43: 借方科目名 | Z43: コード | AB43: 貸方科目名 | AP43: コード | AR43: 借科目名 | AV43: コード | AX43: 貸科目名
D44: =IF(E44=0,"",VLOOKUP(E44,ﾃﾞｰﾀﾍﾞｰｽ!$B$3:$C$64,2,FALSE)) -> 722 | E44: 支払利息 | S44: =IF(V44=0,"",VLOOKUP(V44,ﾃﾞｰﾀﾍﾞｰｽ!$B$3:$C$64,2,FALSE)) -> 003 | V44: 普通預金 | Z44: =IF(AB44=0,"",VLOOKUP(AB44,ﾃﾞｰﾀﾍﾞｰｽ!$B$3:$C$64,2,FALSE)) -> 001 | AB44: 現金 | AI44: 預金口座へ資金移動 | AO44: 1900-01-10 | AP44: =IF(AR44=0,"",VLOOKUP(AR44,ﾃﾞｰﾀﾍﾞｰｽ!$B$3:$C$64,2,FALSE)) -> 104 | AR44: 未払金 | AV44: =IF(AX44=0,"",VLOOKUP(AX44,ﾃﾞｰﾀﾍﾞｰｽ!$B$3:$C$64,2,FALSE)) -> 000 | AX44: 諸口 | BB44: =$BM$49 -> 0 | BF44: 月分
D45: =IF(E45=0,"",VLOOKUP(E45,ﾃﾞｰﾀﾍﾞｰｽ!$B$3:$C$64,2,FALSE)) -> 707 | E45: 燃料費 | S45: =IF(V45=0,"",VLOOKUP(V45,ﾃﾞｰﾀﾍﾞｰｽ!$B$3:$C$64,2,FALSE)) -> 713 | V45: 賃借料 | Z45: =IF(AB45=0,"",VLOOKUP(AB45,ﾃﾞｰﾀﾍﾞｰｽ!$B$3:$C$64,2,FALSE)) -> 003 | AB45: 普通預金 | AI45: 車庫代 長太郎不動産（株） | AP45: =IF(AR45=0,"",VLOOKUP(AR45,ﾃﾞｰﾀﾍﾞｰｽ!$B$3:$C$64,2,FALSE)) -> 750 | AR45: 雑費 | AV45: =IF(AX45=0,"",VLOOKUP(AX45,ﾃﾞｰﾀﾍﾞｰｽ!$B$3:$C$64,2,FALSE)) -> 000 | AX45: 諸口 | BE45: ETC手数料
D46: =IF(E46=0,"",VLOOKUP(E46,ﾃﾞｰﾀﾍﾞｰｽ!$B$3:$C$64,2,FALSE)) -> 727 | E46: リース料 | S46: =IF(V46=0,"",VLOOKUP(V46,ﾃﾞｰﾀﾍﾞｰｽ!$B$3:$C$64,2,FALSE)) ->  | Z46: =IF(AB46=0,"",VLOOKUP(AB46,ﾃﾞｰﾀﾍﾞｰｽ!$B$3:$C$64,2,FALSE)) ->  | AO46: 1900-01-10 | AP46: =IF(AR46=0,"",VLOOKUP(AR46,ﾃﾞｰﾀﾍﾞｰｽ!$B$3:$C$64,2,FALSE)) -> 000 | AR46: 諸口 | AV46: =IF(AX46=0,"",VLOOKUP(AX46,ﾃﾞｰﾀﾍﾞｰｽ!$B$3:$C$64,2,FALSE)) -> 003 | AX46: 普通預金 | BB46: =SUM(BB44-BB47,BB45) -> 0 | BE46: ETC支払
D47: =IF(E47=0,"",VLOOKUP(E47,ﾃﾞｰﾀﾍﾞｰｽ!$B$3:$C$64,2,FALSE)) ->  | S47: =IF(V47=0,"",VLOOKUP(V47,ﾃﾞｰﾀﾍﾞｰｽ!$B$3:$C$64,2,FALSE)) ->  | Z47: =IF(AB47=0,"",VLOOKUP(AB47,ﾃﾞｰﾀﾍﾞｰｽ!$B$3:$C$64,2,FALSE)) ->  | AP47: =IF(AR47=0,"",VLOOKUP(AR47,ﾃﾞｰﾀﾍﾞｰｽ!$B$3:$C$64,2,FALSE)) -> 000 | AR47: 諸口 | AV47: =IF(AX47=0,"",VLOOKUP(AX47,ﾃﾞｰﾀﾍﾞｰｽ!$B$3:$C$64,2,FALSE)) -> 610 | AX47: 雑収入 | BE47: ETC割引料 | BK47: 立替金 | BM47: =日別輸送実績表!$N$54 -> 0
D48: =IF(E48=0,"",VLOOKUP(E48,ﾃﾞｰﾀﾍﾞｰｽ!$B$3:$C$64,2,FALSE)) ->  | S48: =IF(V48=0,"",VLOOKUP(V48,ﾃﾞｰﾀﾍﾞｰｽ!$B$3:$C$64,2,FALSE)) ->  | Z48: =IF(AB48=0,"",VLOOKUP(AB48,ﾃﾞｰﾀﾍﾞｰｽ!$B$3:$C$64,2,FALSE)) ->  | AO48: 1900-01-30 | AP48: =IF(AR48=0,"",VLOOKUP(AR48,ﾃﾞｰﾀﾍﾞｰｽ!$B$3:$C$64,2,FALSE)) -> 012 | AR48: 売掛金(ﾁｹｯﾄ) | AV48: =IF(AX48=0,"",VLOOKUP(AX48,ﾃﾞｰﾀﾍﾞｰｽ!$B$3:$C$64,2,FALSE)) -> 013 | AX48: 売掛金(ｶｰﾄﾞ) | BB48: =IF(日別輸送実績表!A56=2,"",SUM(日別輸送実績表!AJ46,-SUMIF(日別輸送実績表!AM12:AM44,"",日別輸送実績表!AJ12:AJ44))) -> 0 | BE48: チケット売掛金からカード売掛金振替 | BK48: 交通費 | BM48: =日別輸送実績表!$O$54 -> 0
C49: 合 計 | G49: =SUMIF(C43:C48,">=0",G43:J48) -> 0 | S49: =IF(V49=0,"",VLOOKUP(V49,ﾃﾞｰﾀﾍﾞｰｽ!$B$3:$C$64,2,FALSE)) ->  | Z49: =IF(AB49=0,"",VLOOKUP(AB49,ﾃﾞｰﾀﾍﾞｰｽ!$B$3:$C$64,2,FALSE)) ->  | AP49: =IF(AR49=0,"",VLOOKUP(AR49,ﾃﾞｰﾀﾍﾞｰｽ!$B$3:$C$64,2,FALSE)) ->  | AV49: =IF(AX49=0,"",VLOOKUP(AX49,ﾃﾞｰﾀﾍﾞｰｽ!$B$3:$C$64,2,FALSE)) ->  | BK49: 合計 | BM49: =SUM(BM47:BM48) -> 0
P50: =$AO$44 -> 10 | S50: =AP44 -> 104 | V50: =AR44 -> 未払金 | Z50: =AV44 -> 000 | AB50: =AX44 -> 諸口 | AF50: =BB44 -> 0
P51: =$AO$45 -> 0 | S51: =AP45 -> 750 | V51: 雑費 | Z51: =AV45 -> 000 | AB51: 諸口 | AF51: 0
P52: =$AO$46 -> 10 | S52: =$AP$46 -> 000 | V52: 諸口 | Z52: =$AV$46 -> 003 | AB52: 普通預金 | AF52: 0
P53: =$AO$47 -> 0 | S53: =AP47 -> 000 | V53: 諸口 | Z53: =AV47 -> 610 | AB53: 雑収入 | AF53: 0
P54: =$AO$48 -> 30 | S54: =AP48 -> 012 | V54: 売掛金(ﾁｹｯﾄ) | Z54: =AV48 -> 013 | AB54: 売掛金(ｶｰﾄﾞ) | AF54: 0
P55: =$AO$49 -> 0 | S55: =AP49 ->  | V55: 0 | Z55: =AV49 ->  | AB55: 0 | AF55: 0
P56: =C43 -> 0 | S56: =$D43 -> 103 | V56: =$E43 -> 借入金 | Z56: 003 | AB56: 普通預金 | AF56: =G43 -> 0
P57: 0 | S57: =$D44 -> 722 | V57: =$E44 -> 支払利息 | Z57: 003 | AB57: 普通預金 | AF57: 0
P58: 0 | S58: 707 | V58: 燃料費 | Z58: 003 | AB58: 普通預金 | AF58: 0
P59: 0 | S59: 727 | V59: リース料 | Z59: 003 | AB59: 普通預金 | AF59: 0
P60: 0 | V60: 0 | Z60: 003 | AB60: 普通預金 | AF60: 0
P61: 0 | V61: 0 | Z61: 003 | AB61: 普通預金 | AF61: 0
P62: =日別輸送実績表!X14 -> 0 | S62: 003 | V62: 普通預金 | Z62: 000 | AF62: =SUM(日別輸送実績表!Y14:Z14) -> 0
P63: =日別輸送実績表!X15 -> 0 | S63: 003 | V63: 普通預金 | Z63: 000 | AF63: =SUM(日別輸送実績表!Y15:Z15) -> 0
P64: =日別輸送実績表!X16 -> 0 | S64: 003 | V64: 普通預金 | Z64: 000 | AF64: =SUM(日別輸送実績表!Y16:Z16) -> 0
P65: =日別輸送実績表!X17 -> 0 | S65: 003 | V65: 普通預金 | Z65: 000 | AF65: =SUM(日別輸送実績表!Y17:Z17) -> 0
P66: =日別輸送実績表!X18 -> 0 | S66: 003 | V66: 普通預金 | Z66: 000 | AF66: =SUM(日別輸送実績表!Y18:Z18) -> 0

Sheet 1
A1: ※ | B1: この日報はCANON製両面印刷対応プリンタで両面印刷するように設計されています。
C3: 日別営業報告書 | AA3: 回数 | AB3: 人員 | AC3: 輸送経路 | AI3: 降車 時刻 | AJ3: 収受 種類 | AK3: 運 送 収 入(円) | AO3: 立替金(円) | AR3: 交通費(円) | AU3: 適用
B4: 氏名: | D4: =日別輸送実績表!$O$8 -> 0 | I4: 登録番号: | L4: =日別輸送実績表!$E$54 -> 0 | Q4: 本日の天気 | AC4: 乗車地 | AF4: 降車地 | AK4: 金額 | AM4: 雑収入 | AO4: ETC | AP4: 金額 | AR4: ETC | AS4: 金額
B6: 営業日 | F6: アルコール検知 | J6: 出庫時間 | L6: 入庫時間 | N6: 実労(h) | P6: 運送収入内訳(円) | U6: 立替金内訳（円） | AA6: 18 | AJ6: 現金 | AO6: FALSE | AR6: FALSE
F7: 出庫時 | H7: 入庫時
B8: =ﾃﾞｰﾀﾍﾞｰｽ!$E$3 -> 2013-08-01 | F8: 無し(適) | H8: 無し(適) | N8: =IF(COUNT(J8:L8)=2,(L8-J8-"0:00"+(J8>L8))*24,"") ->  | P8: 収受別 | R8: 金額（円） | U8: ETC | X8: 現金 | AA8: 19 | AJ8: 現金 | AO8: FALSE | AR8: FALSE
B9: 出庫(km) | D9: =IF($D$10="","",日別輸送実績表!$H$54+$N$15) ->  | F9: km | G9: 実車 (km) | I9: =IF(ISERROR(VLOOKUP(ROUNDUP($M$9,-3),実車キロ,4,TRUE))=TRUE,"",VLOOKUP(ROUNDUP($M$9,-3),実車キロ,4,TRUE)) ->  | J9: km | K9: 運送収入 | M9: =SUM(L20:L36,AL6:AL16) -> 0 | O9: 円 | P9: 現 金 | R9: =SUMIF(K20:K36,"現金",L20:L36)+SUMIF(AJ6:AJ16,"現金",AK6:AK16) -> 0 | AA9: 20 | AJ9: 現金 | AO9: FALSE | AR9: FALSE
B10: 入庫(km) | F10: km | G10: 輸送 回数 | I10: =COUNT(C20:C36,AK6:AL16) -> 0 | J10: 回 | K10: 燃料消費 | M10: =IF(ISERROR(D11/日別輸送実績表!$G$54)=TRUE,"",D11/日別輸送実績表!$G$54) ->  | O10: ℓ | P10: チケット | R10: =SUMIF(K20:K36,"チケット",L20:L36)+SUMIF(AJ6:AJ16,"チケット",AK6:AK16) -> 0 | U10: =SUMPRODUCT((K20:K36="チケット")*(P20:P36=TRUE),Q20:Q36)+SUMPRODUCT((AJ6:AJ16="チケット")*(AO6:AO16=TRUE),AP6:AP16) -> 0 | X10: =SUMPRODUCT((K20:K36="チケット")*(P20:P36=FALSE),Q20:Q36)+SUMPRODUCT((AJ6:AJ16="チケット")*(AO6:AO16=FALSE),AP6:AP16) -> 0 | AA10: 21 | AJ10: 現金 | AO10: FALSE | AR10: FALSE
B11: 走行(km) | D11: =IF(D10=0,"",IF(ISERROR(D10-D9)=TRUE,"",D10-D9)) ->  | F11: km | G11: 輸送 人員 | I11: =SUM(C20:C36,AB6:AB16) -> 0 | J11: 人 | K11: 粁収 | M11: =IF(ISERROR(M9/D11)=TRUE,"",M9/D11) ->  | O11: 円 | P11: カード | R11: =SUMIF(K20:K36,"カード",L20:L36)+SUMIF(AJ6:AJ16,"カード",AK6:AK16) -> 0 | U11: =SUMPRODUCT((K20:K36="カード")*(P20:P36=TRUE),Q20:Q36)+SUMPRODUCT((AJ6:AJ16="カード")*(AO6:AO16=TRUE),AP6:AP16) -> 0 | X11: =SUMPRODUCT((K20:K36="カード")*(P20:P36=FALSE),Q20:Q36)+SUMPRODUCT((AJ6:AJ16="カード")*(AO6:AO16=FALSE),AP6:AP16) -> 0 | AA11: 22 | AJ11: 現金 | AO11: FALSE | AR11: FALSE
B12: 交通費内訳(本日合計) | G12: 燃料関係 | K12: 実車率 | M12: =IF(ISERROR(I9/D11)=TRUE,"",I9/D11) ->  | P12: 合 計 | R12: =SUM(R9:T11) -> 0 | U12: =SUM(U10:W11) -> 0 | X12: =SUM(X10:Y11) -> 0 | AA12: 23 | AJ12: 現金 | AO12: FALSE | AR12: FALSE
B13: 現 金 | D13: =SUMIF(R17,FALSE,S17)+SUMIF(S20:S36,FALSE,T20:T36)+SUMIF(AR6:AR16,FALSE,AS6:AS16) -> 0 | F13: 円 | G13: 燃費 (ℓ/km) | I13: =IF(ISERROR(D11/M10)=TRUE,"",D11/M10) ->  | J13: km | K13: 実車粁収 | M13: =IF(ISERROR(M9/I9)=TRUE,"",M9/I9) ->  | O13: 円 | P13: 科目 | R13: 金額(円) | V13: 適用（内容） | AA13: 24 | AJ13: 現金 | AO13: FALSE | AR13: FALSE
B14: E T C | D14: =SUMIF(R17,TRUE,S17)+SUMIF(S20:S36,TRUE,T20:T36)+SUMIF(AR6:AR16,"TRUE",AS6:AS16) -> 0 | F14: 円 | G14: 燃料 単価 (ℓ/\) | I14: =日別輸送実績表!$F$54 -> 100 | J14: 円 | K14: 使用時間 | N14: 走行(km) | P14: 雑収入 | R14: =SUM(N20:O36,AM6:AO16) -> 0 | AA14: 25 | AJ14: 現金 | AO14: FALSE | AR14: FALSE
B15: 自家使用 | G15: ～ | L15: ～ | O15: km | P15: 燃料費 | AA15: 26 | AJ15: 現金 | AO15: FALSE | AR15: FALSE
B16: 回送 | G16: ～ | L16: ～ | O16: km | P16: 雑費 | AA16: 27 | AJ16: 現金 | AO16: FALSE | AR16: FALSE
B17: 休憩地 | P17: その他交通費 | R17: FALSE
B18: 回数 | C18: 人員 | D18: 輸送経路 | J18: 降車 時刻 | K18: 収受種類 | L18: 運送収入(円) | P18: 立替金(円) | S18: 交通費(円) | V18: 適用
D19: 乗車地 | G19: 降車地 | L19: 金額 | N19: 雑収入 | P19: ETC | Q19: 金額 | S19: ETC | T19: 金額
B20: 1 | K20: 現金 | P20: FALSE | S20: FALSE
B21: 2 | K21: 現金 | P21: FALSE | S21: FALSE
B22: 3 | K22: 現金 | P22: FALSE | S22: FALSE
B23: 4 | K23: 現金 | P23: FALSE
B24: 5 | K24: 現金 | P24: FALSE
B25: 6 | K25: 現金
B26: 7 | K26: 現金
B27: 8 | K27: 現金
B28: 9 | K28: 現金 | S28: FALSE
B29: 10 | K29: 現金
B30: 11 | K30: 現金 | P30: FALSE
B31: 12 | K31: 現金
B32: 13 | K32: 現金
B33: 14 | K33: 現金
B34: 15 | K34: 現金 | P34: FALSE
B35: 16 | K35: 現金
B36: 17 | K36: 現金 | P36: FALSE

Sheet 2
A1: ※ | B1: この日報はCANON製両面印刷対応プリンタで両面印刷するように設計されています。
C3: 日別営業報告書 | AA3: 回数 | AB3: 人員 | AC3: 輸送経路 | AI3: 降車 時刻 | AJ3: 収受 形態 | AK3: 運 送 収 入(円) | AO3: 立替金(円) | AR3: 交通費(円) | AU3: 適用
B4: 氏名: | D4: =日別輸送実績表!$O$8 -> 0 | I4: 登録番号: | L4: =日別輸送実績表!$E$54 -> 0 | Q4: 本日の天気 | AC4: 乗車地 | AF4: 降車地 | AK4: 金額 | AM4: 雑収入 | AO4: ETC | AP4: 金額 | AR4: ETC | AS4: 金額
B6: 営業日 | F6: アルコール検知 | J6: 出庫時間 | L6: 入庫時間 | N6: 実労(h) | P6: 運送収入内訳(円) | U6: 立替金内訳（円） | AA6: 18 | AJ6: 現金 | AO6: FALSE | AR6: FALSE
F7: 出庫時 | H7: 入庫時
B8: =ﾃﾞｰﾀﾍﾞｰｽ!$E$4 -> 2013-08-02 | F8: 無し(適) | H8: 無し(適) | N8: =IF(COUNT(J8:L8)=2,(L8-J8-"0:00"+(J8>L8))*24,"") ->  | P8: 収受別 | R8: 金額（円） | U8: ETC | X8: 現金 | AA8: 19 | AJ8: 現金 | AO8: FALSE | AR8: FALSE
B9: 出庫(km) | D9: =IF($D$10="","",MAX(ﾃﾞｰﾀﾍﾞｰｽ!$L$2:$L$3)+$N$15) ->  | F9: km | G9: 実車 (km) | I9: =IF(ISERROR(VLOOKUP(ROUNDUP($M$9,-3),実車キロ,4,TRUE))=TRUE,"",VLOOKUP(ROUNDUP($M$9,-3),実車キロ,4,TRUE)) ->  | J9: km | K9: 運送収入 | M9: =SUM(L20:L36,AL6:AL16) -> 0 | O9: 円 | P9: 現 金 | R9: =SUMIF(K20:K36,"現金",L20:L36)+SUMIF(AJ6:AJ16,"現金",AK6:AK16) -> 0 | AA9: 20 | AJ9: 現金 | AO9: FALSE | AR9: FALSE
B10: 入庫(km) | F10: km | G10: 輸送 回数 | I10: =COUNT(C20:C36,AK6:AL16) -> 0 | J10: 回 | K10: 燃料消費 | M10: =IF(ISERROR(D11/日別輸送実績表!$G$54)=TRUE,"",D11/日別輸送実績表!$G$54) ->  | O10: ℓ | P10: チケット | R10: =SUMIF(K20:K36,"チケット",L20:L36)+SUMIF(AJ6:AJ16,"チケット",AK6:AK16) -> 0 | U10: =SUMPRODUCT((K20:K36="チケット")*(P20:P36=TRUE),Q20:Q36)+SUMPRODUCT((AJ6:AJ16="チケット")*(AO6:AO16=TRUE),AP6:AP16) -> 0 | X10: =SUMPRODUCT((K20:K36="チケット")*(P20:P36=FALSE),Q20:Q36)+SUMPRODUCT((AJ6:AJ16="チケット")*(AO6:AO16=FALSE),AP6:AP16) -> 0 | AA10: 21 | AJ10: 現金 | AO10: FALSE | AR10: FALSE
B11: 走行(km) | D11: =IF(D10=0,"",IF(ISERROR(D10-D9)=TRUE,"",D10-D9)) ->  | F11: km | G11: 輸送 人員 | I11: =SUM(C20:C36,AB6:AB16) -> 0 | J11: 人 | K11: 粁収 | M11: =IF(ISERROR(M9/D11)=TRUE,"",M9/D11) ->  | O11: 円 | P11: カード | R11: =SUMIF(K20:K36,"カード",L20:L36)+SUMIF(AJ6:AJ16,"カード",AK6:AK16) -> 0 | U11: =SUMPRODUCT((K20:K36="カード")*(P20:P36=TRUE),Q20:Q36)+SUMPRODUCT((AJ6:AJ16="カード")*(AO6:AO16=TRUE),AP6:AP16) -> 0 | X11: =SUMPRODUCT((K20:K36="カード")*(P20:P36=FALSE),Q20:Q36)+SUMPRODUCT((AJ6:AJ16="カード")*(AO6:AO16=FALSE),AP6:AP16) -> 0 | AA11: 22 | AJ11: 現金 | AO11: FALSE | AR11: FALSE
B12: 交通費内訳(本日合計) | G12: 燃料関係 | K12: 実車率 | M12: =IF(ISERROR(I9/D11)=TRUE,"",I9/D11) ->  | P12: 合 計 | R12: =SUM(R9:T11) -> 0 | U12: =SUM(U10:W11) -> 0 | X12: =SUM(X10:Y11) -> 0 | AA12: 23 | AJ12: 現金 | AO12: FALSE | AR12: FALSE
B13: 現 金 | D13: =SUMIF(R17,FALSE,S17)+SUMIF(S20:S36,FALSE,T20:T36)+SUMIF(AR6:AR16,FALSE,AS6:AS16) -> 0 | F13: 円 | G13: 燃費 (ℓ/km) | I13: =IF(ISERROR(D11/M10)=TRUE,"",D11/M10) ->  | J13: km | K13: 実車粁収 | M13: =IF(ISERROR(M9/I9)=TRUE,"",M9/I9) ->  | O13: 円 | P13: 科目 | R13: 金額(円) | V13: 適用（内容） | AA13: 24 | AJ13: 現金 | AO13: FALSE | AR13: FALSE
B14: E T C | D14: =SUMIF(R17,TRUE,S17)+SUMIF(S20:S36,TRUE,T20:T36)+SUMIF(AR6:AR16,"TRUE",AS6:AS16) -> 0 | F14: 円 | G14: 燃料 単価 (ℓ/\) | I14: =日別輸送実績表!$F$54 -> 100 | J14: 円 | K14: 使用時間 | N14: 走行(km) | P14: 雑収入 | R14: =SUM(N20:O36,AM6:AO16) -> 0 | AA14: 25 | AJ14: 現金 | AO14: FALSE | AR14: FALSE
B15: 自家使用 | G15: ～ | L15: ～ | O15: km | P15: 燃料費 | R15: =IF($D$11="","",IF(ISERROR(LOOKUP(10^17,ﾃﾞｰﾀﾍﾞｰｽ!$Q$2:Q2))=TRUE,"",LOOKUP(10^17,ﾃﾞｰﾀﾍﾞｰｽ!$Q$2:Q2))) ->  | AA15: 26 | AJ15: 現金 | AO15: FALSE | AR15: FALSE
B16: 回送 | G16: ～ | L16: ～ | O16: km | P16: 雑費 | AA16: 27 | AJ16: 現金 | AO16: FALSE | AR16: FALSE
B17: 休憩地 | P17: その他交通費 | R17: FALSE
B18: 回数 | C18: 人員 | D18: 輸送経路 | J18: 降車 時刻 | K18: 収受種類 | L18: 運送収入(円) | P18: 立替金(円) | S18: 交通費(円) | V18: 適用
D19: 乗車地 | G19: 降車地 | L19: 金額 | N19: 雑収入 | P19: ETC | Q19: 金額 | S19: ETC | T19: 金額
B20: 1 | K20: 現金 | P20: FALSE | S20: FALSE
B21: 2 | K21: 現金
B22: 3 | K22: 現金 | P22: FALSE
B23: 4 | K23: 現金 | P23: FALSE
B24: 5 | K24: 現金 | P24: FALSE
B25: 6 | K25: 現金
B26: 7 | K26: 現金 | P26: FALSE
B27: 8 | K27: 現金
B28: 9 | K28: 現金
B29: 10 | K29: 現金
B30: 11 | K30: 現金 | P30: FALSE
B31: 12 | K31: 現金 | S31: FALSE
B32: 13 | K32: 現金
B33: 14 | K33: 現金
B34: 15 | K34: 現金
B35: 16 | K35: 現金
B36: 17 | K36: 現金 | P36: FALSE

Sheet 3
A1: ※ | B1: この日報はCANON製両面印刷対応プリンタで両面印刷するように設計されています。
C3: 日別営業報告書 | AA3: 回数 | AB3: 人員 | AC3: 輸送経路 | AI3: 降車 時刻 | AJ3: 収受 種類 | AK3: 運 送 収 入(円) | AO3: 立替金(円) | AR3: 交通費(円) | AU3: 適用
B4: 氏名: | D4: =日別輸送実績表!$O$8 -> 0 | I4: 登録番号: | L4: =日別輸送実績表!$E$54 -> 0 | Q4: 本日の天気 | AC4: 乗車地 | AF4: 降車地 | AK4: 金額 | AM4: 雑収入 | AO4: ETC | AP4: 金額 | AR4: ETC | AS4: 金額
B6: 営業日 | F6: アルコール検知 | J6: 出庫時間 | L6: 入庫時間 | N6: 実労(h) | P6: 運送収入内訳(円) | U6: 立替金内訳（円） | AA6: 18 | AJ6: 現金 | AO6: FALSE | AR6: FALSE
F7: 出庫時 | H7: 入庫時
B8: =ﾃﾞｰﾀﾍﾞｰｽ!$E$5 -> 2013-08-03 | F8: 無し(適) | H8: 無し(適) | N8: =IF(COUNT(J8:L8)=2,(L8-J8-"0:00"+(J8>L8))*24,"") ->  | P8: 収受別 | R8: 金額（円） | U8: ETC | X8: 現金 | AA8: 19 | AJ8: 現金 | AO8: FALSE | AR8: FALSE
B9: 出庫(km) | D9: =IF($D$10="","",MAX(ﾃﾞｰﾀﾍﾞｰｽ!$L$2:$L$4)+$N$15) ->  | F9: km | G9: 実車 (km) | I9: =IF(ISERROR(VLOOKUP(ROUNDUP($M$9,-3),実車キロ,4,TRUE))=TRUE,"",VLOOKUP(ROUNDUP($M$9,-3),実車キロ,4,TRUE)) ->  | J9: km | K9: 運送収入 | M9: =SUM(L20:L36,AL6:AL16) -> 0 | O9: 円 | P9: 現 金 | R9: =SUMIF(K20:K36,"現金",L20:L36)+SUMIF(AJ6:AJ16,"現金",AK6:AK16) -> 0 | AA9: 20 | AJ9: 現金 | AO9: FALSE | AR9: FALSE
B10: 入庫(km) | F10: km | G10: 輸送 回数 | I10: =COUNT(C20:C36,AK6:AL16) -> 0 | J10: 回 | K10: 燃料消費 | M10: =IF(ISERROR(D11/日別輸送実績表!$G$54)=TRUE,"",D11/日別輸送実績表!$G$54) ->  | O10: ℓ | P10: チケット | R10: =SUMIF(K20:K36,"チケット",L20:L36)+SUMIF(AJ6:AJ16,"チケット",AK6:AK16) -> 0 | U10: =SUMPRODUCT((K20:K36="チケット")*(P20:P36=TRUE),Q20:Q36)+SUMPRODUCT((AJ6:AJ16="チケット")*(AO6:AO16=TRUE),AP6:AP16) -> 0 | X10: =SUMPRODUCT((K20:K36="チケット")*(P20:P36=FALSE),Q20:Q36)+SUMPRODUCT((AJ6:AJ16="チケット")*(AO6:AO16=FALSE),AP6:AP16) -> 0 | AA10: 21 | AJ10: 現金 | AO10: FALSE | AR10: FALSE
B11: 走行(km) | D11: =IF(D10=0,"",IF(ISERROR(D10-D9)=TRUE,"",D10-D9)) ->  | F11: km | G11: 輸送 人員 | I11: =SUM(C20:C36,AB6:AB16) -> 0 | J11: 人 | K11: 粁収 | M11: =IF(ISERROR(M9/D11)=TRUE,"",M9/D11) ->  | O11: 円 | P11: カード | R11: =SUMIF(K20:K36,"カード",L20:L36)+SUMIF(AJ6:AJ16,"カード",AK6:AK16) -> 0 | U11: =SUMPRODUCT((K20:K36="カード")*(P20:P36=TRUE),Q20:Q36)+SUMPRODUCT((AJ6:AJ16="カード")*(AO6:AO16=TRUE),AP6:AP16) -> 0 | X11: =SUMPRODUCT((K20:K36="カード")*(P20:P36=FALSE),Q20:Q36)+SUMPRODUCT((AJ6:AJ16="カード")*(AO6:AO16=FALSE),AP6:AP16) -> 0 | AA11: 22 | AJ11: 現金 | AO11: FALSE | AR11: FALSE
B12: 交通費内訳(本日合計) | G12: 燃料関係 | K12: 実車率 | M12: =IF(ISERROR(I9/D11)=TRUE,"",I9/D11) ->  | P12: 合 計 | R12: =SUM(R9:T11) -> 0 | U12: =SUM(U10:W11) -> 0 | X12: =SUM(X10:Y11) -> 0 | AA12: 23 | AJ12: 現金 | AO12: FALSE | AR12: FALSE
B13: 現 金 | D13: =SUMIF(R17,FALSE,S17)+SUMIF(S20:S36,FALSE,T20:T36)+SUMIF(AR6:AR16,FALSE,AS6:AS16) -> 0 | F13: 円 | G13: 燃費 (ℓ/km) | I13: =IF(ISERROR(D11/M10)=TRUE,"",D11/M10) ->  | J13: km | K13: 実車粁収 | M13: =IF(ISERROR(M9/I9)=TRUE,"",M9/I9) ->  | O13: 円 | P13: 科目 | R13: 金額(円) | V13: 適用（内容） | AA13: 24 | AJ13: 現金 | AO13: FALSE | AR13: FALSE
B14: E T C | D14: =SUMIF(R17,TRUE,S17)+SUMIF(S20:S36,TRUE,T20:T36)+SUMIF(AR6:AR16,"TRUE",AS6:AS16) -> 0 | F14: 円 | G14: 燃料 単価 (ℓ/\) | I14: =日別輸送実績表!$F$54 -> 100 | J14: 円 | K14: 使用時間 | N14: 走行(km) | P14: 雑収入 | R14: =SUM(N20:O36,AM6:AO16) -> 0 | AA14: 25 | AJ14: 現金 | AO14: FALSE | AR14: FALSE
B15: 自家使用 | G15: ～ | L15: ～ | O15: km | P15: 燃料費 | R15: =IF($D$11="","",IF(ISERROR(LOOKUP(10^17,ﾃﾞｰﾀﾍﾞｰｽ!$Q$2:Q3))=TRUE,"",LOOKUP(10^17,ﾃﾞｰﾀﾍﾞｰｽ!$Q$2:Q3))) ->  | AA15: 26 | AJ15: 現金 | AO15: FALSE | AR15: FALSE
B16: 回送 | G16: ～ | L16: ～ | O16: km | P16: 雑費 | AA16: 27 | AJ16: 現金 | AO16: FALSE | AR16: FALSE
B17: 休憩地 | P17: その他交通費 | R17: FALSE
B18: 回数 | C18: 人員 | D18: 輸送経路 | J18: 降車 時刻 | K18: 収受種類 | L18: 運送収入(円) | P18: 立替金(円) | S18: 交通費(円) | V18: 適用
D19: 乗車地 | G19: 降車地 | L19: 金額 | N19: 雑収入 | P19: ETC | Q19: 金額 | S19: ETC | T19: 金額
B20: 1 | K20: 現金 | P20: FALSE | S20: FALSE
B21: 2 | K21: 現金 | P21: FALSE | S21: FALSE
B22: 3 | K22: 現金 | S22: FALSE
B23: 4 | K23: 現金
B24: 5 | K24: 現金
B25: 6 | K25: 現金
B26: 7 | K26: 現金
B27: 8 | K27: 現金
B28: 9 | K28: 現金
B29: 10 | K29: 現金
B30: 11 | K30: 現金 | P30: FALSE
B31: 12 | K31: 現金
B32: 13 | K32: 現金
B33: 14 | K33: 現金
B34: 15 | K34: 現金
B35: 16 | K35: 現金
B36: 17 | K36: 現金 | P36: FALSE

Sheet 4
A1: ※ | B1: この日報はCANON製両面印刷対応プリンタで両面印刷するように設計されています。
C3: 日別営業報告書 | AA3: 回数 | AB3: 人員 | AC3: 輸送経路 | AI3: 降車 時刻 | AJ3: 収受 種類 | AK3: 運 送 収 入(円) | AO3: 立替金(円) | AR3: 交通費(円) | AU3: 適用
B4: 氏名: | D4: =日別輸送実績表!$O$8 -> 0 | I4: 登録番号: | L4: =日別輸送実績表!$E$54 -> 0 | Q4: 本日の天気 | AC4: 乗車地 | AF4: 降車地 | AK4: 金額 | AM4: 雑収入 | AO4: ETC | AP4: 金額 | AR4: ETC | AS4: 金額
B6: 営業日 | F6: アルコール検知 | J6: 出庫時間 | L6: 入庫時間 | N6: 実労(h) | P6: 運送収入内訳(円) | U6: 立替金内訳（円） | AA6: 18 | AJ6: 現金 | AO6: FALSE | AR6: FALSE
F7: 出庫時 | H7: 入庫時
B8: =ﾃﾞｰﾀﾍﾞｰｽ!$E$6 -> 2013-08-04 | F8: 無し(適) | H8: 無し(適) | N8: =IF(COUNT(J8:L8)=2,(L8-J8-"0:00"+(J8>L8))*24,"") ->  | P8: 収受別 | R8: 金額（円） | U8: ETC | X8: 現金 | AA8: 19 | AJ8: 現金 | AO8: FALSE | AR8: FALSE
B9: 出庫(km) | D9: =IF($D$10="","",MAX(ﾃﾞｰﾀﾍﾞｰｽ!$L$2:$L$5)+$N$15) ->  | F9: km | G9: 実車 (km) | I9: =IF(ISERROR(VLOOKUP(ROUNDUP($M$9,-3),実車キロ,4,TRUE))=TRUE,"",VLOOKUP(ROUNDUP($M$9,-3),実車キロ,4,TRUE)) ->  | J9: km | K9: 運送収入 | M9: =SUM(L20:L36,AL6:AL16) -> 0 | O9: 円 | P9: 現 金 | R9: =SUMIF(K20:K36,"現金",L20:L36)+SUMIF(AJ6:AJ16,"現金",AK6:AK16) -> 0 | AA9: 20 | AJ9: 現金 | AO9: FALSE | AR9: FALSE
B10: 入庫(km) | F10: km | G10: 輸送 回数 | I10: =COUNT(C20:C36,AK6:AL16) -> 0 | J10: 回 | K10: 燃料消費 | M10: =IF(ISERROR(D11/日別輸送実績表!$G$54)=TRUE,"",D11/日別輸送実績表!$G$54) ->  | O10: ℓ | P10: チケット | R10: =SUMIF(K20:K36,"チケット",L20:L36)+SUMIF(AJ6:AJ16,"チケット",AK6:AK16) -> 0 | U10: =SUMPRODUCT((K20:K36="チケット")*(P20:P36=TRUE),Q20:Q36)+SUMPRODUCT((AJ6:AJ16="チケット")*(AO6:AO16=TRUE),AP6:AP16) -> 0 | X10: =SUMPRODUCT((K20:K36="チケット")*(P20:P36=FALSE),Q20:Q36)+SUMPRODUCT((AJ6:AJ16="チケット")*(AO6:AO16=FALSE),AP6:AP16) -> 0 | AA10: 21 | AJ10: 現金 | AO10: FALSE | AR10: FALSE
B11: 走行(km) | D11: =IF(D10=0,"",IF(ISERROR(D10-D9)=TRUE,"",D10-D9)) ->  | F11: km | G11: 輸送 人員 | I11: =SUM(C20:C36,AB6:AB16) -> 0 | J11: 人 | K11: 粁収 | M11: =IF(ISERROR(M9/D11)=TRUE,"",M9/D11) ->  | O11: 円 | P11: カード | R11: =SUMIF(K20:K36,"カード",L20:L36)+SUMIF(AJ6:AJ16,"カード",AK6:AK16) -> 0 | U11: =SUMPRODUCT((K20:K36="カード")*(P20:P36=TRUE),Q20:Q36)+SUMPRODUCT((AJ6:AJ16="カード")*(AO6:AO16=TRUE),AP6:AP16) -> 0 | X11: =SUMPRODUCT((K20:K36="カード")*(P20:P36=FALSE),Q20:Q36)+SUMPRODUCT((AJ6:AJ16="カード")*(AO6:AO16=FALSE),AP6:AP16) -> 0 | AA11: 22 | AJ11: 現金 | AO11: FALSE | AR11: FALSE
B12: 交通費内訳(本日合計) | G12: 燃料関係 | K12: 実車率 | M12: =IF(ISERROR(I9/D11)=TRUE,"",I9/D11) ->  | P12: 合 計 | R12: =SUM(R9:T11) -> 0 | U12: =SUM(U10:W11) -> 0 | X12: =SUM(X10:Y11) -> 0 | AA12: 23 | AJ12: 現金 | AO12: FALSE | AR12: FALSE
B13: 現 金 | D13: =SUMIF(R17,FALSE,S17)+SUMIF(S20:S36,FALSE,T20:T36)+SUMIF(AR6:AR16,FALSE,AS6:AS16) -> 0 | F13: 円 | G13: 燃費 (ℓ/km) | I13: =IF(ISERROR(D11/M10)=TRUE,"",D11/M10) ->  | J13: km | K13: 実車粁収 | M13: =IF(ISERROR(M9/I9)=TRUE,"",M9/I9) ->  | O13: 円 | P13: 科目 | R13: 金額(円) | V13: 適用（内容） | AA13: 24 | AJ13: 現金 | AO13: FALSE | AR13: FALSE
B14: E T C | D14: =SUMIF(R17,TRUE,S17)+SUMIF(S20:S36,TRUE,T20:T36)+SUMIF(AR6:AR16,"TRUE",AS6:AS16) -> 0 | F14: 円 | G14: 燃料 単価 (ℓ/\) | I14: =日別輸送実績表!$F$54 -> 100 | J14: 円 | K14: 使用時間 | N14: 走行(km) | P14: 雑収入 | R14: =SUM(N20:O36,AM6:AO16) -> 0 | AA14: 25 | AJ14: 現金 | AO14: FALSE | AR14: FALSE
B15: 自家使用 | G15: ～ | L15: ～ | O15: km | P15: 燃料費 | R15: =IF($D$11="","",IF(ISERROR(LOOKUP(10^17,ﾃﾞｰﾀﾍﾞｰｽ!$Q$2:Q4))=TRUE,"",LOOKUP(10^17,ﾃﾞｰﾀﾍﾞｰｽ!$Q$2:Q4))) ->  | AA15: 26 | AJ15: 現金 | AO15: FALSE | AR15: FALSE
B16: 回送 | G16: ～ | L16: ～ | O16: km | P16: 雑費 | AA16: 27 | AJ16: 現金 | AO16: FALSE | AR16: FALSE
B17: 休憩地 | P17: その他交通費 | R17: FALSE
B18: 回数 | C18: 人員 | D18: 輸送経路 | J18: 降車 時刻 | K18: 収受種類 | L18: 運送収入(円) | P18: 立替金(円) | S18: 交通費(円) | V18: 適用
D19: 乗車地 | G19: 降車地 | L19: 金額 | N19: 雑収入 | P19: ETC | Q19: 金額 | S19: ETC | T19: 金額
B20: 1 | K20: 現金 | P20: FALSE | S20: FALSE
B21: 2 | K21: 現金 | P21: FALSE | S21: FALSE
B22: 3 | K22: 現金 | P22: FALSE
B23: 4 | K23: 現金
B24: 5 | K24: 現金 | P24: FALSE | S24: FALSE
B25: 6 | K25: 現金
B26: 7 | K26: 現金
B27: 8 | K27: 現金
B28: 9 | K28: 現金
B29: 10 | K29: 現金 | S29: FALSE
B30: 11 | K30: 現金 | P30: FALSE
B31: 12 | K31: 現金
B32: 13 | K32: 現金 | S32: FALSE
B33: 14 | K33: 現金
B34: 15 | K34: 現金
B35: 16 | K35: 現金
B36: 17 | K36: 現金 | P36: FALSE

Sheet 5
A1: ※ | B1: この日報はCANON製両面印刷対応プリンタで両面印刷するように設計されています。
C3: 日別営業報告書 | AA3: 回数 | AB3: 人員 | AC3: 輸送経路 | AI3: 降車 時刻 | AJ3: 収受 種類 | AK3: 運 送 収 入(円) | AO3: 立替金(円) | AR3: 交通費(円) | AU3: 適用
B4: 氏名: | D4: =日別輸送実績表!$O$8 -> 0 | I4: 登録番号: | L4: =日別輸送実績表!$E$54 -> 0 | Q4: 本日の天気 | AC4: 乗車地 | AF4: 降車地 | AK4: 金額 | AM4: 雑収入 | AO4: ETC | AP4: 金額 | AR4: ETC | AS4: 金額
B6: 営業日 | F6: アルコール検知 | J6: 出庫時間 | L6: 入庫時間 | N6: 実労(h) | P6: 運送収入内訳(円) | U6: 立替金内訳（円） | AA6: 18 | AJ6: 現金 | AO6: FALSE | AR6: FALSE
F7: 出庫時 | H7: 入庫時
B8: =ﾃﾞｰﾀﾍﾞｰｽ!$E$7 -> 2013-08-05 | F8: 無し(適) | H8: 無し(適) | N8: =IF(COUNT(J8:L8)=2,(L8-J8-"0:00"+(J8>L8))*24,"") ->  | P8: 収受別 | R8: 金額（円） | U8: ETC | X8: 現金 | AA8: 19 | AJ8: 現金 | AO8: FALSE | AR8: FALSE
B9: 出庫(km) | D9: =IF($D$10="","",MAX(ﾃﾞｰﾀﾍﾞｰｽ!$L$2:$L$6)+$N$15) ->  | F9: km | G9: 実車 (km) | I9: =IF(ISERROR(VLOOKUP(ROUNDUP($M$9,-3),実車キロ,4,TRUE))=TRUE,"",VLOOKUP(ROUNDUP($M$9,-3),実車キロ,4,TRUE)) ->  | J9: km | K9: 運送収入 | M9: =SUM(L20:L36,AL6:AL16) -> 0 | O9: 円 | P9: 現 金 | R9: =SUMIF(K20:K36,"現金",L20:L36)+SUMIF(AJ6:AJ16,"現金",AK6:AK16) -> 0 | AA9: 20 | AJ9: 現金 | AO9: FALSE | AR9: FALSE
B10: 入庫(km) | F10: km | G10: 輸送 回数 | I10: =COUNT(C20:C36,AK6:AL16) -> 0 | J10: 回 | K10: 燃料消費 | M10: =IF(ISERROR(D11/日別輸送実績表!$G$54)=TRUE,"",D11/日別輸送実績表!$G$54) ->  | O10: ℓ | P10: チケット | R10: =SUMIF(K20:K36,"チケット",L20:L36)+SUMIF(AJ6:AJ16,"チケット",AK6:AK16) -> 0 | U10: =SUMPRODUCT((K20:K36="チケット")*(P20:P36=TRUE),Q20:Q36)+SUMPRODUCT((AJ6:AJ16="チケット")*(AO6:AO16=TRUE),AP6:AP16) -> 0 | X10: =SUMPRODUCT((K20:K36="チケット")*(P20:P36=FALSE),Q20:Q36)+SUMPRODUCT((AJ6:AJ16="チケット")*(AO6:AO16=FALSE),AP6:AP16) -> 0 | AA10: 21 | AJ10: 現金 | AO10: FALSE | AR10: FALSE
B11: 走行(km) | D11: =IF(D10=0,"",IF(ISERROR(D10-D9)=TRUE,"",D10-D9)) ->  | F11: km | G11: 輸送 人員 | I11: =SUM(C20:C36,AB6:AB16) -> 0 | J11: 人 | K11: 粁収 | M11: =IF(ISERROR(M9/D11)=TRUE,"",M9/D11) ->  | O11: 円 | P11: カード | R11: =SUMIF(K20:K36,"カード",L20:L36)+SUMIF(AJ6:AJ16,"カード",AK6:AK16) -> 0 | U11: =SUMPRODUCT((K20:K36="カード")*(P20:P36=TRUE),Q20:Q36)+SUMPRODUCT((AJ6:AJ16="カード")*(AO6:AO16=TRUE),AP6:AP16) -> 0 | X11: =SUMPRODUCT((K20:K36="カード")*(P20:P36=FALSE),Q20:Q36)+SUMPRODUCT((AJ6:AJ16="カード")*(AO6:AO16=FALSE),AP6:AP16) -> 0 | AA11: 22 | AJ11: 現金 | AO11: FALSE | AR11: FALSE
B12: 交通費内訳(本日合計) | G12: 燃料関係 | K12: 実車率 | M12: =IF(ISERROR(I9/D11)=TRUE,"",I9/D11) ->  | P12: 合 計 | R12: =SUM(R9:T11) -> 0 | U12: =SUM(U10:W11) -> 0 | X12: =SUM(X10:Y11) -> 0 | AA12: 23 | AJ12: 現金 | AO12: FALSE | AR12: FALSE
B13: 現 金 | D13: =SUMIF(R17,FALSE,S17)+SUMIF(S20:S36,FALSE,T20:T36)+SUMIF(AR6:AR16,FALSE,AS6:AS16) -> 0 | F13: 円 | G13: 燃費 (ℓ/km) | I13: =IF(ISERROR(D11/M10)=TRUE,"",D11/M10) ->  | J13: km | K13: 実車粁収 | M13: =IF(ISERROR(M9/I9)=TRUE,"",M9/I9) ->  | O13: 円 | P13: 科目 | R13: 金額(円) | V13: 適用（内容） | AA13: 24 | AJ13: 現金 | AO13: FALSE | AR13: FALSE
B14: E T C | D14: =SUMIF(R17,TRUE,S17)+SUMIF(S20:S36,TRUE,T20:T36)+SUMIF(AR6:AR16,"TRUE",AS6:AS16) -> 0 | F14: 円 | G14: 燃料 単価 (ℓ/\) | I14: =日別輸送実績表!$F$54 -> 100 | J14: 円 | K14: 使用時間 | N14: 走行(km) | P14: 雑収入 | R14: =SUM(N20:O36,AM6:AO16) -> 0 | AA14: 25 | AJ14: 現金 | AO14: FALSE | AR14: FALSE
B15: 自家使用 | G15: ～ | L15: ～ | O15: km | P15: 燃料費 | R15: =IF($D$11="","",IF(ISERROR(LOOKUP(10^17,ﾃﾞｰﾀﾍﾞｰｽ!$Q$2:Q5))=TRUE,"",LOOKUP(10^17,ﾃﾞｰﾀﾍﾞｰｽ!$Q$2:Q5))) ->  | AA15: 26 | AJ15: 現金 | AO15: FALSE | AR15: FALSE
B16: 回送 | G16: ～ | L16: ～ | O16: km | P16: 雑費 | AA16: 27 | AJ16: 現金 | AO16: FALSE | AR16: FALSE
B17: 休憩地 | P17: その他交通費 | R17: FALSE
B18: 回数 | C18: 人員 | D18: 輸送経路 | J18: 降車 時刻 | K18: 収受種類 | L18: 運送収入(円) | P18: 立替金(円) | S18: 交通費(円) | V18: 適用
D19: 乗車地 | G19: 降車地 | L19: 金額 | N19: 雑収入 | P19: ETC | Q19: 金額 | S19: ETC | T19: 金額
B20: 1 | K20: 現金 | P20: FALSE | S20: FALSE
B21: 2 | K21: 現金 | P21: FALSE | S21: FALSE
B22: 3 | K22: 現金 | P22: FALSE
B23: 4 | K23: 現金
B24: 5 | K24: 現金
B25: 6 | K25: 現金
B26: 7 | K26: 現金 | S26: FALSE
B27: 8 | K27: 現金
B28: 9 | K28: 現金
B29: 10 | K29: 現金
B30: 11 | K30: 現金 | P30: FALSE | S30: FALSE
B31: 12 | K31: 現金
B32: 13 | K32: 現金
B33: 14 | K33: 現金
B34: 15 | K34: 現金
B35: 16 | K35: 現金
B36: 17 | K36: 現金 | P36: FALSE

Sheet 6
A1: ※ | B1: この日報はCANON製両面印刷対応プリンタで両面印刷するように設計されています。
C3: 日別営業報告書 | AA3: 回数 | AB3: 人員 | AC3: 輸送経路 | AI3: 降車 時刻 | AJ3: 収受 種類 | AK3: 運 送 収 入(円) | AO3: 立替金(円) | AR3: 交通費(円) | AU3: 適用
B4: 氏名: | D4: =日別輸送実績表!$O$8 -> 0 | I4: 登録番号: | L4: =日別輸送実績表!$E$54 -> 0 | Q4: 本日の天気 | AC4: 乗車地 | AF4: 降車地 | AK4: 金額 | AM4: 雑収入 | AO4: ETC | AP4: 金額 | AR4: ETC | AS4: 金額
B6: 営業日 | F6: アルコール検知 | J6: 出庫時間 | L6: 入庫時間 | N6: 実労(h) | P6: 運送収入内訳(円) | U6: 立替金内訳（円） | AA6: 18 | AJ6: 現金 | AO6: FALSE | AR6: FALSE
F7: 出庫時 | H7: 入庫時
B8: =ﾃﾞｰﾀﾍﾞｰｽ!$E$8 -> 2013-08-06 | F8: 無し(適) | H8: 無し(適) | N8: =IF(COUNT(J8:L8)=2,(L8-J8-"0:00"+(J8>L8))*24,"") ->  | P8: 収受別 | R8: 金額（円） | U8: ETC | X8: 現金 | AA8: 19 | AJ8: 現金 | AO8: FALSE | AR8: FALSE
B9: 出庫(km) | D9: =IF($D$10="","",MAX(ﾃﾞｰﾀﾍﾞｰｽ!$L$2:$L$7)+$N$15) ->  | F9: km | G9: 実車 (km) | I9: =IF(ISERROR(VLOOKUP(ROUNDUP($M$9,-3),実車キロ,4,TRUE))=TRUE,"",VLOOKUP(ROUNDUP($M$9,-3),実車キロ,4,TRUE)) ->  | J9: km | K9: 運送収入 | M9: =SUM(L20:L36,AL6:AL16) -> 0 | O9: 円 | P9: 現 金 | R9: =SUMIF(K20:K36,"現金",L20:L36)+SUMIF(AJ6:AJ16,"現金",AK6:AK16) -> 0 | AA9: 20 | AJ9: 現金 | AO9: FALSE | AR9: FALSE
B10: 入庫(km) | F10: km | G10: 輸送 回数 | I10: =COUNT(C20:C36,AK6:AL16) -> 0 | J10: 回 | K10: 燃料消費 | M10: =IF(ISERROR(D11/日別輸送実績表!$G$54)=TRUE,"",D11/日別輸送実績表!$G$54) ->  | O10: ℓ | P10: チケット | R10: =SUMIF(K20:K36,"チケット",L20:L36)+SUMIF(AJ6:AJ16,"チケット",AK6:AK16) -> 0 | U10: =SUMPRODUCT((K20:K36="チケット")*(P20:P36=TRUE),Q20:Q36)+SUMPRODUCT((AJ6:AJ16="チケット")*(AO6:AO16=TRUE),AP6:AP16) -> 0 | X10: =SUMPRODUCT((K20:K36="チケット")*(P20:P36=FALSE),Q20:Q36)+SUMPRODUCT((AJ6:AJ16="チケット")*(AO6:AO16=FALSE),AP6:AP16) -> 0 | AA10: 21 | AJ10: 現金 | AO10: FALSE | AR10: FALSE
B11: 走行(km) | D11: =IF(D10=0,"",IF(ISERROR(D10-D9)=TRUE,"",D10-D9)) ->  | F11: km | G11: 輸送 人員 | I11: =SUM(C20:C36,AB6:AB16) -> 0 | J11: 人 | K11: 粁収 | M11: =IF(ISERROR(M9/D11)=TRUE,"",M9/D11) ->  | O11: 円 | P11: カード | R11: =SUMIF(K20:K36,"カード",L20:L36)+SUMIF(AJ6:AJ16,"カード",AK6:AK16) -> 0 | U11: =SUMPRODUCT((K20:K36="カード")*(P20:P36=TRUE),Q20:Q36)+SUMPRODUCT((AJ6:AJ16="カード")*(AO6:AO16=TRUE),AP6:AP16) -> 0 | X11: =SUMPRODUCT((K20:K36="カード")*(P20:P36=FALSE),Q20:Q36)+SUMPRODUCT((AJ6:AJ16="カード")*(AO6:AO16=FALSE),AP6:AP16) -> 0 | AA11: 22 | AJ11: 現金 | AO11: FALSE | AR11: FALSE
B12: 交通費内訳(本日合計) | G12: 燃料関係 | K12: 実車率 | M12: =IF(ISERROR(I9/D11)=TRUE,"",I9/D11) ->  | P12: 合 計 | R12: =SUM(R9:T11) -> 0 | U12: =SUM(U10:W11) -> 0 | X12: =SUM(X10:Y11) -> 0 | AA12: 23 | AJ12: 現金 | AO12: FALSE | AR12: FALSE
B13: 現 金 | D13: =SUMIF(R17,FALSE,S17)+SUMIF(S20:S36,FALSE,T20:T36)+SUMIF(AR6:AR16,FALSE,AS6:AS16) -> 0 | F13: 円 | G13: 燃費 (ℓ/km) | I13: =IF(ISERROR(D11/M10)=TRUE,"",D11/M10) ->  | J13: km | K13: 実車粁収 | M13: =IF(ISERROR(M9/I9)=TRUE,"",M9/I9) ->  | O13: 円 | P13: 科目 | R13: 金額(円) | V13: 適用（内容） | AA13: 24 | AJ13: 現金 | AO13: FALSE | AR13: FALSE
B14: E T C | D14: =SUMIF(R17,TRUE,S17)+SUMIF(S20:S36,TRUE,T20:T36)+SUMIF(AR6:AR16,"TRUE",AS6:AS16) -> 0 | F14: 円 | G14: 燃料 単価 (ℓ/\) | I14: =日別輸送実績表!$F$54 -> 100 | J14: 円 | K14: 使用時間 | N14: 走行(km) | P14: 雑収入 | R14: =SUM(N20:O36,AM6:AO16) -> 0 | AA14: 25 | AJ14: 現金 | AO14: FALSE | AR14: FALSE
B15: 自家使用 | G15: ～ | L15: ～ | O15: km | P15: 燃料費 | R15: =IF($D$11="","",IF(ISERROR(LOOKUP(10^17,ﾃﾞｰﾀﾍﾞｰｽ!$Q$2:Q6))=TRUE,"",LOOKUP(10^17,ﾃﾞｰﾀﾍﾞｰｽ!$Q$2:Q6))) ->  | AA15: 26 | AJ15: 現金 | AO15: FALSE | AR15: FALSE
B16: 回送 | G16: ～ | L16: ～ | O16: km | P16: 雑費 | AA16: 27 | AJ16: 現金 | AO16: FALSE | AR16: FALSE
B17: 休憩地 | P17: その他交通費 | R17: FALSE
B18: 回数 | C18: 人員 | D18: 輸送経路 | J18: 降車 時刻 | K18: 収受種類 | L18: 運送収入(円) | P18: 立替金(円) | S18: 交通費(円) | V18: 適用
D19: 乗車地 | G19: 降車地 | L19: 金額 | N19: 雑収入 | P19: ETC | Q19: 金額 | S19: ETC | T19: 金額
B20: 1 | K20: 現金 | P20: FALSE | S20: FALSE
B21: 2 | K21: 現金 | P21: FALSE | S21: FALSE
B22: 3 | K22: 現金 | P22: FALSE
B23: 4 | K23: 現金 | P23: FALSE | S23: FALSE
B24: 5 | K24: 現金
B25: 6 | K25: 現金
B26: 7 | K26: 現金 | S26: FALSE
B27: 8 | K27: 現金
B28: 9 | K28: 現金
B29: 10 | K29: 現金
B30: 11 | K30: 現金 | P30: FALSE
B31: 12 | K31: 現金
B32: 13 | K32: 現金
B33: 14 | K33: 現金
B34: 15 | K34: 現金
B35: 16 | K35: 現金
B36: 17 | K36: 現金 | P36: FALSE

Sheet 7
A1: ※ | B1: この日報はCANON製両面印刷対応プリンタで両面印刷するように設計されています。
C3: 日別営業報告書 | AA3: 回数 | AB3: 人員 | AC3: 輸送経路 | AI3: 降車 時刻 | AJ3: 収受 種類 | AK3: 運 送 収 入(円) | AO3: 立替金(円) | AR3: 交通費(円) | AU3: 適用
B4: 氏名: | D4: =日別輸送実績表!$O$8 -> 0 | I4: 登録番号: | L4: =日別輸送実績表!$E$54 -> 0 | Q4: 本日の天気 | AC4: 乗車地 | AF4: 降車地 | AK4: 金額 | AM4: 雑収入 | AO4: ETC | AP4: 金額 | AR4: ETC | AS4: 金額
B6: 営業日 | F6: アルコール検知 | J6: 出庫時間 | L6: 入庫時間 | N6: 実労(h) | P6: 運送収入内訳(円) | U6: 立替金内訳（円） | AA6: 18 | AJ6: 現金 | AO6: FALSE | AR6: FALSE
F7: 出庫時 | H7: 入庫時
B8: =ﾃﾞｰﾀﾍﾞｰｽ!$E$9 -> 2013-08-07 | F8: 無し(適) | H8: 無し(適) | N8: =IF(COUNT(J8:L8)=2,(L8-J8-"0:00"+(J8>L8))*24,"") ->  | P8: 収受別 | R8: 金額（円） | U8: ETC | X8: 現金 | AA8: 19 | AJ8: 現金 | AO8: FALSE | AR8: FALSE
B9: 出庫(km) | D9: =IF($D$10="","",MAX(ﾃﾞｰﾀﾍﾞｰｽ!$L$2:$L$8)+$N$15) ->  | F9: km | G9: 実車 (km) | I9: =IF(ISERROR(VLOOKUP(ROUNDUP($M$9,-3),実車キロ,4,TRUE))=TRUE,"",VLOOKUP(ROUNDUP($M$9,-3),実車キロ,4,TRUE)) ->  | J9: km | K9: 運送収入 | M9: =SUM(L20:L36,AL6:AL16) -> 0 | O9: 円 | P9: 現 金 | R9: =SUMIF(K20:K36,"現金",L20:L36)+SUMIF(AJ6:AJ16,"現金",AK6:AK16) -> 0 | AA9: 20 | AJ9: 現金 | AO9: FALSE | AR9: FALSE
B10: 入庫(km) | F10: km | G10: 輸送 回数 | I10: =COUNT(C20:C36,AK6:AL16) -> 0 | J10: 回 | K10: 燃料消費 | M10: =IF(ISERROR(D11/日別輸送実績表!$G$54)=TRUE,"",D11/日別輸送実績表!$G$54) ->  | O10: ℓ | P10: チケット | R10: =SUMIF(K20:K36,"チケット",L20:L36)+SUMIF(AJ6:AJ16,"チケット",AK6:AK16) -> 0 | U10: =SUMPRODUCT((K20:K36="チケット")*(P20:P36=TRUE),Q20:Q36)+SUMPRODUCT((AJ6:AJ16="チケット")*(AO6:AO16=TRUE),AP6:AP16) -> 0 | X10: =SUMPRODUCT((K20:K36="チケット")*(P20:P36=FALSE),Q20:Q36)+SUMPRODUCT((AJ6:AJ16="チケット")*(AO6:AO16=FALSE),AP6:AP16) -> 0 | AA10: 21 | AJ10: 現金 | AO10: FALSE | AR10: FALSE
B11: 走行(km) | D11: =IF(D10=0,"",IF(ISERROR(D10-D9)=TRUE,"",D10-D9)) ->  | F11: km | G11: 輸送 人員 | I11: =SUM(C20:C36,AB6:AB16) -> 0 | J11: 人 | K11: 粁収 | M11: =IF(ISERROR(M9/D11)=TRUE,"",M9/D11) ->  | O11: 円 | P11: カード | R11: =SUMIF(K20:K36,"カード",L20:L36)+SUMIF(AJ6:AJ16,"カード",AK6:AK16) -> 0 | U11: =SUMPRODUCT((K20:K36="カード")*(P20:P36=TRUE),Q20:Q36)+SUMPRODUCT((AJ6:AJ16="カード")*(AO6:AO16=TRUE),AP6:AP16) -> 0 | X11: =SUMPRODUCT((K20:K36="カード")*(P20:P36=FALSE),Q20:Q36)+SUMPRODUCT((AJ6:AJ16="カード")*(AO6:AO16=FALSE),AP6:AP16) -> 0 | AA11: 22 | AJ11: 現金 | AO11: FALSE | AR11: FALSE
B12: 交通費内訳(本日合計) | G12: 燃料関係 | K12: 実車率 | M12: =IF(ISERROR(I9/D11)=TRUE,"",I9/D11) ->  | P12: 合 計 | R12: =SUM(R9:T11) -> 0 | U12: =SUM(U10:W11) -> 0 | X12: =SUM(X10:Y11) -> 0 | AA12: 23 | AJ12: 現金 | AO12: FALSE | AR12: FALSE
B13: 現 金 | D13: =SUMIF(R17,FALSE,S17)+SUMIF(S20:S36,FALSE,T20:T36)+SUMIF(AR6:AR16,FALSE,AS6:AS16) -> 0 | F13: 円 | G13: 燃費 (ℓ/km) | I13: =IF(ISERROR(D11/M10)=TRUE,"",D11/M10) ->  | J13: km | K13: 実車粁収 | M13: =IF(ISERROR(M9/I9)=TRUE,"",M9/I9) ->  | O13: 円 | P13: 科目 | R13: 金額(円) | V13: 適用（内容） | AA13: 24 | AJ13: 現金 | AO13: FALSE | AR13: FALSE
B14: E T C | D14: =SUMIF(R17,TRUE,S17)+SUMIF(S20:S36,TRUE,T20:T36)+SUMIF(AR6:AR16,"TRUE",AS6:AS16) -> 0 | F14: 円 | G14: 燃料 単価 (ℓ/\) | I14: =日別輸送実績表!$F$54 -> 100 | J14: 円 | K14: 使用時間 | N14: 走行(km) | P14: 雑収入 | R14: =SUM(N20:O36,AM6:AO16) -> 0 | AA14: 25 | AJ14: 現金 | AO14: FALSE | AR14: FALSE
B15: 自家使用 | G15: ～ | L15: ～ | O15: km | P15: 燃料費 | R15: =IF($D$11="","",IF(ISERROR(LOOKUP(10^17,ﾃﾞｰﾀﾍﾞｰｽ!$Q$2:Q7))=TRUE,"",LOOKUP(10^17,ﾃﾞｰﾀﾍﾞｰｽ!$Q$2:Q7))) ->  | AA15: 26 | AJ15: 現金 | AO15: FALSE | AR15: FALSE
B16: 回送 | G16: ～ | L16: ～ | O16: km | P16: 雑費 | AA16: 27 | AJ16: 現金 | AO16: FALSE | AR16: FALSE
B17: 休憩地 | P17: その他交通費 | R17: FALSE
B18: 回数 | C18: 人員 | D18: 輸送経路 | J18: 降車 時刻 | K18: 収受種類 | L18: 運送収入(円) | P18: 立替金(円) | S18: 交通費(円) | V18: 適用
D19: 乗車地 | G19: 降車地 | L19: 金額 | N19: 雑収入 | P19: ETC | Q19: 金額 | S19: ETC | T19: 金額
B20: 1 | K20: 現金 | P20: FALSE | S20: FALSE
B21: 2 | K21: 現金 | P21: FALSE | S21: FALSE
B22: 3 | K22: 現金 | S22: FALSE
B23: 4 | K23: 現金
B24: 5 | K24: 現金
B25: 6 | K25: 現金
B26: 7 | K26: 現金
B27: 8 | K27: 現金
B28: 9 | K28: 現金
B29: 10 | K29: 現金
B30: 11 | K30: 現金 | P30: FALSE
B31: 12 | K31: 現金 | S31: FALSE
B32: 13 | K32: 現金
B33: 14 | K33: 現金
B34: 15 | K34: 現金
B35: 16 | K35: 現金
B36: 17 | K36: 現金 | P36: FALSE

Sheet 8
A1: ※ | B1: この日報はCANON製両面印刷対応プリンタで両面印刷するように設計されています。
C3: 日別営業報告書 | AA3: 回数 | AB3: 人員 | AC3: 輸送経路 | AI3: 降車 時刻 | AJ3: 収受 種類 | AK3: 運 送 収 入(円) | AO3: 立替金(円) | AR3: 交通費(円) | AU3: 適用
B4: 氏名: | D4: =日別輸送実績表!$O$8 -> 0 | I4: 登録番号: | L4: =日別輸送実績表!$E$54 -> 0 | Q4: 本日の天気 | AC4: 乗車地 | AF4: 降車地 | AK4: 金額 | AM4: 雑収入 | AO4: ETC | AP4: 金額 | AR4: ETC | AS4: 金額
B6: 営業日 | F6: アルコール検知 | J6: 出庫時間 | L6: 入庫時間 | N6: 実労(h) | P6: 運送収入内訳(円) | U6: 立替金内訳（円） | AA6: 18 | AJ6: 現金 | AO6: FALSE | AR6: FALSE
F7: 出庫時 | H7: 入庫時
B8: =ﾃﾞｰﾀﾍﾞｰｽ!$E$10 -> 2013-08-08 | F8: 無し(適) | H8: 無し(適) | N8: =IF(COUNT(J8:L8)=2,(L8-J8-"0:00"+(J8>L8))*24,"") ->  | P8: 収受別 | R8: 金額（円） | U8: ETC | X8: 現金 | AA8: 19 | AJ8: 現金 | AO8: FALSE | AR8: FALSE
B9: 出庫(km) | D9: =IF($D$10="","",MAX(ﾃﾞｰﾀﾍﾞｰｽ!$L$2:$L$9)+$N$15) ->  | F9: km | G9: 実車 (km) | I9: =IF(ISERROR(VLOOKUP(ROUNDUP($M$9,-3),実車キロ,4,TRUE))=TRUE,"",VLOOKUP(ROUNDUP($M$9,-3),実車キロ,4,TRUE)) ->  | J9: km | K9: 運送収入 | M9: =SUM(L20:L36,AL6:AL16) -> 0 | O9: 円 | P9: 現 金 | R9: =SUMIF(K20:K36,"現金",L20:L36)+SUMIF(AJ6:AJ16,"現金",AK6:AK16) -> 0 | AA9: 20 | AJ9: 現金 | AO9: FALSE | AR9: FALSE
B10: 入庫(km) | F10: km | G10: 輸送 回数 | I10: =COUNT(C20:C36,AK6:AL16) -> 0 | J10: 回 | K10: 燃料消費 | M10: =IF(ISERROR(D11/日別輸送実績表!$G$54)=TRUE,"",D11/日別輸送実績表!$G$54) ->  | O10: ℓ | P10: チケット | R10: =SUMIF(K20:K36,"チケット",L20:L36)+SUMIF(AJ6:AJ16,"チケット",AK6:AK16) -> 0 | U10: =SUMPRODUCT((K20:K36="チケット")*(P20:P36=TRUE),Q20:Q36)+SUMPRODUCT((AJ6:AJ16="チケット")*(AO6:AO16=TRUE),AP6:AP16) -> 0 | X10: =SUMPRODUCT((K20:K36="チケット")*(P20:P36=FALSE),Q20:Q36)+SUMPRODUCT((AJ6:AJ16="チケット")*(AO6:AO16=FALSE),AP6:AP16) -> 0 | AA10: 21 | AJ10: 現金 | AO10: FALSE | AR10: FALSE
B11: 走行(km) | D11: =IF(D10=0,"",IF(ISERROR(D10-D9)=TRUE,"",D10-D9)) ->  | F11: km | G11: 輸送 人員 | I11: =SUM(C20:C36,AB6:AB16) -> 0 | J11: 人 | K11: 粁収 | M11: =IF(ISERROR(M9/D11)=TRUE,"",M9/D11) ->  | O11: 円 | P11: カード | R11: =SUMIF(K20:K36,"カード",L20:L36)+SUMIF(AJ6:AJ16,"カード",AK6:AK16) -> 0 | U11: =SUMPRODUCT((K20:K36="カード")*(P20:P36=TRUE),Q20:Q36)+SUMPRODUCT((AJ6:AJ16="カード")*(AO6:AO16=TRUE),AP6:AP16) -> 0 | X11: =SUMPRODUCT((K20:K36="カード")*(P20:P36=FALSE),Q20:Q36)+SUMPRODUCT((AJ6:AJ16="カード")*(AO6:AO16=FALSE),AP6:AP16) -> 0 | AA11: 22 | AJ11: 現金 | AO11: FALSE | AR11: FALSE
B12: 交通費内訳(本日合計) | G12: 燃料関係 | K12: 実車率 | M12: =IF(ISERROR(I9/D11)=TRUE,"",I9/D11) ->  | P12: 合 計 | R12: =SUM(R9:T11) -> 0 | U12: =SUM(U10:W11) -> 0 | X12: =SUM(X10:Y11) -> 0 | AA12: 23 | AJ12: 現金 | AO12: FALSE | AR12: FALSE
B13: 現 金 | D13: =SUMIF(R17,FALSE,S17)+SUMIF(S20:S36,FALSE,T20:T36)+SUMIF(AR6:AR16,FALSE,AS6:AS16) -> 0 | F13: 円 | G13: 燃費 (ℓ/km) | I13: =IF(ISERROR(D11/M10)=TRUE,"",D11/M10) ->  | J13: km | K13: 実車粁収 | M13: =IF(ISERROR(M9/I9)=TRUE,"",M9/I9) ->  | O13: 円 | P13: 科目 | R13: 金額(円) | V13: 適用（内容） | AA13: 24 | AJ13: 現金 | AO13: FALSE | AR13: FALSE
B14: E T C | D14: =SUMIF(R17,TRUE,S17)+SUMIF(S20:S36,TRUE,T20:T36)+SUMIF(AR6:AR16,"TRUE",AS6:AS16) -> 0 | F14: 円 | G14: 燃料 単価 (ℓ/\) | I14: =日別輸送実績表!$F$54 -> 100 | J14: 円 | K14: 使用時間 | N14: 走行(km) | P14: 雑収入 | R14: =SUM(N20:O36,AM6:AO16) -> 0 | AA14: 25 | AJ14: 現金 | AO14: FALSE | AR14: FALSE
B15: 自家使用 | G15: ～ | L15: ～ | O15: km | P15: 燃料費 | R15: =IF($D$11="","",IF(ISERROR(LOOKUP(10^17,ﾃﾞｰﾀﾍﾞｰｽ!$Q$2:Q8))=TRUE,"",LOOKUP(10^17,ﾃﾞｰﾀﾍﾞｰｽ!$Q$2:Q8))) ->  | AA15: 26 | AJ15: 現金 | AO15: FALSE | AR15: FALSE
B16: 回送 | G16: ～ | L16: ～ | O16: km | P16: 雑費 | AA16: 27 | AJ16: 現金 | AO16: FALSE | AR16: FALSE
B17: 休憩地 | P17: その他交通費 | R17: FALSE
B18: 回数 | C18: 人員 | D18: 輸送経路 | J18: 降車 時刻 | K18: 収受種類 | L18: 運送収入(円) | P18: 立替金(円) | S18: 交通費(円) | V18: 適用
D19: 乗車地 | G19: 降車地 | L19: 金額 | N19: 雑収入 | P19: ETC | Q19: 金額 | S19: ETC | T19: 金額
B20: 1 | K20: 現金 | P20: FALSE | S20: FALSE
B21: 2 | K21: 現金 | S21: FALSE
B22: 3 | K22: 現金
B23: 4 | K23: 現金
B24: 5 | K24: 現金
B25: 6 | K25: 現金
B26: 7 | K26: 現金
B27: 8 | K27: 現金
B28: 9 | K28: 現金
B29: 10 | K29: 現金
B30: 11 | K30: 現金 | P30: FALSE
B31: 12 | K31: 現金
B32: 13 | K32: 現金
B33: 14 | K33: 現金
B34: 15 | K34: 現金
B35: 16 | K35: 現金
B36: 17 | K36: 現金 | P36: FALSE

Sheet 9
A1: ※ | B1: この日報はCANON製両面印刷対応プリンタで両面印刷するように設計されています。
C3: 日別営業報告書 | AA3: 回数 | AB3: 人員 | AC3: 輸送経路 | AI3: 降車 時刻 | AJ3: 収受 種類 | AK3: 運 送 収 入(円) | AO3: 立替金(円) | AR3: 交通費(円) | AU3: 適用
B4: 氏名: | D4: =日別輸送実績表!$O$8 -> 0 | I4: 登録番号: | L4: =日別輸送実績表!$E$54 -> 0 | Q4: 本日の天気 | AC4: 乗車地 | AF4: 降車地 | AK4: 金額 | AM4: 雑収入 | AO4: ETC | AP4: 金額 | AR4: ETC | AS4: 金額
B6: 営業日 | F6: アルコール検知 | J6: 出庫時間 | L6: 入庫時間 | N6: 実労(h) | P6: 運送収入内訳(円) | U6: 立替金内訳（円） | AA6: 18 | AJ6: 現金 | AO6: FALSE | AR6: FALSE
F7: 出庫時 | H7: 入庫時
B8: =ﾃﾞｰﾀﾍﾞｰｽ!$E$11 -> 2013-08-09 | F8: 無し(適) | H8: 無し(適) | N8: =IF(COUNT(J8:L8)=2,(L8-J8-"0:00"+(J8>L8))*24,"") ->  | P8: 収受別 | R8: 金額（円） | U8: ETC | X8: 現金 | AA8: 19 | AJ8: 現金 | AO8: FALSE | AR8: FALSE
B9: 出庫(km) | D9: =IF($D$10="","",MAX(ﾃﾞｰﾀﾍﾞｰｽ!$L$2:$L$10)+$N$15) ->  | F9: km | G9: 実車 (km) | I9: =IF(ISERROR(VLOOKUP(ROUNDUP($M$9,-3),実車キロ,4,TRUE))=TRUE,"",VLOOKUP(ROUNDUP($M$9,-3),実車キロ,4,TRUE)) ->  | J9: km | K9: 運送収入 | M9: =SUM(L20:L36,AL6:AL16) -> 0 | O9: 円 | P9: 現 金 | R9: =SUMIF(K20:K36,"現金",L20:L36)+SUMIF(AJ6:AJ16,"現金",AK6:AK16) -> 0 | AA9: 20 | AJ9: 現金 | AO9: FALSE | AR9: FALSE
B10: 入庫(km) | F10: km | G10: 輸送 回数 | I10: =COUNT(C20:C36,AK6:AL16) -> 0 | J10: 回 | K10: 燃料消費 | M10: =IF(ISERROR(D11/日別輸送実績表!$G$54)=TRUE,"",D11/日別輸送実績表!$G$54) ->  | O10: ℓ | P10: チケット | R10: =SUMIF(K20:K36,"チケット",L20:L36)+SUMIF(AJ6:AJ16,"チケット",AK6:AK16) -> 0 | U10: =SUMPRODUCT((K20:K36="チケット")*(P20:P36=TRUE),Q20:Q36)+SUMPRODUCT((AJ6:AJ16="チケット")*(AO6:AO16=TRUE),AP6:AP16) -> 0 | X10: =SUMPRODUCT((K20:K36="チケット")*(P20:P36=FALSE),Q20:Q36)+SUMPRODUCT((AJ6:AJ16="チケット")*(AO6:AO16=FALSE),AP6:AP16) -> 0 | AA10: 21 | AJ10: 現金 | AO10: FALSE | AR10: FALSE
B11: 走行(km) | D11: =IF(D10=0,"",IF(ISERROR(D10-D9)=TRUE,"",D10-D9)) ->  | F11: km | G11: 輸送 人員 | I11: =SUM(C20:C36,AB6:AB16) -> 0 | J11: 人 | K11: 粁収 | M11: =IF(ISERROR(M9/D11)=TRUE,"",M9/D11) ->  | O11: 円 | P11: カード | R11: =SUMIF(K20:K36,"カード",L20:L36)+SUMIF(AJ6:AJ16,"カード",AK6:AK16) -> 0 | U11: =SUMPRODUCT((K20:K36="カード")*(P20:P36=TRUE),Q20:Q36)+SUMPRODUCT((AJ6:AJ16="カード")*(AO6:AO16=TRUE),AP6:AP16) -> 0 | X11: =SUMPRODUCT((K20:K36="カード")*(P20:P36=FALSE),Q20:Q36)+SUMPRODUCT((AJ6:AJ16="カード")*(AO6:AO16=FALSE),AP6:AP16) -> 0 | AA11: 22 | AJ11: 現金 | AO11: FALSE | AR11: FALSE
B12: 交通費内訳(本日合計) | G12: 燃料関係 | K12: 実車率 | M12: =IF(ISERROR(I9/D11)=TRUE,"",I9/D11) ->  | P12: 合 計 | R12: =SUM(R9:T11) -> 0 | U12: =SUM(U10:W11) -> 0 | X12: =SUM(X10:Y11) -> 0 | AA12: 23 | AJ12: 現金 | AO12: FALSE | AR12: FALSE
B13: 現 金 | D13: =SUMIF(R17,FALSE,S17)+SUMIF(S20:S36,FALSE,T20:T36)+SUMIF(AR6:AR16,FALSE,AS6:AS16) -> 0 | F13: 円 | G13: 燃費 (ℓ/km) | I13: =IF(ISERROR(D11/M10)=TRUE,"",D11/M10) ->  | J13: km | K13: 実車粁収 | M13: =IF(ISERROR(M9/I9)=TRUE,"",M9/I9) ->  | O13: 円 | P13: 科目 | R13: 金額(円) | V13: 適用（内容） | AA13: 24 | AJ13: 現金 | AO13: FALSE | AR13: FALSE
B14: E T C | D14: =SUMIF(R17,TRUE,S17)+SUMIF(S20:S36,TRUE,T20:T36)+SUMIF(AR6:AR16,"TRUE",AS6:AS16) -> 0 | F14: 円 | G14: 燃料 単価 (ℓ/\) | I14: =日別輸送実績表!$F$54 -> 100 | J14: 円 | K14: 使用時間 | N14: 走行(km) | P14: 雑収入 | R14: =SUM(N20:O36,AM6:AO16) -> 0 | AA14: 25 | AJ14: 現金 | AO14: FALSE | AR14: FALSE
B15: 自家使用 | G15: ～ | L15: ～ | O15: km | P15: 燃料費 | R15: =IF($D$11="","",IF(ISERROR(LOOKUP(10^17,ﾃﾞｰﾀﾍﾞｰｽ!$Q$2:Q9))=TRUE,"",LOOKUP(10^17,ﾃﾞｰﾀﾍﾞｰｽ!$Q$2:Q9))) ->  | AA15: 26 | AJ15: 現金 | AO15: FALSE | AR15: FALSE
B16: 回送 | G16: ～ | L16: ～ | O16: km | P16: 雑費 | AA16: 27 | AJ16: 現金 | AO16: FALSE | AR16: FALSE
B17: 休憩地 | P17: その他交通費 | R17: FALSE
B18: 回数 | C18: 人員 | D18: 輸送経路 | J18: 降車 時刻 | K18: 収受種類 | L18: 運送収入(円) | P18: 立替金(円) | S18: 交通費(円) | V18: 適用
D19: 乗車地 | G19: 降車地 | L19: 金額 | N19: 雑収入 | P19: ETC | Q19: 金額 | S19: ETC | T19: 金額
B20: 1 | K20: 現金 | P20: FALSE | S20: FALSE
B21: 2 | K21: 現金
B22: 3 | K22: 現金
B23: 4 | K23: 現金
B24: 5 | K24: 現金
B25: 6 | K25: 現金
B26: 7 | K26: 現金
B27: 8 | K27: 現金
B28: 9 | K28: 現金
B29: 10 | K29: 現金
B30: 11 | K30: 現金 | P30: FALSE
B31: 12 | K31: 現金
B32: 13 | K32: 現金
B33: 14 | K33: 現金
B34: 15 | K34: 現金
B35: 16 | K35: 現金
B36: 17 | K36: 現金 | P36: FALSE

Sheet 10
A1: ※ | B1: この日報はCANON製両面印刷対応プリンタで両面印刷するように設計されています。
C3: 日別営業報告書 | AA3: 回数 | AB3: 人員 | AC3: 輸送経路 | AI3: 降車 時刻 | AJ3: 収受 種類 | AK3: 運 送 収 入(円) | AO3: 立替金(円) | AR3: 交通費(円) | AU3: 適用
B4: 氏名: | D4: =日別輸送実績表!$O$8 -> 0 | I4: 登録番号: | L4: =日別輸送実績表!$E$54 -> 0 | Q4: 本日の天気 | AC4: 乗車地 | AF4: 降車地 | AK4: 金額 | AM4: 雑収入 | AO4: ETC | AP4: 金額 | AR4: ETC | AS4: 金額
B6: 営業日 | F6: アルコール検知 | J6: 出庫時間 | L6: 入庫時間 | N6: 実労(h) | P6: 運送収入内訳(円) | U6: 立替金内訳（円） | AA6: 18 | AJ6: 現金 | AO6: FALSE | AR6: FALSE
F7: 出庫時 | H7: 入庫時
B8: =ﾃﾞｰﾀﾍﾞｰｽ!$E$12 -> 2013-08-10 | F8: 無し(適) | H8: 無し(適) | N8: =IF(COUNT(J8:L8)=2,(L8-J8-"0:00"+(J8>L8))*24,"") ->  | P8: 収受別 | R8: 金額（円） | U8: ETC | X8: 現金 | AA8: 19 | AJ8: 現金 | AO8: FALSE | AR8: FALSE
B9: 出庫(km) | D9: =IF($D$10="","",MAX(ﾃﾞｰﾀﾍﾞｰｽ!$L$2:$L$11)+$N$15) ->  | F9: km | G9: 実車 (km) | I9: =IF(ISERROR(VLOOKUP(ROUNDUP($M$9,-3),実車キロ,4,TRUE))=TRUE,"",VLOOKUP(ROUNDUP($M$9,-3),実車キロ,4,TRUE)) ->  | J9: km | K9: 運送収入 | M9: =SUM(L20:L36,AL6:AL16) -> 0 | O9: 円 | P9: 現 金 | R9: =SUMIF(K20:K36,"現金",L20:L36)+SUMIF(AJ6:AJ16,"現金",AK6:AK16) -> 0 | AA9: 20 | AJ9: 現金 | AO9: FALSE | AR9: FALSE
B10: 入庫(km) | F10: km | G10: 輸送 回数 | I10: =COUNT(C20:C36,AK6:AL16) -> 0 | J10: 回 | K10: 燃料消費 | M10: =IF(ISERROR(D11/日別輸送実績表!$G$54)=TRUE,"",D11/日別輸送実績表!$G$54) ->  | O10: ℓ | P10: チケット | R10: =SUMIF(K20:K36,"チケット",L20:L36)+SUMIF(AJ6:AJ16,"チケット",AK6:AK16) -> 0 | U10: =SUMPRODUCT((K20:K36="チケット")*(P20:P36=TRUE),Q20:Q36)+SUMPRODUCT((AJ6:AJ16="チケット")*(AO6:AO16=TRUE),AP6:AP16) -> 0 | X10: =SUMPRODUCT((K20:K36="チケット")*(P20:P36=FALSE),Q20:Q36)+SUMPRODUCT((AJ6:AJ16="チケット")*(AO6:AO16=FALSE),AP6:AP16) -> 0 | AA10: 21 | AJ10: 現金 | AO10: FALSE | AR10: FALSE
B11: 走行(km) | D11: =IF(D10=0,"",IF(ISERROR(D10-D9)=TRUE,"",D10-D9)) ->  | F11: km | G11: 輸送 人員 | I11: =SUM(C20:C36,AB6:AB16) -> 0 | J11: 人 | K11: 粁収 | M11: =IF(ISERROR(M9/D11)=TRUE,"",M9/D11) ->  | O11: 円 | P11: カード | R11: =SUMIF(K20:K36,"カード",L20:L36)+SUMIF(AJ6:AJ16,"カード",AK6:AK16) -> 0 | U11: =SUMPRODUCT((K20:K36="カード")*(P20:P36=TRUE),Q20:Q36)+SUMPRODUCT((AJ6:AJ16="カード")*(AO6:AO16=TRUE),AP6:AP16) -> 0 | X11: =SUMPRODUCT((K20:K36="カード")*(P20:P36=FALSE),Q20:Q36)+SUMPRODUCT((AJ6:AJ16="カード")*(AO6:AO16=FALSE),AP6:AP16) -> 0 | AA11: 22 | AJ11: 現金 | AO11: FALSE | AR11: FALSE
B12: 交通費内訳(本日合計) | G12: 燃料関係 | K12: 実車率 | M12: =IF(ISERROR(I9/D11)=TRUE,"",I9/D11) ->  | P12: 合 計 | R12: =SUM(R9:T11) -> 0 | U12: =SUM(U10:W11) -> 0 | X12: =SUM(X10:Y11) -> 0 | AA12: 23 | AJ12: 現金 | AO12: FALSE | AR12: FALSE
B13: 現 金 | D13: =SUMIF(R17,FALSE,S17)+SUMIF(S20:S36,FALSE,T20:T36)+SUMIF(AR6:AR16,FALSE,AS6:AS16) -> 0 | F13: 円 | G13: 燃費 (ℓ/km) | I13: =IF(ISERROR(D11/M10)=TRUE,"",D11/M10) ->  | J13: km | K13: 実車粁収 | M13: =IF(ISERROR(M9/I9)=TRUE,"",M9/I9) ->  | O13: 円 | P13: 科目 | R13: 金額(円) | V13: 適用（内容） | AA13: 24 | AJ13: 現金 | AO13: FALSE | AR13: FALSE
B14: E T C | D14: =SUMIF(R17,TRUE,S17)+SUMIF(S20:S36,TRUE,T20:T36)+SUMIF(AR6:AR16,"TRUE",AS6:AS16) -> 0 | F14: 円 | G14: 燃料 単価 (ℓ/\) | I14: =日別輸送実績表!$F$54 -> 100 | J14: 円 | K14: 使用時間 | N14: 走行(km) | P14: 雑収入 | R14: =SUM(N20:O36,AM6:AO16) -> 0 | AA14: 25 | AJ14: 現金 | AO14: FALSE | AR14: FALSE
B15: 自家使用 | G15: ～ | L15: ～ | O15: km | P15: 燃料費 | R15: =IF($D$11="","",IF(ISERROR(LOOKUP(10^17,ﾃﾞｰﾀﾍﾞｰｽ!$Q$2:Q10))=TRUE,"",LOOKUP(10^17,ﾃﾞｰﾀﾍﾞｰｽ!$Q$2:Q10))) ->  | AA15: 26 | AJ15: 現金 | AO15: FALSE | AR15: FALSE
B16: 回送 | G16: ～ | L16: ～ | O16: km | P16: 雑費 | AA16: 27 | AJ16: 現金 | AO16: FALSE | AR16: FALSE
B17: 休憩地 | P17: その他交通費 | R17: FALSE
B18: 回数 | C18: 人員 | D18: 輸送経路 | J18: 降車 時刻 | K18: 収受種類 | L18: 運送収入(円) | P18: 立替金(円) | S18: 交通費(円) | V18: 適用
D19: 乗車地 | G19: 降車地 | L19: 金額 | N19: 雑収入 | P19: ETC | Q19: 金額 | S19: ETC | T19: 金額
B20: 1 | K20: 現金 | P20: FALSE | S20: FALSE
B21: 2 | K21: 現金
B22: 3 | K22: 現金
B23: 4 | K23: 現金
B24: 5 | K24: 現金
B25: 6 | K25: 現金
B26: 7 | K26: 現金
B27: 8 | K27: 現金
B28: 9 | K28: 現金
B29: 10 | K29: 現金
B30: 11 | K30: 現金 | P30: FALSE
B31: 12 | K31: 現金
B32: 13 | K32: 現金
B33: 14 | K33: 現金
B34: 15 | K34: 現金
B35: 16 | K35: 現金
B36: 17 | K36: 現金 | P36: FALSE

Sheet 11
A1: ※ | B1: この日報はCANON製両面印刷対応プリンタで両面印刷するように設計されています。
C3: 日別営業報告書 | AA3: 回数 | AB3: 人員 | AC3: 輸送経路 | AI3: 降車 時刻 | AJ3: 収受 種類 | AK3: 運 送 収 入(円) | AO3: 立替金(円) | AR3: 交通費(円) | AU3: 適用
B4: 氏名: | D4: =日別輸送実績表!$O$8 -> 0 | I4: 登録番号: | L4: =日別輸送実績表!$E$54 -> 0 | Q4: 本日の天気 | AC4: 乗車地 | AF4: 降車地 | AK4: 金額 | AM4: 雑収入 | AO4: ETC | AP4: 金額 | AR4: ETC | AS4: 金額
B6: 営業日 | F6: アルコール検知 | J6: 出庫時間 | L6: 入庫時間 | N6: 実労(h) | P6: 運送収入内訳(円) | U6: 立替金内訳（円） | AA6: 18 | AJ6: 現金 | AO6: FALSE | AR6: FALSE
F7: 出庫時 | H7: 入庫時
B8: =ﾃﾞｰﾀﾍﾞｰｽ!$E$13 -> 2013-08-11 | F8: 無し(適) | H8: 無し(適) | N8: =IF(COUNT(J8:L8)=2,(L8-J8-"0:00"+(J8>L8))*24,"") ->  | P8: 収受別 | R8: 金額（円） | U8: ETC | X8: 現金 | AA8: 19 | AJ8: 現金 | AO8: FALSE | AR8: FALSE
B9: 出庫(km) | D9: =IF($D$10="","",MAX(ﾃﾞｰﾀﾍﾞｰｽ!$L$2:$L$12)+$N$15) ->  | F9: km | G9: 実車 (km) | I9: =IF(ISERROR(VLOOKUP(ROUNDUP($M$9,-3),実車キロ,4,TRUE))=TRUE,"",VLOOKUP(ROUNDUP($M$9,-3),実車キロ,4,TRUE)) ->  | J9: km | K9: 運送収入 | M9: =SUM(L20:L36,AL6:AL16) -> 0 | O9: 円 | P9: 現 金 | R9: =SUMIF(K20:K36,"現金",L20:L36)+SUMIF(AJ6:AJ16,"現金",AK6:AK16) -> 0 | AA9: 20 | AJ9: 現金 | AO9: FALSE | AR9: FALSE
B10: 入庫(km) | F10: km | G10: 輸送 回数 | I10: =COUNT(C20:C36,AK6:AL16) -> 0 | J10: 回 | K10: 燃料消費 | M10: =IF(ISERROR(D11/日別輸送実績表!$G$54)=TRUE,"",D11/日別輸送実績表!$G$54) ->  | O10: ℓ | P10: チケット | R10: =SUMIF(K20:K36,"チケット",L20:L36)+SUMIF(AJ6:AJ16,"チケット",AK6:AK16) -> 0 | U10: =SUMPRODUCT((K20:K36="チケット")*(P20:P36=TRUE),Q20:Q36)+SUMPRODUCT((AJ6:AJ16="チケット")*(AO6:AO16=TRUE),AP6:AP16) -> 0 | X10: =SUMPRODUCT((K20:K36="チケット")*(P20:P36=FALSE),Q20:Q36)+SUMPRODUCT((AJ6:AJ16="チケット")*(AO6:AO16=FALSE),AP6:AP16) -> 0 | AA10: 21 | AJ10: 現金 | AO10: FALSE | AR10: FALSE
B11: 走行(km) | D11: =IF(D10=0,"",IF(ISERROR(D10-D9)=TRUE,"",D10-D9)) ->  | F11: km | G11: 輸送 人員 | I11: =SUM(C20:C36,AB6:AB16) -> 0 | J11: 人 | K11: 粁収 | M11: =IF(ISERROR(M9/D11)=TRUE,"",M9/D11) ->  | O11: 円 | P11: カード | R11: =SUMIF(K20:K36,"カード",L20:L36)+SUMIF(AJ6:AJ16,"カード",AK6:AK16) -> 0 | U11: =SUMPRODUCT((K20:K36="カード")*(P20:P36=TRUE),Q20:Q36)+SUMPRODUCT((AJ6:AJ16="カード")*(AO6:AO16=TRUE),AP6:AP16) -> 0 | X11: =SUMPRODUCT((K20:K36="カード")*(P20:P36=FALSE),Q20:Q36)+SUMPRODUCT((AJ6:AJ16="カード")*(AO6:AO16=FALSE),AP6:AP16) -> 0 | AA11: 22 | AJ11: 現金 | AO11: FALSE | AR11: FALSE
B12: 交通費内訳(本日合計) | G12: 燃料関係 | K12: 実車率 | M12: =IF(ISERROR(I9/D11)=TRUE,"",I9/D11) ->  | P12: 合 計 | R12: =SUM(R9:T11) -> 0 | U12: =SUM(U10:W11) -> 0 | X12: =SUM(X10:Y11) -> 0 | AA12: 23 | AJ12: 現金 | AO12: FALSE | AR12: FALSE
B13: 現 金 | D13: =SUMIF(R17,FALSE,S17)+SUMIF(S20:S36,FALSE,T20:T36)+SUMIF(AR6:AR16,FALSE,AS6:AS16) -> 0 | F13: 円 | G13: 燃費 (ℓ/km) | I13: =IF(ISERROR(D11/M10)=TRUE,"",D11/M10) ->  | J13: km | K13: 実車粁収 | M13: =IF(ISERROR(M9/I9)=TRUE,"",M9/I9) ->  | O13: 円 | P13: 科目 | R13: 金額(円) | V13: 適用（内容） | AA13: 24 | AJ13: 現金 | AO13: FALSE | AR13: FALSE
B14: E T C | D14: =SUMIF(R17,TRUE,S17)+SUMIF(S20:S36,TRUE,T20:T36)+SUMIF(AR6:AR16,"TRUE",AS6:AS16) -> 0 | F14: 円 | G14: 燃料 単価 (ℓ/\) | I14: =日別輸送実績表!$F$54 -> 100 | J14: 円 | K14: 使用時間 | N14: 走行(km) | P14: 雑収入 | R14: =SUM(N20:O36,AM6:AO16) -> 0 | AA14: 25 | AJ14: 現金 | AO14: FALSE | AR14: FALSE
B15: 自家使用 | G15: ～ | L15: ～ | O15: km | P15: 燃料費 | R15: =IF($D$11="","",IF(ISERROR(LOOKUP(10^17,ﾃﾞｰﾀﾍﾞｰｽ!$Q$2:Q11))=TRUE,"",LOOKUP(10^17,ﾃﾞｰﾀﾍﾞｰｽ!$Q$2:Q11))) ->  | AA15: 26 | AJ15: 現金 | AO15: FALSE | AR15: FALSE
B16: 回送 | G16: ～ | L16: ～ | O16: km | P16: 雑費 | AA16: 27 | AJ16: 現金 | AO16: FALSE | AR16: FALSE
B17: 休憩地 | P17: その他交通費 | R17: FALSE
B18: 回数 | C18: 人員 | D18: 輸送経路 | J18: 降車 時刻 | K18: 収受種類 | L18: 運送収入(円) | P18: 立替金(円) | S18: 交通費(円) | V18: 適用
D19: 乗車地 | G19: 降車地 | L19: 金額 | N19: 雑収入 | P19: ETC | Q19: 金額 | S19: ETC | T19: 金額
B20: 1 | K20: 現金 | P20: FALSE | S20: FALSE
B21: 2 | K21: 現金
B22: 3 | K22: 現金
B23: 4 | K23: 現金
B24: 5 | K24: 現金
B25: 6 | K25: 現金
B26: 7 | K26: 現金
B27: 8 | K27: 現金
B28: 9 | K28: 現金
B29: 10 | K29: 現金
B30: 11 | K30: 現金 | P30: FALSE
B31: 12 | K31: 現金
B32: 13 | K32: 現金
B33: 14 | K33: 現金
B34: 15 | K34: 現金
B35: 16 | K35: 現金
B36: 17 | K36: 現金 | P36: FALSE

Sheet 12
A1: ※ | B1: この日報はCANON製両面印刷対応プリンタで両面印刷するように設計されています。
C3: 日別営業報告書 | AA3: 回数 | AB3: 人員 | AC3: 輸送経路 | AI3: 降車 時刻 | AJ3: 収受 種類 | AK3: 運 送 収 入(円) | AO3: 立替金(円) | AR3: 交通費(円) | AU3: 適用
B4: 氏名: | D4: =日別輸送実績表!$O$8 -> 0 | I4: 登録番号: | L4: =日別輸送実績表!$E$54 -> 0 | Q4: 本日の天気 | AC4: 乗車地 | AF4: 降車地 | AK4: 金額 | AM4: 雑収入 | AO4: ETC | AP4: 金額 | AR4: ETC | AS4: 金額
B6: 営業日 | F6: アルコール検知 | J6: 出庫時間 | L6: 入庫時間 | N6: 実労(h) | P6: 運送収入内訳(円) | U6: 立替金内訳（円） | AA6: 18 | AJ6: 現金 | AO6: FALSE | AR6: FALSE
F7: 出庫時 | H7: 入庫時
B8: =ﾃﾞｰﾀﾍﾞｰｽ!$E$14 -> 2013-08-12 | F8: 無し(適) | H8: 無し(適) | N8: =IF(COUNT(J8:L8)=2,(L8-J8-"0:00"+(J8>L8))*24,"") ->  | P8: 収受別 | R8: 金額（円） | U8: ETC | X8: 現金 | AA8: 19 | AJ8: 現金 | AO8: FALSE | AR8: FALSE
B9: 出庫(km) | D9: =IF($D$10="","",MAX(ﾃﾞｰﾀﾍﾞｰｽ!$L$2:$L$13)+$N$15) ->  | F9: km | G9: 実車 (km) | I9: =IF(ISERROR(VLOOKUP(ROUNDUP($M$9,-3),実車キロ,4,TRUE))=TRUE,"",VLOOKUP(ROUNDUP($M$9,-3),実車キロ,4,TRUE)) ->  | J9: km | K9: 運送収入 | M9: =SUM(L20:L36,AL6:AL16) -> 0 | O9: 円 | P9: 現 金 | R9: =SUMIF(K20:K36,"現金",L20:L36)+SUMIF(AJ6:AJ16,"現金",AK6:AK16) -> 0 | AA9: 20 | AJ9: 現金 | AO9: FALSE | AR9: FALSE
B10: 入庫(km) | F10: km | G10: 輸送 回数 | I10: =COUNT(C20:C36,AK6:AL16) -> 0 | J10: 回 | K10: 燃料消費 | M10: =IF(ISERROR(D11/日別輸送実績表!$G$54)=TRUE,"",D11/日別輸送実績表!$G$54) ->  | O10: ℓ | P10: チケット | R10: =SUMIF(K20:K36,"チケット",L20:L36)+SUMIF(AJ6:AJ16,"チケット",AK6:AK16) -> 0 | U10: =SUMPRODUCT((K20:K36="チケット")*(P20:P36=TRUE),Q20:Q36)+SUMPRODUCT((AJ6:AJ16="チケット")*(AO6:AO16=TRUE),AP6:AP16) -> 0 | X10: =SUMPRODUCT((K20:K36="チケット")*(P20:P36=FALSE),Q20:Q36)+SUMPRODUCT((AJ6:AJ16="チケット")*(AO6:AO16=FALSE),AP6:AP16) -> 0 | AA10: 21 | AJ10: 現金 | AO10: FALSE | AR10: FALSE
B11: 走行(km) | D11: =IF(D10=0,"",IF(ISERROR(D10-D9)=TRUE,"",D10-D9)) ->  | F11: km | G11: 輸送 人員 | I11: =SUM(C20:C36,AB6:AB16) -> 0 | J11: 人 | K11: 粁収 | M11: =IF(ISERROR(M9/D11)=TRUE,"",M9/D11) ->  | O11: 円 | P11: カード | R11: =SUMIF(K20:K36,"カード",L20:L36)+SUMIF(AJ6:AJ16,"カード",AK6:AK16) -> 0 | U11: =SUMPRODUCT((K20:K36="カード")*(P20:P36=TRUE),Q20:Q36)+SUMPRODUCT((AJ6:AJ16="カード")*(AO6:AO16=TRUE),AP6:AP16) -> 0 | X11: =SUMPRODUCT((K20:K36="カード")*(P20:P36=FALSE),Q20:Q36)+SUMPRODUCT((AJ6:AJ16="カード")*(AO6:AO16=FALSE),AP6:AP16) -> 0 | AA11: 22 | AJ11: 現金 | AO11: FALSE | AR11: FALSE
B12: 交通費内訳(本日合計) | G12: 燃料関係 | K12: 実車率 | M12: =IF(ISERROR(I9/D11)=TRUE,"",I9/D11) ->  | P12: 合 計 | R12: =SUM(R9:T11) -> 0 | U12: =SUM(U10:W11) -> 0 | X12: =SUM(X10:Y11) -> 0 | AA12: 23 | AJ12: 現金 | AO12: FALSE | AR12: FALSE
B13: 現 金 | D13: =SUMIF(R17,FALSE,S17)+SUMIF(S20:S36,FALSE,T20:T36)+SUMIF(AR6:AR16,FALSE,AS6:AS16) -> 0 | F13: 円 | G13: 燃費 (ℓ/km) | I13: =IF(ISERROR(D11/M10)=TRUE,"",D11/M10) ->  | J13: km | K13: 実車粁収 | M13: =IF(ISERROR(M9/I9)=TRUE,"",M9/I9) ->  | O13: 円 | P13: 科目 | R13: 金額(円) | V13: 適用（内容） | AA13: 24 | AJ13: 現金 | AO13: FALSE | AR13: FALSE
B14: E T C | D14: =SUMIF(R17,TRUE,S17)+SUMIF(S20:S36,TRUE,T20:T36)+SUMIF(AR6:AR16,"TRUE",AS6:AS16) -> 0 | F14: 円 | G14: 燃料 単価 (ℓ/\) | I14: =日別輸送実績表!$F$54 -> 100 | J14: 円 | K14: 使用時間 | N14: 走行(km) | P14: 雑収入 | R14: =SUM(N20:O36,AM6:AO16) -> 0 | AA14: 25 | AJ14: 現金 | AO14: FALSE | AR14: FALSE
B15: 自家使用 | G15: ～ | L15: ～ | O15: km | P15: 燃料費 | R15: =IF($D$11="","",IF(ISERROR(LOOKUP(10^17,ﾃﾞｰﾀﾍﾞｰｽ!$Q$2:Q12))=TRUE,"",LOOKUP(10^17,ﾃﾞｰﾀﾍﾞｰｽ!$Q$2:Q12))) ->  | AA15: 26 | AJ15: 現金 | AO15: FALSE | AR15: FALSE
B16: 回送 | G16: ～ | L16: ～ | O16: km | P16: 雑費 | AA16: 27 | AJ16: 現金 | AO16: FALSE | AR16: FALSE
B17: 休憩地 | P17: その他交通費 | R17: FALSE
B18: 回数 | C18: 人員 | D18: 輸送経路 | J18: 降車 時刻 | K18: 収受種類 | L18: 運送収入(円) | P18: 立替金(円) | S18: 交通費(円) | V18: 適用
D19: 乗車地 | G19: 降車地 | L19: 金額 | N19: 雑収入 | P19: ETC | Q19: 金額 | S19: ETC | T19: 金額
B20: 1 | K20: 現金 | P20: FALSE | S20: FALSE
B21: 2 | K21: 現金 | S21: FALSE
B22: 3 | K22: 現金
B23: 4 | K23: 現金
B24: 5 | K24: 現金
B25: 6 | K25: 現金
B26: 7 | K26: 現金
B27: 8 | K27: 現金
B28: 9 | K28: 現金
B29: 10 | K29: 現金
B30: 11 | K30: 現金 | P30: FALSE
B31: 12 | K31: 現金
B32: 13 | K32: 現金
B33: 14 | K33: 現金
B34: 15 | K34: 現金
B35: 16 | K35: 現金
B36: 17 | K36: 現金 | P36: FALSE

Sheet 13
A1: ※ | B1: この日報はCANON製両面印刷対応プリンタで両面印刷するように設計されています。
C3: 日別営業報告書 | AA3: 回数 | AB3: 人員 | AC3: 輸送経路 | AI3: 降車 時刻 | AJ3: 収受 種類 | AK3: 運 送 収 入(円) | AO3: 立替金(円) | AR3: 交通費(円) | AU3: 適用
B4: 氏名: | D4: =日別輸送実績表!$O$8 -> 0 | I4: 登録番号: | L4: =日別輸送実績表!$E$54 -> 0 | Q4: 本日の天気 | AC4: 乗車地 | AF4: 降車地 | AK4: 金額 | AM4: 雑収入 | AO4: ETC | AP4: 金額 | AR4: ETC | AS4: 金額
B6: 営業日 | F6: アルコール検知 | J6: 出庫時間 | L6: 入庫時間 | N6: 実労(h) | P6: 運送収入内訳(円) | U6: 立替金内訳（円） | AA6: 18 | AJ6: 現金 | AO6: FALSE | AR6: FALSE
F7: 出庫時 | H7: 入庫時
B8: =ﾃﾞｰﾀﾍﾞｰｽ!$E$15 -> 2013-08-13 | F8: 無し(適) | H8: 無し(適) | N8: =IF(COUNT(J8:L8)=2,(L8-J8-"0:00"+(J8>L8))*24,"") ->  | P8: 収受別 | R8: 金額（円） | U8: ETC | X8: 現金 | AA8: 19 | AJ8: 現金 | AO8: FALSE | AR8: FALSE
B9: 出庫(km) | D9: =IF($D$10="","",MAX(ﾃﾞｰﾀﾍﾞｰｽ!$L$2:$L$14)+$N$15) ->  | F9: km | G9: 実車 (km) | I9: =IF(ISERROR(VLOOKUP(ROUNDUP($M$9,-3),実車キロ,4,TRUE))=TRUE,"",VLOOKUP(ROUNDUP($M$9,-3),実車キロ,4,TRUE)) ->  | J9: km | K9: 運送収入 | M9: =SUM(L20:L36,AL6:AL16) -> 0 | O9: 円 | P9: 現 金 | R9: =SUMIF(K20:K36,"現金",L20:L36)+SUMIF(AJ6:AJ16,"現金",AK6:AK16) -> 0 | AA9: 20 | AJ9: 現金 | AO9: FALSE | AR9: FALSE
B10: 入庫(km) | F10: km | G10: 輸送 回数 | I10: =COUNT(C20:C36,AK6:AL16) -> 0 | J10: 回 | K10: 燃料消費 | M10: =IF(ISERROR(D11/日別輸送実績表!$G$54)=TRUE,"",D11/日別輸送実績表!$G$54) ->  | O10: ℓ | P10: チケット | R10: =SUMIF(K20:K36,"チケット",L20:L36)+SUMIF(AJ6:AJ16,"チケット",AK6:AK16) -> 0 | U10: =SUMPRODUCT((K20:K36="チケット")*(P20:P36=TRUE),Q20:Q36)+SUMPRODUCT((AJ6:AJ16="チケット")*(AO6:AO16=TRUE),AP6:AP16) -> 0 | X10: =SUMPRODUCT((K20:K36="チケット")*(P20:P36=FALSE),Q20:Q36)+SUMPRODUCT((AJ6:AJ16="チケット")*(AO6:AO16=FALSE),AP6:AP16) -> 0 | AA10: 21 | AJ10: 現金 | AO10: FALSE | AR10: FALSE
B11: 走行(km) | D11: =IF(D10=0,"",IF(ISERROR(D10-D9)=TRUE,"",D10-D9)) ->  | F11: km | G11: 輸送 人員 | I11: =SUM(C20:C36,AB6:AB16) -> 0 | J11: 人 | K11: 粁収 | M11: =IF(ISERROR(M9/D11)=TRUE,"",M9/D11) ->  | O11: 円 | P11: カード | R11: =SUMIF(K20:K36,"カード",L20:L36)+SUMIF(AJ6:AJ16,"カード",AK6:AK16) -> 0 | U11: =SUMPRODUCT((K20:K36="カード")*(P20:P36=TRUE),Q20:Q36)+SUMPRODUCT((AJ6:AJ16="カード")*(AO6:AO16=TRUE),AP6:AP16) -> 0 | X11: =SUMPRODUCT((K20:K36="カード")*(P20:P36=FALSE),Q20:Q36)+SUMPRODUCT((AJ6:AJ16="カード")*(AO6:AO16=FALSE),AP6:AP16) -> 0 | AA11: 22 | AJ11: 現金 | AO11: FALSE | AR11: FALSE
B12: 交通費内訳(本日合計) | G12: 燃料関係 | K12: 実車率 | M12: =IF(ISERROR(I9/D11)=TRUE,"",I9/D11) ->  | P12: 合 計 | R12: =SUM(R9:T11) -> 0 | U12: =SUM(U10:W11) -> 0 | X12: =SUM(X10:Y11) -> 0 | AA12: 23 | AJ12: 現金 | AO12: FALSE | AR12: FALSE
B13: 現 金 | D13: =SUMIF(R17,FALSE,S17)+SUMIF(S20:S36,FALSE,T20:T36)+SUMIF(AR6:AR16,FALSE,AS6:AS16) -> 0 | F13: 円 | G13: 燃費 (ℓ/km) | I13: =IF(ISERROR(D11/M10)=TRUE,"",D11/M10) ->  | J13: km | K13: 実車粁収 | M13: =IF(ISERROR(M9/I9)=TRUE,"",M9/I9) ->  | O13: 円 | P13: 科目 | R13: 金額(円) | V13: 適用（内容） | AA13: 24 | AJ13: 現金 | AO13: FALSE | AR13: FALSE
B14: E T C | D14: =SUMIF(R17,TRUE,S17)+SUMIF(S20:S36,TRUE,T20:T36)+SUMIF(AR6:AR16,"TRUE",AS6:AS16) -> 0 | F14: 円 | G14: 燃料 単価 (ℓ/\) | I14: =日別輸送実績表!$F$54 -> 100 | J14: 円 | K14: 使用時間 | N14: 走行(km) | P14: 雑収入 | R14: =SUM(N20:O36,AM6:AO16) -> 0 | AA14: 25 | AJ14: 現金 | AO14: FALSE | AR14: FALSE
B15: 自家使用 | G15: ～ | L15: ～ | O15: km | P15: 燃料費 | R15: =IF($D$11="","",IF(ISERROR(LOOKUP(10^17,ﾃﾞｰﾀﾍﾞｰｽ!$Q$2:Q13))=TRUE,"",LOOKUP(10^17,ﾃﾞｰﾀﾍﾞｰｽ!$Q$2:Q13))) ->  | AA15: 26 | AJ15: 現金 | AO15: FALSE | AR15: FALSE
B16: 回送 | G16: ～ | L16: ～ | O16: km | P16: 雑費 | AA16: 27 | AJ16: 現金 | AO16: FALSE | AR16: FALSE
B17: 休憩地 | P17: その他交通費 | R17: FALSE
B18: 回数 | C18: 人員 | D18: 輸送経路 | J18: 降車 時刻 | K18: 収受種類 | L18: 運送収入(円) | P18: 立替金(円) | S18: 交通費(円) | V18: 適用
D19: 乗車地 | G19: 降車地 | L19: 金額 | N19: 雑収入 | P19: ETC | Q19: 金額 | S19: ETC | T19: 金額
B20: 1 | K20: 現金 | P20: FALSE | S20: FALSE
B21: 2 | K21: 現金 | P21: FALSE
B22: 3 | K22: 現金
B23: 4 | K23: 現金
B24: 5 | K24: 現金
B25: 6 | K25: 現金
B26: 7 | K26: 現金
B27: 8 | K27: 現金
B28: 9 | K28: 現金
B29: 10 | K29: 現金
B30: 11 | K30: 現金 | P30: FALSE
B31: 12 | K31: 現金
B32: 13 | K32: 現金
B33: 14 | K33: 現金
B34: 15 | K34: 現金
B35: 16 | K35: 現金
B36: 17 | K36: 現金 | P36: FALSE

Sheet 14
A1: ※ | B1: この日報はCANON製両面印刷対応プリンタで両面印刷するように設計されています。
C3: 日別営業報告書 | AA3: 回数 | AB3: 人員 | AC3: 輸送経路 | AI3: 降車 時刻 | AJ3: 収受 種類 | AK3: 運 送 収 入(円) | AO3: 立替金(円) | AR3: 交通費(円) | AU3: 適用
B4: 氏名: | D4: =日別輸送実績表!$O$8 -> 0 | I4: 登録番号: | L4: =日別輸送実績表!$E$54 -> 0 | Q4: 本日の天気 | AC4: 乗車地 | AF4: 降車地 | AK4: 金額 | AM4: 雑収入 | AO4: ETC | AP4: 金額 | AR4: ETC | AS4: 金額
B6: 営業日 | F6: アルコール検知 | J6: 出庫時間 | L6: 入庫時間 | N6: 実労(h) | P6: 運送収入内訳(円) | U6: 立替金内訳（円） | AA6: 18 | AJ6: 現金 | AO6: FALSE | AR6: FALSE
F7: 出庫時 | H7: 入庫時
B8: =ﾃﾞｰﾀﾍﾞｰｽ!$E$16 -> 2013-08-14 | F8: 無し(適) | H8: 無し(適) | N8: =IF(COUNT(J8:L8)=2,(L8-J8-"0:00"+(J8>L8))*24,"") ->  | P8: 収受別 | R8: 金額（円） | U8: ETC | X8: 現金 | AA8: 19 | AJ8: 現金 | AO8: FALSE | AR8: FALSE
B9: 出庫(km) | D9: =IF($D$10="","",MAX(ﾃﾞｰﾀﾍﾞｰｽ!$L$2:$L$15)+$N$15) ->  | F9: km | G9: 実車 (km) | I9: =IF(ISERROR(VLOOKUP(ROUNDUP($M$9,-3),実車キロ,4,TRUE))=TRUE,"",VLOOKUP(ROUNDUP($M$9,-3),実車キロ,4,TRUE)) ->  | J9: km | K9: 運送収入 | M9: =SUM(L20:L36,AL6:AL16) -> 0 | O9: 円 | P9: 現 金 | R9: =SUMIF(K20:K36,"現金",L20:L36)+SUMIF(AJ6:AJ16,"現金",AK6:AK16) -> 0 | AA9: 20 | AJ9: 現金 | AO9: FALSE | AR9: FALSE
B10: 入庫(km) | F10: km | G10: 輸送 回数 | I10: =COUNT(C20:C36,AK6:AL16) -> 0 | J10: 回 | K10: 燃料消費 | M10: =IF(ISERROR(D11/日別輸送実績表!$G$54)=TRUE,"",D11/日別輸送実績表!$G$54) ->  | O10: ℓ | P10: チケット | R10: =SUMIF(K20:K36,"チケット",L20:L36)+SUMIF(AJ6:AJ16,"チケット",AK6:AK16) -> 0 | U10: =SUMPRODUCT((K20:K36="チケット")*(P20:P36=TRUE),Q20:Q36)+SUMPRODUCT((AJ6:AJ16="チケット")*(AO6:AO16=TRUE),AP6:AP16) -> 0 | X10: =SUMPRODUCT((K20:K36="チケット")*(P20:P36=FALSE),Q20:Q36)+SUMPRODUCT((AJ6:AJ16="チケット")*(AO6:AO16=FALSE),AP6:AP16) -> 0 | AA10: 21 | AJ10: 現金 | AO10: FALSE | AR10: FALSE
B11: 走行(km) | D11: =IF(D10=0,"",IF(ISERROR(D10-D9)=TRUE,"",D10-D9)) ->  | F11: km | G11: 輸送 人員 | I11: =SUM(C20:C36,AB6:AB16) -> 0 | J11: 人 | K11: 粁収 | M11: =IF(ISERROR(M9/D11)=TRUE,"",M9/D11) ->  | O11: 円 | P11: カード | R11: =SUMIF(K20:K36,"カード",L20:L36)+SUMIF(AJ6:AJ16,"カード",AK6:AK16) -> 0 | U11: =SUMPRODUCT((K20:K36="カード")*(P20:P36=TRUE),Q20:Q36)+SUMPRODUCT((AJ6:AJ16="カード")*(AO6:AO16=TRUE),AP6:AP16) -> 0 | X11: =SUMPRODUCT((K20:K36="カード")*(P20:P36=FALSE),Q20:Q36)+SUMPRODUCT((AJ6:AJ16="カード")*(AO6:AO16=FALSE),AP6:AP16) -> 0 | AA11: 22 | AJ11: 現金 | AO11: FALSE | AR11: FALSE
B12: 交通費内訳(本日合計) | G12: 燃料関係 | K12: 実車率 | M12: =IF(ISERROR(I9/D11)=TRUE,"",I9/D11) ->  | P12: 合 計 | R12: =SUM(R9:T11) -> 0 | U12: =SUM(U10:W11) -> 0 | X12: =SUM(X10:Y11) -> 0 | AA12: 23 | AJ12: 現金 | AO12: FALSE | AR12: FALSE
B13: 現 金 | D13: =SUMIF(R17,FALSE,S17)+SUMIF(S20:S36,FALSE,T20:T36)+SUMIF(AR6:AR16,FALSE,AS6:AS16) -> 0 | F13: 円 | G13: 燃費 (ℓ/km) | I13: =IF(ISERROR(D11/M10)=TRUE,"",D11/M10) ->  | J13: km | K13: 実車粁収 | M13: =IF(ISERROR(M9/I9)=TRUE,"",M9/I9) ->  | O13: 円 | P13: 科目 | R13: 金額(円) | V13: 適用（内容） | AA13: 24 | AJ13: 現金 | AO13: FALSE | AR13: FALSE
B14: E T C | D14: =SUMIF(R17,TRUE,S17)+SUMIF(S20:S36,TRUE,T20:T36)+SUMIF(AR6:AR16,"TRUE",AS6:AS16) -> 0 | F14: 円 | G14: 燃料 単価 (ℓ/\) | I14: =日別輸送実績表!$F$54 -> 100 | J14: 円 | K14: 使用時間 | N14: 走行(km) | P14: 雑収入 | R14: =SUM(N20:O36,AM6:AO16) -> 0 | AA14: 25 | AJ14: 現金 | AO14: FALSE | AR14: FALSE
B15: 自家使用 | G15: ～ | L15: ～ | O15: km | P15: 燃料費 | R15: =IF($D$11="","",IF(ISERROR(LOOKUP(10^17,ﾃﾞｰﾀﾍﾞｰｽ!$Q$2:Q14))=TRUE,"",LOOKUP(10^17,ﾃﾞｰﾀﾍﾞｰｽ!$Q$2:Q14))) ->  | AA15: 26 | AJ15: 現金 | AO15: FALSE | AR15: FALSE
B16: 回送 | G16: ～ | L16: ～ | O16: km | P16: 雑費 | AA16: 27 | AJ16: 現金 | AO16: FALSE | AR16: FALSE
B17: 休憩地 | P17: その他交通費 | R17: FALSE
B18: 回数 | C18: 人員 | D18: 輸送経路 | J18: 降車 時刻 | K18: 収受種類 | L18: 運送収入(円) | P18: 立替金(円) | S18: 交通費(円) | V18: 適用
D19: 乗車地 | G19: 降車地 | L19: 金額 | N19: 雑収入 | P19: ETC | Q19: 金額 | S19: ETC | T19: 金額
B20: 1 | K20: 現金 | P20: FALSE | S20: FALSE
B21: 2 | K21: 現金
B22: 3 | K22: 現金
B23: 4 | K23: 現金
B24: 5 | K24: 現金
B25: 6 | K25: 現金
B26: 7 | K26: 現金
B27: 8 | K27: 現金
B28: 9 | K28: 現金
B29: 10 | K29: 現金
B30: 11 | K30: 現金 | P30: FALSE
B31: 12 | K31: 現金
B32: 13 | K32: 現金
B33: 14 | K33: 現金
B34: 15 | K34: 現金
B35: 16 | K35: 現金
B36: 17 | K36: 現金 | P36: FALSE

Sheet 15
A1: ※ | B1: この日報はCANON製両面印刷対応プリンタで両面印刷するように設計されています。
C3: 日別営業報告書 | AA3: 回数 | AB3: 人員 | AC3: 輸送経路 | AI3: 降車 時刻 | AJ3: 収受 種類 | AK3: 運 送 収 入(円) | AO3: 立替金(円) | AR3: 交通費(円) | AU3: 適用
B4: 氏名: | D4: =日別輸送実績表!$O$8 -> 0 | I4: 登録番号: | L4: =日別輸送実績表!$E$54 -> 0 | Q4: 本日の天気 | AC4: 乗車地 | AF4: 降車地 | AK4: 金額 | AM4: 雑収入 | AO4: ETC | AP4: 金額 | AR4: ETC | AS4: 金額
B6: 営業日 | F6: アルコール検知 | J6: 出庫時間 | L6: 入庫時間 | N6: 実労(h) | P6: 運送収入内訳(円) | U6: 立替金内訳（円） | AA6: 18 | AJ6: 現金 | AO6: FALSE | AR6: FALSE
F7: 出庫時 | H7: 入庫時
B8: =ﾃﾞｰﾀﾍﾞｰｽ!$E$17 -> 2013-08-15 | F8: 無し(適) | H8: 無し(適) | N8: =IF(COUNT(J8:L8)=2,(L8-J8-"0:00"+(J8>L8))*24,"") ->  | P8: 収受別 | R8: 金額（円） | U8: ETC | X8: 現金 | AA8: 19 | AJ8: 現金 | AO8: FALSE | AR8: TRUE
B9: 出庫(km) | D9: =IF($D$10="","",MAX(ﾃﾞｰﾀﾍﾞｰｽ!$L$2:$L$16)+$N$15) ->  | F9: km | G9: 実車 (km) | I9: =IF(ISERROR(VLOOKUP(ROUNDUP($M$9,-3),実車キロ,4,TRUE))=TRUE,"",VLOOKUP(ROUNDUP($M$9,-3),実車キロ,4,TRUE)) ->  | J9: km | K9: 運送収入 | M9: =SUM(L20:L36,AL6:AL16) -> 0 | O9: 円 | P9: 現 金 | R9: =SUMIF(K20:K36,"現金",L20:L36)+SUMIF(AJ6:AJ16,"現金",AK6:AK16) -> 0 | AA9: 20 | AJ9: 現金 | AO9: FALSE | AR9: FALSE
B10: 入庫(km) | F10: km | G10: 輸送 回数 | I10: =COUNT(C20:C36,AK6:AL16) -> 0 | J10: 回 | K10: 燃料消費 | M10: =IF(ISERROR(D11/日別輸送実績表!$G$54)=TRUE,"",D11/日別輸送実績表!$G$54) ->  | O10: ℓ | P10: チケット | R10: =SUMIF(K20:K36,"チケット",L20:L36)+SUMIF(AJ6:AJ16,"チケット",AK6:AK16) -> 0 | U10: =SUMPRODUCT((K20:K36="チケット")*(P20:P36=TRUE),Q20:Q36)+SUMPRODUCT((AJ6:AJ16="チケット")*(AO6:AO16=TRUE),AP6:AP16) -> 0 | X10: =SUMPRODUCT((K20:K36="チケット")*(P20:P36=FALSE),Q20:Q36)+SUMPRODUCT((AJ6:AJ16="チケット")*(AO6:AO16=FALSE),AP6:AP16) -> 0 | AA10: 21 | AJ10: 現金 | AO10: FALSE | AR10: FALSE
B11: 走行(km) | D11: =IF(D10=0,"",IF(ISERROR(D10-D9)=TRUE,"",D10-D9)) ->  | F11: km | G11: 輸送 人員 | I11: =SUM(C20:C36,AB6:AB16) -> 0 | J11: 人 | K11: 粁収 | M11: =IF(ISERROR(M9/D11)=TRUE,"",M9/D11) ->  | O11: 円 | P11: カード | R11: =SUMIF(K20:K36,"カード",L20:L36)+SUMIF(AJ6:AJ16,"カード",AK6:AK16) -> 0 | U11: =SUMPRODUCT((K20:K36="カード")*(P20:P36=TRUE),Q20:Q36)+SUMPRODUCT((AJ6:AJ16="カード")*(AO6:AO16=TRUE),AP6:AP16) -> 0 | X11: =SUMPRODUCT((K20:K36="カード")*(P20:P36=FALSE),Q20:Q36)+SUMPRODUCT((AJ6:AJ16="カード")*(AO6:AO16=FALSE),AP6:AP16) -> 0 | AA11: 22 | AJ11: 現金 | AO11: FALSE | AR11: FALSE
B12: 交通費内訳(本日合計) | G12: 燃料関係 | K12: 実車率 | M12: =IF(ISERROR(I9/D11)=TRUE,"",I9/D11) ->  | P12: 合 計 | R12: =SUM(R9:T11) -> 0 | U12: =SUM(U10:W11) -> 0 | X12: =SUM(X10:Y11) -> 0 | AA12: 23 | AJ12: 現金 | AO12: FALSE | AR12: FALSE
B13: 現 金 | D13: =SUMIF(R17,FALSE,S17)+SUMIF(S20:S36,FALSE,T20:T36)+SUMIF(AR6:AR16,FALSE,AS6:AS16) -> 0 | F13: 円 | G13: 燃費 (ℓ/km) | I13: =IF(ISERROR(D11/M10)=TRUE,"",D11/M10) ->  | J13: km | K13: 実車粁収 | M13: =IF(ISERROR(M9/I9)=TRUE,"",M9/I9) ->  | O13: 円 | P13: 科目 | R13: 金額(円) | V13: 適用（内容） | AA13: 24 | AJ13: 現金 | AO13: FALSE | AR13: FALSE
B14: E T C | D14: =SUMIF(R17,TRUE,S17)+SUMIF(S20:S36,TRUE,T20:T36)+SUMIF(AR6:AR16,"TRUE",AS6:AS16) -> 0 | F14: 円 | G14: 燃料 単価 (ℓ/\) | I14: =日別輸送実績表!$F$54 -> 100 | J14: 円 | K14: 使用時間 | N14: 走行(km) | P14: 雑収入 | R14: =SUM(N20:O36,AM6:AO16) -> 0 | AA14: 25 | AJ14: 現金 | AO14: FALSE | AR14: FALSE
B15: 自家使用 | G15: ～ | L15: ～ | O15: km | P15: 燃料費 | R15: =IF($D$11="","",IF(ISERROR(LOOKUP(10^17,ﾃﾞｰﾀﾍﾞｰｽ!$Q$2:Q15))=TRUE,"",LOOKUP(10^17,ﾃﾞｰﾀﾍﾞｰｽ!$Q$2:Q15))) ->  | AA15: 26 | AJ15: 現金 | AO15: FALSE | AR15: FALSE
B16: 回送 | G16: ～ | L16: ～ | O16: km | P16: 雑費 | AA16: 27 | AJ16: 現金 | AO16: FALSE | AR16: FALSE
B17: 休憩地 | P17: その他交通費 | R17: FALSE
B18: 回数 | C18: 人員 | D18: 輸送経路 | J18: 降車 時刻 | K18: 収受種類 | L18: 運送収入(円) | P18: 立替金(円) | S18: 交通費(円) | V18: 適用
D19: 乗車地 | G19: 降車地 | L19: 金額 | N19: 雑収入 | P19: ETC | Q19: 金額 | S19: ETC | T19: 金額
B20: 1 | K20: 現金 | P20: FALSE | S20: FALSE
B21: 2 | K21: 現金
B22: 3 | K22: 現金
B23: 4 | K23: 現金
B24: 5 | K24: 現金
B25: 6 | K25: 現金
B26: 7 | K26: 現金
B27: 8 | K27: 現金
B28: 9 | K28: 現金
B29: 10 | K29: 現金
B30: 11 | K30: 現金 | P30: FALSE
B31: 12 | K31: 現金
B32: 13 | K32: 現金
B33: 14 | K33: 現金
B34: 15 | K34: 現金
B35: 16 | K35: 現金
B36: 17 | K36: 現金 | P36: FALSE

Sheet 16
A1: ※ | B1: この日報はCANON製両面印刷対応プリンタで両面印刷するように設計されています。
C3: 日別営業報告書 | AA3: 回数 | AB3: 人員 | AC3: 輸送経路 | AI3: 降車 時刻 | AJ3: 収受 種類 | AK3: 運 送 収 入(円) | AO3: 立替金(円) | AR3: 交通費(円) | AU3: 適用
B4: 氏名: | D4: =日別輸送実績表!$O$8 -> 0 | I4: 登録番号: | L4: =日別輸送実績表!$E$54 -> 0 | Q4: 本日の天気 | AC4: 乗車地 | AF4: 降車地 | AK4: 金額 | AM4: 雑収入 | AO4: ETC | AP4: 金額 | AR4: ETC | AS4: 金額
B6: 営業日 | F6: アルコール検知 | J6: 出庫時間 | L6: 入庫時間 | N6: 実労(h) | P6: 運送収入内訳(円) | U6: 立替金内訳（円） | AA6: 18 | AJ6: 現金 | AO6: FALSE | AR6: FALSE
F7: 出庫時 | H7: 入庫時
B8: =ﾃﾞｰﾀﾍﾞｰｽ!$E$18 -> 2013-08-16 | F8: 無し(適) | H8: 無し(適) | N8: =IF(COUNT(J8:L8)=2,(L8-J8-"0:00"+(J8>L8))*24,"") ->  | P8: 収受別 | R8: 金額（円） | U8: ETC | X8: 現金 | AA8: 19 | AJ8: 現金 | AO8: FALSE | AR8: FALSE
B9: 出庫(km) | D9: =IF($D$10="","",MAX(ﾃﾞｰﾀﾍﾞｰｽ!$L$2:$L$17)+$N$15) ->  | F9: km | G9: 実車 (km) | I9: =IF(ISERROR(VLOOKUP(ROUNDUP($M$9,-3),実車キロ,4,TRUE))=TRUE,"",VLOOKUP(ROUNDUP($M$9,-3),実車キロ,4,TRUE)) ->  | J9: km | K9: 運送収入 | M9: =SUM(L20:L36,AL6:AL16) -> 0 | O9: 円 | P9: 現 金 | R9: =SUMIF(K20:K36,"現金",L20:L36)+SUMIF(AJ6:AJ16,"現金",AK6:AK16) -> 0 | AA9: 20 | AJ9: 現金 | AO9: FALSE | AR9: FALSE
B10: 入庫(km) | F10: km | G10: 輸送 回数 | I10: =COUNT(C20:C36,AK6:AL16) -> 0 | J10: 回 | K10: 燃料消費 | M10: =IF(ISERROR(D11/日別輸送実績表!$G$54)=TRUE,"",D11/日別輸送実績表!$G$54) ->  | O10: ℓ | P10: チケット | R10: =SUMIF(K20:K36,"チケット",L20:L36)+SUMIF(AJ6:AJ16,"チケット",AK6:AK16) -> 0 | U10: =SUMPRODUCT((K20:K36="チケット")*(P20:P36=TRUE),Q20:Q36)+SUMPRODUCT((AJ6:AJ16="チケット")*(AO6:AO16=TRUE),AP6:AP16) -> 0 | X10: =SUMPRODUCT((K20:K36="チケット")*(P20:P36=FALSE),Q20:Q36)+SUMPRODUCT((AJ6:AJ16="チケット")*(AO6:AO16=FALSE),AP6:AP16) -> 0 | AA10: 21 | AJ10: 現金 | AO10: FALSE | AR10: FALSE
B11: 走行(km) | D11: =IF(D10=0,"",IF(ISERROR(D10-D9)=TRUE,"",D10-D9)) ->  | F11: km | G11: 輸送 人員 | I11: =SUM(C20:C36,AB6:AB16) -> 0 | J11: 人 | K11: 粁収 | M11: =IF(ISERROR(M9/D11)=TRUE,"",M9/D11) ->  | O11: 円 | P11: カード | R11: =SUMIF(K20:K36,"カード",L20:L36)+SUMIF(AJ6:AJ16,"カード",AK6:AK16) -> 0 | U11: =SUMPRODUCT((K20:K36="カード")*(P20:P36=TRUE),Q20:Q36)+SUMPRODUCT((AJ6:AJ16="カード")*(AO6:AO16=TRUE),AP6:AP16) -> 0 | X11: =SUMPRODUCT((K20:K36="カード")*(P20:P36=FALSE),Q20:Q36)+SUMPRODUCT((AJ6:AJ16="カード")*(AO6:AO16=FALSE),AP6:AP16) -> 0 | AA11: 22 | AJ11: 現金 | AO11: FALSE | AR11: FALSE
B12: 交通費内訳(本日合計) | G12: 燃料関係 | K12: 実車率 | M12: =IF(ISERROR(I9/D11)=TRUE,"",I9/D11) ->  | P12: 合 計 | R12: =SUM(R9:T11) -> 0 | U12: =SUM(U10:W11) -> 0 | X12: =SUM(X10:Y11) -> 0 | AA12: 23 | AJ12: 現金 | AO12: FALSE | AR12: FALSE
B13: 現 金 | D13: =SUMIF(R17,FALSE,S17)+SUMIF(S20:S36,FALSE,T20:T36)+SUMIF(AR6:AR16,FALSE,AS6:AS16) -> 0 | F13: 円 | G13: 燃費 (ℓ/km) | I13: =IF(ISERROR(D11/M10)=TRUE,"",D11/M10) ->  | J13: km | K13: 実車粁収 | M13: =IF(ISERROR(M9/I9)=TRUE,"",M9/I9) ->  | O13: 円 | P13: 科目 | R13: 金額(円) | V13: 適用（内容） | AA13: 24 | AJ13: 現金 | AO13: FALSE | AR13: FALSE
B14: E T C | D14: =SUMIF(R17,TRUE,S17)+SUMIF(S20:S36,TRUE,T20:T36)+SUMIF(AR6:AR16,"TRUE",AS6:AS16) -> 0 | F14: 円 | G14: 燃料 単価 (ℓ/\) | I14: =日別輸送実績表!$F$54 -> 100 | J14: 円 | K14: 使用時間 | N14: 走行(km) | P14: 雑収入 | R14: =SUM(N20:O36,AM6:AO16) -> 0 | AA14: 25 | AJ14: 現金 | AO14: FALSE | AR14: FALSE
B15: 自家使用 | G15: ～ | L15: ～ | O15: km | P15: 燃料費 | R15: =IF($D$11="","",IF(ISERROR(LOOKUP(10^17,ﾃﾞｰﾀﾍﾞｰｽ!$Q$2:Q16))=TRUE,"",LOOKUP(10^17,ﾃﾞｰﾀﾍﾞｰｽ!$Q$2:Q16))) ->  | AA15: 26 | AJ15: 現金 | AO15: FALSE | AR15: FALSE
B16: 回送 | G16: ～ | L16: ～ | O16: km | P16: 雑費 | AA16: 27 | AJ16: 現金 | AO16: FALSE | AR16: FALSE
B17: 休憩地 | P17: その他交通費 | R17: FALSE
B18: 回数 | C18: 人員 | D18: 輸送経路 | J18: 降車 時刻 | K18: 収受種類 | L18: 運送収入(円) | P18: 立替金(円) | S18: 交通費(円) | V18: 適用
D19: 乗車地 | G19: 降車地 | L19: 金額 | N19: 雑収入 | P19: ETC | Q19: 金額 | S19: ETC | T19: 金額
B20: 1 | K20: 現金 | P20: FALSE | S20: FALSE
B21: 2 | K21: 現金
B22: 3 | K22: 現金
B23: 4 | K23: 現金
B24: 5 | K24: 現金
B25: 6 | K25: 現金
B26: 7 | K26: 現金
B27: 8 | K27: 現金
B28: 9 | K28: 現金
B29: 10 | K29: 現金
B30: 11 | K30: 現金 | P30: FALSE
B31: 12 | K31: 現金
B32: 13 | K32: 現金
B33: 14 | K33: 現金
B34: 15 | K34: 現金
B35: 16 | K35: 現金
B36: 17 | K36: 現金 | P36: FALSE

Sheet 17
A1: ※ | B1: この日報はCANON製両面印刷対応プリンタで両面印刷するように設計されています。
C3: 日別営業報告書 | AA3: 回数 | AB3: 人員 | AC3: 輸送経路 | AI3: 降車 時刻 | AJ3: 収受 種類 | AK3: 運 送 収 入(円) | AO3: 立替金(円) | AR3: 交通費(円) | AU3: 適用
B4: 氏名: | D4: =日別輸送実績表!$O$8 -> 0 | I4: 登録番号: | L4: =日別輸送実績表!$E$54 -> 0 | Q4: 本日の天気 | AC4: 乗車地 | AF4: 降車地 | AK4: 金額 | AM4: 雑収入 | AO4: ETC | AP4: 金額 | AR4: ETC | AS4: 金額
B6: 営業日 | F6: アルコール検知 | J6: 出庫時間 | L6: 入庫時間 | N6: 実労(h) | P6: 運送収入内訳(円) | U6: 立替金内訳（円） | AA6: 18 | AJ6: 現金 | AO6: FALSE | AR6: FALSE
F7: 出庫時 | H7: 入庫時
B8: =ﾃﾞｰﾀﾍﾞｰｽ!$E$19 -> 2013-08-17 | F8: 無し(適) | H8: 無し(適) | N8: =IF(COUNT(J8:L8)=2,(L8-J8-"0:00"+(J8>L8))*24,"") ->  | P8: 収受別 | R8: 金額（円） | U8: ETC | X8: 現金 | AA8: 19 | AJ8: 現金 | AO8: FALSE | AR8: FALSE
B9: 出庫(km) | D9: =IF($D$10="","",MAX(ﾃﾞｰﾀﾍﾞｰｽ!$L$2:$L$18)+$N$15) ->  | F9: km | G9: 実車 (km) | I9: =IF(ISERROR(VLOOKUP(ROUNDUP($M$9,-3),実車キロ,4,TRUE))=TRUE,"",VLOOKUP(ROUNDUP($M$9,-3),実車キロ,4,TRUE)) ->  | J9: km | K9: 運送収入 | M9: =SUM(L20:L36,AL6:AL16) -> 0 | O9: 円 | P9: 現 金 | R9: =SUMIF(K20:K36,"現金",L20:L36)+SUMIF(AJ6:AJ16,"現金",AK6:AK16) -> 0 | AA9: 20 | AJ9: 現金 | AO9: FALSE | AR9: FALSE
B10: 入庫(km) | F10: km | G10: 輸送 回数 | I10: =COUNT(C20:C36,AK6:AL16) -> 0 | J10: 回 | K10: 燃料消費 | M10: =IF(ISERROR(D11/日別輸送実績表!$G$54)=TRUE,"",D11/日別輸送実績表!$G$54) ->  | O10: ℓ | P10: チケット | R10: =SUMIF(K20:K36,"チケット",L20:L36)+SUMIF(AJ6:AJ16,"チケット",AK6:AK16) -> 0 | U10: =SUMPRODUCT((K20:K36="チケット")*(P20:P36=TRUE),Q20:Q36)+SUMPRODUCT((AJ6:AJ16="チケット")*(AO6:AO16=TRUE),AP6:AP16) -> 0 | X10: =SUMPRODUCT((K20:K36="チケット")*(P20:P36=FALSE),Q20:Q36)+SUMPRODUCT((AJ6:AJ16="チケット")*(AO6:AO16=FALSE),AP6:AP16) -> 0 | AA10: 21 | AJ10: 現金 | AO10: FALSE | AR10: FALSE
B11: 走行(km) | D11: =IF(D10=0,"",IF(ISERROR(D10-D9)=TRUE,"",D10-D9)) ->  | F11: km | G11: 輸送 人員 | I11: =SUM(C20:C36,AB6:AB16) -> 0 | J11: 人 | K11: 粁収 | M11: =IF(ISERROR(M9/D11)=TRUE,"",M9/D11) ->  | O11: 円 | P11: カード | R11: =SUMIF(K20:K36,"カード",L20:L36)+SUMIF(AJ6:AJ16,"カード",AK6:AK16) -> 0 | U11: =SUMPRODUCT((K20:K36="カード")*(P20:P36=TRUE),Q20:Q36)+SUMPRODUCT((AJ6:AJ16="カード")*(AO6:AO16=TRUE),AP6:AP16) -> 0 | X11: =SUMPRODUCT((K20:K36="カード")*(P20:P36=FALSE),Q20:Q36)+SUMPRODUCT((AJ6:AJ16="カード")*(AO6:AO16=FALSE),AP6:AP16) -> 0 | AA11: 22 | AJ11: 現金 | AO11: FALSE | AR11: FALSE
B12: 交通費内訳(本日合計) | G12: 燃料関係 | K12: 実車率 | M12: =IF(ISERROR(I9/D11)=TRUE,"",I9/D11) ->  | P12: 合 計 | R12: =SUM(R9:T11) -> 0 | U12: =SUM(U10:W11) -> 0 | X12: =SUM(X10:Y11) -> 0 | AA12: 23 | AJ12: 現金 | AO12: FALSE | AR12: FALSE
B13: 現 金 | D13: =SUMIF(R17,FALSE,S17)+SUMIF(S20:S36,FALSE,T20:T36)+SUMIF(AR6:AR16,FALSE,AS6:AS16) -> 0 | F13: 円 | G13: 燃費 (ℓ/km) | I13: =IF(ISERROR(D11/M10)=TRUE,"",D11/M10) ->  | J13: km | K13: 実車粁収 | M13: =IF(ISERROR(M9/I9)=TRUE,"",M9/I9) ->  | O13: 円 | P13: 科目 | R13: 金額(円) | V13: 適用（内容） | AA13: 24 | AJ13: 現金 | AO13: FALSE | AR13: FALSE
B14: E T C | D14: =SUMIF(R17,TRUE,S17)+SUMIF(S20:S36,TRUE,T20:T36)+SUMIF(AR6:AR16,"TRUE",AS6:AS16) -> 0 | F14: 円 | G14: 燃料 単価 (ℓ/\) | I14: =日別輸送実績表!$F$54 -> 100 | J14: 円 | K14: 使用時間 | N14: 走行(km) | P14: 雑収入 | R14: =SUM(N20:O36,AM6:AO16) -> 0 | AA14: 25 | AJ14: 現金 | AO14: FALSE | AR14: FALSE
B15: 自家使用 | G15: ～ | L15: ～ | O15: km | P15: 燃料費 | R15: =IF($D$11="","",IF(ISERROR(LOOKUP(10^17,ﾃﾞｰﾀﾍﾞｰｽ!$Q$2:Q17))=TRUE,"",LOOKUP(10^17,ﾃﾞｰﾀﾍﾞｰｽ!$Q$2:Q17))) ->  | AA15: 26 | AJ15: 現金 | AO15: FALSE | AR15: FALSE
B16: 回送 | G16: ～ | L16: ～ | O16: km | P16: 雑費 | AA16: 27 | AJ16: 現金 | AO16: FALSE | AR16: FALSE
B17: 休憩地 | P17: その他交通費 | R17: FALSE
B18: 回数 | C18: 人員 | D18: 輸送経路 | J18: 降車 時刻 | K18: 収受種類 | L18: 運送収入(円) | P18: 立替金(円) | S18: 交通費(円) | V18: 適用
D19: 乗車地 | G19: 降車地 | L19: 金額 | N19: 雑収入 | P19: ETC | Q19: 金額 | S19: ETC | T19: 金額
B20: 1 | K20: 現金 | P20: FALSE | S20: FALSE
B21: 2 | K21: 現金
B22: 3 | K22: 現金
B23: 4 | K23: 現金
B24: 5 | K24: 現金
B25: 6 | K25: 現金
B26: 7 | K26: 現金
B27: 8 | K27: 現金
B28: 9 | K28: 現金
B29: 10 | K29: 現金
B30: 11 | K30: 現金 | P30: FALSE
B31: 12 | K31: 現金
B32: 13 | K32: 現金
B33: 14 | K33: 現金
B34: 15 | K34: 現金
B35: 16 | K35: 現金
B36: 17 | K36: 現金 | P36: FALSE

Sheet 18
A1: ※ | B1: この日報はCANON製両面印刷対応プリンタで両面印刷するように設計されています。
C3: 日別営業報告書 | AA3: 回数 | AB3: 人員 | AC3: 輸送経路 | AI3: 降車 時刻 | AJ3: 収受 種類 | AK3: 運 送 収 入(円) | AO3: 立替金(円) | AR3: 交通費(円) | AU3: 適用
B4: 氏名: | D4: =日別輸送実績表!$O$8 -> 0 | I4: 登録番号: | L4: =日別輸送実績表!$E$54 -> 0 | Q4: 本日の天気 | AC4: 乗車地 | AF4: 降車地 | AK4: 金額 | AM4: 雑収入 | AO4: ETC | AP4: 金額 | AR4: ETC | AS4: 金額
B6: 営業日 | F6: アルコール検知 | J6: 出庫時間 | L6: 入庫時間 | N6: 実労(h) | P6: 運送収入内訳(円) | U6: 立替金内訳（円） | AA6: 18 | AJ6: 現金 | AO6: FALSE | AR6: FALSE
F7: 出庫時 | H7: 入庫時
B8: =ﾃﾞｰﾀﾍﾞｰｽ!$E$20 -> 2013-08-18 | F8: 無し(適) | H8: 無し(適) | N8: =IF(COUNT(J8:L8)=2,(L8-J8-"0:00"+(J8>L8))*24,"") ->  | P8: 収受別 | R8: 金額（円） | U8: ETC | X8: 現金 | AA8: 19 | AJ8: 現金 | AO8: FALSE | AR8: FALSE
B9: 出庫(km) | D9: =IF($D$10="","",MAX(ﾃﾞｰﾀﾍﾞｰｽ!$L$2:$L$19)+$N$15) ->  | F9: km | G9: 実車 (km) | I9: =IF(ISERROR(VLOOKUP(ROUNDUP($M$9,-3),実車キロ,4,TRUE))=TRUE,"",VLOOKUP(ROUNDUP($M$9,-3),実車キロ,4,TRUE)) ->  | J9: km | K9: 運送収入 | M9: =SUM(L20:L36,AL6:AL16) -> 0 | O9: 円 | P9: 現 金 | R9: =SUMIF(K20:K36,"現金",L20:L36)+SUMIF(AJ6:AJ16,"現金",AK6:AK16) -> 0 | AA9: 20 | AJ9: 現金 | AO9: FALSE | AR9: FALSE
B10: 入庫(km) | F10: km | G10: 輸送 回数 | I10: =COUNT(C20:C36,AK6:AL16) -> 0 | J10: 回 | K10: 燃料消費 | M10: =IF(ISERROR(D11/日別輸送実績表!$G$54)=TRUE,"",D11/日別輸送実績表!$G$54) ->  | O10: ℓ | P10: チケット | R10: =SUMIF(K20:K36,"チケット",L20:L36)+SUMIF(AJ6:AJ16,"チケット",AK6:AK16) -> 0 | U10: =SUMPRODUCT((K20:K36="チケット")*(P20:P36=TRUE),Q20:Q36)+SUMPRODUCT((AJ6:AJ16="チケット")*(AO6:AO16=TRUE),AP6:AP16) -> 0 | X10: =SUMPRODUCT((K20:K36="チケット")*(P20:P36=FALSE),Q20:Q36)+SUMPRODUCT((AJ6:AJ16="チケット")*(AO6:AO16=FALSE),AP6:AP16) -> 0 | AA10: 21 | AJ10: 現金 | AO10: FALSE | AR10: FALSE
B11: 走行(km) | D11: =IF(D10=0,"",IF(ISERROR(D10-D9)=TRUE,"",D10-D9)) ->  | F11: km | G11: 輸送 人員 | I11: =SUM(C20:C36,AB6:AB16) -> 0 | J11: 人 | K11: 粁収 | M11: =IF(ISERROR(M9/D11)=TRUE,"",M9/D11) ->  | O11: 円 | P11: カード | R11: =SUMIF(K20:K36,"カード",L20:L36)+SUMIF(AJ6:AJ16,"カード",AK6:AK16) -> 0 | U11: =SUMPRODUCT((K20:K36="カード")*(P20:P36=TRUE),Q20:Q36)+SUMPRODUCT((AJ6:AJ16="カード")*(AO6:AO16=TRUE),AP6:AP16) -> 0 | X11: =SUMPRODUCT((K20:K36="カード")*(P20:P36=FALSE),Q20:Q36)+SUMPRODUCT((AJ6:AJ16="カード")*(AO6:AO16=FALSE),AP6:AP16) -> 0 | AA11: 22 | AJ11: 現金 | AO11: FALSE | AR11: FALSE
B12: 交通費内訳(本日合計) | G12: 燃料関係 | K12: 実車率 | M12: =IF(ISERROR(I9/D11)=TRUE,"",I9/D11) ->  | P12: 合 計 | R12: =SUM(R9:T11) -> 0 | U12: =SUM(U10:W11) -> 0 | X12: =SUM(X10:Y11) -> 0 | AA12: 23 | AJ12: 現金 | AO12: FALSE | AR12: FALSE
B13: 現 金 | D13: =SUMIF(R17,FALSE,S17)+SUMIF(S20:S36,FALSE,T20:T36)+SUMIF(AR6:AR16,FALSE,AS6:AS16) -> 0 | F13: 円 | G13: 燃費 (ℓ/km) | I13: =IF(ISERROR(D11/M10)=TRUE,"",D11/M10) ->  | J13: km | K13: 実車粁収 | M13: =IF(ISERROR(M9/I9)=TRUE,"",M9/I9) ->  | O13: 円 | P13: 科目 | R13: 金額(円) | V13: 適用（内容） | AA13: 24 | AJ13: 現金 | AO13: FALSE | AR13: FALSE
B14: E T C | D14: =SUMIF(R17,TRUE,S17)+SUMIF(S20:S36,TRUE,T20:T36)+SUMIF(AR6:AR16,"TRUE",AS6:AS16) -> 0 | F14: 円 | G14: 燃料 単価 (ℓ/\) | I14: =日別輸送実績表!$F$54 -> 100 | J14: 円 | K14: 使用時間 | N14: 走行(km) | P14: 雑収入 | R14: =SUM(N20:O36,AM6:AO16) -> 0 | AA14: 25 | AJ14: 現金 | AO14: FALSE | AR14: FALSE
B15: 自家使用 | G15: ～ | L15: ～ | O15: km | P15: 燃料費 | R15: =IF($D$11="","",IF(ISERROR(LOOKUP(10^17,ﾃﾞｰﾀﾍﾞｰｽ!$Q$2:Q18))=TRUE,"",LOOKUP(10^17,ﾃﾞｰﾀﾍﾞｰｽ!$Q$2:Q18))) ->  | AA15: 26 | AJ15: 現金 | AO15: FALSE | AR15: FALSE
B16: 回送 | G16: ～ | L16: ～ | O16: km | P16: 雑費 | AA16: 27 | AJ16: 現金 | AO16: FALSE | AR16: FALSE
B17: 休憩地 | P17: その他交通費 | R17: FALSE
B18: 回数 | C18: 人員 | D18: 輸送経路 | J18: 降車 時刻 | K18: 収受種類 | L18: 運送収入(円) | P18: 立替金(円) | S18: 交通費(円) | V18: 適用
D19: 乗車地 | G19: 降車地 | L19: 金額 | N19: 雑収入 | P19: ETC | Q19: 金額 | S19: ETC | T19: 金額
B20: 1 | K20: 現金 | P20: FALSE | S20: FALSE
B21: 2 | K21: 現金
B22: 3 | K22: 現金
B23: 4 | K23: 現金
B24: 5 | K24: 現金
B25: 6 | K25: 現金
B26: 7 | K26: 現金
B27: 8 | K27: 現金
B28: 9 | K28: 現金
B29: 10 | K29: 現金
B30: 11 | K30: 現金 | P30: FALSE
B31: 12 | K31: 現金
B32: 13 | K32: 現金
B33: 14 | K33: 現金
B34: 15 | K34: 現金
B35: 16 | K35: 現金
B36: 17 | K36: 現金 | P36: FALSE

Sheet 19
A1: ※ | B1: この日報はCANON製両面印刷対応プリンタで両面印刷するように設計されています。
C3: 日別営業報告書 | AA3: 回数 | AB3: 人員 | AC3: 輸送経路 | AI3: 降車 時刻 | AJ3: 収受 種類 | AK3: 運 送 収 入(円) | AO3: 立替金(円) | AR3: 交通費(円) | AU3: 適用
B4: 氏名: | D4: =日別輸送実績表!$O$8 -> 0 | I4: 登録番号: | L4: =日別輸送実績表!$E$54 -> 0 | Q4: 本日の天気 | AC4: 乗車地 | AF4: 降車地 | AK4: 金額 | AM4: 雑収入 | AO4: ETC | AP4: 金額 | AR4: ETC | AS4: 金額
B6: 営業日 | F6: アルコール検知 | J6: 出庫時間 | L6: 入庫時間 | N6: 実労(h) | P6: 運送収入内訳(円) | U6: 立替金内訳（円） | AA6: 18 | AJ6: 現金 | AO6: FALSE | AR6: FALSE
F7: 出庫時 | H7: 入庫時
B8: =ﾃﾞｰﾀﾍﾞｰｽ!$E$21 -> 2013-08-19 | F8: 無し(適) | H8: 無し(適) | N8: =IF(COUNT(J8:L8)=2,(L8-J8-"0:00"+(J8>L8))*24,"") ->  | P8: 収受別 | R8: 金額（円） | U8: ETC | X8: 現金 | AA8: 19 | AJ8: 現金 | AO8: FALSE | AR8: FALSE
B9: 出庫(km) | D9: =IF($D$10="","",MAX(ﾃﾞｰﾀﾍﾞｰｽ!$L$2:$L$20)+$N$15) ->  | F9: km | G9: 実車 (km) | I9: =IF(ISERROR(VLOOKUP(ROUNDUP($M$9,-3),実車キロ,4,TRUE))=TRUE,"",VLOOKUP(ROUNDUP($M$9,-3),実車キロ,4,TRUE)) ->  | J9: km | K9: 運送収入 | M9: =SUM(L20:L36,AL6:AL16) -> 0 | O9: 円 | P9: 現 金 | R9: =SUMIF(K20:K36,"現金",L20:L36)+SUMIF(AJ6:AJ16,"現金",AK6:AK16) -> 0 | AA9: 20 | AJ9: 現金 | AO9: FALSE | AR9: FALSE
B10: 入庫(km) | F10: km | G10: 輸送 回数 | I10: =COUNT(C20:C36,AK6:AL16) -> 0 | J10: 回 | K10: 燃料消費 | M10: =IF(ISERROR(D11/日別輸送実績表!$G$54)=TRUE,"",D11/日別輸送実績表!$G$54) ->  | O10: ℓ | P10: チケット | R10: =SUMIF(K20:K36,"チケット",L20:L36)+SUMIF(AJ6:AJ16,"チケット",AK6:AK16) -> 0 | U10: =SUMPRODUCT((K20:K36="チケット")*(P20:P36=TRUE),Q20:Q36)+SUMPRODUCT((AJ6:AJ16="チケット")*(AO6:AO16=TRUE),AP6:AP16) -> 0 | X10: =SUMPRODUCT((K20:K36="チケット")*(P20:P36=FALSE),Q20:Q36)+SUMPRODUCT((AJ6:AJ16="チケット")*(AO6:AO16=FALSE),AP6:AP16) -> 0 | AA10: 21 | AJ10: 現金 | AO10: FALSE | AR10: FALSE
B11: 走行(km) | D11: =IF(D10=0,"",IF(ISERROR(D10-D9)=TRUE,"",D10-D9)) ->  | F11: km | G11: 輸送 人員 | I11: =SUM(C20:C36,AB6:AB16) -> 0 | J11: 人 | K11: 粁収 | M11: =IF(ISERROR(M9/D11)=TRUE,"",M9/D11) ->  | O11: 円 | P11: カード | R11: =SUMIF(K20:K36,"カード",L20:L36)+SUMIF(AJ6:AJ16,"カード",AK6:AK16) -> 0 | U11: =SUMPRODUCT((K20:K36="カード")*(P20:P36=TRUE),Q20:Q36)+SUMPRODUCT((AJ6:AJ16="カード")*(AO6:AO16=TRUE),AP6:AP16) -> 0 | X11: =SUMPRODUCT((K20:K36="カード")*(P20:P36=FALSE),Q20:Q36)+SUMPRODUCT((AJ6:AJ16="カード")*(AO6:AO16=FALSE),AP6:AP16) -> 0 | AA11: 22 | AJ11: 現金 | AO11: FALSE | AR11: FALSE
B12: 交通費内訳(本日合計) | G12: 燃料関係 | K12: 実車率 | M12: =IF(ISERROR(I9/D11)=TRUE,"",I9/D11) ->  | P12: 合 計 | R12: =SUM(R9:T11) -> 0 | U12: =SUM(U10:W11) -> 0 | X12: =SUM(X10:Y11) -> 0 | AA12: 23 | AJ12: 現金 | AO12: FALSE | AR12: FALSE
B13: 現 金 | D13: =SUMIF(R17,FALSE,S17)+SUMIF(S20:S36,FALSE,T20:T36)+SUMIF(AR6:AR16,FALSE,AS6:AS16) -> 0 | F13: 円 | G13: 燃費 (ℓ/km) | I13: =IF(ISERROR(D11/M10)=TRUE,"",D11/M10) ->  | J13: km | K13: 実車粁収 | M13: =IF(ISERROR(M9/I9)=TRUE,"",M9/I9) ->  | O13: 円 | P13: 科目 | R13: 金額(円) | V13: 適用（内容） | AA13: 24 | AJ13: 現金 | AO13: FALSE | AR13: FALSE
B14: E T C | D14: =SUMIF(R17,TRUE,S17)+SUMIF(S20:S36,TRUE,T20:T36)+SUMIF(AR6:AR16,"TRUE",AS6:AS16) -> 0 | F14: 円 | G14: 燃料 単価 (ℓ/\) | I14: =日別輸送実績表!$F$54 -> 100 | J14: 円 | K14: 使用時間 | N14: 走行(km) | P14: 雑収入 | R14: =SUM(N20:O36,AM6:AO16) -> 0 | AA14: 25 | AJ14: 現金 | AO14: FALSE | AR14: FALSE
B15: 自家使用 | G15: ～ | L15: ～ | O15: km | P15: 燃料費 | R15: =IF($D$11="","",IF(ISERROR(LOOKUP(10^17,ﾃﾞｰﾀﾍﾞｰｽ!$Q$2:Q19))=TRUE,"",LOOKUP(10^17,ﾃﾞｰﾀﾍﾞｰｽ!$Q$2:Q19))) ->  | AA15: 26 | AJ15: 現金 | AO15: FALSE | AR15: FALSE
B16: 回送 | G16: ～ | L16: ～ | O16: km | P16: 雑費 | AA16: 27 | AJ16: 現金 | AO16: FALSE | AR16: FALSE
B17: 休憩地 | P17: その他交通費 | R17: FALSE
B18: 回数 | C18: 人員 | D18: 輸送経路 | J18: 降車 時刻 | K18: 収受種類 | L18: 運送収入(円) | P18: 立替金(円) | S18: 交通費(円) | V18: 適用
D19: 乗車地 | G19: 降車地 | L19: 金額 | N19: 雑収入 | P19: ETC | Q19: 金額 | S19: ETC | T19: 金額
B20: 1 | K20: 現金 | P20: FALSE | S20: FALSE
B21: 2 | K21: 現金
B22: 3 | K22: 現金
B23: 4 | K23: 現金
B24: 5 | K24: 現金
B25: 6 | K25: 現金
B26: 7 | K26: 現金
B27: 8 | K27: 現金
B28: 9 | K28: 現金
B29: 10 | K29: 現金
B30: 11 | K30: 現金 | P30: FALSE
B31: 12 | K31: 現金
B32: 13 | K32: 現金
B33: 14 | K33: 現金
B34: 15 | K34: 現金
B35: 16 | K35: 現金
B36: 17 | K36: 現金 | P36: FALSE

Sheet 20
A1: ※ | B1: この日報はCANON製両面印刷対応プリンタで両面印刷するように設計されています。
C3: 日別営業報告書 | AA3: 回数 | AB3: 人員 | AC3: 輸送経路 | AI3: 降車 時刻 | AJ3: 収受 種類 | AK3: 運 送 収 入(円) | AO3: 立替金(円) | AR3: 交通費(円) | AU3: 適用
B4: 氏名: | D4: =日別輸送実績表!$O$8 -> 0 | I4: 登録番号: | L4: =日別輸送実績表!$E$54 -> 0 | Q4: 本日の天気 | AC4: 乗車地 | AF4: 降車地 | AK4: 金額 | AM4: 雑収入 | AO4: ETC | AP4: 金額 | AR4: ETC | AS4: 金額
B6: 営業日 | F6: アルコール検知 | J6: 出庫時間 | L6: 入庫時間 | N6: 実労(h) | P6: 運送収入内訳(円) | U6: 立替金内訳（円） | AA6: 18 | AJ6: 現金 | AO6: FALSE | AR6: FALSE
F7: 出庫時 | H7: 入庫時
B8: =ﾃﾞｰﾀﾍﾞｰｽ!$E$22 -> 2013-08-20 | F8: 無し(適) | H8: 無し(適) | N8: =IF(COUNT(J8:L8)=2,(L8-J8-"0:00"+(J8>L8))*24,"") ->  | P8: 収受別 | R8: 金額（円） | U8: ETC | X8: 現金 | AA8: 19 | AJ8: 現金 | AO8: FALSE | AR8: FALSE
B9: 出庫(km) | D9: =IF($D$10="","",MAX(ﾃﾞｰﾀﾍﾞｰｽ!$L$2:$L$21)+$N$15) ->  | F9: km | G9: 実車 (km) | I9: =IF(ISERROR(VLOOKUP(ROUNDUP($M$9,-3),実車キロ,4,TRUE))=TRUE,"",VLOOKUP(ROUNDUP($M$9,-3),実車キロ,4,TRUE)) ->  | J9: km | K9: 運送収入 | M9: =SUM(L20:L36,AL6:AL16) -> 0 | O9: 円 | P9: 現 金 | R9: =SUMIF(K20:K36,"現金",L20:L36)+SUMIF(AJ6:AJ16,"現金",AK6:AK16) -> 0 | AA9: 20 | AJ9: 現金 | AO9: FALSE | AR9: FALSE
B10: 入庫(km) | F10: km | G10: 輸送 回数 | I10: =COUNT(C20:C36,AK6:AL16) -> 0 | J10: 回 | K10: 燃料消費 | M10: =IF(ISERROR(D11/日別輸送実績表!$G$54)=TRUE,"",D11/日別輸送実績表!$G$54) ->  | O10: ℓ | P10: チケット | R10: =SUMIF(K20:K36,"チケット",L20:L36)+SUMIF(AJ6:AJ16,"チケット",AK6:AK16) -> 0 | U10: =SUMPRODUCT((K20:K36="チケット")*(P20:P36=TRUE),Q20:Q36)+SUMPRODUCT((AJ6:AJ16="チケット")*(AO6:AO16=TRUE),AP6:AP16) -> 0 | X10: =SUMPRODUCT((K20:K36="チケット")*(P20:P36=FALSE),Q20:Q36)+SUMPRODUCT((AJ6:AJ16="チケット")*(AO6:AO16=FALSE),AP6:AP16) -> 0 | AA10: 21 | AJ10: 現金 | AO10: FALSE | AR10: FALSE
B11: 走行(km) | D11: =IF(D10=0,"",IF(ISERROR(D10-D9)=TRUE,"",D10-D9)) ->  | F11: km | G11: 輸送 人員 | I11: =SUM(C20:C36,AB6:AB16) -> 0 | J11: 人 | K11: 粁収 | M11: =IF(ISERROR(M9/D11)=TRUE,"",M9/D11) ->  | O11: 円 | P11: カード | R11: =SUMIF(K20:K36,"カード",L20:L36)+SUMIF(AJ6:AJ16,"カード",AK6:AK16) -> 0 | U11: =SUMPRODUCT((K20:K36="カード")*(P20:P36=TRUE),Q20:Q36)+SUMPRODUCT((AJ6:AJ16="カード")*(AO6:AO16=TRUE),AP6:AP16) -> 0 | X11: =SUMPRODUCT((K20:K36="カード")*(P20:P36=FALSE),Q20:Q36)+SUMPRODUCT((AJ6:AJ16="カード")*(AO6:AO16=FALSE),AP6:AP16) -> 0 | AA11: 22 | AJ11: 現金 | AO11: FALSE | AR11: FALSE
B12: 交通費内訳(本日合計) | G12: 燃料関係 | K12: 実車率 | M12: =IF(ISERROR(I9/D11)=TRUE,"",I9/D11) ->  | P12: 合 計 | R12: =SUM(R9:T11) -> 0 | U12: =SUM(U10:W11) -> 0 | X12: =SUM(X10:Y11) -> 0 | AA12: 23 | AJ12: 現金 | AO12: FALSE | AR12: FALSE
B13: 現 金 | D13: =SUMIF(R17,FALSE,S17)+SUMIF(S20:S36,FALSE,T20:T36)+SUMIF(AR6:AR16,FALSE,AS6:AS16) -> 0 | F13: 円 | G13: 燃費 (ℓ/km) | I13: =IF(ISERROR(D11/M10)=TRUE,"",D11/M10) ->  | J13: km | K13: 実車粁収 | M13: =IF(ISERROR(M9/I9)=TRUE,"",M9/I9) ->  | O13: 円 | P13: 科目 | R13: 金額(円) | V13: 適用（内容） | AA13: 24 | AJ13: 現金 | AO13: FALSE | AR13: FALSE
B14: E T C | D14: =SUMIF(R17,TRUE,S17)+SUMIF(S20:S36,TRUE,T20:T36)+SUMIF(AR6:AR16,"TRUE",AS6:AS16) -> 0 | F14: 円 | G14: 燃料 単価 (ℓ/\) | I14: =日別輸送実績表!$F$54 -> 100 | J14: 円 | K14: 使用時間 | N14: 走行(km) | P14: 雑収入 | R14: =SUM(N20:O36,AM6:AO16) -> 0 | AA14: 25 | AJ14: 現金 | AO14: FALSE | AR14: FALSE
B15: 自家使用 | G15: ～ | L15: ～ | O15: km | P15: 燃料費 | R15: =IF($D$11="","",IF(ISERROR(LOOKUP(10^17,ﾃﾞｰﾀﾍﾞｰｽ!$Q$2:Q20))=TRUE,"",LOOKUP(10^17,ﾃﾞｰﾀﾍﾞｰｽ!$Q$2:Q20))) ->  | AA15: 26 | AJ15: 現金 | AO15: FALSE | AR15: FALSE
B16: 回送 | G16: ～ | L16: ～ | O16: km | P16: 雑費 | AA16: 27 | AJ16: 現金 | AO16: FALSE | AR16: FALSE
B17: 休憩地 | P17: その他交通費 | R17: FALSE
B18: 回数 | C18: 人員 | D18: 輸送経路 | J18: 降車 時刻 | K18: 収受種類 | L18: 運送収入(円) | P18: 立替金(円) | S18: 交通費(円) | V18: 適用
D19: 乗車地 | G19: 降車地 | L19: 金額 | N19: 雑収入 | P19: ETC | Q19: 金額 | S19: ETC | T19: 金額
B20: 1 | K20: 現金 | P20: FALSE | S20: FALSE
B21: 2 | K21: 現金 | S21: FALSE
B22: 3 | K22: 現金
B23: 4 | K23: 現金
B24: 5 | K24: 現金
B25: 6 | K25: 現金
B26: 7 | K26: 現金 | S26: FALSE
B27: 8 | K27: 現金 | S27: FALSE
B28: 9 | K28: 現金 | S28: FALSE
B29: 10 | K29: 現金 | S29: FALSE
B30: 11 | K30: 現金 | P30: FALSE | S30: FALSE
B31: 12 | K31: 現金 | S31: FALSE
B32: 13 | K32: 現金 | S32: FALSE
B33: 14 | K33: 現金
B34: 15 | K34: 現金 | S34: FALSE
B35: 16 | K35: 現金 | S35: FALSE
B36: 17 | K36: 現金 | P36: FALSE | S36: FALSE

Sheet 21
A1: ※ | B1: この日報はCANON製両面印刷対応プリンタで両面印刷するように設計されています。
C3: 日別営業報告書 | AA3: 回数 | AB3: 人員 | AC3: 輸送経路 | AI3: 降車 時刻 | AJ3: 収受 種類 | AK3: 運 送 収 入(円) | AO3: 立替金(円) | AR3: 交通費(円) | AU3: 適用
B4: 氏名: | D4: =日別輸送実績表!$O$8 -> 0 | I4: 登録番号: | L4: =日別輸送実績表!$E$54 -> 0 | Q4: 本日の天気 | AC4: 乗車地 | AF4: 降車地 | AK4: 金額 | AM4: 雑収入 | AO4: ETC | AP4: 金額 | AR4: ETC | AS4: 金額
B6: 営業日 | F6: アルコール検知 | J6: 出庫時間 | L6: 入庫時間 | N6: 実労(h) | P6: 運送収入内訳(円) | U6: 立替金内訳（円） | AA6: 18 | AJ6: 現金 | AO6: FALSE | AR6: FALSE
F7: 出庫時 | H7: 入庫時
B8: =ﾃﾞｰﾀﾍﾞｰｽ!$E$23 -> 2013-08-21 | F8: 無し(適) | H8: 無し(適) | N8: =IF(COUNT(J8:L8)=2,(L8-J8-"0:00"+(J8>L8))*24,"") ->  | P8: 収受別 | R8: 金額（円） | U8: ETC | X8: 現金 | AA8: 19 | AJ8: 現金 | AO8: FALSE | AR8: FALSE
B9: 出庫(km) | D9: =IF($D$10="","",MAX(ﾃﾞｰﾀﾍﾞｰｽ!$L$2:$L$22)+$N$15) ->  | F9: km | G9: 実車 (km) | I9: =IF(ISERROR(VLOOKUP(ROUNDUP($M$9,-3),実車キロ,4,TRUE))=TRUE,"",VLOOKUP(ROUNDUP($M$9,-3),実車キロ,4,TRUE)) ->  | J9: km | K9: 運送収入 | M9: =SUM(L20:L36,AL6:AL16) -> 0 | O9: 円 | P9: 現 金 | R9: =SUMIF(K20:K36,"現金",L20:L36)+SUMIF(AJ6:AJ16,"現金",AK6:AK16) -> 0 | AA9: 20 | AJ9: 現金 | AO9: FALSE | AR9: FALSE
B10: 入庫(km) | F10: km | G10: 輸送 回数 | I10: =COUNT(C20:C36,AK6:AL16) -> 0 | J10: 回 | K10: 燃料消費 | M10: =IF(ISERROR(D11/日別輸送実績表!$G$54)=TRUE,"",D11/日別輸送実績表!$G$54) ->  | O10: ℓ | P10: チケット | R10: =SUMIF(K20:K36,"チケット",L20:L36)+SUMIF(AJ6:AJ16,"チケット",AK6:AK16) -> 0 | U10: =SUMPRODUCT((K20:K36="チケット")*(P20:P36=TRUE),Q20:Q36)+SUMPRODUCT((AJ6:AJ16="チケット")*(AO6:AO16=TRUE),AP6:AP16) -> 0 | X10: =SUMPRODUCT((K20:K36="チケット")*(P20:P36=FALSE),Q20:Q36)+SUMPRODUCT((AJ6:AJ16="チケット")*(AO6:AO16=FALSE),AP6:AP16) -> 0 | AA10: 21 | AJ10: 現金 | AO10: FALSE | AR10: FALSE
B11: 走行(km) | D11: =IF(D10=0,"",IF(ISERROR(D10-D9)=TRUE,"",D10-D9)) ->  | F11: km | G11: 輸送 人員 | I11: =SUM(C20:C36,AB6:AB16) -> 0 | J11: 人 | K11: 粁収 | M11: =IF(ISERROR(M9/D11)=TRUE,"",M9/D11) ->  | O11: 円 | P11: カード | R11: =SUMIF(K20:K36,"カード",L20:L36)+SUMIF(AJ6:AJ16,"カード",AK6:AK16) -> 0 | U11: =SUMPRODUCT((K20:K36="カード")*(P20:P36=TRUE),Q20:Q36)+SUMPRODUCT((AJ6:AJ16="カード")*(AO6:AO16=TRUE),AP6:AP16) -> 0 | X11: =SUMPRODUCT((K20:K36="カード")*(P20:P36=FALSE),Q20:Q36)+SUMPRODUCT((AJ6:AJ16="カード")*(AO6:AO16=FALSE),AP6:AP16) -> 0 | AA11: 22 | AJ11: 現金 | AO11: FALSE | AR11: FALSE
B12: 交通費内訳(本日合計) | G12: 燃料関係 | K12: 実車率 | M12: =IF(ISERROR(I9/D11)=TRUE,"",I9/D11) ->  | P12: 合 計 | R12: =SUM(R9:T11) -> 0 | U12: =SUM(U10:W11) -> 0 | X12: =SUM(X10:Y11) -> 0 | AA12: 23 | AJ12: 現金 | AO12: FALSE | AR12: FALSE
B13: 現 金 | D13: =SUMIF(R17,FALSE,S17)+SUMIF(S20:S36,FALSE,T20:T36)+SUMIF(AR6:AR16,FALSE,AS6:AS16) -> 0 | F13: 円 | G13: 燃費 (ℓ/km) | I13: =IF(ISERROR(D11/M10)=TRUE,"",D11/M10) ->  | J13: km | K13: 実車粁収 | M13: =IF(ISERROR(M9/I9)=TRUE,"",M9/I9) ->  | O13: 円 | P13: 科目 | R13: 金額(円) | V13: 適用（内容） | AA13: 24 | AJ13: 現金 | AO13: FALSE | AR13: FALSE
B14: E T C | D14: =SUMIF(R17,TRUE,S17)+SUMIF(S20:S36,TRUE,T20:T36)+SUMIF(AR6:AR16,"TRUE",AS6:AS16) -> 0 | F14: 円 | G14: 燃料 単価 (ℓ/\) | I14: =日別輸送実績表!$F$54 -> 100 | J14: 円 | K14: 使用時間 | N14: 走行(km) | P14: 雑収入 | R14: =SUM(N20:O36,AM6:AO16) -> 0 | AA14: 25 | AJ14: 現金 | AO14: FALSE | AR14: FALSE
B15: 自家使用 | G15: ～ | L15: ～ | O15: km | P15: 燃料費 | R15: =IF($D$11="","",IF(ISERROR(LOOKUP(10^17,ﾃﾞｰﾀﾍﾞｰｽ!$Q$2:Q21))=TRUE,"",LOOKUP(10^17,ﾃﾞｰﾀﾍﾞｰｽ!$Q$2:Q21))) ->  | AA15: 26 | AJ15: 現金 | AO15: FALSE | AR15: FALSE
B16: 回送 | G16: ～ | L16: ～ | O16: km | P16: 雑費 | AA16: 27 | AJ16: 現金 | AO16: FALSE | AR16: FALSE
B17: 休憩地 | P17: その他交通費 | R17: FALSE
B18: 回数 | C18: 人員 | D18: 輸送経路 | J18: 降車 時刻 | K18: 収受種類 | L18: 運送収入(円) | P18: 立替金(円) | S18: 交通費(円) | V18: 適用
D19: 乗車地 | G19: 降車地 | L19: 金額 | N19: 雑収入 | P19: ETC | Q19: 金額 | S19: ETC | T19: 金額
B20: 1 | K20: 現金 | P20: FALSE | S20: FALSE
B21: 2 | K21: 現金
B22: 3 | K22: 現金
B23: 4 | K23: 現金
B24: 5 | K24: 現金
B25: 6 | K25: 現金
B26: 7 | K26: 現金
B27: 8 | K27: 現金
B28: 9 | K28: 現金
B29: 10 | K29: 現金
B30: 11 | K30: 現金 | P30: FALSE
B31: 12 | K31: 現金
B32: 13 | K32: 現金
B33: 14 | K33: 現金
B34: 15 | K34: 現金
B35: 16 | K35: 現金
B36: 17 | K36: 現金 | P36: FALSE

Sheet 22
A1: ※ | B1: この日報はCANON製両面印刷対応プリンタで両面印刷するように設計されています。
C3: 日別営業報告書 | AA3: 回数 | AB3: 人員 | AC3: 輸送経路 | AI3: 降車 時刻 | AJ3: 収受 種類 | AK3: 運 送 収 入(円) | AO3: 立替金(円) | AR3: 交通費(円) | AU3: 適用
B4: 氏名: | D4: =日別輸送実績表!$O$8 -> 0 | I4: 登録番号: | L4: =日別輸送実績表!$E$54 -> 0 | Q4: 本日の天気 | AC4: 乗車地 | AF4: 降車地 | AK4: 金額 | AM4: 雑収入 | AO4: ETC | AP4: 金額 | AR4: ETC | AS4: 金額
B6: 営業日 | F6: アルコール検知 | J6: 出庫時間 | L6: 入庫時間 | N6: 実労(h) | P6: 運送収入内訳(円) | U6: 立替金内訳（円） | AA6: 18 | AJ6: 現金 | AO6: FALSE | AR6: FALSE
F7: 出庫時 | H7: 入庫時
B8: =ﾃﾞｰﾀﾍﾞｰｽ!$E$24 -> 2013-08-22 | F8: 無し(適) | H8: 無し(適) | N8: =IF(COUNT(J8:L8)=2,(L8-J8-"0:00"+(J8>L8))*24,"") ->  | P8: 収受別 | R8: 金額（円） | U8: ETC | X8: 現金 | AA8: 19 | AJ8: 現金 | AO8: FALSE | AR8: FALSE
B9: 出庫(km) | D9: =IF($D$10="","",MAX(ﾃﾞｰﾀﾍﾞｰｽ!$L$2:$L$23)+$N$15) ->  | F9: km | G9: 実車 (km) | I9: =IF(ISERROR(VLOOKUP(ROUNDUP($M$9,-3),実車キロ,4,TRUE))=TRUE,"",VLOOKUP(ROUNDUP($M$9,-3),実車キロ,4,TRUE)) ->  | J9: km | K9: 運送収入 | M9: =SUM(L20:L36,AL6:AL16) -> 0 | O9: 円 | P9: 現 金 | R9: =SUMIF(K20:K36,"現金",L20:L36)+SUMIF(AJ6:AJ16,"現金",AK6:AK16) -> 0 | AA9: 20 | AJ9: 現金 | AO9: FALSE | AR9: FALSE
B10: 入庫(km) | F10: km | G10: 輸送 回数 | I10: =COUNT(C20:C36,AK6:AL16) -> 0 | J10: 回 | K10: 燃料消費 | M10: =IF(ISERROR(D11/日別輸送実績表!$G$54)=TRUE,"",D11/日別輸送実績表!$G$54) ->  | O10: ℓ | P10: チケット | R10: =SUMIF(K20:K36,"チケット",L20:L36)+SUMIF(AJ6:AJ16,"チケット",AK6:AK16) -> 0 | U10: =SUMPRODUCT((K20:K36="チケット")*(P20:P36=TRUE),Q20:Q36)+SUMPRODUCT((AJ6:AJ16="チケット")*(AO6:AO16=TRUE),AP6:AP16) -> 0 | X10: =SUMPRODUCT((K20:K36="チケット")*(P20:P36=FALSE),Q20:Q36)+SUMPRODUCT((AJ6:AJ16="チケット")*(AO6:AO16=FALSE),AP6:AP16) -> 0 | AA10: 21 | AJ10: 現金 | AO10: FALSE | AR10: FALSE
B11: 走行(km) | D11: =IF(D10=0,"",IF(ISERROR(D10-D9)=TRUE,"",D10-D9)) ->  | F11: km | G11: 輸送 人員 | I11: =SUM(C20:C36,AB6:AB16) -> 0 | J11: 人 | K11: 粁収 | M11: =IF(ISERROR(M9/D11)=TRUE,"",M9/D11) ->  | O11: 円 | P11: カード | R11: =SUMIF(K20:K36,"カード",L20:L36)+SUMIF(AJ6:AJ16,"カード",AK6:AK16) -> 0 | U11: =SUMPRODUCT((K20:K36="カード")*(P20:P36=TRUE),Q20:Q36)+SUMPRODUCT((AJ6:AJ16="カード")*(AO6:AO16=TRUE),AP6:AP16) -> 0 | X11: =SUMPRODUCT((K20:K36="カード")*(P20:P36=FALSE),Q20:Q36)+SUMPRODUCT((AJ6:AJ16="カード")*(AO6:AO16=FALSE),AP6:AP16) -> 0 | AA11: 22 | AJ11: 現金 | AO11: FALSE | AR11: FALSE
B12: 交通費内訳(本日合計) | G12: 燃料関係 | K12: 実車率 | M12: =IF(ISERROR(I9/D11)=TRUE,"",I9/D11) ->  | P12: 合 計 | R12: =SUM(R9:T11) -> 0 | U12: =SUM(U10:W11) -> 0 | X12: =SUM(X10:Y11) -> 0 | AA12: 23 | AJ12: 現金 | AO12: FALSE | AR12: FALSE
B13: 現 金 | D13: =SUMIF(R17,FALSE,S17)+SUMIF(S20:S36,FALSE,T20:T36)+SUMIF(AR6:AR16,FALSE,AS6:AS16) -> 0 | F13: 円 | G13: 燃費 (ℓ/km) | I13: =IF(ISERROR(D11/M10)=TRUE,"",D11/M10) ->  | J13: km | K13: 実車粁収 | M13: =IF(ISERROR(M9/I9)=TRUE,"",M9/I9) ->  | O13: 円 | P13: 科目 | R13: 金額(円) | V13: 適用（内容） | AA13: 24 | AJ13: 現金 | AO13: FALSE | AR13: FALSE
B14: E T C | D14: =SUMIF(R17,TRUE,S17)+SUMIF(S20:S36,TRUE,T20:T36)+SUMIF(AR6:AR16,"TRUE",AS6:AS16) -> 0 | F14: 円 | G14: 燃料 単価 (ℓ/\) | I14: =日別輸送実績表!$F$54 -> 100 | J14: 円 | K14: 使用時間 | N14: 走行(km) | P14: 雑収入 | R14: =SUM(N20:O36,AM6:AO16) -> 0 | AA14: 25 | AJ14: 現金 | AO14: FALSE | AR14: FALSE
B15: 自家使用 | G15: ～ | L15: ～ | O15: km | P15: 燃料費 | R15: =IF($D$11="","",IF(ISERROR(LOOKUP(10^17,ﾃﾞｰﾀﾍﾞｰｽ!$Q$2:Q22))=TRUE,"",LOOKUP(10^17,ﾃﾞｰﾀﾍﾞｰｽ!$Q$2:Q22))) ->  | AA15: 26 | AJ15: 現金 | AO15: FALSE | AR15: FALSE
B16: 回送 | G16: ～ | L16: ～ | O16: km | P16: 雑費 | AA16: 27 | AJ16: 現金 | AO16: FALSE | AR16: FALSE
B17: 休憩地 | P17: その他交通費 | R17: FALSE
B18: 回数 | C18: 人員 | D18: 輸送経路 | J18: 降車 時刻 | K18: 収受種類 | L18: 運送収入(円) | P18: 立替金(円) | S18: 交通費(円) | V18: 適用
D19: 乗車地 | G19: 降車地 | L19: 金額 | N19: 雑収入 | P19: ETC | Q19: 金額 | S19: ETC | T19: 金額
B20: 1 | K20: 現金 | P20: FALSE | S20: FALSE
B21: 2 | K21: 現金
B22: 3 | K22: 現金
B23: 4 | K23: 現金
B24: 5 | K24: 現金
B25: 6 | K25: 現金
B26: 7 | K26: 現金
B27: 8 | K27: 現金
B28: 9 | K28: 現金
B29: 10 | K29: 現金
B30: 11 | K30: 現金 | P30: FALSE
B31: 12 | K31: 現金
B32: 13 | K32: 現金
B33: 14 | K33: 現金
B34: 15 | K34: 現金
B35: 16 | K35: 現金
B36: 17 | K36: 現金 | P36: FALSE

Sheet 23
A1: ※ | B1: この日報はCANON製両面印刷対応プリンタで両面印刷するように設計されています。
C3: 日別営業報告書 | AA3: 回数 | AB3: 人員 | AC3: 輸送経路 | AI3: 降車 時刻 | AJ3: 収受 種類 | AK3: 運 送 収 入(円) | AO3: 立替金(円) | AR3: 交通費(円) | AU3: 適用
B4: 氏名: | D4: =日別輸送実績表!$O$8 -> 0 | I4: 登録番号: | L4: =日別輸送実績表!$E$54 -> 0 | Q4: 本日の天気 | AC4: 乗車地 | AF4: 降車地 | AK4: 金額 | AM4: 雑収入 | AO4: ETC | AP4: 金額 | AR4: ETC | AS4: 金額
B6: 営業日 | F6: アルコール検知 | J6: 出庫時間 | L6: 入庫時間 | N6: 実労(h) | P6: 運送収入内訳(円) | U6: 立替金内訳（円） | AA6: 18 | AJ6: 現金 | AO6: FALSE | AR6: FALSE
F7: 出庫時 | H7: 入庫時
B8: =ﾃﾞｰﾀﾍﾞｰｽ!$E$25 -> 2013-08-23 | F8: 無し(適) | H8: 無し(適) | N8: =IF(COUNT(J8:L8)=2,(L8-J8-"0:00"+(J8>L8))*24,"") ->  | P8: 収受別 | R8: 金額（円） | U8: ETC | X8: 現金 | AA8: 19 | AJ8: 現金 | AO8: FALSE | AR8: FALSE
B9: 出庫(km) | D9: =IF($D$10="","",MAX(ﾃﾞｰﾀﾍﾞｰｽ!$L$2:$L$24)+$N$15) ->  | F9: km | G9: 実車 (km) | I9: =IF(ISERROR(VLOOKUP(ROUNDUP($M$9,-3),実車キロ,4,TRUE))=TRUE,"",VLOOKUP(ROUNDUP($M$9,-3),実車キロ,4,TRUE)) ->  | J9: km | K9: 運送収入 | M9: =SUM(L20:L36,AL6:AL16) -> 0 | O9: 円 | P9: 現 金 | R9: =SUMIF(K20:K36,"現金",L20:L36)+SUMIF(AJ6:AJ16,"現金",AK6:AK16) -> 0 | AA9: 20 | AJ9: 現金 | AO9: FALSE | AR9: FALSE
B10: 入庫(km) | F10: km | G10: 輸送 回数 | I10: =COUNT(C20:C36,AK6:AL16) -> 0 | J10: 回 | K10: 燃料消費 | M10: =IF(ISERROR(D11/日別輸送実績表!$G$54)=TRUE,"",D11/日別輸送実績表!$G$54) ->  | O10: ℓ | P10: チケット | R10: =SUMIF(K20:K36,"チケット",L20:L36)+SUMIF(AJ6:AJ16,"チケット",AK6:AK16) -> 0 | U10: =SUMPRODUCT((K20:K36="チケット")*(P20:P36=TRUE),Q20:Q36)+SUMPRODUCT((AJ6:AJ16="チケット")*(AO6:AO16=TRUE),AP6:AP16) -> 0 | X10: =SUMPRODUCT((K20:K36="チケット")*(P20:P36=FALSE),Q20:Q36)+SUMPRODUCT((AJ6:AJ16="チケット")*(AO6:AO16=FALSE),AP6:AP16) -> 0 | AA10: 21 | AJ10: 現金 | AO10: FALSE | AR10: FALSE
B11: 走行(km) | D11: =IF(D10=0,"",IF(ISERROR(D10-D9)=TRUE,"",D10-D9)) ->  | F11: km | G11: 輸送 人員 | I11: =SUM(C20:C36,AB6:AB16) -> 0 | J11: 人 | K11: 粁収 | M11: =IF(ISERROR(M9/D11)=TRUE,"",M9/D11) ->  | O11: 円 | P11: カード | R11: =SUMIF(K20:K36,"カード",L20:L36)+SUMIF(AJ6:AJ16,"カード",AK6:AK16) -> 0 | U11: =SUMPRODUCT((K20:K36="カード")*(P20:P36=TRUE),Q20:Q36)+SUMPRODUCT((AJ6:AJ16="カード")*(AO6:AO16=TRUE),AP6:AP16) -> 0 | X11: =SUMPRODUCT((K20:K36="カード")*(P20:P36=FALSE),Q20:Q36)+SUMPRODUCT((AJ6:AJ16="カード")*(AO6:AO16=FALSE),AP6:AP16) -> 0 | AA11: 22 | AJ11: 現金 | AO11: FALSE | AR11: FALSE
B12: 交通費内訳(本日合計) | G12: 燃料関係 | K12: 実車率 | M12: =IF(ISERROR(I9/D11)=TRUE,"",I9/D11) ->  | P12: 合 計 | R12: =SUM(R9:T11) -> 0 | U12: =SUM(U10:W11) -> 0 | X12: =SUM(X10:Y11) -> 0 | AA12: 23 | AJ12: 現金 | AO12: FALSE | AR12: FALSE
B13: 現 金 | D13: =SUMIF(R17,FALSE,S17)+SUMIF(S20:S36,FALSE,T20:T36)+SUMIF(AR6:AR16,FALSE,AS6:AS16) -> 0 | F13: 円 | G13: 燃費 (ℓ/km) | I13: =IF(ISERROR(D11/M10)=TRUE,"",D11/M10) ->  | J13: km | K13: 実車粁収 | M13: =IF(ISERROR(M9/I9)=TRUE,"",M9/I9) ->  | O13: 円 | P13: 科目 | R13: 金額(円) | V13: 適用（内容） | AA13: 24 | AJ13: 現金 | AO13: FALSE | AR13: FALSE
B14: E T C | D14: =SUMIF(R17,TRUE,S17)+SUMIF(S20:S36,TRUE,T20:T36)+SUMIF(AR6:AR16,"TRUE",AS6:AS16) -> 0 | F14: 円 | G14: 燃料 単価 (ℓ/\) | I14: =日別輸送実績表!$F$54 -> 100 | J14: 円 | K14: 使用時間 | N14: 走行(km) | P14: 雑収入 | R14: =SUM(N20:O36,AM6:AO16) -> 0 | AA14: 25 | AJ14: 現金 | AO14: FALSE | AR14: FALSE
B15: 自家使用 | G15: ～ | L15: ～ | O15: km | P15: 燃料費 | R15: =IF($D$11="","",IF(ISERROR(LOOKUP(10^17,ﾃﾞｰﾀﾍﾞｰｽ!$Q$2:Q23))=TRUE,"",LOOKUP(10^17,ﾃﾞｰﾀﾍﾞｰｽ!$Q$2:Q23))) ->  | AA15: 26 | AJ15: 現金 | AO15: FALSE | AR15: FALSE
B16: 回送 | G16: ～ | L16: ～ | O16: km | P16: 雑費 | AA16: 27 | AJ16: 現金 | AO16: FALSE | AR16: FALSE
B17: 休憩地 | P17: その他交通費 | R17: FALSE
B18: 回数 | C18: 人員 | D18: 輸送経路 | J18: 降車 時刻 | K18: 収受種類 | L18: 運送収入(円) | P18: 立替金(円) | S18: 交通費(円) | V18: 適用
D19: 乗車地 | G19: 降車地 | L19: 金額 | N19: 雑収入 | P19: ETC | Q19: 金額 | S19: ETC | T19: 金額
B20: 1 | K20: 現金 | P20: FALSE | S20: FALSE
B21: 2 | K21: 現金
B22: 3 | K22: 現金
B23: 4 | K23: 現金
B24: 5 | K24: 現金
B25: 6 | K25: 現金
B26: 7 | K26: 現金
B27: 8 | K27: 現金
B28: 9 | K28: 現金
B29: 10 | K29: 現金
B30: 11 | K30: 現金 | P30: FALSE
B31: 12 | K31: 現金
B32: 13 | K32: 現金
B33: 14 | K33: 現金
B34: 15 | K34: 現金
B35: 16 | K35: 現金
B36: 17 | K36: 現金 | P36: FALSE

Sheet 24
A1: ※ | B1: この日報はCANON製両面印刷対応プリンタで両面印刷するように設計されています。
C3: 日別営業報告書 | AA3: 回数 | AB3: 人員 | AC3: 輸送経路 | AI3: 降車 時刻 | AJ3: 収受 種類 | AK3: 運 送 収 入(円) | AO3: 立替金(円) | AR3: 交通費(円) | AU3: 適用
B4: 氏名: | D4: =日別輸送実績表!$O$8 -> 0 | I4: 登録番号: | L4: =日別輸送実績表!$E$54 -> 0 | Q4: 本日の天気 | AC4: 乗車地 | AF4: 降車地 | AK4: 金額 | AM4: 雑収入 | AO4: ETC | AP4: 金額 | AR4: ETC | AS4: 金額
B6: 営業日 | F6: アルコール検知 | J6: 出庫時間 | L6: 入庫時間 | N6: 実労(h) | P6: 運送収入内訳(円) | U6: 立替金内訳（円） | AA6: 18 | AJ6: 現金 | AO6: FALSE | AR6: FALSE
F7: 出庫時 | H7: 入庫時
B8: =ﾃﾞｰﾀﾍﾞｰｽ!$E$26 -> 2013-08-24 | F8: 無し(適) | H8: 無し(適) | N8: =IF(COUNT(J8:L8)=2,(L8-J8-"0:00"+(J8>L8))*24,"") ->  | P8: 収受別 | R8: 金額（円） | U8: ETC | X8: 現金 | AA8: 19 | AJ8: 現金 | AO8: FALSE | AR8: FALSE
B9: 出庫(km) | D9: =IF($D$10="","",MAX(ﾃﾞｰﾀﾍﾞｰｽ!$L$2:$L$25)+$N$15) ->  | F9: km | G9: 実車 (km) | I9: =IF(ISERROR(VLOOKUP(ROUNDUP($M$9,-3),実車キロ,4,TRUE))=TRUE,"",VLOOKUP(ROUNDUP($M$9,-3),実車キロ,4,TRUE)) ->  | J9: km | K9: 運送収入 | M9: =SUM(L20:L36,AL6:AL16) -> 0 | O9: 円 | P9: 現 金 | R9: =SUMIF(K20:K36,"現金",L20:L36)+SUMIF(AJ6:AJ16,"現金",AK6:AK16) -> 0 | AA9: 20 | AJ9: 現金 | AO9: FALSE | AR9: FALSE
B10: 入庫(km) | F10: km | G10: 輸送 回数 | I10: =COUNT(C20:C36,AK6:AL16) -> 0 | J10: 回 | K10: 燃料消費 | M10: =IF(ISERROR(D11/日別輸送実績表!$G$54)=TRUE,"",D11/日別輸送実績表!$G$54) ->  | O10: ℓ | P10: チケット | R10: =SUMIF(K20:K36,"チケット",L20:L36)+SUMIF(AJ6:AJ16,"チケット",AK6:AK16) -> 0 | U10: =SUMPRODUCT((K20:K36="チケット")*(P20:P36=TRUE),Q20:Q36)+SUMPRODUCT((AJ6:AJ16="チケット")*(AO6:AO16=TRUE),AP6:AP16) -> 0 | X10: =SUMPRODUCT((K20:K36="チケット")*(P20:P36=FALSE),Q20:Q36)+SUMPRODUCT((AJ6:AJ16="チケット")*(AO6:AO16=FALSE),AP6:AP16) -> 0 | AA10: 21 | AJ10: 現金 | AO10: FALSE | AR10: FALSE
B11: 走行(km) | D11: =IF(D10=0,"",IF(ISERROR(D10-D9)=TRUE,"",D10-D9)) ->  | F11: km | G11: 輸送 人員 | I11: =SUM(C20:C36,AB6:AB16) -> 0 | J11: 人 | K11: 粁収 | M11: =IF(ISERROR(M9/D11)=TRUE,"",M9/D11) ->  | O11: 円 | P11: カード | R11: =SUMIF(K20:K36,"カード",L20:L36)+SUMIF(AJ6:AJ16,"カード",AK6:AK16) -> 0 | U11: =SUMPRODUCT((K20:K36="カード")*(P20:P36=TRUE),Q20:Q36)+SUMPRODUCT((AJ6:AJ16="カード")*(AO6:AO16=TRUE),AP6:AP16) -> 0 | X11: =SUMPRODUCT((K20:K36="カード")*(P20:P36=FALSE),Q20:Q36)+SUMPRODUCT((AJ6:AJ16="カード")*(AO6:AO16=FALSE),AP6:AP16) -> 0 | AA11: 22 | AJ11: 現金 | AO11: FALSE | AR11: FALSE
B12: 交通費内訳(本日合計) | G12: 燃料関係 | K12: 実車率 | M12: =IF(ISERROR(I9/D11)=TRUE,"",I9/D11) ->  | P12: 合 計 | R12: =SUM(R9:T11) -> 0 | U12: =SUM(U10:W11) -> 0 | X12: =SUM(X10:Y11) -> 0 | AA12: 23 | AJ12: 現金 | AO12: FALSE | AR12: FALSE
B13: 現 金 | D13: =SUMIF(R17,FALSE,S17)+SUMIF(S20:S36,FALSE,T20:T36)+SUMIF(AR6:AR16,FALSE,AS6:AS16) -> 0 | F13: 円 | G13: 燃費 (ℓ/km) | I13: =IF(ISERROR(D11/M10)=TRUE,"",D11/M10) ->  | J13: km | K13: 実車粁収 | M13: =IF(ISERROR(M9/I9)=TRUE,"",M9/I9) ->  | O13: 円 | P13: 科目 | R13: 金額(円) | V13: 適用（内容） | AA13: 24 | AJ13: 現金 | AO13: FALSE | AR13: FALSE
B14: E T C | D14: =SUMIF(R17,TRUE,S17)+SUMIF(S20:S36,TRUE,T20:T36)+SUMIF(AR6:AR16,"TRUE",AS6:AS16) -> 0 | F14: 円 | G14: 燃料 単価 (ℓ/\) | I14: =日別輸送実績表!$F$54 -> 100 | J14: 円 | K14: 使用時間 | N14: 走行(km) | P14: 雑収入 | R14: =SUM(N20:O36,AM6:AO16) -> 0 | AA14: 25 | AJ14: 現金 | AO14: FALSE | AR14: FALSE
B15: 自家使用 | G15: ～ | L15: ～ | O15: km | P15: 燃料費 | R15: =IF($D$11="","",IF(ISERROR(LOOKUP(10^17,ﾃﾞｰﾀﾍﾞｰｽ!$Q$2:Q24))=TRUE,"",LOOKUP(10^17,ﾃﾞｰﾀﾍﾞｰｽ!$Q$2:Q24))) ->  | AA15: 26 | AJ15: 現金 | AO15: FALSE | AR15: FALSE
B16: 回送 | G16: ～ | L16: ～ | O16: km | P16: 雑費 | AA16: 27 | AJ16: 現金 | AO16: FALSE | AR16: FALSE
B17: 休憩地 | P17: その他交通費 | R17: FALSE
B18: 回数 | C18: 人員 | D18: 輸送経路 | J18: 降車 時刻 | K18: 収受種類 | L18: 運送収入(円) | P18: 立替金(円) | S18: 交通費(円) | V18: 適用
D19: 乗車地 | G19: 降車地 | L19: 金額 | N19: 雑収入 | P19: ETC | Q19: 金額 | S19: ETC | T19: 金額
B20: 1 | K20: 現金 | P20: FALSE | S20: FALSE
B21: 2 | K21: 現金
B22: 3 | K22: 現金
B23: 4 | K23: 現金
B24: 5 | K24: 現金
B25: 6 | K25: 現金
B26: 7 | K26: 現金
B27: 8 | K27: 現金
B28: 9 | K28: 現金
B29: 10 | K29: 現金
B30: 11 | K30: 現金 | P30: FALSE
B31: 12 | K31: 現金
B32: 13 | K32: 現金
B33: 14 | K33: 現金
B34: 15 | K34: 現金
B35: 16 | K35: 現金
B36: 17 | K36: 現金 | P36: FALSE

Sheet 25
A1: ※ | B1: この日報はCANON製両面印刷対応プリンタで両面印刷するように設計されています。
C3: 日別営業報告書 | AA3: 回数 | AB3: 人員 | AC3: 輸送経路 | AI3: 降車 時刻 | AJ3: 収受 種類 | AK3: 運 送 収 入(円) | AO3: 立替金(円) | AR3: 交通費(円) | AU3: 適用
B4: 氏名: | D4: =日別輸送実績表!$O$8 -> 0 | I4: 登録番号: | L4: =日別輸送実績表!$E$54 -> 0 | Q4: 本日の天気 | AC4: 乗車地 | AF4: 降車地 | AK4: 金額 | AM4: 雑収入 | AO4: ETC | AP4: 金額 | AR4: ETC | AS4: 金額
B6: 営業日 | F6: アルコール検知 | J6: 出庫時間 | L6: 入庫時間 | N6: 実労(h) | P6: 運送収入内訳(円) | U6: 立替金内訳（円） | AA6: 18 | AJ6: 現金 | AO6: FALSE | AR6: FALSE
F7: 出庫時 | H7: 入庫時
B8: =ﾃﾞｰﾀﾍﾞｰｽ!$E$27 -> 2013-08-25 | F8: 無し(適) | H8: 無し(適) | N8: =IF(COUNT(J8:L8)=2,(L8-J8-"0:00"+(J8>L8))*24,"") ->  | P8: 収受別 | R8: 金額（円） | U8: ETC | X8: 現金 | AA8: 19 | AJ8: 現金 | AO8: FALSE | AR8: FALSE
B9: 出庫(km) | D9: =IF($D$10="","",MAX(ﾃﾞｰﾀﾍﾞｰｽ!$L$2:$L$26)+$N$15) ->  | F9: km | G9: 実車 (km) | I9: =IF(ISERROR(VLOOKUP(ROUNDUP($M$9,-3),実車キロ,4,TRUE))=TRUE,"",VLOOKUP(ROUNDUP($M$9,-3),実車キロ,4,TRUE)) ->  | J9: km | K9: 運送収入 | M9: =SUM(L20:L36,AL6:AL16) -> 0 | O9: 円 | P9: 現 金 | R9: =SUMIF(K20:K36,"現金",L20:L36)+SUMIF(AJ6:AJ16,"現金",AK6:AK16) -> 0 | AA9: 20 | AJ9: 現金 | AO9: FALSE | AR9: FALSE
B10: 入庫(km) | F10: km | G10: 輸送 回数 | I10: =COUNT(C20:C36,AK6:AL16) -> 0 | J10: 回 | K10: 燃料消費 | M10: =IF(ISERROR(D11/日別輸送実績表!$G$54)=TRUE,"",D11/日別輸送実績表!$G$54) ->  | O10: ℓ | P10: チケット | R10: =SUMIF(K20:K36,"チケット",L20:L36)+SUMIF(AJ6:AJ16,"チケット",AK6:AK16) -> 0 | U10: =SUMPRODUCT((K20:K36="チケット")*(P20:P36=TRUE),Q20:Q36)+SUMPRODUCT((AJ6:AJ16="チケット")*(AO6:AO16=TRUE),AP6:AP16) -> 0 | X10: =SUMPRODUCT((K20:K36="チケット")*(P20:P36=FALSE),Q20:Q36)+SUMPRODUCT((AJ6:AJ16="チケット")*(AO6:AO16=FALSE),AP6:AP16) -> 0 | AA10: 21 | AJ10: 現金 | AO10: FALSE | AR10: FALSE
B11: 走行(km) | D11: =IF(D10=0,"",IF(ISERROR(D10-D9)=TRUE,"",D10-D9)) ->  | F11: km | G11: 輸送 人員 | I11: =SUM(C20:C36,AB6:AB16) -> 0 | J11: 人 | K11: 粁収 | M11: =IF(ISERROR(M9/D11)=TRUE,"",M9/D11) ->  | O11: 円 | P11: カード | R11: =SUMIF(K20:K36,"カード",L20:L36)+SUMIF(AJ6:AJ16,"カード",AK6:AK16) -> 0 | U11: =SUMPRODUCT((K20:K36="カード")*(P20:P36=TRUE),Q20:Q36)+SUMPRODUCT((AJ6:AJ16="カード")*(AO6:AO16=TRUE),AP6:AP16) -> 0 | X11: =SUMPRODUCT((K20:K36="カード")*(P20:P36=FALSE),Q20:Q36)+SUMPRODUCT((AJ6:AJ16="カード")*(AO6:AO16=FALSE),AP6:AP16) -> 0 | AA11: 22 | AJ11: 現金 | AO11: FALSE | AR11: FALSE
B12: 交通費内訳(本日合計) | G12: 燃料関係 | K12: 実車率 | M12: =IF(ISERROR(I9/D11)=TRUE,"",I9/D11) ->  | P12: 合 計 | R12: =SUM(R9:T11) -> 0 | U12: =SUM(U10:W11) -> 0 | X12: =SUM(X10:Y11) -> 0 | AA12: 23 | AJ12: 現金 | AO12: FALSE | AR12: FALSE
B13: 現 金 | D13: =SUMIF(R17,FALSE,S17)+SUMIF(S20:S36,FALSE,T20:T36)+SUMIF(AR6:AR16,FALSE,AS6:AS16) -> 0 | F13: 円 | G13: 燃費 (ℓ/km) | I13: =IF(ISERROR(D11/M10)=TRUE,"",D11/M10) ->  | J13: km | K13: 実車粁収 | M13: =IF(ISERROR(M9/I9)=TRUE,"",M9/I9) ->  | O13: 円 | P13: 科目 | R13: 金額(円) | V13: 適用（内容） | AA13: 24 | AJ13: 現金 | AO13: FALSE | AR13: FALSE
B14: E T C | D14: =SUMIF(R17,TRUE,S17)+SUMIF(S20:S36,TRUE,T20:T36)+SUMIF(AR6:AR16,"TRUE",AS6:AS16) -> 0 | F14: 円 | G14: 燃料 単価 (ℓ/\) | I14: =日別輸送実績表!$F$54 -> 100 | J14: 円 | K14: 使用時間 | N14: 走行(km) | P14: 雑収入 | R14: =SUM(N20:O36,AM6:AO16) -> 0 | AA14: 25 | AJ14: 現金 | AO14: FALSE | AR14: FALSE
B15: 自家使用 | G15: ～ | L15: ～ | O15: km | P15: 燃料費 | R15: =IF($D$11="","",IF(ISERROR(LOOKUP(10^17,ﾃﾞｰﾀﾍﾞｰｽ!$Q$2:Q25))=TRUE,"",LOOKUP(10^17,ﾃﾞｰﾀﾍﾞｰｽ!$Q$2:Q25))) ->  | AA15: 26 | AJ15: 現金 | AO15: FALSE | AR15: FALSE
B16: 回送 | G16: ～ | L16: ～ | O16: km | P16: 雑費 | AA16: 27 | AJ16: 現金 | AO16: FALSE | AR16: FALSE
B17: 休憩地 | P17: その他交通費 | R17: FALSE
B18: 回数 | C18: 人員 | D18: 輸送経路 | J18: 降車 時刻 | K18: 収受種類 | L18: 運送収入(円) | P18: 立替金(円) | S18: 交通費(円) | V18: 適用
D19: 乗車地 | G19: 降車地 | L19: 金額 | N19: 雑収入 | P19: ETC | Q19: 金額 | S19: ETC | T19: 金額
B20: 1 | K20: 現金 | P20: FALSE | S20: FALSE
B21: 2 | K21: 現金
B22: 3 | K22: 現金
B23: 4 | K23: 現金
B24: 5 | K24: 現金
B25: 6 | K25: 現金
B26: 7 | K26: 現金
B27: 8 | K27: 現金
B28: 9 | K28: 現金
B29: 10 | K29: 現金
B30: 11 | K30: 現金 | P30: FALSE
B31: 12 | K31: 現金
B32: 13 | K32: 現金
B33: 14 | K33: 現金
B34: 15 | K34: 現金
B35: 16 | K35: 現金
B36: 17 | K36: 現金 | P36: FALSE

Sheet 26
A1: ※ | B1: この日報はCANON製両面印刷対応プリンタで両面印刷するように設計されています。
C3: 日別営業報告書 | AA3: 回数 | AB3: 人員 | AC3: 輸送経路 | AI3: 降車 時刻 | AJ3: 収受 種類 | AK3: 運 送 収 入(円) | AO3: 立替金(円) | AR3: 交通費(円) | AU3: 適用
B4: 氏名: | D4: =日別輸送実績表!$O$8 -> 0 | I4: 登録番号: | L4: =日別輸送実績表!$E$54 -> 0 | Q4: 本日の天気 | AC4: 乗車地 | AF4: 降車地 | AK4: 金額 | AM4: 雑収入 | AO4: ETC | AP4: 金額 | AR4: ETC | AS4: 金額
B6: 営業日 | F6: アルコール検知 | J6: 出庫時間 | L6: 入庫時間 | N6: 実労(h) | P6: 運送収入内訳(円) | U6: 立替金内訳（円） | AA6: 18 | AJ6: 現金 | AO6: FALSE | AR6: FALSE
F7: 出庫時 | H7: 入庫時
B8: =ﾃﾞｰﾀﾍﾞｰｽ!$E$28 -> 2013-08-26 | F8: 無し(適) | H8: 無し(適) | N8: =IF(COUNT(J8:L8)=2,(L8-J8-"0:00"+(J8>L8))*24,"") ->  | P8: 収受別 | R8: 金額（円） | U8: ETC | X8: 現金 | AA8: 19 | AJ8: 現金 | AO8: FALSE | AR8: FALSE
B9: 出庫(km) | D9: =IF($D$10="","",MAX(ﾃﾞｰﾀﾍﾞｰｽ!$L$2:$L$27)+$N$15) ->  | F9: km | G9: 実車 (km) | I9: =IF(ISERROR(VLOOKUP(ROUNDUP($M$9,-3),実車キロ,4,TRUE))=TRUE,"",VLOOKUP(ROUNDUP($M$9,-3),実車キロ,4,TRUE)) ->  | J9: km | K9: 運送収入 | M9: =SUM(L20:L36,AL6:AL16) -> 0 | O9: 円 | P9: 現 金 | R9: =SUMIF(K20:K36,"現金",L20:L36)+SUMIF(AJ6:AJ16,"現金",AK6:AK16) -> 0 | AA9: 20 | AJ9: 現金 | AO9: FALSE | AR9: FALSE
B10: 入庫(km) | F10: km | G10: 輸送 回数 | I10: =COUNT(C20:C36,AK6:AL16) -> 0 | J10: 回 | K10: 燃料消費 | M10: =IF(ISERROR(D11/日別輸送実績表!$G$54)=TRUE,"",D11/日別輸送実績表!$G$54) ->  | O10: ℓ | P10: チケット | R10: =SUMIF(K20:K36,"チケット",L20:L36)+SUMIF(AJ6:AJ16,"チケット",AK6:AK16) -> 0 | U10: =SUMPRODUCT((K20:K36="チケット")*(P20:P36=TRUE),Q20:Q36)+SUMPRODUCT((AJ6:AJ16="チケット")*(AO6:AO16=TRUE),AP6:AP16) -> 0 | X10: =SUMPRODUCT((K20:K36="チケット")*(P20:P36=FALSE),Q20:Q36)+SUMPRODUCT((AJ6:AJ16="チケット")*(AO6:AO16=FALSE),AP6:AP16) -> 0 | AA10: 21 | AJ10: 現金 | AO10: FALSE | AR10: FALSE
B11: 走行(km) | D11: =IF(D10=0,"",IF(ISERROR(D10-D9)=TRUE,"",D10-D9)) ->  | F11: km | G11: 輸送 人員 | I11: =SUM(C20:C36,AB6:AB16) -> 0 | J11: 人 | K11: 粁収 | M11: =IF(ISERROR(M9/D11)=TRUE,"",M9/D11) ->  | O11: 円 | P11: カード | R11: =SUMIF(K20:K36,"カード",L20:L36)+SUMIF(AJ6:AJ16,"カード",AK6:AK16) -> 0 | U11: =SUMPRODUCT((K20:K36="カード")*(P20:P36=TRUE),Q20:Q36)+SUMPRODUCT((AJ6:AJ16="カード")*(AO6:AO16=TRUE),AP6:AP16) -> 0 | X11: =SUMPRODUCT((K20:K36="カード")*(P20:P36=FALSE),Q20:Q36)+SUMPRODUCT((AJ6:AJ16="カード")*(AO6:AO16=FALSE),AP6:AP16) -> 0 | AA11: 22 | AJ11: 現金 | AO11: FALSE | AR11: FALSE
B12: 交通費内訳(本日合計) | G12: 燃料関係 | K12: 実車率 | M12: =IF(ISERROR(I9/D11)=TRUE,"",I9/D11) ->  | P12: 合 計 | R12: =SUM(R9:T11) -> 0 | U12: =SUM(U10:W11) -> 0 | X12: =SUM(X10:Y11) -> 0 | AA12: 23 | AJ12: 現金 | AO12: FALSE | AR12: FALSE
B13: 現 金 | D13: =SUMIF(R17,FALSE,S17)+SUMIF(S20:S36,FALSE,T20:T36)+SUMIF(AR6:AR16,FALSE,AS6:AS16) -> 0 | F13: 円 | G13: 燃費 (ℓ/km) | I13: =IF(ISERROR(D11/M10)=TRUE,"",D11/M10) ->  | J13: km | K13: 実車粁収 | M13: =IF(ISERROR(M9/I9)=TRUE,"",M9/I9) ->  | O13: 円 | P13: 科目 | R13: 金額(円) | V13: 適用（内容） | AA13: 24 | AJ13: 現金 | AO13: FALSE | AR13: FALSE
B14: E T C | D14: =SUMIF(R17,TRUE,S17)+SUMIF(S20:S36,TRUE,T20:T36)+SUMIF(AR6:AR16,"TRUE",AS6:AS16) -> 0 | F14: 円 | G14: 燃料 単価 (ℓ/\) | I14: =日別輸送実績表!$F$54 -> 100 | J14: 円 | K14: 使用時間 | N14: 走行(km) | P14: 雑収入 | R14: =SUM(N20:O36,AM6:AO16) -> 0 | AA14: 25 | AJ14: 現金 | AO14: FALSE | AR14: FALSE
B15: 自家使用 | G15: ～ | L15: ～ | O15: km | P15: 燃料費 | R15: =IF($D$11="","",IF(ISERROR(LOOKUP(10^17,ﾃﾞｰﾀﾍﾞｰｽ!$Q$2:Q26))=TRUE,"",LOOKUP(10^17,ﾃﾞｰﾀﾍﾞｰｽ!$Q$2:Q26))) ->  | AA15: 26 | AJ15: 現金 | AO15: FALSE | AR15: FALSE
B16: 回送 | G16: ～ | L16: ～ | O16: km | P16: 雑費 | AA16: 27 | AJ16: 現金 | AO16: FALSE | AR16: FALSE
B17: 休憩地 | P17: その他交通費 | R17: FALSE
B18: 回数 | C18: 人員 | D18: 輸送経路 | J18: 降車 時刻 | K18: 収受種類 | L18: 運送収入(円) | P18: 立替金(円) | S18: 交通費(円) | V18: 適用
D19: 乗車地 | G19: 降車地 | L19: 金額 | N19: 雑収入 | P19: ETC | Q19: 金額 | S19: ETC | T19: 金額
B20: 1 | K20: 現金 | P20: FALSE | S20: FALSE
B21: 2 | K21: 現金 | S21: FALSE
B22: 3 | K22: 現金
B23: 4 | K23: 現金
B24: 5 | K24: 現金 | S24: FALSE
B25: 6 | K25: 現金
B26: 7 | K26: 現金 | P26: FALSE
B27: 8 | K27: 現金
B28: 9 | K28: 現金
B29: 10 | K29: 現金
B30: 11 | K30: 現金 | P30: FALSE
B31: 12 | K31: 現金
B32: 13 | K32: 現金
B33: 14 | K33: 現金
B34: 15 | K34: 現金
B35: 16 | K35: 現金
B36: 17 | K36: 現金 | P36: FALSE

Sheet 27
A1: ※ | B1: この日報はCANON製両面印刷対応プリンタで両面印刷するように設計されています。
C3: 日別営業報告書 | AA3: 回数 | AB3: 人員 | AC3: 輸送経路 | AI3: 降車 時刻 | AJ3: 収受 種類 | AK3: 運 送 収 入(円) | AO3: 立替金(円) | AR3: 交通費(円) | AU3: 適用
B4: 氏名: | D4: =日別輸送実績表!$O$8 -> 0 | I4: 登録番号: | L4: =日別輸送実績表!$E$54 -> 0 | Q4: 本日の天気 | AC4: 乗車地 | AF4: 降車地 | AK4: 金額 | AM4: 雑収入 | AO4: ETC | AP4: 金額 | AR4: ETC | AS4: 金額
B6: 営業日 | F6: アルコール検知 | J6: 出庫時間 | L6: 入庫時間 | N6: 実労(h) | P6: 運送収入内訳(円) | U6: 立替金内訳（円） | AA6: 18 | AJ6: 現金 | AO6: FALSE | AR6: FALSE
F7: 出庫時 | H7: 入庫時
B8: =ﾃﾞｰﾀﾍﾞｰｽ!$E$29 -> 2013-08-27 | F8: 無し(適) | H8: 無し(適) | N8: =IF(COUNT(J8:L8)=2,(L8-J8-"0:00"+(J8>L8))*24,"") ->  | P8: 収受別 | R8: 金額（円） | U8: ETC | X8: 現金 | AA8: 19 | AJ8: 現金 | AO8: FALSE | AR8: FALSE
B9: 出庫(km) | D9: =IF($D$10="","",MAX(ﾃﾞｰﾀﾍﾞｰｽ!$L$2:$L$28)+$N$15) ->  | F9: km | G9: 実車 (km) | I9: =IF(ISERROR(VLOOKUP(ROUNDUP($M$9,-3),実車キロ,4,TRUE))=TRUE,"",VLOOKUP(ROUNDUP($M$9,-3),実車キロ,4,TRUE)) ->  | J9: km | K9: 運送収入 | M9: =SUM(L20:L36,AL6:AL16) -> 0 | O9: 円 | P9: 現 金 | R9: =SUMIF(K20:K36,"現金",L20:L36)+SUMIF(AJ6:AJ16,"現金",AK6:AK16) -> 0 | AA9: 20 | AJ9: 現金 | AO9: FALSE | AR9: FALSE
B10: 入庫(km) | F10: km | G10: 輸送 回数 | I10: =COUNT(C20:C36,AK6:AL16) -> 0 | J10: 回 | K10: 燃料消費 | M10: =IF(ISERROR(D11/日別輸送実績表!$G$54)=TRUE,"",D11/日別輸送実績表!$G$54) ->  | O10: ℓ | P10: チケット | R10: =SUMIF(K20:K36,"チケット",L20:L36)+SUMIF(AJ6:AJ16,"チケット",AK6:AK16) -> 0 | U10: =SUMPRODUCT((K20:K36="チケット")*(P20:P36=TRUE),Q20:Q36)+SUMPRODUCT((AJ6:AJ16="チケット")*(AO6:AO16=TRUE),AP6:AP16) -> 0 | X10: =SUMPRODUCT((K20:K36="チケット")*(P20:P36=FALSE),Q20:Q36)+SUMPRODUCT((AJ6:AJ16="チケット")*(AO6:AO16=FALSE),AP6:AP16) -> 0 | AA10: 21 | AJ10: 現金 | AO10: FALSE | AR10: FALSE
B11: 走行(km) | D11: =IF(D10=0,"",IF(ISERROR(D10-D9)=TRUE,"",D10-D9)) ->  | F11: km | G11: 輸送 人員 | I11: =SUM(C20:C36,AB6:AB16) -> 0 | J11: 人 | K11: 粁収 | M11: =IF(ISERROR(M9/D11)=TRUE,"",M9/D11) ->  | O11: 円 | P11: カード | R11: =SUMIF(K20:K36,"カード",L20:L36)+SUMIF(AJ6:AJ16,"カード",AK6:AK16) -> 0 | U11: =SUMPRODUCT((K20:K36="カード")*(P20:P36=TRUE),Q20:Q36)+SUMPRODUCT((AJ6:AJ16="カード")*(AO6:AO16=TRUE),AP6:AP16) -> 0 | X11: =SUMPRODUCT((K20:K36="カード")*(P20:P36=FALSE),Q20:Q36)+SUMPRODUCT((AJ6:AJ16="カード")*(AO6:AO16=FALSE),AP6:AP16) -> 0 | AA11: 22 | AJ11: 現金 | AO11: FALSE | AR11: FALSE
B12: 交通費内訳(本日合計) | G12: 燃料関係 | K12: 実車率 | M12: =IF(ISERROR(I9/D11)=TRUE,"",I9/D11) ->  | P12: 合 計 | R12: =SUM(R9:T11) -> 0 | U12: =SUM(U10:W11) -> 0 | X12: =SUM(X10:Y11) -> 0 | AA12: 23 | AJ12: 現金 | AO12: FALSE | AR12: FALSE
B13: 現 金 | D13: =SUMIF(R17,FALSE,S17)+SUMIF(S20:S36,FALSE,T20:T36)+SUMIF(AR6:AR16,FALSE,AS6:AS16) -> 0 | F13: 円 | G13: 燃費 (ℓ/km) | I13: =IF(ISERROR(D11/M10)=TRUE,"",D11/M10) ->  | J13: km | K13: 実車粁収 | M13: =IF(ISERROR(M9/I9)=TRUE,"",M9/I9) ->  | O13: 円 | P13: 科目 | R13: 金額(円) | V13: 適用（内容） | AA13: 24 | AJ13: 現金 | AO13: FALSE | AR13: FALSE
B14: E T C | D14: =SUMIF(R17,TRUE,S17)+SUMIF(S20:S36,TRUE,T20:T36)+SUMIF(AR6:AR16,"TRUE",AS6:AS16) -> 0 | F14: 円 | G14: 燃料 単価 (ℓ/\) | I14: =日別輸送実績表!$F$54 -> 100 | J14: 円 | K14: 使用時間 | N14: 走行(km) | P14: 雑収入 | R14: =SUM(N20:O36,AM6:AO16) -> 0 | AA14: 25 | AJ14: 現金 | AO14: FALSE | AR14: FALSE
B15: 自家使用 | G15: ～ | L15: ～ | O15: km | P15: 燃料費 | R15: =IF($D$11="","",IF(ISERROR(LOOKUP(10^17,ﾃﾞｰﾀﾍﾞｰｽ!$Q$2:Q27))=TRUE,"",LOOKUP(10^17,ﾃﾞｰﾀﾍﾞｰｽ!$Q$2:Q27))) ->  | AA15: 26 | AJ15: 現金 | AO15: FALSE | AR15: FALSE
B16: 回送 | G16: ～ | L16: ～ | O16: km | P16: 雑費 | AA16: 27 | AJ16: 現金 | AO16: FALSE | AR16: FALSE
B17: 休憩地 | P17: その他交通費 | R17: FALSE
B18: 回数 | C18: 人員 | D18: 輸送経路 | J18: 降車 時刻 | K18: 収受種類 | L18: 運送収入(円) | P18: 立替金(円) | S18: 交通費(円) | V18: 適用
D19: 乗車地 | G19: 降車地 | L19: 金額 | N19: 雑収入 | P19: ETC | Q19: 金額 | S19: ETC | T19: 金額
B20: 1 | K20: 現金 | P20: FALSE | S20: FALSE
B21: 2 | K21: 現金
B22: 3 | K22: 現金
B23: 4 | K23: 現金
B24: 5 | K24: 現金
B25: 6 | K25: 現金
B26: 7 | K26: 現金
B27: 8 | K27: 現金
B28: 9 | K28: 現金
B29: 10 | K29: 現金
B30: 11 | K30: 現金 | P30: FALSE
B31: 12 | K31: 現金
B32: 13 | K32: 現金
B33: 14 | K33: 現金
B34: 15 | K34: 現金
B35: 16 | K35: 現金
B36: 17 | K36: 現金 | P36: FALSE

Sheet 28
A1: ※ | B1: この日報はCANON製両面印刷対応プリンタで両面印刷するように設計されています。
C3: 日別営業報告書 | AA3: 回数 | AB3: 人員 | AC3: 輸送経路 | AI3: 降車 時刻 | AJ3: 収受 種類 | AK3: 運 送 収 入(円) | AO3: 立替金(円) | AR3: 交通費(円) | AU3: 適用
B4: 氏名: | D4: =日別輸送実績表!$O$8 -> 0 | I4: 登録番号: | L4: =日別輸送実績表!$E$54 -> 0 | Q4: 本日の天気 | AC4: 乗車地 | AF4: 降車地 | AK4: 金額 | AM4: 雑収入 | AO4: ETC | AP4: 金額 | AR4: ETC | AS4: 金額
B6: 営業日 | F6: アルコール検知 | J6: 出庫時間 | L6: 入庫時間 | N6: 実労(h) | P6: 運送収入内訳(円) | U6: 立替金内訳（円） | AA6: 18 | AJ6: 現金 | AO6: FALSE | AR6: FALSE
F7: 出庫時 | H7: 入庫時
B8: =ﾃﾞｰﾀﾍﾞｰｽ!$E$30 -> 2013-08-28 | F8: 無し(適) | H8: 無し(適) | N8: =IF(COUNT(J8:L8)=2,(L8-J8-"0:00"+(J8>L8))*24,"") ->  | P8: 収受別 | R8: 金額（円） | U8: ETC | X8: 現金 | AA8: 19 | AJ8: 現金 | AO8: FALSE | AR8: FALSE
B9: 出庫(km) | D9: =IF($D$10="","",MAX(ﾃﾞｰﾀﾍﾞｰｽ!$L$2:$L$29)+$N$15) ->  | F9: km | G9: 実車 (km) | I9: =IF(ISERROR(VLOOKUP(ROUNDUP($M$9,-3),実車キロ,4,TRUE))=TRUE,"",VLOOKUP(ROUNDUP($M$9,-3),実車キロ,4,TRUE)) ->  | J9: km | K9: 運送収入 | M9: =SUM(L20:L36,AL6:AL16) -> 0 | O9: 円 | P9: 現 金 | R9: =SUMIF(K20:K36,"現金",L20:L36)+SUMIF(AJ6:AJ16,"現金",AK6:AK16) -> 0 | AA9: 20 | AJ9: 現金 | AO9: FALSE | AR9: FALSE
B10: 入庫(km) | F10: km | G10: 輸送 回数 | I10: =COUNT(C20:C36,AK6:AL16) -> 0 | J10: 回 | K10: 燃料消費 | M10: =IF(ISERROR(D11/日別輸送実績表!$G$54)=TRUE,"",D11/日別輸送実績表!$G$54) ->  | O10: ℓ | P10: チケット | R10: =SUMIF(K20:K36,"チケット",L20:L36)+SUMIF(AJ6:AJ16,"チケット",AK6:AK16) -> 0 | U10: =SUMPRODUCT((K20:K36="チケット")*(P20:P36=TRUE),Q20:Q36)+SUMPRODUCT((AJ6:AJ16="チケット")*(AO6:AO16=TRUE),AP6:AP16) -> 0 | X10: =SUMPRODUCT((K20:K36="チケット")*(P20:P36=FALSE),Q20:Q36)+SUMPRODUCT((AJ6:AJ16="チケット")*(AO6:AO16=FALSE),AP6:AP16) -> 0 | AA10: 21 | AJ10: 現金 | AO10: FALSE | AR10: FALSE
B11: 走行(km) | D11: =IF(D10=0,"",IF(ISERROR(D10-D9)=TRUE,"",D10-D9)) ->  | F11: km | G11: 輸送 人員 | I11: =SUM(C20:C36,AB6:AB16) -> 0 | J11: 人 | K11: 粁収 | M11: =IF(ISERROR(M9/D11)=TRUE,"",M9/D11) ->  | O11: 円 | P11: カード | R11: =SUMIF(K20:K36,"カード",L20:L36)+SUMIF(AJ6:AJ16,"カード",AK6:AK16) -> 0 | U11: =SUMPRODUCT((K20:K36="カード")*(P20:P36=TRUE),Q20:Q36)+SUMPRODUCT((AJ6:AJ16="カード")*(AO6:AO16=TRUE),AP6:AP16) -> 0 | X11: =SUMPRODUCT((K20:K36="カード")*(P20:P36=FALSE),Q20:Q36)+SUMPRODUCT((AJ6:AJ16="カード")*(AO6:AO16=FALSE),AP6:AP16) -> 0 | AA11: 22 | AJ11: 現金 | AO11: FALSE | AR11: FALSE
B12: 交通費内訳(本日合計) | G12: 燃料関係 | K12: 実車率 | M12: =IF(ISERROR(I9/D11)=TRUE,"",I9/D11) ->  | P12: 合 計 | R12: =SUM(R9:T11) -> 0 | U12: =SUM(U10:W11) -> 0 | X12: =SUM(X10:Y11) -> 0 | AA12: 23 | AJ12: 現金 | AO12: FALSE | AR12: FALSE
B13: 現 金 | D13: =SUMIF(R17,FALSE,S17)+SUMIF(S20:S36,FALSE,T20:T36)+SUMIF(AR6:AR16,FALSE,AS6:AS16) -> 0 | F13: 円 | G13: 燃費 (ℓ/km) | I13: =IF(ISERROR(D11/M10)=TRUE,"",D11/M10) ->  | J13: km | K13: 実車粁収 | M13: =IF(ISERROR(M9/I9)=TRUE,"",M9/I9) ->  | O13: 円 | P13: 科目 | R13: 金額(円) | V13: 適用（内容） | AA13: 24 | AJ13: 現金 | AO13: FALSE | AR13: FALSE
B14: E T C | D14: =SUMIF(R17,TRUE,S17)+SUMIF(S20:S36,TRUE,T20:T36)+SUMIF(AR6:AR16,"TRUE",AS6:AS16) -> 0 | F14: 円 | G14: 燃料 単価 (ℓ/\) | I14: =日別輸送実績表!$F$54 -> 100 | J14: 円 | K14: 使用時間 | N14: 走行(km) | P14: 雑収入 | R14: =SUM(N20:O36,AM6:AO16) -> 0 | AA14: 25 | AJ14: 現金 | AO14: FALSE | AR14: FALSE
B15: 自家使用 | G15: ～ | L15: ～ | O15: km | P15: 燃料費 | R15: =IF($D$11="","",IF(ISERROR(LOOKUP(10^17,ﾃﾞｰﾀﾍﾞｰｽ!$Q$2:Q28))=TRUE,"",LOOKUP(10^17,ﾃﾞｰﾀﾍﾞｰｽ!$Q$2:Q28))) ->  | AA15: 26 | AJ15: 現金 | AO15: FALSE | AR15: FALSE
B16: 回送 | G16: ～ | L16: ～ | O16: km | P16: 雑費 | AA16: 27 | AJ16: 現金 | AO16: FALSE | AR16: FALSE
B17: 休憩地 | P17: その他交通費 | R17: FALSE
B18: 回数 | C18: 人員 | D18: 輸送経路 | J18: 降車 時刻 | K18: 収受種類 | L18: 運送収入(円) | P18: 立替金(円) | S18: 交通費(円) | V18: 適用
D19: 乗車地 | G19: 降車地 | L19: 金額 | N19: 雑収入 | P19: ETC | Q19: 金額 | S19: ETC | T19: 金額
B20: 1 | K20: 現金 | P20: FALSE | S20: FALSE
B21: 2 | K21: 現金
B22: 3 | K22: 現金
B23: 4 | K23: 現金
B24: 5 | K24: 現金
B25: 6 | K25: 現金
B26: 7 | K26: 現金
B27: 8 | K27: 現金
B28: 9 | K28: 現金
B29: 10 | K29: 現金
B30: 11 | K30: 現金 | P30: FALSE
B31: 12 | K31: 現金
B32: 13 | K32: 現金
B33: 14 | K33: 現金
B34: 15 | K34: 現金
B35: 16 | K35: 現金
B36: 17 | K36: 現金 | P36: FALSE

Sheet 29
A1: ※ | B1: この日報はCANON製両面印刷対応プリンタで両面印刷するように設計されています。
C3: 日別営業報告書 | AA3: 回数 | AB3: 人員 | AC3: 輸送経路 | AI3: 降車 時刻 | AJ3: 収受 種類 | AK3: 運 送 収 入(円) | AO3: 立替金(円) | AR3: 交通費(円) | AU3: 適用
B4: 氏名: | D4: =日別輸送実績表!$O$8 -> 0 | I4: 登録番号: | L4: =日別輸送実績表!$E$54 -> 0 | Q4: 本日の天気 | AC4: 乗車地 | AF4: 降車地 | AK4: 金額 | AM4: 雑収入 | AO4: ETC | AP4: 金額 | AR4: ETC | AS4: 金額
B6: 営業日 | F6: アルコール検知 | J6: 出庫時間 | L6: 入庫時間 | N6: 実労(h) | P6: 運送収入内訳(円) | U6: 立替金内訳（円） | AA6: 18 | AJ6: 現金 | AO6: FALSE | AR6: FALSE
F7: 出庫時 | H7: 入庫時
B8: =ﾃﾞｰﾀﾍﾞｰｽ!$E$31 -> 2013-08-29 | F8: 無し(適) | H8: 無し(適) | N8: =IF(COUNT(J8:L8)=2,(L8-J8-"0:00"+(J8>L8))*24,"") ->  | P8: 収受別 | R8: 金額（円） | U8: ETC | X8: 現金 | AA8: 19 | AJ8: 現金 | AO8: FALSE | AR8: FALSE
B9: 出庫(km) | D9: =IF($D$10="","",MAX(ﾃﾞｰﾀﾍﾞｰｽ!$L$2:$L$30)+$N$15) ->  | F9: km | G9: 実車 (km) | I9: =IF(ISERROR(VLOOKUP(ROUNDUP($M$9,-3),実車キロ,4,TRUE))=TRUE,"",VLOOKUP(ROUNDUP($M$9,-3),実車キロ,4,TRUE)) ->  | J9: km | K9: 運送収入 | M9: =SUM(L20:L36,AL6:AL16) -> 0 | O9: 円 | P9: 現 金 | R9: =SUMIF(K20:K36,"現金",L20:L36)+SUMIF(AJ6:AJ16,"現金",AK6:AK16) -> 0 | AA9: 20 | AJ9: 現金 | AO9: FALSE | AR9: FALSE
B10: 入庫(km) | F10: km | G10: 輸送 回数 | I10: =COUNT(C20:C36,AK6:AL16) -> 0 | J10: 回 | K10: 燃料消費 | M10: =IF(ISERROR(D11/日別輸送実績表!$G$54)=TRUE,"",D11/日別輸送実績表!$G$54) ->  | O10: ℓ | P10: チケット | R10: =SUMIF(K20:K36,"チケット",L20:L36)+SUMIF(AJ6:AJ16,"チケット",AK6:AK16) -> 0 | U10: =SUMPRODUCT((K20:K36="チケット")*(P20:P36=TRUE),Q20:Q36)+SUMPRODUCT((AJ6:AJ16="チケット")*(AO6:AO16=TRUE),AP6:AP16) -> 0 | X10: =SUMPRODUCT((K20:K36="チケット")*(P20:P36=FALSE),Q20:Q36)+SUMPRODUCT((AJ6:AJ16="チケット")*(AO6:AO16=FALSE),AP6:AP16) -> 0 | AA10: 21 | AJ10: 現金 | AO10: FALSE | AR10: FALSE
B11: 走行(km) | D11: =IF(D10=0,"",IF(ISERROR(D10-D9)=TRUE,"",D10-D9)) ->  | F11: km | G11: 輸送 人員 | I11: =SUM(C20:C36,AB6:AB16) -> 0 | J11: 人 | K11: 粁収 | M11: =IF(ISERROR(M9/D11)=TRUE,"",M9/D11) ->  | O11: 円 | P11: カード | R11: =SUMIF(K20:K36,"カード",L20:L36)+SUMIF(AJ6:AJ16,"カード",AK6:AK16) -> 0 | U11: =SUMPRODUCT((K20:K36="カード")*(P20:P36=TRUE),Q20:Q36)+SUMPRODUCT((AJ6:AJ16="カード")*(AO6:AO16=TRUE),AP6:AP16) -> 0 | X11: =SUMPRODUCT((K20:K36="カード")*(P20:P36=FALSE),Q20:Q36)+SUMPRODUCT((AJ6:AJ16="カード")*(AO6:AO16=FALSE),AP6:AP16) -> 0 | AA11: 22 | AJ11: 現金 | AO11: FALSE | AR11: FALSE
B12: 交通費内訳(本日合計) | G12: 燃料関係 | K12: 実車率 | M12: =IF(ISERROR(I9/D11)=TRUE,"",I9/D11) ->  | P12: 合 計 | R12: =SUM(R9:T11) -> 0 | U12: =SUM(U10:W11) -> 0 | X12: =SUM(X10:Y11) -> 0 | AA12: 23 | AJ12: 現金 | AO12: FALSE | AR12: FALSE
B13: 現 金 | D13: =SUMIF(R17,FALSE,S17)+SUMIF(S20:S36,FALSE,T20:T36)+SUMIF(AR6:AR16,FALSE,AS6:AS16) -> 0 | F13: 円 | G13: 燃費 (ℓ/km) | I13: =IF(ISERROR(D11/M10)=TRUE,"",D11/M10) ->  | J13: km | K13: 実車粁収 | M13: =IF(ISERROR(M9/I9)=TRUE,"",M9/I9) ->  | O13: 円 | P13: 科目 | R13: 金額(円) | V13: 適用（内容） | AA13: 24 | AJ13: 現金 | AO13: FALSE | AR13: FALSE
B14: E T C | D14: =SUMIF(R17,TRUE,S17)+SUMIF(S20:S36,TRUE,T20:T36)+SUMIF(AR6:AR16,"TRUE",AS6:AS16) -> 0 | F14: 円 | G14: 燃料 単価 (ℓ/\) | I14: =日別輸送実績表!$F$54 -> 100 | J14: 円 | K14: 使用時間 | N14: 走行(km) | P14: 雑収入 | R14: =SUM(N20:O36,AM6:AO16) -> 0 | AA14: 25 | AJ14: 現金 | AO14: FALSE | AR14: FALSE
B15: 自家使用 | G15: ～ | L15: ～ | O15: km | P15: 燃料費 | R15: =IF($D$11="","",IF(ISERROR(LOOKUP(10^17,ﾃﾞｰﾀﾍﾞｰｽ!$Q$2:Q29))=TRUE,"",LOOKUP(10^17,ﾃﾞｰﾀﾍﾞｰｽ!$Q$2:Q29))) ->  | AA15: 26 | AJ15: 現金 | AO15: FALSE | AR15: FALSE
B16: 回送 | G16: ～ | L16: ～ | O16: km | P16: 雑費 | AA16: 27 | AJ16: 現金 | AO16: FALSE | AR16: FALSE
B17: 休憩地 | P17: その他交通費 | R17: FALSE
B18: 回数 | C18: 人員 | D18: 輸送経路 | J18: 降車 時刻 | K18: 収受種類 | L18: 運送収入(円) | P18: 立替金(円) | S18: 交通費(円) | V18: 適用
D19: 乗車地 | G19: 降車地 | L19: 金額 | N19: 雑収入 | P19: ETC | Q19: 金額 | S19: ETC | T19: 金額
B20: 1 | K20: 現金 | P20: FALSE | S20: FALSE
B21: 2 | K21: 現金
B22: 3 | K22: 現金
B23: 4 | K23: 現金
B24: 5 | K24: 現金
B25: 6 | K25: 現金
B26: 7 | K26: 現金
B27: 8 | K27: 現金
B28: 9 | K28: 現金
B29: 10 | K29: 現金
B30: 11 | K30: 現金 | P30: FALSE
B31: 12 | K31: 現金
B32: 13 | K32: 現金
B33: 14 | K33: 現金
B34: 15 | K34: 現金
B35: 16 | K35: 現金
B36: 17 | K36: 現金 | P36: FALSE

Sheet 30
A1: ※ | B1: この日報はCANON製両面印刷対応プリンタで両面印刷するように設計されています。
C3: 日別営業報告書 | AA3: 回数 | AB3: 人員 | AC3: 輸送経路 | AI3: 降車 時刻 | AJ3: 収受 種類 | AK3: 運 送 収 入(円) | AO3: 立替金(円) | AR3: 交通費(円) | AU3: 適用
B4: 氏名: | D4: =日別輸送実績表!$O$8 -> 0 | I4: 登録番号: | L4: =日別輸送実績表!$E$54 -> 0 | Q4: 本日の天気 | AC4: 乗車地 | AF4: 降車地 | AK4: 金額 | AM4: 雑収入 | AO4: ETC | AP4: 金額 | AR4: ETC | AS4: 金額
B6: 営業日 | F6: アルコール検知 | J6: 出庫時間 | L6: 入庫時間 | N6: 実労(h) | P6: 運送収入内訳(円) | U6: 立替金内訳（円） | AA6: 18 | AJ6: 現金 | AO6: FALSE | AR6: FALSE
F7: 出庫時 | H7: 入庫時
B8: =ﾃﾞｰﾀﾍﾞｰｽ!$E$32 -> 2013-08-30 | F8: 無し(適) | H8: 無し(適) | N8: =IF(COUNT(J8:L8)=2,(L8-J8-"0:00"+(J8>L8))*24,"") ->  | P8: 収受別 | R8: 金額（円） | U8: ETC | X8: 現金 | AA8: 19 | AJ8: 現金 | AO8: FALSE | AR8: FALSE
B9: 出庫(km) | D9: =IF($D$10="","",MAX(ﾃﾞｰﾀﾍﾞｰｽ!$L$2:$L$31)+$N$15) ->  | F9: km | G9: 実車 (km) | I9: =IF(ISERROR(VLOOKUP(ROUNDUP($M$9,-3),実車キロ,4,TRUE))=TRUE,"",VLOOKUP(ROUNDUP($M$9,-3),実車キロ,4,TRUE)) ->  | J9: km | K9: 運送収入 | M9: =SUM(L20:L36,AL6:AL16) -> 0 | O9: 円 | P9: 現 金 | R9: =SUMIF(K20:K36,"現金",L20:L36)+SUMIF(AJ6:AJ16,"現金",AK6:AK16) -> 0 | AA9: 20 | AJ9: 現金 | AO9: FALSE | AR9: FALSE
B10: 入庫(km) | F10: km | G10: 輸送 回数 | I10: =COUNT(C20:C36,AK6:AL16) -> 0 | J10: 回 | K10: 燃料消費 | M10: =IF(ISERROR(D11/日別輸送実績表!$G$54)=TRUE,"",D11/日別輸送実績表!$G$54) ->  | O10: ℓ | P10: チケット | R10: =SUMIF(K20:K36,"チケット",L20:L36)+SUMIF(AJ6:AJ16,"チケット",AK6:AK16) -> 0 | U10: =SUMPRODUCT((K20:K36="チケット")*(P20:P36=TRUE),Q20:Q36)+SUMPRODUCT((AJ6:AJ16="チケット")*(AO6:AO16=TRUE),AP6:AP16) -> 0 | X10: =SUMPRODUCT((K20:K36="チケット")*(P20:P36=FALSE),Q20:Q36)+SUMPRODUCT((AJ6:AJ16="チケット")*(AO6:AO16=FALSE),AP6:AP16) -> 0 | AA10: 21 | AJ10: 現金 | AO10: FALSE | AR10: FALSE
B11: 走行(km) | D11: =IF(D10=0,"",IF(ISERROR(D10-D9)=TRUE,"",D10-D9)) ->  | F11: km | G11: 輸送 人員 | I11: =SUM(C20:C36,AB6:AB16) -> 0 | J11: 人 | K11: 粁収 | M11: =IF(ISERROR(M9/D11)=TRUE,"",M9/D11) ->  | O11: 円 | P11: カード | R11: =SUMIF(K20:K36,"カード",L20:L36)+SUMIF(AJ6:AJ16,"カード",AK6:AK16) -> 0 | U11: =SUMPRODUCT((K20:K36="カード")*(P20:P36=TRUE),Q20:Q36)+SUMPRODUCT((AJ6:AJ16="カード")*(AO6:AO16=TRUE),AP6:AP16) -> 0 | X11: =SUMPRODUCT((K20:K36="カード")*(P20:P36=FALSE),Q20:Q36)+SUMPRODUCT((AJ6:AJ16="カード")*(AO6:AO16=FALSE),AP6:AP16) -> 0 | AA11: 22 | AJ11: 現金 | AO11: FALSE | AR11: FALSE
B12: 交通費内訳(本日合計) | G12: 燃料関係 | K12: 実車率 | M12: =IF(ISERROR(I9/D11)=TRUE,"",I9/D11) ->  | P12: 合 計 | R12: =SUM(R9:T11) -> 0 | U12: =SUM(U10:W11) -> 0 | X12: =SUM(X10:Y11) -> 0 | AA12: 23 | AJ12: 現金 | AO12: FALSE | AR12: FALSE
B13: 現 金 | D13: =SUMIF(R17,FALSE,S17)+SUMIF(S20:S36,FALSE,T20:T36)+SUMIF(AR6:AR16,FALSE,AS6:AS16) -> 0 | F13: 円 | G13: 燃費 (ℓ/km) | I13: =IF(ISERROR(D11/M10)=TRUE,"",D11/M10) ->  | J13: km | K13: 実車粁収 | M13: =IF(ISERROR(M9/I9)=TRUE,"",M9/I9) ->  | O13: 円 | P13: 科目 | R13: 金額(円) | V13: 適用（内容） | AA13: 24 | AJ13: 現金 | AO13: FALSE | AR13: FALSE
B14: E T C | D14: =SUMIF(R17,TRUE,S17)+SUMIF(S20:S36,TRUE,T20:T36)+SUMIF(AR6:AR16,"TRUE",AS6:AS16) -> 0 | F14: 円 | G14: 燃料 単価 (ℓ/\) | I14: =日別輸送実績表!$F$54 -> 100 | J14: 円 | K14: 使用時間 | N14: 走行(km) | P14: 雑収入 | R14: =SUM(N20:O36,AM6:AO16) -> 0 | AA14: 25 | AJ14: 現金 | AO14: FALSE | AR14: FALSE
B15: 自家使用 | G15: ～ | L15: ～ | O15: km | P15: 燃料費 | R15: =IF($D$11="","",IF(ISERROR(LOOKUP(10^17,ﾃﾞｰﾀﾍﾞｰｽ!$Q$2:Q30))=TRUE,"",LOOKUP(10^17,ﾃﾞｰﾀﾍﾞｰｽ!$Q$2:Q30))) ->  | AA15: 26 | AJ15: 現金 | AO15: FALSE | AR15: FALSE
B16: 回送 | G16: ～ | L16: ～ | O16: km | P16: 雑費 | AA16: 27 | AJ16: 現金 | AO16: FALSE | AR16: FALSE
B17: 休憩地 | P17: その他交通費 | R17: FALSE
B18: 回数 | C18: 人員 | D18: 輸送経路 | J18: 降車 時刻 | K18: 収受種類 | L18: 運送収入(円) | P18: 立替金(円) | S18: 交通費(円) | V18: 適用
D19: 乗車地 | G19: 降車地 | L19: 金額 | N19: 雑収入 | P19: ETC | Q19: 金額 | S19: ETC | T19: 金額
B20: 1 | K20: 現金 | P20: FALSE | S20: FALSE
B21: 2 | K21: 現金
B22: 3 | K22: 現金
B23: 4 | K23: 現金
B24: 5 | K24: 現金
B25: 6 | K25: 現金
B26: 7 | K26: 現金
B27: 8 | K27: 現金
B28: 9 | K28: 現金
B29: 10 | K29: 現金
B30: 11 | K30: 現金 | P30: FALSE
B31: 12 | K31: 現金
B32: 13 | K32: 現金
B33: 14 | K33: 現金
B34: 15 | K34: 現金
B35: 16 | K35: 現金
B36: 17 | K36: 現金 | P36: FALSE

Sheet 31
A1: ※ | B1: この日報はCANON製両面印刷対応プリンタで両面印刷するように設計されています。
C3: 日別営業報告書 | AA3: 回数 | AB3: 人員 | AC3: 輸送経路 | AI3: 降車 時刻 | AJ3: 収受 種類 | AK3: 運 送 収 入(円) | AO3: 立替金(円) | AR3: 交通費(円) | AU3: 適用
B4: 氏名: | D4: =日別輸送実績表!$O$8 -> 0 | I4: 登録番号: | L4: =日別輸送実績表!$E$54 -> 0 | Q4: 本日の天気 | AC4: 乗車地 | AF4: 降車地 | AK4: 金額 | AM4: 雑収入 | AO4: ETC | AP4: 金額 | AR4: ETC | AS4: 金額
B6: 営業日 | F6: アルコール検知 | J6: 出庫時間 | L6: 入庫時間 | N6: 実労(h) | P6: 運送収入内訳(円) | U6: 立替金内訳（円） | AA6: 18 | AJ6: 現金 | AO6: FALSE | AR6: FALSE
F7: 出庫時 | H7: 入庫時
B8: =ﾃﾞｰﾀﾍﾞｰｽ!$E$33 -> 2013-08-31 | F8: 無し(適) | H8: 無し(適) | N8: =IF(COUNT(J8:L8)=2,(L8-J8-"0:00"+(J8>L8))*24,"") ->  | P8: 収受別 | R8: 金額（円） | U8: ETC | X8: 現金 | AA8: 19 | AJ8: 現金 | AO8: FALSE | AR8: FALSE
B9: 出庫(km) | D9: =IF($D$10="","",MAX(ﾃﾞｰﾀﾍﾞｰｽ!$L$2:$L$32)+$N$15) ->  | F9: km | G9: 実車 (km) | I9: =IF(ISERROR(VLOOKUP(ROUNDUP($M$9,-3),実車キロ,4,TRUE))=TRUE,"",VLOOKUP(ROUNDUP($M$9,-3),実車キロ,4,TRUE)) ->  | J9: km | K9: 運送収入 | M9: =SUM(L20:L36,AL6:AL16) -> 0 | O9: 円 | P9: 現 金 | R9: =SUMIF(K20:K36,"現金",L20:L36)+SUMIF(AJ6:AJ16,"現金",AK6:AK16) -> 0 | AA9: 20 | AJ9: 現金 | AO9: FALSE | AR9: FALSE
B10: 入庫(km) | F10: km | G10: 輸送 回数 | I10: =COUNT(C20:C36,AK6:AL16) -> 0 | J10: 回 | K10: 燃料消費 | M10: =IF(ISERROR(D11/日別輸送実績表!$G$54)=TRUE,"",D11/日別輸送実績表!$G$54) ->  | O10: ℓ | P10: チケット | R10: =SUMIF(K20:K36,"チケット",L20:L36)+SUMIF(AJ6:AJ16,"チケット",AK6:AK16) -> 0 | U10: =SUMPRODUCT((K20:K36="チケット")*(P20:P36=TRUE),Q20:Q36)+SUMPRODUCT((AJ6:AJ16="チケット")*(AO6:AO16=TRUE),AP6:AP16) -> 0 | X10: =SUMPRODUCT((K20:K36="チケット")*(P20:P36=FALSE),Q20:Q36)+SUMPRODUCT((AJ6:AJ16="チケット")*(AO6:AO16=FALSE),AP6:AP16) -> 0 | AA10: 21 | AJ10: 現金 | AO10: FALSE | AR10: FALSE
B11: 走行(km) | D11: =IF(D10=0,"",IF(ISERROR(D10-D9)=TRUE,"",D10-D9)) ->  | F11: km | G11: 輸送 人員 | I11: =SUM(C20:C36,AB6:AB16) -> 0 | J11: 人 | K11: 粁収 | M11: =IF(ISERROR(M9/D11)=TRUE,"",M9/D11) ->  | O11: 円 | P11: カード | R11: =SUMIF(K20:K36,"カード",L20:L36)+SUMIF(AJ6:AJ16,"カード",AK6:AK16) -> 0 | U11: =SUMPRODUCT((K20:K36="カード")*(P20:P36=TRUE),Q20:Q36)+SUMPRODUCT((AJ6:AJ16="カード")*(AO6:AO16=TRUE),AP6:AP16) -> 0 | X11: =SUMPRODUCT((K20:K36="カード")*(P20:P36=FALSE),Q20:Q36)+SUMPRODUCT((AJ6:AJ16="カード")*(AO6:AO16=FALSE),AP6:AP16) -> 0 | AA11: 22 | AJ11: 現金 | AO11: FALSE | AR11: FALSE
B12: 交通費内訳(本日合計) | G12: 燃料関係 | K12: 実車率 | M12: =IF(ISERROR(I9/D11)=TRUE,"",I9/D11) ->  | P12: 合 計 | R12: =SUM(R9:T11) -> 0 | U12: =SUM(U10:W11) -> 0 | X12: =SUM(X10:Y11) -> 0 | AA12: 23 | AJ12: 現金 | AO12: FALSE | AR12: FALSE
B13: 現 金 | D13: =SUMIF(R17,FALSE,S17)+SUMIF(S20:S36,FALSE,T20:T36)+SUMIF(AR6:AR16,FALSE,AS6:AS16) -> 0 | F13: 円 | G13: 燃費 (ℓ/km) | I13: =IF(ISERROR(D11/M10)=TRUE,"",D11/M10) ->  | J13: km | K13: 実車粁収 | M13: =IF(ISERROR(M9/I9)=TRUE,"",M9/I9) ->  | O13: 円 | P13: 科目 | R13: 金額(円) | V13: 適用（内容） | AA13: 24 | AJ13: 現金 | AO13: FALSE | AR13: FALSE
B14: E T C | D14: =SUMIF(R17,TRUE,S17)+SUMIF(S20:S36,TRUE,T20:T36)+SUMIF(AR6:AR16,"TRUE",AS6:AS16) -> 0 | F14: 円 | G14: 燃料 単価 (ℓ/\) | I14: =日別輸送実績表!$F$54 -> 100 | J14: 円 | K14: 使用時間 | N14: 走行(km) | P14: 雑収入 | R14: =SUM(N20:O36,AM6:AO16) -> 0 | AA14: 25 | AJ14: 現金 | AO14: FALSE | AR14: FALSE
B15: 自家使用 | G15: ～ | L15: ～ | O15: km | P15: 燃料費 | R15: =IF($D$11="","",IF(ISERROR(LOOKUP(10^17,ﾃﾞｰﾀﾍﾞｰｽ!$Q$2:Q31))=TRUE,"",LOOKUP(10^17,ﾃﾞｰﾀﾍﾞｰｽ!$Q$2:Q31))) ->  | AA15: 26 | AJ15: 現金 | AO15: FALSE | AR15: FALSE
B16: 回送 | G16: ～ | L16: ～ | O16: km | P16: 雑費 | AA16: 27 | AJ16: 現金 | AO16: FALSE | AR16: FALSE
B17: 休憩地 | P17: その他交通費 | R17: FALSE
B18: 回数 | C18: 人員 | D18: 輸送経路 | J18: 降車 時刻 | K18: 収受種類 | L18: 運送収入(円) | P18: 立替金(円) | S18: 交通費(円) | V18: 適用
D19: 乗車地 | G19: 降車地 | L19: 金額 | N19: 雑収入 | P19: ETC | Q19: 金額 | S19: ETC | T19: 金額
B20: 1 | K20: 現金 | P20: FALSE | S20: FALSE
B21: 2 | K21: 現金
B22: 3 | K22: 現金
B23: 4 | K23: 現金
B24: 5 | K24: 現金
B25: 6 | K25: 現金
B26: 7 | K26: 現金
B27: 8 | K27: 現金
B28: 9 | K28: 現金
B29: 10 | K29: 現金
B30: 11 | K30: 現金 | P30: FALSE
B31: 12 | K31: 現金
B32: 13 | K32: 現金
B33: 14 | K33: 現金
B34: 15 | K34: 現金
B35: 16 | K35: 現金
B36: 17 | K36: 現金 | P36: FALSE
